Workbook

Sheet Interject_LastPulledValues (hidden)
A1: Interject_LastPulledValues_BalanceRange | K1: Interject_LastPulledValues_DescriptionRange | P1: Interject_LastPulledValues_LastChangeGUID
A2: KeyValue | B2: FullAccount | C2: Period | D2: Year | E2: Source | F2: Company | G2: Currency | H2: Version | I2: Balance | K2: KeyValue | L2: SegmentValue | M2: SegmentNumber | N2: Description | P2: Interject_LastPulledValues_PreviousLastChangeGUID

Sheet FAR 12.2021
B1: Location | C1: AssetID | D1: ParentChild | E1: Description | F1: SystemNo | H1: MFGSerialNum | I1: LicensePlate | J1: ModelYear | K1: VendorMfg | L1: BodyManuf | M1: InsuranceCategory | N1: InServiceDate | O1: AcquisitionDate | P1: PONumber | Q1: EstimatedLife | R1: AssetGL | S1: AcqValue | T1: AccumulatedGL | U1: CurrentLifeToDate | W1: CurrentYearToDate | X1: ExpenseGL | Y1: CurrentPeriodDepr | Z1: AcqType | AA1: FormerCompany | AB1: InvoiceNum | AC1: CompAsstNo | AD1: Book | AE1: ActivityCd | AF1: DeprMethod | AG1: BegLsDeprDate | AH1: LongName | AI1: Sequence | AJ1: BegLifeToDate
V2: =S2-U2 -> 0
B3: =_xll.ReportRange("FARReport",A16:AJ281,A1:AJ1,A2:AJ2,_xll.Param($C$9,$C$10,C12,$M$9,$M$10,$M$11,$S$9,M12,$Y$10,$Y$9,S10,S11,CELL("address",$E$6)),TRUE,FALSE) -> OK!: ReportRange Formula OK [jAction{}] | L3: Default Month : | M3: =MONTH(NOW()) -> 2 | S3: =_xll.ReportDrill(ProjDepr!D3,,_xll.PairGroup(_xll.Pair('FAR 12.2021'!C9,ProjDepr!D19),_xll.Pair("C:B",ProjDepr!D20),_xll.Pair("C:C",ProjDepr!D21),_xll.Pair("C:V",ProjDepr!D22)),"Projected Depr") -> OK!: ReportDrill 'Projected Depr' Formula OK [jAction{}] | Y3: =_xll.jFreezePanes(A16,A5) -> > jFreezePanes is ready. | AB3: =_xll.jFocus(C9) -> > jFocus is ready.
L4: Default Year : | M4: =IF(M3=12,YEAR(NOW()),YEAR(NOW())) -> 2022 | S4: reportdrill(Invoice!C2,,pairgroup(pair("C:C",Invoice!E8),pair("",Invoice!E7,"N")),"Drill To Invoices by FAS# (Exc CIP)") | U4: =_xll.ReportDrill(Invoice!$C$2,,_xll.PairGroup(_xll.Pair("C:P",Invoice!$E$7),_xll.Pair("",Invoice!$E$8,"N"),_xll.Pair("",Invoice!$E$9,"n")),"Drill To All Invoices by PO#") -> OK!: ReportDrill 'Drill To All Invoices by PO#' Formula OK [jAction{}] | X4: =_xll.ReportDrill(Invoice!$C$2,,_xll.PairGroup(_xll.Pair("C:P",Invoice!$E$7),_xll.Pair("",Invoice!$E$8,"N"),_xll.Pair("C:Z",Invoice!$E$9,"n")),"Drill to Invoice by PO# and Invoice #") -> OK!: ReportDrill 'Drill to Invoice by PO# and Invoice #' Formula OK [jAction{}]
B5: Fixed Asset Register | H5: Asset Count: | I5: =COUNT(C16:C281) -> 265 | AH5: Check | AK5: 3 | AL5: Effective Rate Month
B6: Data Last Updated in this Pull: | E6: Dec 8 2021 1:59PM | AF6: 2020 FAR Adds | AG6: =SUM(S32:S36) -> 41148.36 | AH6: =AG6-'[8]Depr Summary'!$D$73 -> 0 | AK6: 2021 | AL6: First Year
AF7: Test Period Adds | AG7: =SUM(S14:S31) -> 1152659.01 | AK7: 2022 | AL7: Second year
AK8: =AK7+(AK5/12) -> 2022.25 | AL8: Rate Effective Year
B9: Period: | C9: 2021-12 | F9: Ctrl + Shift + J | L9: VIN: | O9: (Contains the string) | R9: Parent/Child: | T9: (Leave blank for all) | X9: Service Date To:
B10: District: | C10: 2144 | E10: (F9 Aware) | L10: Description: | O10: (Contains the string) | R10: Asset Acct: | X10: Service Date From: | AF10: Total Container Count | AG10: =SUM(F14:F15,F21:F31) -> 5652
L11: PO Number: | O11: (Contains the string) | R11: Exp Acct:
B12: Asset #: | L12: Ins Category: | O12: (Not setup yet) | R12: Depreciated %: | T12: (Not setup yet)
B13: District | C13: Asset # | D13: Parent/ Child | E13: Descr | F13: Container Count | G13: Blank | H13: MFG Serial# | I13: License Plate | J13: Model Year | K13: Vendor/Mfg | L13: Body Mfg | M13: Ins Category | N13: In Service Date | O13: Acq Date | P13: CER # | Q13: Useful Life | R13: Asset Account | S13: Cost | T13: Accum Account | U13: Accum Life to Date | V13: NBV | W13: Accum YTD | X13: Expense Account | Y13: Current Depr | Z13: Acq Type | AA13: Former Company | AB13: Invoice # | AC13: Company Asset # | AD13: Book | AE13: Activity Cd | AF13: Depr Meth | AG13: Beg Date | AH13: Dbase | AI13: Seq | AJ13: Beg Depr | AK13: Truck # | AL13: Equipment Type | AM13: Month | AN13: YearPIS | AO13: Year Fully Dep | AP13: Year/Mo Fully Dep | AQ13: Monthly Depreciation | AR13: Annual Depreciation | AS13: Test Year Depreciation | AT13: BOY Accum | AU13: EOY Accum | AV13: EOY Average Investment | AW13: Pre 2021 Add?
B14: Please see Invoice Tab | E14: MSW Carts - Automation | N14: ='Invoice - Addt 2021 Adds'!O13 -> 2021-11-01 | Q14: 700 | S14: ='Invoice - Addt 2021 Adds'!O25 -> 104854.19 | AL14: Regulated Garbage Carts | AM14: =MONTH($N14) -> 11 | AN14: =YEAR($N14) -> 2021 | AO14: =$AN14+($Q14/100) -> 2028 | AP14: =$AO14+($AM14/12) -> 2028.916667 | AQ14: =IFERROR($S14/($Q14/100)/12,0) -> 1248.264167 | AR14: =$AQ14*12 -> 14979.17 | AS14: =IF($AP14<=$AK$8,0,IF($AO14>$AK$7,$AR14,($AQ14*$AM14))) -> 14979.17 | AT14: =IF($AS14=0,$S14,IF($AK$6-AN14<1,0,(($AK$6-$AN14)*AR14))) -> 0 | AU14: =IF($AT14=0,$AS14,($AT14+$AS14)) -> 14979.17 | AV14: =$S14-$AU14 -> 89875.02 | AW14: No
B15: 2144 | C15: 270175 | D15: P | E15: 65 Gal MSW Carts | F15: 936 | J15: 0 | K15: REHRIG PACIFIC COMPANY IN | M15: Non-Container Audit | N15: 2021-11-01 | O15: 2021-11-01 | P15: 2144-21-0007-2 | Q15: 700 | R15: 14050 | S15: 57887.27 | T15: 14056 | U15: 0 | V15: =S15-U15 -> 57887.27 | W15: 0 | X15: 54260 | Y15: 0 | Z15: P | AB15: 50199759 | AD15: Internal | AE15: A | AF15: SL | AH15: WCNX | AI15: 0 | AJ15: 0 | AL15: Regulated Garbage Carts | AM15: 11 | AN15: 2021 | AO15: 2028 | AP15: 2028.916667 | AQ15: 689.1341667 | AR15: 8269.61 | AS15: 8269.61 | AT15: =IF($AS15=0,$S15,IF($AK$6-AN15<1,0,(($AK$6-$AN15)*AR15))) -> 0 | AU15: 8269.61 | AV15: 49617.66 | AW15: No
B16: 2144 | C16: 265537 | D16: P | E16: Used 1992 Wabi Van Trailers #9202 | F16: 0 | H16: 1JJV533Y0NL176229 | I16: 48189AE | J16: 1992 | K16: Wabi Van | L16: Other | M16: Trailer | N16: 2010-12-01 | O16: 2010-12-01 | P16: 2170-10-0006-1 | Q16: 300 | R16: 14040 | S16: 5902.2 | T16: 14046 | U16: 5902.2 | V16: =S16-U16 -> 0 | W16: 0 | X16: 51260 | Y16: 0 | Z16: P | AB16: October 20 2010 | AC16: 9202 | AD16: Internal | AE16: A | AF16: SL | AG16: 2021-10-31 | AH16: WCNX | AI16: 0 | AJ16: 5902.2 | AK16: 9202 | AL16: Long Haul | AM16: =MONTH($N16) -> 12 | AN16: =YEAR($N16) -> 2010 | AO16: 2013 | AP16: =$AO16+($AM16/12) -> 2014 | AQ16: =IFERROR($S16/($Q16/100)/12,0) -> 163.95 | AR16: =$AQ16*12 -> 1967.4 | AS16: 0 | AT16: =IF($AS16=0,$S16,IF($AK$6-AN16<1,0,(($AK$6-$AN16)*AR16))) -> 5902.2 | AU16: =IF($AT16=0,$AS16,($AT16+$AS16)) -> 5902.2 | AV16: 0 | AW16: No
B17: 2144 | C17: 265536 | D17: P | E17: New 2009 ASL Truck (Package Purchase) | F17: 0 | H17: 3BPZL00X59F718864 | I17: B58297N | J17: 2009 | K17: Peterbilt 320 | L17: McNeilus | M17: Automated Sideload | N17: 2010-01-31 | O17: 2010-01-31 | P17: 2112-9-0012-1 | Q17: 900 | R17: 14040 | S17: 274650.34 | T17: 14046 | U17: 274650.34 | V17: 0 | W17: 0 | X17: 51260 | Y17: 0 | Z17: P | AB17: 1197363 | AC17: 881 | AD17: Internal | AE17: A | AF17: SL | AG17: 2021-10-31 | AH17: WCNX | AI17: 0 | AJ17: 274650.34 | AK17: 881 | AL17: Resi/Comm Garbage | AM17: 1 | AN17: 2010 | AO17: 2019 | AP17: 2019.083333 | AQ17: 2543.058704 | AR17: 30516.70444 | AS17: 0 | AT17: 274650.34 | AU17: 274650.34 | AV17: 0 | AW17: No
B18: 2144 | C18: 265535 | D18: P | E18: 2009 New International Truck | F18: 0 | H18: 1HTWCAANX9J126605 | I18: C18568T | J18: 2009 | K18: International 7400 | L18: Heil | M18: REL Truck | N18: 2009-09-28 | O18: 2009-09-28 | P18: 2149-9-0036-1 | Q18: 900 | R18: 14040 | S18: 131742 | T18: 14046 | U18: 131742 | V18: 0 | W18: 0 | X18: 51260 | Y18: 0 | Z18: P | AB18: 24044364 | AC18: 31 | AD18: Internal | AE18: A | AF18: SL | AG18: 2021-10-31 | AH18: WCNX | AI18: 0 | AJ18: 131742 | AK18: 31 | AL18: Resi/Comm Garbage | AM18: 9 | AN18: 2009 | AO18: 2018 | AP18: 2018.75 | AQ18: 1219.833333 | AR18: 14638 | AS18: 0 | AT18: 131742 | AU18: 131742 | AV18: 0 | AW18: No
B19: 2144 | C19: 265455 | D19: P | E19: Drive Cam Units | F19: 1 | J19: 0 | N19: 2021-11-01 | O19: 2021-11-01 | P19: 1010-21-0038 | Q19: 500 | R19: 14070 | S19: 539.05 | T19: 14076 | U19: 8.99 | V19: 530.06 | W19: 8.99 | X19: 51260 | Y19: 8.99 | Z19: P | AD19: Internal | AE19: A | AF19: SL | AH19: WCNX | AI19: 0 | AJ19: 0 | AL19: Service Equipment | AM19: 11 | AN19: 2021 | AO19: 2026 | AP19: 2026.916667 | AQ19: 8.984166667 | AR19: 107.81 | AS19: 107.81 | AT19: 0 | AU19: 107.81 | AV19: 431.24 | AW19: No
B20: 2144 | C20: 265058 | D20: P | E20: 2022 Freightliner REL Truck | H20: 1FVHCYFEXNHNG2427 | J20: 2022 | M20: REL Truck | N20: 2021-11-19 | O20: 2021-11-19 | P20: 2144-21-0002 | Q20: 1000 | R20: 14040 | S20: 255869.24 | T20: 14046 | U20: 0 | V20: 255869.24 | W20: 0 | X20: 51260 | Y20: 0 | Z20: P | AD20: Internal | AE20: A | AF20: SL | AH20: WCNX | AI20: 0 | AJ20: 0 | AK20: 50-17 | AL20: Resi/Comm Garbage | AM20: 11 | AN20: 2021 | AO20: 2031 | AP20: 2031.916667 | AQ20: 2132.243667 | AR20: 25586.924 | AS20: 25586.924 | AT20: 0 | AU20: 25586.924 | AV20: 230282.316 | AW20: No
B21: 2144 | C21: 264781 | D21: P | E21: 65G MSW Carts | F21: 451 | J21: 0 | K21: REHRIG PACIFIC COMPANY IN | M21: Non-Container Audit | N21: 2021-11-01 | O21: 2021-11-01 | P21: 2144-21-0007-2 | Q21: 700 | R21: 14050 | S21: 27075.01 | T21: 14056 | U21: 322.32 | V21: 26752.69 | W21: 322.32 | X21: 54260 | Y21: 322.32 | Z21: P | AB21: 50200391 | AD21: Internal | AE21: A | AF21: SL | AH21: WCNX | AI21: 0 | AJ21: 0 | AL21: Regulated Garbage Carts | AM21: 11 | AN21: 2021 | AO21: 2028 | AP21: 2028.916667 | AQ21: 322.3215476 | AR21: 3867.858571 | AS21: 3867.858571 | AT21: 0 | AU21: 3867.858571 | AV21: 23207.15143 | AW21: No
B22: 2144 | C22: 264766 | D22: P | E22: 35G MSW carts | F22: 517 | J22: 0 | K22: REHRIG PACIFIC COMPANY IN | M22: Non-Container Audit | N22: 2021-11-01 | O22: 2021-11-01 | P22: 2144-21-0007-1 | Q22: 700 | R22: 14050 | S22: 25562.17 | T22: 14056 | U22: 304.31 | V22: 25257.86 | W22: 304.31 | X22: 54260 | Y22: 304.31 | Z22: P | AB22: 50200391 | AD22: Internal | AE22: A | AF22: SL | AH22: WCNX | AI22: 0 | AJ22: 0 | AL22: Regulated Garbage Carts | AM22: 11 | AN22: 2021 | AO22: 2028 | AP22: 2028.916667 | AQ22: 304.3115476 | AR22: 3651.738571 | AS22: 3651.738571 | AT22: 0 | AU22: 3651.738571 | AV22: 21910.43143 | AW22: No
B23: 2144 | C23: 264765 | D23: P | E23: 35G MSW Carts | F23: 1080 | J23: 0 | K23: REHRIG PACIFIC COMPANY IN | M23: Non-Container Audit | N23: 2021-11-01 | O23: 2021-11-01 | P23: 2144-21-0007-1 | Q23: 700 | R23: 14050 | S23: 53390.83 | T23: 14056 | U23: 635.61 | V23: 52755.22 | W23: 635.61 | X23: 54260 | Y23: 635.61 | Z23: P | AB23: 50204740 | AD23: Internal | AE23: A | AF23: SL | AH23: WCNX | AI23: 0 | AJ23: 0 | AL23: Regulated Garbage Carts | AM23: 11 | AN23: 2021 | AO23: 2028 | AP23: 2028.916667 | AQ23: 635.605119 | AR23: 7627.261429 | AS23: 7627.261429 | AT23: 0 | AU23: 7627.261429 | AV23: 45763.56857 | AW23: No
B24: 2144 | C24: 264764 | D24: P | E24: 35G MSW carts | F24: 1080 | J24: 0 | K24: REHRIG PACIFIC COMPANY IN | M24: Non-Container Audit | N24: 2021-11-01 | O24: 2021-11-01 | P24: 2144-21-0007-1 | Q24: 700 | R24: 14050 | S24: 53398.74 | T24: 14056 | U24: 635.7 | V24: 52763.04 | W24: 635.7 | X24: 54260 | Y24: 635.7 | Z24: P | AB24: 50200391 | AD24: Internal | AE24: A | AF24: SL | AH24: WCNX | AI24: 0 | AJ24: 0 | AL24: Regulated Garbage Carts | AM24: 11 | AN24: 2021 | AO24: 2028 | AP24: 2028.916667 | AQ24: 635.6992857 | AR24: 7628.391429 | AS24: 7628.391429 | AT24: 0 | AU24: 7628.391429 | AV24: 45770.34857 | AW24: No
B25: 2144 | C25: 257134 | D25: P | E25: 40YD. | F25: 12 | J25: 0 | M25: 40 YD RO Box | N25: 2008-11-03 | O25: 2008-11-03 | Q25: 700 | R25: 14050 | S25: 15556.18 | T25: 14056 | U25: 15556.18 | V25: 0 | W25: 0 | X25: 54260 | Y25: 0 | Z25: A | AA25: LeMay Enterprises | AD25: Internal | AE25: A | AF25: SL | AG25: 2021-07-31 | AH25: WCNX | AI25: 0 | AJ25: 15556.18 | AL25: Drop Boxes | AM25: 11 | AN25: 2008 | AO25: 2015 | AP25: 2015.916667 | AQ25: 185.192619 | AR25: 2222.311429 | AS25: 0 | AT25: 15556.18 | AU25: 15556.18 | AV25: 0 | AW25: No
B26: 2144 | C26: 257133 | D26: P | E26: 10 Yard R/O Containers | F26: 1 | J26: 0 | M26: 10 YD RO Box | N26: 2008-11-03 | O26: 2008-11-03 | Q26: 700 | R26: 14050 | S26: 4500 | T26: 14056 | U26: 4500 | V26: 0 | W26: 0 | X26: 54260 | Y26: 0 | Z26: A | AA26: LeMay Enterprises | AD26: Internal | AE26: A | AF26: SL | AG26: 2021-07-31 | AH26: WCNX | AI26: 0 | AJ26: 4500 | AL26: Drop Boxes | AM26: 11 | AN26: 2008 | AO26: 2015 | AP26: 2015.916667 | AQ26: 53.57142857 | AR26: 642.8571429 | AS26: 0 | AT26: 4500 | AU26: 4500 | AV26: 0 | AW26: No
B27: 2144 | C27: 256594 | D27: P | E27: 20yd Drop Box | F27: 12 | J27: 0 | M27: 20 YD RO Box | N27: 1990-10-30 | O27: 1990-10-30 | Q27: 1200 | R27: 14050 | S27: 37130.72 | T27: 14056 | U27: 37130.72 | V27: 0 | W27: 0 | X27: 54260 | Y27: 0 | Z27: A | AA27: DM Recycling | AD27: Internal | AE27: A | AF27: SL | AG27: 2021-07-31 | AH27: WCNX | AI27: 0 | AJ27: 37130.72 | AL27: Drop Boxes | AM27: 10 | AN27: 1990 | AO27: 2002 | AP27: 2002.833333 | AQ27: 257.8522222 | AR27: 3094.226667 | AS27: 0 | AT27: 37130.72 | AU27: 37130.72 | AV27: 0 | AW27: No
B28: 2144 | C28: 256593 | D28: P | E28: 20 yd Drop Box (U) | F28: 5 | J28: 0 | M28: 20 YD RO Box | N28: 1989-07-01 | O28: 1989-07-01 | Q28: 1200 | R28: 14050 | S28: 5000 | T28: 14056 | U28: 5000 | V28: 0 | W28: 0 | X28: 54260 | Y28: 0 | Z28: A | AA28: DM Recycling | AD28: Internal | AE28: A | AF28: SL | AG28: 2021-07-31 | AH28: WCNX | AI28: 0 | AJ28: 5000 | AL28: Drop Boxes | AM28: 7 | AN28: 1989 | AO28: 2001 | AP28: 2001.583333 | AQ28: 34.72222222 | AR28: 416.6666667 | AS28: 0 | AT28: 5000 | AU28: 5000 | AV28: 0 | AW28: No
B29: 2144 | C29: 256592 | D29: P | E29: 30yd Drop Boxes | F29: 10 | J29: 0 | K29: Dewalds | M29: 30 YD RO Box | N29: 1999-09-01 | O29: 1999-09-01 | P29: 99-2111-0875 | Q29: 1200 | R29: 14050 | S29: 40603.71 | T29: 14056 | U29: 40603.71 | V29: 0 | W29: 0 | X29: 54260 | Y29: 0 | Z29: P | AA29: Murreys Disposal | AD29: Internal | AE29: A | AF29: SL | AG29: 2021-07-31 | AH29: WCNX | AI29: 0 | AJ29: 40603.71 | AL29: Drop Boxes | AM29: 9 | AN29: 1999 | AO29: 2011 | AP29: 2011.75 | AQ29: 281.9702083 | AR29: 3383.6425 | AS29: 0 | AT29: 40603.71 | AU29: 40603.71 | AV29: 0 | AW29: No
B30: 2144 | C30: 249883 | D30: P | E30: 35Gal MSW Carts (Gray) | F30: 1080 | J30: 0 | K30: REHRIG PACIFIC COMPANY IN | M30: Non-Container Audit | N30: 2021-03-26 | O30: 2021-03-26 | P30: 2144-21-0005-1 | Q30: 700 | R30: 14050 | S30: 39386.36 | T30: 14056 | U30: 3751.08 | V30: 35635.28 | W30: 3751.08 | X30: 54260 | Y30: 468.88 | Z30: P | AB30: 50161004 | AD30: Internal | AE30: A | AF30: SL | AH30: WCNX | AI30: 0 | AJ30: 0 | AL30: Regulated Garbage Carts | AM30: 3 | AN30: 2021 | AO30: 2028 | AP30: 2028.25 | AQ30: 468.8852381 | AR30: 5626.622857 | AS30: 5626.622857 | AT30: 0 | AU30: 5626.622857 | AV30: 33759.73714 | AW30: No
B31: 2144 | C31: 249882 | D31: P | E31: 65 Gal MSW Carts (Gray) | F31: 468 | J31: 0 | K31: REHRIG PACIFIC COMPANY IN | M31: Non-Container Audit | N31: 2021-03-26 | O31: 2021-03-26 | P31: 2144-21-0005-1 | Q31: 700 | R31: 14050 | S31: 19611 | T31: 14056 | U31: 1867.72 | V31: 17743.28 | W31: 1867.72 | X31: 54260 | Y31: 233.47 | Z31: P | AB31: 50159555 | AD31: Internal | AE31: A | AF31: SL | AH31: WCNX | AI31: 0 | AJ31: 0 | AL31: Regulated Garbage Carts | AM31: 3 | AN31: 2021 | AO31: 2028 | AP31: 2028.25 | AQ31: 233.4642857 | AR31: 2801.571429 | AS31: 2801.571429 | AT31: 0 | AU31: 2801.571429 | AV31: 16809.42857 | AW31: No
B32: 2144 | C32: 240610 | D32: 240609 | E32: (18) Lytx Drivecams - Harness | F32: 18 | J32: 0 | K32: Lytx | N32: 2020-10-05 | O32: 2020-10-05 | P32: 2144-20-0006-1 | Q32: 500 | R32: 14070 | S32: 132.62 | T32: 14076 | U32: 30.94 | V32: 101.68 | W32: 24.31 | X32: 51260 | Y32: 2.21 | Z32: P | AB32: 5315184 | AD32: Internal | AE32: A | AF32: SL | AH32: WCNX | AI32: 0 | AJ32: 0 | AM32: 10 | AN32: 2020 | AO32: 2025 | AP32: 2025.833333 | AQ32: 2.210333333 | AR32: 26.524 | AS32: 26.524 | AT32: 26.524 | AU32: 53.048 | AV32: 79.572 | AW32: Yes
B33: 2144 | C33: 240609 | D33: P | E33: (18) SF300 Drivecam Units | F33: 18 | J33: 0 | K33: LYTX | N33: 2020-10-05 | O33: 2020-10-05 | P33: 2144-20-0006-1 | Q33: 500 | R33: 14070 | S33: 15265.31 | T33: 14076 | U33: 3561.91 | V33: 11703.4 | W33: 2798.64 | X33: 51260 | Y33: 254.42 | Z33: P | AB33: 5313062 | AD33: Internal | AE33: A | AF33: SL | AH33: WCNX | AI33: 0 | AJ33: 0 | AM33: 10 | AN33: 2020 | AO33: 2025 | AP33: 2025.833333 | AQ33: 254.4218333 | AR33: 3053.062 | AS33: 3053.062 | AT33: 3053.062 | AU33: 6106.124 | AV33: 9159.186 | AW33: Yes
B34: 2144 | C34: 237927 | D34: P | E34: 2 yd Containers w/Lids | F34: 20 | J34: 0 | M34: 2 YD FEL/REL/SL Metal | N34: 1988-01-05 | Q34: 1200 | R34: 14050 | S34: 2500 | T34: 14056 | U34: 2500 | V34: 0 | W34: 0 | X34: 54260 | Y34: 0 | Z34: A | AA34: DM Recycling | AD34: Internal | AE34: A | AF34: SL | AG34: 2020-08-31 | AH34: WCNX | AI34: 0 | AJ34: 2500 | AM34: 1 | AN34: 1988 | AO34: 2000 | AP34: 2000.083333 | AQ34: 17.36111111 | AR34: 208.3333333 | AS34: 0 | AT34: 2500 | AU34: 2500 | AV34: 0 | AW34: Yes
B35: 2144 | C35: 236710 | D35: P | E35: 64 GAL MSW CARTS | F35: 468 | J35: 0 | K35: WASTEQUIP LLC | M35: Non-Container Audit | N35: 2020-07-14 | O35: 2020-07-14 | P35: 2144-20-0005-1 | Q35: 700 | R35: 14050 | S35: 16268.74 | T35: 14056 | U35: 3292.48 | V35: 12976.26 | W35: 2130.43 | X35: 54260 | Y35: 193.67 | Z35: P | AB35: 65685788 | AD35: Internal | AE35: A | AF35: SL | AH35: WCNX | AI35: 0 | AJ35: 0 | AM35: 7 | AN35: 2020 | AO35: 2027 | AP35: 2027.583333 | AQ35: 193.6754762 | AR35: 2324.105714 | AS35: 2324.105714 | AT35: 2324.105714 | AU35: 4648.211429 | AV35: 11620.52857 | AW35: Yes
B36: 2144 | C36: 230382 | D36: 225692 | E36: Use Tax and Licensing-Service Truck | J36: 0 | K36: N/A | L36: N/A | M36: Non-Rolling Stock | N36: 2020-01-07 | O36: 2020-01-07 | P36: 2144-19-0013-1 | Q36: 1000 | R36: 14040 | S36: 6981.69 | T36: 14046 | U36: 1338.14 | V36: 5643.55 | W36: 639.98 | X36: 51260 | Y36: 58.18 | Z36: P | AB36: C24409T | AD36: Internal | AE36: A | AF36: SL | AH36: WCNX | AI36: 0 | AJ36: 0 | AM36: 1 | AN36: 2020 | AO36: 2030 | AP36: 2030.083333 | AQ36: 58.18075 | AR36: 698.169 | AS36: 698.169 | AT36: 698.169 | AU36: 1396.338 | AV36: 5585.352 | AW36: Yes
B37: 2144 | C37: 225970 | D37: P | E37: 35 GAL MSW CARTS | F37: 945 | J37: 0 | K37: WASTEQUIP TOTER | M37: Non-Container Audit | N37: 2019-09-28 | O37: 2019-09-28 | P37: 2144-19-0012-1 | Q37: 700 | R37: 14050 | S37: 37637.16 | T37: 14056 | U37: 11649.61 | V37: 25987.55 | W37: 4928.68 | X37: 54260 | Y37: 448.06 | Z37: P | AB37: 65624622 | AD37: Internal | AE37: A | AF37: SL | AH37: WCNX | AI37: 0 | AJ37: 0 | AM37: 9 | AN37: 2019 | AO37: 2026 | AP37: 2026.75 | AQ37: 448.0614286 | AR37: 5376.737143 | AS37: 5376.737143 | AT37: 10753.47429 | AU37: 16130.21143 | AV37: 21506.94857 | AW37: Yes
B38: 2144 | C38: 225969 | D38: P | E38: 35 GAL MSW CARTS | F38: 945 | J38: 0 | K38: WASTEQUIP TOTER | M38: Non-Container Audit | N38: 2019-09-28 | O38: 2019-09-28 | P38: 2144-19-0012-1 | Q38: 700 | R38: 14050 | S38: 37637.16 | T38: 14056 | U38: 11649.61 | V38: 25987.55 | W38: 4928.68 | X38: 54260 | Y38: 448.06 | Z38: P | AB38: 65625241 | AD38: Internal | AE38: A | AF38: SL | AH38: WCNX | AI38: 0 | AJ38: 0 | AM38: 9 | AN38: 2019 | AO38: 2026 | AP38: 2026.75 | AQ38: 448.0614286 | AR38: 5376.737143 | AS38: 5376.737143 | AT38: 10753.47429 | AU38: 16130.21143 | AV38: 21506.94857 | AW38: Yes
B39: 2144 | C39: 225692 | D39: P | E39: 2019 Ford F250 Service Truck | H39: 1FDBF2AT5KEF61078 | I39: C24409T | J39: 2019 | K39: Ford | L39: Ford | M39: Service Truck | N39: 2019-12-31 | O39: 2019-12-31 | P39: 4025-19-0006 | Q39: 500 | R39: 14040 | S39: 74322.06 | T39: 14046 | U39: 28490.12 | V39: 45831.94 | W39: 13625.71 | X39: 51260 | Y39: 1238.7 | Z39: P | AC39: 50-02 | AD39: Internal | AE39: A | AF39: SL | AH39: WCNX | AI39: 0 | AJ39: 0 | AM39: 12 | AN39: 2019 | AO39: 2024 | AP39: 2025 | AQ39: 1238.701 | AR39: 14864.412 | AS39: 14864.412 | AT39: 29728.824 | AU39: 44593.236 | AV39: 29728.824 | AW39: Yes
B40: 2144 | C40: 223826 | D40: 218618 | E40: Coropla Sign's | J40: 0 | M40: Non-Rolling Stock | N40: 2019-11-01 | O40: 2019-11-01 | P40: 2144-19-0001 | Q40: 1000 | R40: 14040 | S40: 1502.23 | T40: 14046 | U40: 312.96 | V40: 1189.27 | W40: 137.7 | X40: 51260 | Y40: 12.52 | Z40: P | AD40: Internal | AE40: A | AF40: SL | AH40: WCNX | AI40: 0 | AJ40: 0 | AM40: 11 | AN40: 2019 | AO40: 2029 | AP40: 2029.916667 | AQ40: 12.51858333 | AR40: 150.223 | AS40: 150.223 | AT40: 300.446 | AU40: 450.669 | AV40: 1051.561 | AW40: Yes
B41: 2144 | C41: 222637 | D41: P | E41: 2YD REL Metal Containers | F41: 20 | J41: 0 | K41: CAPITAL INDUSTRIES INC | M41: 2 YD FEL/REL/SL Metal | N41: 2019-07-17 | O41: 2019-07-17 | P41: 2144-19-0011-2 | Q41: 1200 | R41: 14050 | S41: 14663.63 | T41: 14056 | U41: 2851.26 | V41: 11812.37 | W41: 1120.14 | X41: 54260 | Y41: 101.83 | Z41: P | AB41: 154453 | AD41: Internal | AE41: A | AF41: SL | AH41: WCNX | AI41: 0 | AJ41: 0 | AM41: 7 | AN41: 2019 | AO41: 2031 | AP41: 2031.583333 | AQ41: 101.8307639 | AR41: 1221.969167 | AS41: 1221.969167 | AT41: 2443.938333 | AU41: 3665.9075 | AV41: 10997.7225 | AW41: Yes
B42: 2144 | C42: 222014 | D42: P | E42: 1 YARD REAR LOAD CONTAINER | F42: 19 | J42: 0 | K42: CAPITAL INDUSTRIES INC | M42: 1 YD FEL/REL/SL Metal | N42: 2019-07-17 | O42: 2019-07-17 | P42: 2144-19-0011-1 | Q42: 1200 | R42: 14050 | S42: 11875.48 | T42: 14056 | U42: 2309.11 | V42: 9566.37 | W42: 907.15 | X42: 54260 | Y42: 82.47 | Z42: P | AB42: 154452 | AD42: Internal | AE42: A | AF42: SL | AH42: WCNX | AI42: 0 | AJ42: 0 | AM42: 7 | AN42: 2019 | AO42: 2031 | AP42: 2031.583333 | AQ42: 82.46861111 | AR42: 989.6233333 | AS42: 989.6233333 | AT42: 1979.246667 | AU42: 2968.87 | AV42: 8906.61 | AW42: Yes
B43: 2144 | C43: 218618 | D43: P | E43: 2019 Peterbilt 520 ASL | H43: 3BPDL70XXKF106278 | I43: C52766S | J43: 2019 | K43: Peterbilt | L43: Labrie | M43: Automated Sideload | N43: 2019-08-31 | O43: 2019-08-31 | P43: 2144-19-0001-1 | Q43: 1000 | R43: 14040 | S43: 359143.82 | T43: 14046 | U43: 80807.33 | V43: 278336.49 | W43: 32921.51 | X43: 51260 | Y43: 2992.86 | Z43: P | AC43: 50-15 | AD43: Internal | AE43: A | AF43: SL | AH43: WCNX | AI43: 0 | AJ43: 0 | AM43: 8 | AN43: 2019 | AO43: 2029 | AP43: 2029.666667 | AQ43: 2992.865167 | AR43: 35914.382 | AS43: 35914.382 | AT43: 71828.764 | AU43: 107743.146 | AV43: 251400.674 | AW43: Yes
B44: 2144 | C44: 212943 | D44: 71169 | E44: Capital Repair - Truck 50-39 Engine | I44: 94-3283464 | J44: 0 | K44: RWC Group | N44: 2019-03-15 | O44: 2019-03-15 | P44: 2144-19-0008-1 | Q44: 300 | R44: 14040 | S44: 25477.01 | T44: 14046 | U44: 23353.94 | V44: 2123.07 | W44: 7784.65 | X44: 51260 | Y44: 707.7 | Z44: P | AB44: 168797 | AD44: Internal | AE44: A | AF44: SL | AH44: WCNX | AI44: 0 | AJ44: 0 | AM44: 3 | AN44: 2019 | AO44: 2022 | AP44: 2022.25 | AQ44: 707.6947222 | AR44: 8492.336667 | AS44: 0 | AT44: 25477.01 | AU44: 25477.01 | AV44: 0 | AW44: Yes
B45: 2144 | C45: 212748 | D45: P | E45: 96Gal MSW Carts | F45: 656 | I45: 94-3283464 | J45: 0 | K45: TOTER LLC | N45: 2019-04-23 | O45: 2019-04-23 | P45: 2144-19-0010-3 | Q45: 700 | R45: 14050 | S45: 32752.49 | T45: 14056 | U45: 12087.24 | V45: 20665.25 | W45: 4289.02 | X45: 54260 | Y45: 389.91 | Z45: P | AB45: 65164665 | AD45: Internal | AE45: A | AF45: SL | AH45: WCNX | AI45: 0 | AJ45: 0 | AM45: 4 | AN45: 2019 | AO45: 2026 | AP45: 2026.333333 | AQ45: 389.9105952 | AR45: 4678.927143 | AS45: 4678.927143 | AT45: 9357.854286 | AU45: 14036.78143 | AV45: 18715.70857 | AW45: Yes
B46: 2144 | C46: 212747 | D46: P | E46: 65Gal MSW Carts | F46: 1728 | I46: 94-3283464 | J46: 0 | K46: TOTER LLC | N46: 2019-04-23 | O46: 2019-04-23 | P46: 2144-19-0010-2 | Q46: 700 | R46: 14050 | S46: 78763 | T46: 14056 | U46: 29067.31 | V46: 49695.69 | W46: 10314.21 | X46: 54260 | Y46: 937.66 | Z46: P | AB46: 65164665 | AD46: Internal | AE46: A | AF46: SL | AH46: WCNX | AI46: 0 | AJ46: 0 | AM46: 4 | AN46: 2019 | AO46: 2026 | AP46: 2026.333333 | AQ46: 937.6547619 | AR46: 11251.85714 | AS46: 11251.85714 | AT46: 22503.71429 | AU46: 33755.57143 | AV46: 45007.42857 | AW46: Yes
B47: 2144 | C47: 212746 | D47: P | E47: 35Gal MSW Carts | F47: 945 | I47: 94-3283464 | J47: 0 | K47: TOTER LLC | N47: 2019-04-23 | O47: 2019-04-23 | P47: 2144-19-0010-1 | Q47: 700 | R47: 14050 | S47: 38451 | T47: 14056 | U47: 14190.25 | V47: 24260.75 | W47: 5035.25 | X47: 54260 | Y47: 457.75 | Z47: P | AB47: 65164665 | AD47: Internal | AE47: A | AF47: SL | AH47: WCNX | AI47: 0 | AJ47: 0 | AM47: 4 | AN47: 2019 | AO47: 2026 | AP47: 2026.333333 | AQ47: 457.75 | AR47: 5493 | AS47: 5493 | AT47: 10986 | AU47: 16479 | AV47: 21972 | AW47: Yes
B48: 2144 | C48: 212191 | D48: 48617 | E48: TRUCK 50 - 36 HEAD GASKET REPAIR | J48: 0 | K48: CORCENTRIC COLLECTIVE BUS | M48: Non-rolling stock | N48: 2019-02-21 | O48: 2019-02-21 | P48: 2144-19-0009-1 | Q48: 300 | R48: 14040 | S48: 12907.95 | T48: 14046 | U48: 11832.29 | V48: 1075.66 | W48: 3944.1 | X48: 51260 | Y48: 358.56 | Z48: P | AB48: DTI011457823 | AD48: Internal | AE48: A | AF48: SL | AH48: WCNX | AI48: 0 | AJ48: 0 | AM48: 2 | AN48: 2019 | AO48: 2022 | AP48: 2022.166667 | AQ48: 358.5541667 | AR48: 4302.65 | AS48: 0 | AT48: 12907.95 | AU48: 12907.95 | AV48: 0 | AW48: Yes
B49: 2144 | C49: 206447 | D49: P | E49: Diagnostic Software | J49: 0 | K49: NOREGON SYSTEMS INC | N49: 2018-07-31 | O49: 2018-07-31 | P49: 2144-18-0013-1 | Q49: 300 | R49: 14110 | S49: 5897 | T49: 14116 | U49: 5897 | V49: 0 | W49: 1146.63 | X49: 70260 | Y49: 0 | Z49: P | AB49: 180116 | AD49: Internal | AE49: A | AF49: SL | AH49: WCNX | AI49: 0 | AJ49: 0 | AM49: 7 | AN49: 2018 | AO49: 2021 | AP49: 2021.583333 | AQ49: 163.8055556 | AR49: 1965.666667 | AS49: 0 | AT49: 5897 | AU49: 5897 | AV49: 0 | AW49: Yes
B50: 2144 | C50: 206371 | D50: 206362 | E50: Loader Planetaries - Rear, Left | J50: 2018 | M50: Non Rolling Stock | N50: 2018-10-31 | O50: 2018-10-31 | P50: 2144-18-0010-1 | Q50: 300 | R50: 14030 | S50: 2594.13 | T50: 14036 | U50: 2594.13 | V50: 0 | W50: 720.59 | X50: 51260 | Y50: 0 | Z50: P | AB50: 85253 | AD50: Internal | AE50: A | AF50: SL | AH50: WCNX | AI50: 0 | AJ50: 0 | AM50: 10 | AN50: 2018 | AO50: 2021 | AP50: 2021.833333 | AQ50: 72.05916667 | AR50: 864.71 | AS50: 0 | AT50: 2594.13 | AU50: 2594.13 | AV50: 0 | AW50: Yes
B51: 2144 | C51: 206370 | D51: 206362 | E51: Loader Planetaries - Rear, Right | J51: 2018 | M51: Non Rolling Stock | N51: 2018-10-31 | O51: 2018-10-31 | P51: 2144-18-0010-1 | Q51: 300 | R51: 14030 | S51: 2594.13 | T51: 14036 | U51: 2594.13 | V51: 0 | W51: 720.59 | X51: 51260 | Y51: 0 | Z51: P | AB51: 85253 | AD51: Internal | AE51: A | AF51: SL | AH51: WCNX | AI51: 0 | AJ51: 0 | AM51: 10 | AN51: 2018 | AO51: 2021 | AP51: 2021.833333 | AQ51: 72.05916667 | AR51: 864.71 | AS51: 0 | AT51: 2594.13 | AU51: 2594.13 | AV51: 0 | AW51: Yes
B52: 2144 | C52: 206369 | D52: 206362 | E52: Loader Planetaries - Front, Left | J52: 2018 | M52: Non Rolling Stock | N52: 2018-10-31 | O52: 2018-10-31 | P52: 2144-18-0010-1 | Q52: 300 | R52: 14030 | S52: 2594.13 | T52: 14036 | U52: 2594.13 | V52: 0 | W52: 720.59 | X52: 51260 | Y52: 0 | Z52: P | AB52: 85253 | AD52: Internal | AE52: A | AF52: SL | AH52: WCNX | AI52: 0 | AJ52: 0 | AM52: 10 | AN52: 2018 | AO52: 2021 | AP52: 2021.833333 | AQ52: 72.05916667 | AR52: 864.71 | AS52: 0 | AT52: 2594.13 | AU52: 2594.13 | AV52: 0 | AW52: Yes
B53: 2144 | C53: 206368 | D53: 206362 | E53: Loader Planetaries - Front, Right | J53: 2018 | M53: Non Rolling Stock | N53: 2018-10-31 | O53: 2018-10-31 | P53: 2144-18-0010-1 | Q53: 300 | R53: 14030 | S53: 2594.13 | T53: 14036 | U53: 2594.13 | V53: 0 | W53: 720.59 | X53: 51260 | Y53: 0 | Z53: P | AB53: 85253 | AD53: Internal | AE53: A | AF53: SL | AH53: WCNX | AI53: 0 | AJ53: 0 | AM53: 10 | AN53: 2018 | AO53: 2021 | AP53: 2021.833333 | AQ53: 72.05916667 | AR53: 864.71 | AS53: 0 | AT53: 2594.13 | AU53: 2594.13 | AV53: 0 | AW53: Yes
B54: 2144 | C54: 206367 | D54: 206362 | E54: Loader Differentials - Rear | J54: 2018 | M54: Non Rolling Stock | N54: 2018-10-31 | O54: 2018-10-31 | P54: 2144-18-0010-1 | Q54: 300 | R54: 14030 | S54: 4323.54 | T54: 14036 | U54: 4323.54 | V54: 0 | W54: 1200.98 | X54: 51260 | Y54: 0 | Z54: P | AB54: 85253 | AD54: Internal | AE54: A | AF54: SL | AH54: WCNX | AI54: 0 | AJ54: 0 | AM54: 10 | AN54: 2018 | AO54: 2021 | AP54: 2021.833333 | AQ54: 120.0983333 | AR54: 1441.18 | AS54: 0 | AT54: 4323.54 | AU54: 4323.54 | AV54: 0 | AW54: Yes
B55: 2144 | C55: 206366 | D55: 206362 | E55: Loader Differentials - Front | J55: 2018 | M55: Non Rolling Stock | N55: 2018-10-31 | O55: 2018-10-31 | P55: 2144-18-0010-1 | Q55: 300 | R55: 14030 | S55: 4323.54 | T55: 14036 | U55: 4323.54 | V55: 0 | W55: 1200.98 | X55: 51260 | Y55: 0 | Z55: P | AB55: 85253 | AD55: Internal | AE55: A | AF55: SL | AH55: WCNX | AI55: 0 | AJ55: 0 | AM55: 10 | AN55: 2018 | AO55: 2021 | AP55: 2021.833333 | AQ55: 120.0983333 | AR55: 1441.18 | AS55: 0 | AT55: 4323.54 | AU55: 4323.54 | AV55: 0 | AW55: Yes
B56: 2144 | C56: 206365 | D56: 206362 | E56: Loader Hydraulic Pumps, Drive Motors, Gear Boxes | J56: 2018 | M56: Non Rolling Stock | N56: 2018-10-31 | O56: 2018-10-31 | P56: 2144-18-0010-1 | Q56: 300 | R56: 14030 | S56: 3458.83 | T56: 14036 | U56: 3458.83 | V56: 0 | W56: 960.79 | X56: 51260 | Y56: 0 | Z56: P | AB56: 85253 | AD56: Internal | AE56: A | AF56: SL | AH56: WCNX | AI56: 0 | AJ56: 0 | AM56: 10 | AN56: 2018 | AO56: 2021 | AP56: 2021.833333 | AQ56: 96.07861111 | AR56: 1152.943333 | AS56: 0 | AT56: 3458.83 | AU56: 3458.83 | AV56: 0 | AW56: Yes
B57: 2144 | C57: 206364 | D57: 206362 | E57: Loader Transmission | J57: 2018 | M57: Non Rolling Stock | N57: 2018-10-31 | O57: 2018-10-31 | P57: 2144-18-0010-1 | Q57: 300 | R57: 14030 | S57: 6917.67 | T57: 14036 | U57: 6917.67 | V57: 0 | W57: 1921.57 | X57: 51260 | Y57: 0 | Z57: P | AB57: 85253 | AD57: Internal | AE57: A | AF57: SL | AH57: WCNX | AI57: 0 | AJ57: 0 | AM57: 10 | AN57: 2018 | AO57: 2021 | AP57: 2021.833333 | AQ57: 192.1575 | AR57: 2305.89 | AS57: 0 | AT57: 6917.67 | AU57: 6917.67 | AV57: 0 | AW57: Yes
B58: 2144 | C58: 206363 | D58: 206362 | E58: Loader Engine | J58: 2018 | M58: Non Rolling Stock | N58: 2018-10-31 | O58: 2018-10-31 | P58: 2144-18-0010-1 | Q58: 300 | R58: 14030 | S58: 10376.5 | T58: 14036 | U58: 10376.5 | V58: 0 | W58: 2882.37 | X58: 51260 | Y58: 0 | Z58: P | AB58: 85253 | AD58: Internal | AE58: A | AF58: SL | AH58: WCNX | AI58: 0 | AJ58: 0 | AM58: 10 | AN58: 2018 | AO58: 2021 | AP58: 2021.833333 | AQ58: 288.2361111 | AR58: 3458.833333 | AS58: 0 | AT58: 10376.5 | AU58: 10376.5 | AV58: 0 | AW58: Yes
B59: 2144 | C59: 206362 | D59: P | E59: Mecalac AX850 Bucket Loader | H59: W09P85253JBA08820 | I59: N/A | J59: 2018 | K59: MECALAC | L59: MECALAC | M59: Bucket Loader | N59: 2018-10-31 | O59: 2018-10-31 | P59: 2144-18-0010-1 | Q59: 1200 | R59: 14030 | S59: 46694.25 | T59: 14036 | U59: 11997.83 | V59: 34696.42 | W59: 3566.92 | X59: 51260 | Y59: 324.26 | Z59: P | AB59: 85253 | AC59: Loader 1 | AD59: Internal | AE59: A | AF59: SL | AH59: WCNX | AI59: 0 | AJ59: 0 | AM59: 10 | AN59: 2018 | AO59: 2030 | AP59: 2030.833333 | AQ59: 324.265625 | AR59: 3891.1875 | AS59: 3891.1875 | AT59: 11673.5625 | AU59: 15564.75 | AV59: 31129.5 | AW59: Yes
B60: 2144 | C60: 206245 | D60: P | E60: Nexiq USB Link 2 | J60: 0 | K60: Nexiq | N60: 2018-07-31 | O60: 2018-07-31 | P60: 2144-18-0013-1 | Q60: 300 | R60: 14110 | S60: 768.37 | T60: 14116 | U60: 768.37 | V60: 0 | W60: 149.41 | X60: 70260 | Y60: 0 | Z60: P | AB60: 9655 | AD60: Internal | AE60: A | AF60: SL | AH60: WCNX | AI60: 0 | AJ60: 0 | AM60: 7 | AN60: 2018 | AO60: 2021 | AP60: 2021.583333 | AQ60: 21.34361111 | AR60: 256.1233333 | AS60: 0 | AT60: 768.37 | AU60: 768.37 | AV60: 0 | AW60: Yes
B61: 2144 | C61: 206229 | D61: P | E61: AC Machine (Robinair B34988NI) | J61: 0 | K61: Tooltopia | N61: 2018-10-04 | O61: 2018-10-04 | P61: 2144-18-0014-1 | Q61: 500 | R61: 14070 | S61: 4346.8 | T61: 14076 | U61: 2752.97 | V61: 1593.83 | W61: 796.91 | X61: 51260 | Y61: 72.44 | Z61: P | AB61: 1107066 | AD61: Internal | AE61: A | AF61: SL | AH61: WCNX | AI61: 0 | AJ61: 0 | AM61: 10 | AN61: 2018 | AO61: 2023 | AP61: 2023.833333 | AQ61: 72.44666667 | AR61: 869.36 | AS61: 869.36 | AT61: 2608.08 | AU61: 3477.44 | AV61: 869.36 | AW61: Yes
B62: 2144 | C62: 206217 | D62: P | E62: 20 YARD ROLL OFF BOXES | F62: 2 | J62: 0 | K62: WASTEQUIP WC | M62: 20 YD RO Box | N62: 2018-09-26 | O62: 2018-09-26 | P62: 2144-18-0012-1 | Q62: 1200 | R62: 14050 | S62: 12967 | T62: 14056 | U62: 3421.84 | V62: 9545.16 | W62: 990.53 | X62: 54260 | Y62: 90.05 | Z62: P | AB62: 37217807 | AD62: Internal | AE62: A | AF62: SL | AH62: WCNX | AI62: 0 | AJ62: 0 | AM62: 9 | AN62: 2018 | AO62: 2030 | AP62: 2030.75 | AQ62: 90.04861111 | AR62: 1080.583333 | AS62: 1080.583333 | AT62: 3241.75 | AU62: 4322.333333 | AV62: 8644.666667 | AW62: Yes
B63: 2144 | C63: 206216 | D63: P | E63: 20 YARD ROLL OFF BOXES | F63: 4 | J63: 0 | K63: WASTEQUIP WC | M63: 20 YD RO Box | N63: 2018-09-26 | O63: 2018-09-26 | P63: 2144-18-0012-1 | Q63: 1200 | R63: 14050 | S63: 25934 | T63: 14056 | U63: 6843.7 | V63: 19090.3 | W63: 1981.07 | X63: 54260 | Y63: 180.09 | Z63: P | AB63: 37217787 | AD63: Internal | AE63: A | AF63: SL | AH63: WCNX | AI63: 0 | AJ63: 0 | AM63: 9 | AN63: 2018 | AO63: 2030 | AP63: 2030.75 | AQ63: 180.0972222 | AR63: 2161.166667 | AS63: 2161.166667 | AT63: 6483.5 | AU63: 8644.666667 | AV63: 17289.33333 | AW63: Yes
B64: 2144 | C64: 206185 | D64: P | E64: Foam Filled Tires for Loader | J64: 2018 | K64: MECALAC | L64: MECALAC | M64: Non Rolling Stock | N64: 2018-10-31 | O64: 2018-10-31 | P64: 2144-18-0010-1 | Q64: 300 | R64: 14030 | S64: 2460.74 | T64: 14036 | U64: 2460.74 | V64: 0 | W64: 683.53 | X64: 51260 | Y64: 0 | Z64: P | AB64: 127194 | AD64: Internal | AE64: A | AF64: SL | AH64: WCNX | AI64: 0 | AJ64: 0 | AM64: 10 | AN64: 2018 | AO64: 2021 | AP64: 2021.833333 | AQ64: 68.35388889 | AR64: 820.2466667 | AS64: 0 | AT64: 2460.74 | AU64: 2460.74 | AV64: 0 | AW64: Yes
B65: 2144 | C65: 205008 | D65: P | E65: 40Yd Rolloff Boxes | F65: 2 | J65: 0 | K65: Wastequip | M65: 40 YD RO Box | N65: 2018-09-26 | O65: 2018-09-26 | P65: 2144-18-0012-1 | Q65: 1200 | R65: 14050 | S65: 15593 | T65: 14056 | U65: 4114.84 | V65: 11478.16 | W65: 1191.14 | X65: 54260 | Y65: 108.29 | Z65: P | AB65: 37217758 | AD65: Internal | AE65: A | AF65: SL | AH65: WCNX | AI65: 0 | AJ65: 0 | AM65: 9 | AN65: 2018 | AO65: 2030 | AP65: 2030.75 | AQ65: 108.2847222 | AR65: 1299.416667 | AS65: 1299.416667 | AT65: 3898.25 | AU65: 5197.666667 | AV65: 10395.33333 | AW65: Yes
B66: 2144 | C66: 203974 | D66: P | E66: Isuzu-IDDS License Software | J66: 0 | K66: NOREGON SYSTEMS INC | N66: 2018-07-31 | O66: 2018-07-31 | P66: 2144-18-0013-1 | Q66: 300 | R66: 14110 | S66: 1429 | T66: 14116 | U66: 1429 | V66: 0 | W66: 277.87 | X66: 70260 | Y66: 0 | Z66: P | AB66: 178945 | AD66: Internal | AE66: A | AF66: SL | AH66: WCNX | AI66: 0 | AJ66: 0 | AM66: 7 | AN66: 2018 | AO66: 2021 | AP66: 2021.583333 | AQ66: 39.69444444 | AR66: 476.3333333 | AS66: 0 | AT66: 1429 | AU66: 1429 | AV66: 0 | AW66: Yes
B67: 2144 | C67: 203844 | D67: P | E67: 2019 Peterbilt 520 ASL Truck | H67: 3BPDL70X4KF103957 | I67: C62111N | J67: 2019 | K67: PETERBILT | L67: Labrie | M67: Automated Sideload | N67: 2018-10-12 | O67: 2018-10-12 | P67: 2144-18-0001-1 | Q67: 1000 | R67: 14040 | S67: 339628.44 | T67: 14046 | U67: 107548.99 | V67: 232079.45 | W67: 31132.6 | X67: 51260 | Y67: 2830.23 | Z67: P | AB67: 9934 | AC67: 50-09 | AD67: Internal | AE67: A | AF67: SL | AH67: WCNX | AI67: 0 | AJ67: 0 | AM67: 10 | AN67: 2018 | AO67: 2028 | AP67: 2028.833333 | AQ67: 2830.237 | AR67: 33962.844 | AS67: 33962.844 | AT67: 101888.532 | AU67: 135851.376 | AV67: 203777.064 | AW67: Yes
B68: 2144 | C68: 202702 | D68: 197551 | E68: Radio Installation | J68: 0 | K68: DAY MANAGEMENT CORP | M68: Non-Rolling Stock | N68: 2018-05-14 | O68: 2018-05-14 | P68: 2144-18-0007-1 | Q68: 500 | R68: 14040 | S68: 1510.87 | T68: 14046 | U68: 1082.78 | V68: 428.09 | W68: 276.99 | X68: 51260 | Y68: 25.18 | Z68: P | AB68: 220363-00 | AD68: Internal | AE68: A | AF68: SL | AH68: WCNX | AI68: 0 | AJ68: 0 | AM68: 5 | AN68: 2018 | AO68: 2023 | AP68: 2023.416667 | AQ68: 25.18116667 | AR68: 302.174 | AS68: 302.174 | AT68: 906.522 | AU68: 1208.696 | AV68: 302.174 | AW68: Yes
B69: 2144 | C69: 202513 | D69: P | E69: Shop Diagnostic Laptop - Panasonic Toughbook 14" | J69: 0 | K69: CDW | N69: 2018-07-31 | O69: 2018-07-31 | P69: 2144-18-0013-1 | Q69: 300 | R69: 14110 | S69: 1641.36 | T69: 14116 | U69: 1641.36 | V69: 0 | W69: 319.15 | X69: 70260 | Y69: 0 | Z69: P | AB69: NPN8620 | AD69: Internal | AE69: A | AF69: SL | AH69: WCNX | AI69: 0 | AJ69: 0 | AM69: 7 | AN69: 2018 | AO69: 2021 | AP69: 2021.583333 | AQ69: 45.59333333 | AR69: 547.12 | AS69: 0 | AT69: 1641.36 | AU69: 1641.36 | AV69: 0 | AW69: Yes
B70: 2144 | C70: 200969 | D70: P | E70: Chevrolet 1500 Supervisor Truck | H70: 1GCNKNECXJZ119543 | I70: C71774N | J70: 2018 | K70: Chevrolet | L70: Chevrolet | M70: Pick Up Truck | N70: 2018-07-27 | O70: 2018-07-27 | P70: 2144-18-0011-1 | Q70: 500 | R70: 14040 | S70: 33555.67 | T70: 14046 | U70: 22370.44 | V70: 11185.23 | W70: 6151.87 | X70: 51260 | Y70: 559.26 | Z70: P | AB70: 3694 | AC70: 50-24 | AD70: Internal | AE70: A | AF70: SL | AH70: WCNX | AI70: 0 | AJ70: 0 | AM70: 7 | AN70: 2018 | AO70: 2023 | AP70: 2023.583333 | AQ70: 559.2611667 | AR70: 6711.134 | AS70: 6711.134 | AT70: 20133.402 | AU70: 26844.536 | AV70: 6711.134 | AW70: Yes
B71: 2144 | C71: 199113 | D71: 197551 | E71: Body for truck | J71: 0 | M71: Non Rolling Stock | N71: 2018-05-14 | O71: 2018-05-14 | P71: 2144-18-0007-1 | Q71: 1000 | R71: 14040 | S71: 66654.84 | T71: 14046 | U71: 23884.64 | V71: 42770.2 | W71: 6110.02 | X71: 51260 | Y71: 555.45 | Z71: P | AD71: Internal | AE71: A | AF71: SL | AH71: WCNX | AI71: 0 | AJ71: 0 | AM71: 5 | AN71: 2018 | AO71: 2028 | AP71: 2028.416667 | AQ71: 555.457 | AR71: 6665.484 | AS71: 6665.484 | AT71: 19996.452 | AU71: 26661.936 | AV71: 39992.904 | AW71: Yes
B72: 2144 | C72: 198003 | D72: P | E72: 30 YD Container | F72: 2 | J72: 0 | M72: 30 YD RO Box | N72: 2018-06-01 | O72: 2018-06-01 | P72: Container Audit | Q72: 0 | R72: 14050 | S72: 0 | T72: 14056 | U72: 0 | V72: 0 | W72: 0 | X72: 54260 | Y72: 0 | Z72: P | AD72: Internal | AE72: A | AF72: NO | AH72: WCNX | AI72: 0 | AJ72: 0 | AM72: 6 | AN72: 2018 | AO72: 2018 | AP72: 2018.5 | AQ72: 0 | AR72: 0 | AS72: 0 | AT72: 0 | AU72: 0 | AV72: 0 | AW72: Yes
B73: 2144 | C73: 198001 | D73: P | E73: 2 YD Container | F73: 6 | J73: 0 | M73: 2 YD FEL/REL/SL Metal | N73: 2018-06-01 | O73: 2018-06-01 | P73: Container Audit | Q73: 0 | R73: 14050 | S73: 0 | T73: 14056 | U73: 0 | V73: 0 | W73: 0 | X73: 54260 | Y73: 0 | Z73: P | AD73: Internal | AE73: A | AF73: NO | AH73: WCNX | AI73: 0 | AJ73: 0 | AM73: 6 | AN73: 2018 | AO73: 2018 | AP73: 2018.5 | AQ73: 0 | AR73: 0 | AS73: 0 | AT73: 0 | AU73: 0 | AV73: 0 | AW73: Yes
B74: 2144 | C74: 198000 | D74: P | E74: 1 YD Container | F74: 18 | J74: 0 | M74: 1 YD FEL/REL/SL Metal | N74: 2018-06-01 | O74: 2018-06-01 | P74: Container Audit | Q74: 0 | R74: 14050 | S74: 0 | T74: 14056 | U74: 0 | V74: 0 | W74: 0 | X74: 54260 | Y74: 0 | Z74: P | AD74: Internal | AE74: A | AF74: NO | AH74: WCNX | AI74: 0 | AJ74: 0 | AM74: 6 | AN74: 2018 | AO74: 2018 | AP74: 2018.5 | AQ74: 0 | AR74: 0 | AS74: 0 | AT74: 0 | AU74: 0 | AV74: 0 | AW74: Yes
B75: 2144 | C75: 197551 | D75: P | E75: 2018 Petebilt 567 Rolloff | H75: 1NPCX4EX4JD482495 | I75: C16988L | J75: 2018 | K75: Peterbilt | L75: Advantage Rolloff | M75: R/O Truck | N75: 2018-05-14 | O75: 2018-05-14 | P75: 2144-18-0007-1 | Q75: 1000 | R75: 14040 | S75: 164086.09 | T75: 14046 | U75: 58797.52 | V75: 105288.57 | W75: 15041.23 | X75: 51260 | Y75: 1367.39 | Z75: P | AB75: P482495 | AC75: 50-26 | AD75: Internal | AE75: A | AF75: SL | AH75: WCNX | AI75: 0 | AJ75: 0 | AM75: 5 | AN75: 2018 | AO75: 2028 | AP75: 2028.416667 | AQ75: 1367.384083 | AR75: 16408.609 | AS75: 16408.609 | AT75: 49225.827 | AU75: 65634.436 | AV75: 98451.654 | AW75: Yes
B76: 2144 | C76: 190461 | D76: 187379 | E76: Decal on New Tractor 50-07 | I76: 94-3283464 | J76: 0 | K76: Peterbilt | M76: Non Rolling Stock | N76: 2017-10-17 | O76: 2017-10-17 | P76: 2144-17-0014-1 | Q76: 600 | R76: 14040 | S76: 864.17 | T76: 14046 | U76: 588.13 | V76: 276.04 | W76: 132.03 | X76: 51260 | Y76: 12 | Z76: P | AB76: 17473 | AD76: Internal | AE76: A | AF76: SL | AH76: WCNX | AI76: 0 | AJ76: 0 | AM76: 10 | AN76: 2017 | AO76: 2023 | AP76: 2023.833333 | AQ76: 12.00236111 | AR76: 144.0283333 | AS76: 144.0283333 | AT76: 576.1133333 | AU76: 720.1416667 | AV76: 144.0283333 | AW76: Yes
B77: 2144 | C77: 188087 | D77: 186154 | E77: Radio System for ASL | I77: 94-3283464 | J77: 0 | K77: Day Wireless | M77: Non Rolling Stock | N77: 2017-10-02 | O77: 2017-10-02 | P77: 2144-17-0008-1 | Q77: 500 | R77: 14040 | S77: 1002.38 | T77: 14046 | U77: 835.33 | V77: 167.05 | W77: 183.77 | X77: 51260 | Y77: 16.7 | Z77: P | AB77: 210229-00 | AD77: Internal | AE77: A | AF77: SL | AH77: WCNX | AI77: 0 | AJ77: 0 | AM77: 10 | AN77: 2017 | AO77: 2022 | AP77: 2022.833333 | AQ77: 16.70633333 | AR77: 200.476 | AS77: 167.0633333 | AT77: 801.904 | AU77: 968.9673333 | AV77: 33.41266667 | AW77: Yes
B78: 2144 | C78: 187423 | D78: 187422 | E78: 2009 Murrey's Pre-Ordered REL Truck (#476) | F78: 0 | H78: 36524 | J78: 2009 | M78: Non-Rolling Stock | N78: 2009-03-13 | O78: 2009-03-13 | P78: 2111-9-0002-1 | Q78: 1000 | R78: 14040 | S78: 78914.38 | T78: 14046 | U78: 78914.38 | V78: 0 | W78: 0 | X78: 51260 | Y78: 0 | Z78: P | AB78: 963231 | AD78: Internal | AE78: A | AF78: SL | AG78: 2017-09-30 | AH78: WCNX | AI78: 0 | AJ78: 67734.86 | AM78: 3 | AN78: 2009 | AO78: 2019 | AP78: 2019.25 | AQ78: 657.6198333 | AR78: 7891.438 | AS78: 0 | AT78: 78914.38 | AU78: 78914.38 | AV78: 0 | AW78: Yes
B79: 2144 | C79: 187422 | D79: P | E79: 2009 International 7400 REL | F79: 0 | H79: 1HTWCAZR49J136523 | I79: B92145H | J79: 2009 | K79: International | L79: McNeilus | M79: REL Truck | N79: 2009-03-20 | O79: 2009-03-20 | P79: 2111-8-0039-1 | Q79: 1000 | R79: 14040 | S79: 96557.52 | T79: 14046 | U79: 96557.52 | V79: 0 | W79: 0 | X79: 51260 | Y79: 0 | Z79: P | AC79: 50-13 | AD79: Internal | AE79: A | AF79: SL | AG79: 2017-09-30 | AH79: WCNX | AI79: 0 | AJ79: 82073.87 | AM79: 3 | AN79: 2009 | AO79: 2019 | AP79: 2019.25 | AQ79: 804.646 | AR79: 9655.752 | AS79: 0 | AT79: 96557.52 | AU79: 96557.52 | AV79: 0 | AW79: Yes
B80: 2144 | C80: 187379 | D80: P | E80: 2014 Peterbilt 579 Tractor | H80: 1XPBP49X0ED213167 | I80: C16916L | J80: 2014 | K80: Peterbilt | L80: Peterbilt | M80: Road Tractor | N80: 2017-10-17 | O80: 2017-10-17 | P80: 2144-17-0014-1 | Q80: 600 | R80: 14040 | S80: 95178 | T80: 14046 | U80: 64773.91 | V80: =S80-U80 -> 30404.09 | W80: 14541.08 | X80: 51260 | Y80: 1321.91 | Z80: P | AB80: 915-2436 | AC80: 50-01 | AD80: Internal | AE80: A | AF80: SL | AH80: WCNX | AI80: 0 | AJ80: 0 | AM80: 10 | AN80: 2017 | AO80: =$AN80+($Q80/100) -> 2023 | AP80: 2023.833333 | AQ80: 1321.916667 | AR80: 15863 | AS80: =IF($AP80<=$AK$8,0,IF($AO80>$AK$7,$AR80,($AQ80*$AM80))) -> 15863 | AT80: =IF($AS80=0,$S80,IF($AK$6-AN80<1,0,(($AK$6-$AN80)*AR80))) -> 63452 | AU80: 79315 | AV80: =$S80-$AU80 -> 15863 | AW80: Yes
B81: 2144 | C81: 187318 | D81: P | E81: 2yd Commercial Containers | F81: 25 | I81: 94-3283464 | J81: 0 | K81: CAPITAL INDUSTRIES INC | M81: 2 YD FEL/REL/SL Metal | N81: 2017-09-29 | O81: 2017-09-29 | P81: 2144-17-0012-1 | Q81: 1200 | R81: 14050 | S81: 13859.26 | T81: 14056 | U81: 4812.26 | V81: 9047 | W81: 1058.7 | X81: 54260 | Y81: 96.25 | Z81: P | AB81: 134001 | AD81: Internal | AE81: A | AF81: SL | AH81: WCNX | AI81: 0 | AJ81: 0 | AM81: =MONTH($N81) -> 9 | AN81: =YEAR($N81) -> 2017 | AO81: 2029 | AP81: =$AO81+($AM81/12) -> 2029.75 | AQ81: =IFERROR($S81/($Q81/100)/12,0) -> 96.24486111 | AR81: =$AQ81*12 -> 1154.938333 | AS81: 1154.938333 | AT81: 4619.753333 | AU81: =IF($AT81=0,$AS81,($AT81+$AS81)) -> 5774.691667 | AV81: 8084.568333 | AW81: Yes
B82: 2144 | C82: 187317 | D82: P | E82: 1.5yd Commercial Containers | F82: 23 | I82: 94-3283464 | J82: 0 | K82: CAPITAL INDUSTRIES INC | M82: 1.5 YD FEL/REL/SL Metal | N82: 2017-09-29 | O82: 2017-09-29 | P82: 2144-17-0012-1 | Q82: 1200 | R82: 14050 | S82: 11745.04 | T82: 14056 | U82: 4078.13 | V82: 7666.91 | W82: 897.19 | X82: 54260 | Y82: 81.56 | Z82: P | AB82: 134000 | AD82: Internal | AE82: A | AF82: SL | AH82: WCNX | AI82: 0 | AJ82: 0 | AM82: 9 | AN82: 2017 | AO82: 2029 | AP82: 2029.75 | AQ82: 81.56277778 | AR82: 978.7533333 | AS82: 978.7533333 | AT82: 3915.013333 | AU82: 4893.766667 | AV82: 6851.273333 | AW82: Yes
B83: 2144 | C83: 187316 | D83: P | E83: 1yd Commercial Containers | F83: 20 | I83: 94-3283464 | J83: 0 | K83: CAPITAL INDUSTRIES INC | M83: 1 YD FEL/REL/SL Metal | N83: 2017-09-29 | O83: 2017-09-29 | P83: 2144-17-0012-1 | Q83: 1200 | R83: 14050 | S83: 9984.1 | T83: 14056 | U83: 3466.71 | V83: 6517.39 | W83: 762.68 | X83: 54260 | Y83: 69.34 | Z83: P | AB83: 133999 | AD83: Internal | AE83: A | AF83: SL | AH83: WCNX | AI83: 0 | AJ83: 0 | AM83: 9 | AN83: 2017 | AO83: 2029 | AP83: 2029.75 | AQ83: 69.33402778 | AR83: 832.0083333 | AS83: 832.0083333 | AT83: 3328.033333 | AU83: 4160.041667 | AV83: 5824.058333 | AW83: Yes
B84: 2144 | C84: 186154 | D84: P | E84: 2018 Peterbilt 320 ASL Truck | H84: 3BPZL70X1HF174659 | I84: C95705J | J84: 2018 | K84: Peterbilt | L84: Labrie | M84: Automated Sideload | N84: 2017-09-07 | O84: 2017-09-07 | P84: 2144-17-0008-1 | Q84: 1000 | R84: 14040 | S84: 341677.84 | T84: 14046 | U84: 145213.07 | V84: 196464.77 | W84: 31320.47 | X84: 51260 | Y84: 2847.32 | Z84: P | AB84: P174659 | AC84: 50-07 | AD84: Internal | AE84: A | AF84: SL | AH84: WCNX | AI84: 0 | AJ84: 0 | AM84: 9 | AN84: 2017 | AO84: 2027 | AP84: 2027.75 | AQ84: 2847.315333 | AR84: 34167.784 | AS84: 34167.784 | AT84: 136671.136 | AU84: 170838.92 | AV84: 170838.92 | AW84: Yes
B85: 2144 | C85: 185140 | D85: P | E85: 40YD Rolloff Boxes with lids | F85: 2 | J85: 0 | K85: CAPITAL INDUSTRIES INC | M85: 40 YD RO Box | N85: 2017-08-01 | O85: 2017-08-01 | P85: 2144-17-0010-1 | Q85: 1200 | R85: 14050 | S85: 15035 | T85: 14056 | U85: 5429.32 | V85: 9605.68 | W85: 1148.51 | X85: 54260 | Y85: 104.41 | Z85: P | AB85: 132395 | AD85: Internal | AE85: A | AF85: SL | AH85: WCNX | AI85: 0 | AJ85: 0 | AM85: 8 | AN85: 2017 | AO85: 2029 | AP85: 2029.666667 | AQ85: 104.4097222 | AR85: 1252.916667 | AS85: 1252.916667 | AT85: 5011.666667 | AU85: 6264.583333 | AV85: 8770.416667 | AW85: Yes
B86: 2144 | C86: 185139 | D86: P | E86: 20YD RO Boxes with Lids | F86: 7 | J86: 0 | K86: CAPITAL INDUSTRIES INC | M86: 20 YD RO Box | N86: 2017-08-01 | O86: 2017-08-01 | P86: 2144-17-0010-1 | Q86: 1200 | R86: 14050 | S86: 40160 | T86: 14056 | U86: 14502.24 | V86: 25657.76 | W86: 3067.78 | X86: 54260 | Y86: 278.89 | Z86: P | AB86: 132394 | AD86: Internal | AE86: A | AF86: SL | AH86: WCNX | AI86: 0 | AJ86: 0 | AM86: 8 | AN86: 2017 | AO86: 2029 | AP86: 2029.666667 | AQ86: 278.8888889 | AR86: 3346.666667 | AS86: 3346.666667 | AT86: 13386.66667 | AU86: 16733.33333 | AV86: 23426.66667 | AW86: Yes
B87: 2144 | C87: 184735 | D87: P | E87: Diagnostic Software for Shop | J87: 0 | K87: Snapon | N87: 2017-07-06 | O87: 2017-07-06 | P87: 2144-17-0013-1 | Q87: 300 | R87: 14110 | S87: 4848 | T87: 14116 | U87: 4848 | V87: 0 | W87: 0 | X87: 70260 | Y87: 0 | Z87: P | AB87: ARV/33080655 | AD87: Internal | AE87: A | AF87: SL | AH87: WCNX | AI87: 0 | AJ87: 0 | AM87: 7 | AN87: 2017 | AO87: 2020 | AP87: 2020.583333 | AQ87: 134.6666667 | AR87: 1616 | AS87: 0 | AT87: 4848 | AU87: 4848 | AV87: 0 | AW87: Yes
B88: 2144 | C88: 181718 | D88: 181716 | E88: Engine Repair (837392) | F88: 0 | J88: 0 | M88: Non-Rolling Stock | N88: 2009-10-30 | O88: 2009-10-30 | P88: 2112-9-0002-1 | Q88: 300 | R88: 14040 | S88: 13879.68 | T88: 14046 | U88: 13879.68 | V88: 0 | W88: 0 | X88: 51260 | Y88: 0 | Z88: P | AB88: 18371 | AD88: Internal | AE88: A | AF88: SL | AG88: 2017-04-30 | AH88: WCNX | AI88: 0 | AJ88: 13879.68 | AM88: 10 | AN88: 2009 | AO88: 2012 | AP88: 2012.833333 | AQ88: 385.5466667 | AR88: 4626.56 | AS88: 0 | AT88: 13879.68 | AU88: 13879.68 | AV88: 0 | AW88: Yes
B89: 2144 | C89: 181717 | D89: 181716 | E89: Inframe Engine Repair for 2000 Kenworth | F89: 0 | J89: 0 | M89: Non-Rolling Stock | N89: 2009-07-01 | O89: 2009-07-01 | P89: 2112-9-0002-1 | Q89: 300 | R89: 14040 | S89: 13302.3 | T89: 14046 | U89: 13302.3 | V89: 0 | W89: 0 | X89: 51260 | Y89: 0 | Z89: P | AB89: 18212 | AD89: Internal | AE89: A | AF89: SL | AG89: 2017-04-30 | AH89: WCNX | AI89: 0 | AJ89: 13302.3 | AM89: 7 | AN89: 2009 | AO89: 2012 | AP89: 2012.583333 | AQ89: 369.5083333 | AR89: 4434.1 | AS89: 0 | AT89: 13302.3 | AU89: 13302.3 | AV89: 0 | AW89: Yes
B90: 2144 | C90: 172661 | D90: 170969 | E90: 2 Way radio for Container Del Truck | J90: 0 | K90: DAY WIRELESS SYSTEMS | L90: RWC | M90: Non Rolling Stock | N90: 2017-01-01 | O90: 2017-01-01 | P90: 2144-16-0001-1 | Q90: 500 | R90: 14040 | S90: 1113.7 | T90: 14046 | U90: 1095.13 | V90: 18.57 | W90: 204.29 | X90: 51260 | Y90: 18.57 | Z90: P | AB90: 586452 | AD90: Internal | AE90: A | AF90: SL | AH90: WCNX | AI90: 0 | AJ90: 0 | AM90: 1 | AN90: 2017 | AO90: 2022 | AP90: 2022.083333 | AQ90: 18.56166667 | AR90: 222.74 | AS90: 0 | AT90: 1113.7 | AU90: 1113.7 | AV90: 0 | AW90: Yes
B91: 2144 | C91: 171237 | D91: P | E91: Genie Scissorlift | H91: GS32P-149897 | J91: 0 | K91: Genie | M91: Container Lift | N91: 2016-12-06 | O91: 2016-12-06 | P91: 2144-16-0020-1 | Q91: 1000 | R91: 14030 | S91: 16847.41 | T91: 14036 | U91: 8423.71 | V91: 8423.7 | W91: 1544.35 | X91: 51260 | Y91: 140.4 | Z91: P | AB91: 150004-1 | AC91: GS-1 | AD91: Internal | AE91: A | AF91: SL | AH91: WCNX | AI91: 0 | AJ91: 0 | AM91: 12 | AN91: 2016 | AO91: 2026 | AP91: 2027 | AQ91: 140.3950833 | AR91: 1684.741 | AS91: 1684.741 | AT91: 8423.705 | AU91: 10108.446 | AV91: 6738.964 | AW91: Yes
B92: 2144 | C92: 171065 | D92: P | E92: 40yd boxes with lids | F92: 2 | J92: 0 | K92: ENTERPRISE SALES, INC. | M92: 40 YD RO Box | N92: 2016-12-09 | O92: 2016-12-09 | P92: 2144-16-0018-1 | Q92: 1200 | R92: 14050 | S92: 14636 | T92: 14056 | U92: 6098.35 | V92: 8537.65 | W92: 1118.03 | X92: 54260 | Y92: 101.64 | Z92: P | AB92: 7330 | AD92: Internal | AE92: A | AF92: SL | AH92: WCNX | AI92: 0 | AJ92: 0 | AM92: 12 | AN92: 2016 | AO92: 2028 | AP92: 2029 | AQ92: 101.6388889 | AR92: 1219.666667 | AS92: 1219.666667 | AT92: 6098.333333 | AU92: 7318 | AV92: 7318 | AW92: Yes
B93: 2144 | C93: 170969 | D93: P | E93: 2016 Isuzu NPR Container Delivery Truck | H93: JALB4W172G7F00756 | I93: C50515H | J93: 2016 | K93: RWC INTERNATIONAL LTD | M93: Container Delivery Truck | N93: 2016-12-21 | O93: 2016-12-21 | P93: 2144-16-0001-1 | Q93: 900 | R93: 14040 | S93: 59020.72 | T93: 14046 | U93: 32242.81 | V93: 26777.91 | W93: 6011.37 | X93: 51260 | Y93: 546.49 | Z93: P | AB93: 13261 | AC93: 50-22 | AD93: Internal | AE93: A | AF93: SL | AH93: WCNX | AI93: 0 | AJ93: 0 | AM93: 12 | AN93: 2016 | AO93: 2025 | AP93: 2026 | AQ93: 546.4881481 | AR93: 6557.857778 | AS93: 6557.857778 | AT93: 32789.28889 | AU93: 39347.14667 | AV93: 19673.57333 | AW93: Yes
B94: 2144 | C94: 170769 | D94: P | E94: 40yd boxes with lids | F94: 2 | J94: 0 | K94: ENTERPRISE SALES INC | M94: 40 YD RO Box | N94: 2016-12-09 | O94: 2016-12-09 | P94: 2144-16-0018-1 | Q94: 1200 | R94: 14050 | S94: 14636 | T94: 14056 | U94: 6098.35 | V94: 8537.65 | W94: 1118.03 | X94: 54260 | Y94: 101.64 | Z94: P | AB94: 7328 | AD94: Internal | AE94: A | AF94: SL | AH94: WCNX | AI94: 0 | AJ94: 0 | AM94: 12 | AN94: 2016 | AO94: 2028 | AP94: 2029 | AQ94: 101.6388889 | AR94: 1219.666667 | AS94: 1219.666667 | AT94: 6098.333333 | AU94: 7318 | AV94: 7318 | AW94: Yes
B95: 2144 | C95: 169976 | D95: P | E95: 2 yd REL Containers | F95: 22 | J95: 0 | K95: CAPITAL INDUSTRIES, INC. | M95: 2 YD FEL/REL/SL Metal | N95: 2016-11-02 | O95: 2016-11-02 | P95: 2144-16-0019-1 | Q95: 1200 | R95: 14050 | S95: 12799.44 | T95: 14056 | U95: 5421.99 | V95: 7377.45 | W95: 977.74 | X95: 54260 | Y95: 88.89 | Z95: P | AB95: 125131 | AD95: Internal | AE95: A | AF95: SL | AH95: WCNX | AI95: 0 | AJ95: 0 | AM95: 11 | AN95: 2016 | AO95: 2028 | AP95: 2028.916667 | AQ95: 88.885 | AR95: 1066.62 | AS95: 1066.62 | AT95: 5333.1 | AU95: 6399.72 | AV95: 6399.72 | AW95: Yes
B96: 2144 | C96: 169975 | D96: P | E96: 1.5yd REL Containers | F96: 44 | J96: 0 | K96: CAPITAL INDUSTRIES, INC. | M96: 1.5 YD FEL/REL/SL Metal | N96: 2016-11-02 | O96: 2016-11-02 | P96: 2144-16-0019-1 | Q96: 1200 | R96: 14050 | S96: 22819.4 | T96: 14056 | U96: 9666.57 | V96: 13152.83 | W96: 1743.15 | X96: 54260 | Y96: 158.47 | Z96: P | AB96: 125130 | AD96: Internal | AE96: A | AF96: SL | AH96: WCNX | AI96: 0 | AJ96: 0 | AM96: 11 | AN96: 2016 | AO96: 2028 | AP96: 2028.916667 | AQ96: 158.4680556 | AR96: 1901.616667 | AS96: 1901.616667 | AT96: 9508.083333 | AU96: 11409.7 | AV96: 11409.7 | AW96: Yes
B97: 2144 | C97: 167137 | D97: P | E97: 30YD RO Boxes with Lids | F97: 3 | J97: 0 | K97: ENTERPRISE SALES, INC. | M97: 30 YD RO Box | N97: 2016-09-02 | O97: 2016-09-02 | P97: 2144-16-0005-1 | Q97: 1200 | R97: 14050 | S97: 17845 | T97: 14056 | U97: 7807.18 | V97: 10037.82 | W97: 1363.16 | X97: 54260 | Y97: 123.93 | Z97: P | AB97: 7221 | AD97: Internal | AE97: A | AF97: SL | AH97: WCNX | AI97: 0 | AJ97: 0 | AM97: 9 | AN97: 2016 | AO97: 2028 | AP97: 2028.75 | AQ97: 123.9236111 | AR97: 1487.083333 | AS97: 1487.083333 | AT97: 7435.416667 | AU97: 8922.5 | AV97: 8922.5 | AW97: Yes
B98: 2144 | C98: 167136 | D98: P | E98: 10YD RO Boxes with lids | F98: 3 | J98: 0 | K98: ENTERPRISE SALES, INC. | M98: 10 YD RO Box | N98: 2016-09-02 | O98: 2016-09-02 | P98: 2144-16-0005-1 | Q98: 1200 | R98: 14050 | S98: 15700 | T98: 14056 | U98: 6868.73 | V98: 8831.27 | W98: 1199.3 | X98: 54260 | Y98: 109.02 | Z98: P | AB98: 7235 | AD98: Internal | AE98: A | AF98: SL | AH98: WCNX | AI98: 0 | AJ98: 0 | AM98: 9 | AN98: 2016 | AO98: 2028 | AP98: 2028.75 | AQ98: 109.0277778 | AR98: 1308.333333 | AS98: 1308.333333 | AT98: 6541.666667 | AU98: 7850 | AV98: 7850 | AW98: Yes
B99: 2144 | C99: 165804 | D99: P | E99: HP Probook 640 G2 | J99: 0 | K99: CDW | N99: 2016-07-27 | O99: 2016-07-27 | P99: 2144-16-0017-1 | Q99: 300 | R99: 14110 | S99: 1089.57 | T99: 14116 | U99: 1089.57 | V99: 0 | W99: 0 | X99: 70260 | Y99: 0 | Z99: P | AB99: DRQ2851 | AD99: Internal | AE99: A | AF99: SL | AH99: WCNX | AI99: 0 | AJ99: 0 | AM99: 7 | AN99: 2016 | AO99: 2019 | AP99: 2019.583333 | AQ99: 30.26583333 | AR99: 363.19 | AS99: 0 | AT99: 1089.57 | AU99: 1089.57 | AV99: 0 | AW99: Yes
B100: 2144 | C100: 139929 | D100: 131542 | E100: (8) Tablet Mount/Clip/Adapter | J100: 0 | K100: ProClip | N100: 2016-03-31 | O100: 2016-03-31 | P100: 2144-16-0013-1 | Q100: 100 | R100: 14110 | S100: 671.24 | T100: 14116 | U100: 671.24 | V100: 0 | W100: 0 | X100: 70260 | Y100: 0 | Z100: P | AB100: SI-1138342 | AD100: Internal | AE100: A | AF100: SL | AH100: WCNX | AI100: 0 | AJ100: 0 | AM100: 3 | AN100: 2016 | AO100: 2017 | AP100: 2017.25 | AQ100: 55.93666667 | AR100: 671.24 | AS100: 0 | AT100: 671.24 | AU100: 671.24 | AV100: 0 | AW100: Yes
B101: 2144 | C101: 133018 | D101: P | E101: 10 Tough Sleeves, 13 Pedistal Mounts, 3 powered move clips (Tablets) | J101: 0 | K101: ProClip | N101: 2016-03-31 | O101: 2016-03-31 | P101: 2144-16-0013-1 | Q101: 100 | R101: 14110 | S101: 2769.44 | T101: 14116 | U101: 2769.44 | V101: 0 | W101: 0 | X101: 70260 | Y101: 0 | Z101: P | AB101: SR-269001 | AD101: Internal | AE101: A | AF101: SL | AH101: WCNX | AI101: 0 | AJ101: 0 | AM101: 3 | AN101: 2016 | AO101: 2017 | AP101: 2017.25 | AQ101: 230.7866667 | AR101: 2769.44 | AS101: 0 | AT101: 2769.44 | AU101: 2769.44 | AV101: 0 | AW101: Yes
B102: 2144 | C102: 132501 | D102: 132131 | E102: Drive Cam | J102: 0 | M102: Non-Rolling Stock | N102: 2016-03-15 | O102: 2016-03-15 | P102: 2144-16-0012-1 | Q102: 1000 | R102: 14040 | S102: 605.92 | T102: 14046 | U102: 348.39 | V102: 257.53 | W102: 55.54 | X102: 51260 | Y102: 5.05 | Z102: P | AB102: 5036125 | AD102: Internal | AE102: A | AF102: SL | AH102: WCNX | AI102: 0 | AJ102: 0 | AM102: 3 | AN102: 2016 | AO102: 2026 | AP102: 2026.25 | AQ102: 5.049333333 | AR102: 60.592 | AS102: 60.592 | AT102: 302.96 | AU102: 363.552 | AV102: 242.368 | AW102: Yes
B103: 2144 | C103: 132355 | D103: P | E103: Software- Shop Diagnostic Computer | J103: 0 | K103: Snap-On | N103: 2016-04-01 | O103: 2016-04-01 | P103: 2144-16-0016-1 | Q103: 300 | R103: 14110 | S103: 1671 | T103: 14116 | U103: 1671 | V103: 0 | W103: 0 | X103: 70260 | Y103: 0 | Z103: P | AB103: ARV/ 28548774 | AD103: Internal | AE103: A | AF103: SL | AH103: WCNX | AI103: 0 | AJ103: 0 | AM103: 4 | AN103: 2016 | AO103: 2019 | AP103: 2019.333333 | AQ103: 46.41666667 | AR103: 557 | AS103: 0 | AT103: 1671 | AU103: 1671 | AV103: 0 | AW103: Yes
B104: 2144 | C104: 132131 | D104: P | E104: 2016 Peterbilt 320 REL Truck | H104: 3BPZLJ0X4GF107405 | I104: C61525F | J104: 2016 | K104: Peterbilt | L104: New Way | M104: REL Truck | N104: 2016-03-15 | O104: 2016-03-15 | P104: 2144-16-0012-1 | Q104: 1000 | R104: 14040 | S104: 276355.27 | T104: 14046 | U104: 158904.3 | V104: 117450.97 | W104: 25332.57 | X104: 51260 | Y104: 2302.96 | Z104: P | AB104: P107405 | AC104: 50-14 | AD104: Internal | AE104: A | AF104: SL | AH104: WCNX | AI104: 0 | AJ104: 0 | AM104: 3 | AN104: 2016 | AO104: 2026 | AP104: 2026.25 | AQ104: 2302.960583 | AR104: 27635.527 | AS104: 27635.527 | AT104: 138177.635 | AU104: 165813.162 | AV104: 110542.108 | AW104: Yes
B105: 2144 | C105: 131542 | D105: P | E105: 10 Samsung Tablets | J105: 0 | K105: AT&T N098 10672~NAMEN CHA | N105: 2016-03-31 | O105: 2016-03-31 | P105: 2144-16-0013-1 | Q105: 100 | R105: 14110 | S105: 2164.89 | T105: 14116 | U105: 2164.89 | V105: 0 | W105: 0 | X105: 70260 | Y105: 0 | Z105: P | AB105: N098 | AD105: Internal | AE105: A | AF105: SL | AH105: WCNX | AI105: 0 | AJ105: 0 | AM105: 3 | AN105: 2016 | AO105: 2017 | AP105: 2017.25 | AQ105: 180.4075 | AR105: 2164.89 | AS105: 0 | AT105: 2164.89 | AU105: 2164.89 | AV105: 0 | AW105: Yes
B106: 2144 | C106: 131183 | D106: 126399 | E106: Sales Tax on Freightliner REL Truck | J106: 0 | K106: N/A See internal comment | M106: Non Rolling Stock | N106: 2016-01-01 | O106: 2016-01-01 | P106: 2144-15-0004-1 | Q106: 910 | R106: 14040 | S106: 9591.24 | T106: 14046 | U106: 5771 | V106: 3820.24 | W106: 894.1 | X106: 51260 | Y106: 81.28 | Z106: P | AB106: N/A See internal comment | AD106: Internal | AE106: A | AF106: SL | AH106: WCNX | AI106: 0 | AJ106: 0 | AM106: 1 | AN106: 2016 | AO106: 2025.1 | AP106: 2025.183333 | AQ106: 87.83186813 | AR106: 1053.982418 | AS106: 1053.982418 | AT106: 5269.912088 | AU106: 6323.894505 | AV106: 3267.345495 | AW106: Yes
B107: 2144 | C107: 130761 | D107: P | E107: 2009 Utility 4000D-X 53' Dry Van Trailer | H107: 1UYVS35349P775945 | I107: 4771-ZK | J107: 2009 | K107: TRAILER SOURCE INC | M107: Trailer | N107: 2016-03-24 | O107: 2016-03-24 | P107: 2144-16-0010-1 | Q107: 300 | R107: 14040 | S107: 25087.2 | T107: 14046 | U107: 25087.2 | V107: 0 | W107: 0 | X107: 51260 | Y107: 0 | Z107: P | AB107: 88973 | AC107: 9325 | AD107: Internal | AE107: A | AF107: SL | AH107: WCNX | AI107: 0 | AJ107: 0 | AM107: 3 | AN107: 2016 | AO107: 2019 | AP107: 2019.25 | AQ107: 696.8666667 | AR107: 8362.4 | AS107: 0 | AT107: 25087.2 | AU107: 25087.2 | AV107: 0 | AW107: Yes
B108: 2144 | C108: 127407 | D108: P | E108: Truck Wash | J108: 0 | N108: 2015-11-30 | O108: 2015-11-30 | P108: 2144-14-0007-1 | Q108: 1000 | R108: 14010 | S108: 185053.86 | T108: 14016 | U108: 111032.34 | V108: 74021.52 | W108: 16963.27 | X108: 57260 | Y108: 1542.11 | Z108: P | AB108: 13-09-020-2 | AD108: Internal | AE108: A | AF108: SL | AH108: WCNX | AI108: 0 | AJ108: 0 | AM108: 11 | AN108: 2015 | AO108: 2025 | AP108: 2025.916667 | AQ108: 1542.1155 | AR108: 18505.386 | AS108: 18505.386 | AT108: 111032.316 | AU108: 129537.702 | AV108: 55516.158 | AW108: Yes
B109: 2144 | C109: 126583 | D109: 126399 | E109: Drive Camera Replacement | J109: 0 | K109: Lytx | M109: Non Rolling Stock | N109: 2015-10-30 | O109: 2015-10-30 | P109: 2144-15-0004-1 | Q109: 1000 | R109: 14040 | S109: 639.85 | T109: 14046 | U109: 389.28 | V109: 250.57 | W109: 58.66 | X109: 51260 | Y109: 5.33 | Z109: P | AB109: 5030732 | AD109: Internal | AE109: A | AF109: SL | AH109: WCNX | AI109: 0 | AJ109: 0 | AM109: 10 | AN109: 2015 | AO109: 2025 | AP109: 2025.833333 | AQ109: 5.332083333 | AR109: 63.985 | AS109: 63.985 | AT109: 383.91 | AU109: 447.895 | AV109: 191.955 | AW109: Yes
B110: 2144 | C110: 126399 | D110: P | E110: 2016 Freightliner M2-106 REL | H110: 1FVHCYCY5GHGZ9882 | I110: C33242E | J110: 2016 | K110: Freightliner | L110: McNeilus | M110: REL Truck | N110: 2015-10-30 | O110: 2015-10-30 | P110: 2144-15-0004-1 | Q110: 1000 | R110: 14040 | S110: 218205.58 | T110: 14046 | U110: 132741.74 | V110: 85463.84 | W110: 20002.18 | X110: 51260 | Y110: 1818.38 | Z110: P | AB110: M010005033 | AC110: 50-12 | AD110: Internal | AE110: A | AF110: SL | AH110: WCNX | AI110: 0 | AJ110: 0 | AM110: 10 | AN110: 2015 | AO110: 2025 | AP110: 2025.833333 | AQ110: 1818.379833 | AR110: 21820.558 | AS110: 21820.558 | AT110: 130923.348 | AU110: 152743.906 | AV110: 65461.674 | AW110: Yes
B111: 2144 | C111: 124719 | D111: 50486 | E111: Transmission for Rolloff T#5037 | J111: 0 | K111: VALLEY FREIGHTLINER, INC. | M111: Non Rolling Stock | N111: 2015-08-18 | O111: 2015-08-18 | P111: 2144-15-0007-1 | Q111: 300 | R111: 14040 | S111: 9352.18 | T111: 14046 | U111: 9352.18 | V111: 0 | W111: 0 | X111: 51260 | Y111: 0 | Z111: P | AB111: 2252300089 | AD111: Internal | AE111: A | AF111: SL | AH111: WCNX | AI111: 0 | AJ111: 0 | AM111: 8 | AN111: 2015 | AO111: 2018 | AP111: 2018.666667 | AQ111: 259.7827778 | AR111: 3117.393333 | AS111: 0 | AT111: 9352.18 | AU111: 9352.18 | AV111: 0 | AW111: Yes
B112: 2144 | C112: 124521 | D112: P | E112: 1.5 yd contienrs | F112: 20 | J112: 0 | K112: CAPITAL INDUSTRIES, INC. | M112: 1.5 YD FEL/REL/SL Metal | N112: 2015-07-15 | O112: 2015-07-15 | P112: 2144-15-0005-1 | Q112: 1200 | R112: 14050 | S112: 9767.24 | T112: 14056 | U112: 5222.78 | V112: 4544.46 | W112: 746.11 | X112: 54260 | Y112: 67.83 | Z112: P | AB112: 111110 | AD112: Internal | AE112: A | AF112: SL | AH112: WCNX | AI112: 0 | AJ112: 0 | AM112: 7 | AN112: 2015 | AO112: 2027 | AP112: 2027.583333 | AQ112: 67.82805556 | AR112: 813.9366667 | AS112: 813.9366667 | AT112: 4883.62 | AU112: 5697.556667 | AV112: 4069.683333 | AW112: Yes
B113: 2144 | C113: 124520 | D113: P | E113: 2 yd containers | F113: 20 | J113: 0 | K113: CAPITAL INDUSTRIES, INC. | M113: 2 YD FEL/REL/SL Metal | N113: 2015-07-15 | O113: 2015-07-15 | P113: 2144-15-0005-1 | Q113: 1200 | R113: 14050 | S113: 10745 | T113: 14056 | U113: 5745.61 | V113: 4999.39 | W113: 820.8 | X113: 54260 | Y113: 74.62 | Z113: P | AB113: 111111 | AD113: Internal | AE113: A | AF113: SL | AH113: WCNX | AI113: 0 | AJ113: 0 | AM113: 7 | AN113: 2015 | AO113: 2027 | AP113: 2027.583333 | AQ113: 74.61805556 | AR113: 895.4166667 | AS113: 895.4166667 | AT113: 5372.5 | AU113: 6267.916667 | AV113: 4477.083333 | AW113: Yes
B114: 2144 | C114: 124519 | D114: P | E114: 1 yd containers | F114: 25 | J114: 0 | K114: CAPITAL INDUSTRIES, INC. | M114: 1 YD FEL/REL/SL Metal | N114: 2015-07-15 | O114: 2015-07-15 | P114: 2144-15-0005-1 | Q114: 1200 | R114: 14050 | S114: 11680.91 | T114: 14056 | U114: 6246.05 | V114: 5434.86 | W114: 892.29 | X114: 54260 | Y114: 81.11 | Z114: P | AB114: 110799 | AD114: Internal | AE114: A | AF114: SL | AH114: WCNX | AI114: 0 | AJ114: 0 | AM114: 7 | AN114: 2015 | AO114: 2027 | AP114: 2027.583333 | AQ114: 81.11743056 | AR114: 973.4091667 | AS114: 973.4091667 | AT114: 5840.455 | AU114: 6813.864167 | AV114: 4867.045833 | AW114: Yes
B115: 2144 | C115: 124463 | D115: P | E115: 40 Yd R/O Containers | F115: 2 | J115: 0 | M115: 40 YD RO Box | N115: 2015-08-13 | O115: 2015-08-13 | P115: INPUT FORM | Q115: 0 | R115: 14050 | S115: 0 | T115: 14056 | U115: 0 | V115: 0 | W115: 0 | X115: 54260 | Y115: 0 | Z115: A | AD115: Internal | AE115: A | AF115: NO | AH115: WCNX | AI115: 0 | AJ115: 0 | AM115: 8 | AN115: 2015 | AO115: 2015 | AP115: 2015.666667 | AQ115: 0 | AR115: 0 | AS115: 0 | AT115: 0 | AU115: 0 | AV115: 0 | AW115: Yes
B116: 2144 | C116: 124462 | D116: P | E116: 20 YD RO Containers | F116: 16 | J116: 0 | N116: 2015-08-13 | O116: 2015-08-13 | P116: INPUT FORM | Q116: 0 | R116: 14050 | S116: 0 | T116: 14056 | U116: 0 | V116: 0 | W116: 0 | X116: 54260 | Y116: 0 | Z116: A | AD116: Internal | AE116: A | AF116: NO | AH116: WCNX | AI116: 0 | AJ116: 0 | AM116: 8 | AN116: 2015 | AO116: 2015 | AP116: 2015.666667 | AQ116: 0 | AR116: 0 | AS116: 0 | AT116: 0 | AU116: 0 | AV116: 0 | AW116: Yes
B117: 2144 | C117: 122701 | D117: P | E117: 2 Winterms | J117: 0 | K117: CDW | N117: 2015-04-30 | O117: 2015-04-30 | P117: 2144-15-0006-1 | Q117: 300 | R117: 14110 | S117: 650 | T117: 14116 | U117: 650 | V117: 0 | W117: 0 | X117: 70260 | Y117: 0 | Z117: P | AB117: VC58140 | AD117: Internal | AE117: A | AF117: SL | AH117: WCNX | AI117: 0 | AJ117: 0 | AM117: 4 | AN117: 2015 | AO117: 2018 | AP117: 2018.333333 | AQ117: 18.05555556 | AR117: 216.6666667 | AS117: 0 | AT117: 650 | AU117: 650 | AV117: 0 | AW117: Yes
B118: 2144 | C118: 119113 | D118: 50486 | E118: Improvement - Auto Tarper | J118: 0 | M118: Non-Rolling Stock | N118: 2015-01-01 | O118: 2015-01-01 | P118: 2144-14-0010-1 | Q118: 300 | R118: 14040 | S118: 5014.96 | T118: 14046 | U118: 5014.96 | V118: 0 | W118: 0 | X118: 51260 | Y118: 0 | Z118: P | AB118: 38485 | AD118: Internal | AE118: A | AF118: SL | AH118: WCNX | AI118: 0 | AJ118: 0 | AM118: 1 | AN118: 2015 | AO118: 2018 | AP118: 2018.083333 | AQ118: 139.3044444 | AR118: 1671.653333 | AS118: 0 | AT118: 5014.96 | AU118: 5014.96 | AV118: 0 | AW118: Yes
B119: 2144 | C119: 118362 | D119: P | E119: 30 Yard Drop Boxes with Lid | F119: 2 | J119: 0 | K119: CAPITAL INDUSTRIES, INC. | M119: 30 YD RO Box | N119: 2014-12-31 | O119: 2014-12-31 | P119: 2144-14-0012-1 | Q119: 1200 | R119: 14050 | S119: 13174.44 | T119: 14056 | U119: 7593.6 | V119: 5580.84 | W119: 1006.38 | X119: 54260 | Y119: 91.49 | Z119: P | AB119: 102654 | AD119: Internal | AE119: A | AF119: SL | AH119: WCNX | AI119: 0 | AJ119: 0 | AM119: 12 | AN119: 2014 | AO119: 2026 | AP119: 2027 | AQ119: 91.48916667 | AR119: 1097.87 | AS119: 1097.87 | AT119: 7685.09 | AU119: 8782.96 | AV119: 4391.48 | AW119: Yes
B120: 2144 | C120: 118075 | D120: P | E120: 2006 Peterbilt 320 ASL Truck | H120: 1NPZL00X36D716669 | I120: C35282C | J120: 2006 | K120: PETERBILT | L120: CURBTENDER | M120: Automated Sideload | N120: 2014-12-31 | O120: 2014-12-31 | P120: 2144-14-0002-1 | Q120: 800 | R120: 14040 | S120: 172742.39 | T120: 14046 | U120: 149350.2 | V120: 23392.19 | W120: 19793.4 | X120: 51260 | Y120: 1799.4 | Z120: P | AC120: 50-11 | AD120: Internal | AE120: A | AF120: SL | AH120: WCNX | AI120: 0 | AJ120: 0 | AM120: 12 | AN120: 2014 | AO120: 2022 | AP120: 2023 | AQ120: 1799.399896 | AR120: 21592.79875 | AS120: 21592.79875 | AT120: 151149.5912 | AU120: 172742.39 | AV120: 0 | AW120: Yes
B121: 2144 | C121: 116945 | D121: P | E121: Wyse Winterms D10D | F121: 2 | J121: 0 | K121: CDW | N121: 2014-04-20 | O121: 2014-04-20 | P121: 2000-14-0006-1 | Q121: 300 | R121: 14110 | S121: 666.17 | T121: 14116 | U121: 666.17 | V121: 0 | W121: 0 | X121: 70260 | Y121: 0 | Z121: P | AB121: Multiple beginning with K | AD121: Internal | AE121: A | AF121: SL | AG121: 2014-10-31 | AH121: WCNX | AI121: 0 | AJ121: 111.03 | AM121: 4 | AN121: 2014 | AO121: 2017 | AP121: 2017.333333 | AQ121: 18.50472222 | AR121: 222.0566667 | AS121: 0 | AT121: 666.17 | AU121: 666.17 | AV121: 0 | AW121: Yes
B122: 2144 | C122: 115085 | D122: 48617 | E122: Improvement - RO Tarper | J122: 0 | K122: LINCOLN INDUSTRIAL CORP I | M122: Non Rolling Stock | N122: 2014-08-01 | O122: 2014-08-01 | P122: 2144-14-0008-1 | Q122: 300 | R122: 14040 | S122: 6532.56 | T122: 14046 | U122: 6532.56 | V122: 0 | W122: 0 | X122: 51260 | Y122: 0 | Z122: P | AB122: 140485 | AD122: Internal | AE122: A | AF122: SL | AH122: WCNX | AI122: 0 | AJ122: 0 | AM122: 8 | AN122: 2014 | AO122: 2017 | AP122: 2017.666667 | AQ122: 181.46 | AR122: 2177.52 | AS122: 0 | AT122: 6532.56 | AU122: 6532.56 | AV122: 0 | AW122: Yes
B123: 2144 | C123: 114392 | D123: P | E123: 2 yd containers | F123: 17 | J123: 0 | K123: CAPITAL INDUSTRIES, INC. | M123: 2 YD FEL/REL/SL Metal | N123: 2014-07-03 | O123: 2014-07-03 | P123: 2144-14-0005-1 | Q123: 1200 | R123: 14050 | S123: 9582.99 | T123: 14056 | U123: 5922.8 | V123: 3660.19 | W123: 732.03 | X123: 54260 | Y123: 66.55 | Z123: P | AB123: 96659 | AD123: Internal | AE123: A | AF123: SL | AH123: WCNX | AI123: 0 | AJ123: 0 | AM123: 7 | AN123: 2014 | AO123: 2026 | AP123: 2026.583333 | AQ123: 66.54854167 | AR123: 798.5825 | AS123: 798.5825 | AT123: 5590.0775 | AU123: 6388.66 | AV123: 3194.33 | AW123: Yes
B124: 2144 | C124: 113799 | D124: P | E124: 1.5 yd Containers | F124: 18 | J124: 0 | K124: CAPITAL INDUSTRIES, INC. | M124: 1.5 YD FEL/REL/SL Metal | N124: 2014-06-04 | O124: 2014-06-04 | P124: 2144-14-0004-1 | Q124: 1200 | R124: 14050 | S124: 9276.46 | T124: 14056 | U124: 5797.8 | V124: 3478.66 | W124: 708.62 | X124: 54260 | Y124: 64.42 | Z124: P | AB124: 96068 | AD124: Internal | AE124: A | AF124: SL | AH124: WCNX | AI124: 0 | AJ124: 0 | AM124: 6 | AN124: 2014 | AO124: 2026 | AP124: 2026.5 | AQ124: 64.41986111 | AR124: 773.0383333 | AS124: 773.0383333 | AT124: 5411.268333 | AU124: 6184.306667 | AV124: 3092.153333 | AW124: Yes
B125: 2144 | C125: 113798 | D125: P | E125: 1 Yd Containers | F125: 18 | J125: 0 | K125: CAPITAL INDUSTRIES, INC. | M125: 1 YD FEL/REL/SL Metal | N125: 2014-06-04 | O125: 2014-06-04 | P125: 2144-14-0003-1 | Q125: 1200 | R125: 14050 | S125: 8669.91 | T125: 14056 | U125: 5418.67 | V125: 3251.24 | W125: 662.28 | X125: 54260 | Y125: 60.2 | Z125: P | AB125: 96067 | AD125: Internal | AE125: A | AF125: SL | AH125: WCNX | AI125: 0 | AJ125: 0 | AM125: 6 | AN125: 2014 | AO125: 2026 | AP125: 2026.5 | AQ125: 60.20770833 | AR125: 722.4925 | AS125: 722.4925 | AT125: 5057.4475 | AU125: 5779.94 | AV125: 2889.97 | AW125: Yes
B126: 2144 | C126: 112383 | D126: P | E126: Security Fence | J126: 0 | N126: 2014-04-01 | O126: 2014-04-01 | P126: 2144-14-0011-1 | Q126: 1000 | R126: 14010 | S126: 8687.3 | T126: 14016 | U126: 6660.27 | V126: 2027.03 | W126: 796.34 | X126: 57260 | Y126: 72.4 | Z126: P | AD126: Internal | AE126: A | AF126: SL | AH126: WCNX | AI126: 0 | AJ126: 0 | AM126: 4 | AN126: 2014 | AO126: 2024 | AP126: 2024.333333 | AQ126: 72.39416667 | AR126: 868.73 | AS126: 868.73 | AT126: 6081.11 | AU126: 6949.84 | AV126: 1737.46 | AW126: Yes
B127: 2144 | C127: 109830 | D127: P | E127: Truck Radios - Fleet | F127: 19 | J127: 0 | K127: DAY WIRELESS SYSTEMS | N127: 2013-12-31 | O127: 2013-12-31 | P127: 2144-13-0006-1 | Q127: 500 | R127: 14110 | S127: 21760.02 | T127: 14116 | U127: 21760.02 | V127: 0 | W127: 0 | X127: 70260 | Y127: 0 | Z127: P | AB127: 556915 | AD127: Internal | AE127: A | AF127: SL | AH127: WCNX | AI127: 0 | AJ127: 0 | AM127: 12 | AN127: 2013 | AO127: 2018 | AP127: 2019 | AQ127: 362.667 | AR127: 4352.004 | AS127: 0 | AT127: 21760.02 | AU127: 21760.02 | AV127: 0 | AW127: Yes
B128: 2144 | C128: 109810 | D128: P | E128: 10 Yd R/O Boxes | F128: 4 | J128: 0 | K128: CAPITAL INDUSTRIES, INC. | M128: 10 YD RO Box | N128: 2013-11-30 | O128: 2013-11-30 | P128: 2144-13-0001-1 | Q128: 1200 | R128: 14050 | S128: 21616.08 | T128: 14056 | U128: 14410.64 | V128: 7205.44 | W128: 1651.22 | X128: 54260 | Y128: 150.11 | Z128: P | AB128: 89026 | AD128: Internal | AE128: A | AF128: SL | AH128: WCNX | AI128: 0 | AJ128: 0 | AM128: 11 | AN128: 2013 | AO128: 2025 | AP128: 2025.916667 | AQ128: 150.1116667 | AR128: 1801.34 | AS128: 1801.34 | AT128: 14410.72 | AU128: 16212.06 | AV128: 5404.02 | AW128: Yes
B129: 2144 | C129: 109492 | D129: P | E129: Security Fencing and Cameras | J129: 0 | N129: 2013-12-31 | O129: 2013-12-31 | P129: 2144-13-0005-1 | Q129: 1000 | R129: 14010 | S129: 15453.67 | T129: 14016 | U129: 12234.18 | V129: 3219.49 | W129: 1416.59 | X129: 57260 | Y129: 128.78 | Z129: P | AD129: Internal | AE129: A | AF129: SL | AH129: WCNX | AI129: 0 | AJ129: 0 | AM129: 12 | AN129: 2013 | AO129: 2023 | AP129: 2024 | AQ129: 128.7805833 | AR129: 1545.367 | AS129: 1545.367 | AT129: 12362.936 | AU129: 13908.303 | AV129: 1545.367 | AW129: Yes
B130: 2144 | C130: 100512 | D130: 99654 | E130: Phone System Upgrade - Sales Tax Adjustment | F130: 0 | J130: 0 | K130: Gaynor Telesystems | N130: 2012-12-19 | O130: 2012-12-19 | P130: 2144-12-0004-1 | Q130: 500 | R130: 14100 | S130: 198.19 | T130: 14106 | U130: 198.19 | V130: 0 | W130: 0 | X130: 70260 | Y130: 0 | Z130: P | AB130: INV000022173 | AD130: Internal | AE130: A | AF130: SL | AH130: WCNX | AI130: 0 | AJ130: 0 | AM130: 12 | AN130: 2012 | AO130: 2017 | AP130: 2018 | AQ130: 3.303166667 | AR130: 39.638 | AS130: 0 | AT130: 198.19 | AU130: 198.19 | AV130: 0 | AW130: Yes
B131: 2144 | C131: 100511 | D131: 99654 | E131: Phone System Upgrade - Sales Tax Adjustment | F131: 0 | J131: 0 | K131: Gaynor Telesystems | N131: 2012-12-19 | O131: 2012-12-19 | P131: 2144-12-0004-1 | Q131: 500 | R131: 14100 | S131: 317.11 | T131: 14106 | U131: 317.11 | V131: 0 | W131: 0 | X131: 70260 | Y131: 0 | Z131: P | AB131: INV000022252 | AD131: Internal | AE131: A | AF131: SL | AH131: WCNX | AI131: 0 | AJ131: 0 | AM131: 12 | AN131: 2012 | AO131: 2017 | AP131: 2018 | AQ131: 5.285166667 | AR131: 63.422 | AS131: 0 | AT131: 317.11 | AU131: 317.11 | AV131: 0 | AW131: Yes
B132: 2144 | C132: 100510 | D132: 99654 | E132: Phone System Upgrade - Sales Tax Adjustment | F132: 0 | J132: 0 | K132: Gaynor Telesystems | N132: 2012-12-19 | O132: 2012-12-19 | P132: 2144-12-0004-1 | Q132: 500 | R132: 14100 | S132: 295.89 | T132: 14106 | U132: 295.89 | V132: 0 | W132: 0 | X132: 70260 | Y132: 0 | Z132: P | AB132: INV000022423 | AD132: Internal | AE132: A | AF132: SL | AH132: WCNX | AI132: 0 | AJ132: 0 | AM132: 12 | AN132: 2012 | AO132: 2017 | AP132: 2018 | AQ132: 4.9315 | AR132: 59.178 | AS132: 0 | AT132: 295.89 | AU132: 295.89 | AV132: 0 | AW132: Yes
B133: 2144 | C133: 100412 | D133: 99654 | E133: HP Compaq 6300 Pro (SN = MXL2211B72) - PC for the Phone System | F133: 0 | J133: 0 | K133: CDW | N133: 2012-12-19 | O133: 2012-12-15 | P133: 2144-12-0004-1 | Q133: 500 | R133: 14100 | S133: 648.75 | T133: 14106 | U133: 648.75 | V133: 0 | W133: 0 | X133: 70260 | Y133: 0 | Z133: P | AB133: T914181 | AD133: Internal | AE133: A | AF133: SL | AH133: WCNX | AI133: 0 | AJ133: 0 | AM133: 12 | AN133: 2012 | AO133: 2017 | AP133: 2018 | AQ133: 10.8125 | AR133: 129.75 | AS133: 0 | AT133: 648.75 | AU133: 648.75 | AV133: 0 | AW133: Yes
B134: 2144 | C134: 100411 | D134: 99654 | E134: Phone System for Island Disposal | F134: 0 | J134: 0 | K134: Gaynor Telesystems | N134: 2012-12-19 | O134: 2012-12-19 | P134: 2144-12-0004-1 | Q134: 500 | R134: 14100 | S134: 3401.02 | T134: 14106 | U134: 3401.02 | V134: 0 | W134: 0 | X134: 70260 | Y134: 0 | Z134: P | AB134: INV000022423 | AD134: Internal | AE134: A | AF134: SL | AH134: WCNX | AI134: 0 | AJ134: 0 | AM134: 12 | AN134: 2012 | AO134: 2017 | AP134: 2018 | AQ134: 56.68366667 | AR134: 680.204 | AS134: 0 | AT134: 3401.02 | AU134: 3401.02 | AV134: 0 | AW134: Yes
B135: 2144 | C135: 100410 | D135: 99654 | E135: Equipment for Phone System | F135: 0 | J135: 0 | K135: CDW | N135: 2012-12-19 | O135: 2012-12-19 | P135: 2144-12-0004-1 | Q135: 500 | R135: 14100 | S135: 1122.77 | T135: 14106 | U135: 1122.77 | V135: 0 | W135: 0 | X135: 70260 | Y135: 0 | Z135: P | AB135: T834798 | AD135: Internal | AE135: A | AF135: SL | AH135: WCNX | AI135: 0 | AJ135: 0 | AM135: 12 | AN135: 2012 | AO135: 2017 | AP135: 2018 | AQ135: 18.71283333 | AR135: 224.554 | AS135: 0 | AT135: 1122.77 | AU135: 1122.77 | AV135: 0 | AW135: Yes
B136: 2144 | C136: 100086 | D136: P | E136: 95 Gallon Recycel Carts - ROC Grey | F136: 164 | J136: 0 | K136: REHRIG PACIFIC COMPANY | N136: 2012-12-18 | O136: 2012-12-18 | P136: 2144-12-0006-1 | Q136: 700 | R136: 14050 | S136: 8889.48 | T136: 14056 | U136: 8889.48 | V136: 0 | W136: 0 | X136: 54260 | Y136: 0 | Z136: P | AB136: LA175017R | AD136: Internal | AE136: A | AF136: SL | AH136: WCNX | AI136: 0 | AJ136: 0 | AM136: 12 | AN136: 2012 | AO136: 2019 | AP136: 2020 | AQ136: 105.8271429 | AR136: 1269.925714 | AS136: 0 | AT136: 8889.48 | AU136: 8889.48 | AV136: 0 | AW136: Yes
B137: 2144 | C137: 100085 | D137: P | E137: 95 Gallon Recycle Carts | F137: 486 | J137: 0 | K137: REHRIG PACIFIC COMPANY | N137: 2012-12-18 | O137: 2012-12-18 | P137: 2144-12-0006-1 | Q137: 700 | R137: 14050 | S137: 26171.15 | T137: 14056 | U137: 26171.15 | V137: 0 | W137: 0 | X137: 54260 | Y137: 0 | Z137: P | AB137: LA175016 | AD137: Internal | AE137: A | AF137: SL | AH137: WCNX | AI137: 0 | AJ137: 0 | AM137: 12 | AN137: 2012 | AO137: 2019 | AP137: 2020 | AQ137: 311.5613095 | AR137: 3738.735714 | AS137: 0 | AT137: 26171.15 | AU137: 26171.15 | AV137: 0 | AW137: Yes
B138: 2144 | C138: 99654 | D138: P | E138: Phone System Upgrade | F138: 0 | J138: 0 | N138: 2012-12-19 | O138: 2012-12-19 | P138: 2144-12-0004-1 | Q138: 500 | R138: 14100 | S138: 5923.01 | T138: 14106 | U138: 5923.01 | V138: 0 | W138: 0 | X138: 70260 | Y138: 0 | Z138: P | AB138: INV000022252 | AD138: Internal | AE138: A | AF138: SL | AH138: WCNX | AI138: 0 | AJ138: 0 | AM138: 12 | AN138: 2012 | AO138: 2017 | AP138: 2018 | AQ138: 98.71683333 | AR138: 1184.602 | AS138: 0 | AT138: 5923.01 | AU138: 5923.01 | AV138: 0 | AW138: Yes
B139: 2144 | C139: 95047 | D139: P | E139: RTA Equipment | F139: 0 | J139: 0 | K139: CDW | N139: 2012-04-30 | O139: 2012-04-30 | P139: 1010-12-0021-1 | Q139: 300 | R139: 14110 | S139: 466.06 | T139: 14116 | U139: 466.06 | V139: 0 | W139: 0 | X139: 70260 | Y139: 0 | Z139: P | AB139: J787178 | AD139: Internal | AE139: A | AF139: SL | AG139: 2012-06-30 | AH139: WCNX | AI139: 0 | AJ139: 25.89 | AM139: 4 | AN139: 2012 | AO139: 2015 | AP139: 2015.333333 | AQ139: 12.94611111 | AR139: 155.3533333 | AS139: 0 | AT139: 466.06 | AU139: 466.06 | AV139: 0 | AW139: Yes
B140: 2144 | C140: 90766 | D140: P | E140: 1989 Selco V5-XHD Baler - Tax - Don's Tools | F140: 0 | H140: 9893921 | J140: 1989 | K140: OTHER | L140: Other | M140: Non Audit Assets | N140: 2001-11-01 | O140: 2001-11-01 | Q140: 1000 | R140: 14070 | S140: 0.01 | T140: 14076 | U140: 0.01 | V140: 0 | W140: 0 | X140: 51260 | Y140: 0 | Z140: A | AA140: Island | AD140: Internal | AE140: A | AF140: SL | AG140: 2012-01-31 | AH140: WCNX | AI140: 0 | AJ140: 0.01 | AM140: 11 | AN140: 2001 | AO140: 2011 | AP140: 2011.916667 | AQ140: 8.333333333e-05 | AR140: 0.001 | AS140: 0 | AT140: 0.01 | AU140: 0.01 | AV140: 0 | AW140: Yes
B141: 2144 | C141: 90760 | D141: P | E141: (1) Sony Internet TV S/N# S018064198M | F141: 0 | J141: 0 | K141: CDW | N141: 2011-12-31 | O141: 2011-12-31 | P141: 1010-11-0048-1 | Q141: 500 | R141: 14110 | S141: 853.26 | T141: 14116 | U141: 853.26 | V141: 0 | W141: 0 | X141: 70260 | Y141: 0 | Z141: P | AB141: C563032 | AD141: Internal | AE141: A | AF141: SL | AG141: 2012-01-31 | AH141: WCNX | AI141: 0 | AJ141: 14.22 | AM141: 12 | AN141: 2011 | AO141: 2016 | AP141: 2017 | AQ141: 14.221 | AR141: 170.652 | AS141: 0 | AT141: 853.26 | AU141: 853.26 | AV141: 0 | AW141: Yes
B142: 2144 | C142: 90759 | D142: P | E142: 65 Gallon Recycle Carts | F142: 648 | J142: 0 | K142: REHRIG PACIFIC COMPANY | N142: 2010-10-29 | O142: 2010-10-29 | P142: 2143-10-0004-1 | Q142: 700 | R142: 14050 | S142: 27386.14 | T142: 14056 | U142: 27386.14 | V142: 0 | W142: 0 | X142: 54260 | Y142: 0 | Z142: P | AB142: LA159733 | AD142: Internal | AE142: A | AF142: SL | AG142: 2012-01-31 | AH142: WCNX | AI142: 0 | AJ142: 4890.39 | AM142: 10 | AN142: 2010 | AO142: 2017 | AP142: 2017.833333 | AQ142: 326.0254762 | AR142: 3912.305714 | AS142: 0 | AT142: 27386.14 | AU142: 27386.14 | AV142: 0 | AW142: Yes
B143: 2144 | C143: 90758 | D143: P | E143: 65 Gallon Recycle Carts | F143: 504 | J143: 0 | K143: REHRIG PACIFIC COMPANY | N143: 2010-10-29 | O143: 2010-10-29 | P143: 2143-10-0004-1 | Q143: 700 | R143: 14050 | S143: 21300.33 | T143: 14056 | U143: 21300.33 | V143: 0 | W143: 0 | X143: 54260 | Y143: 0 | Z143: P | AB143: LA159734 | AD143: Internal | AE143: A | AF143: SL | AG143: 2012-01-31 | AH143: WCNX | AI143: 0 | AJ143: 3803.64 | AM143: 10 | AN143: 2010 | AO143: 2017 | AP143: 2017.833333 | AQ143: 253.5753571 | AR143: 3042.904286 | AS143: 0 | AT143: 21300.33 | AU143: 21300.33 | AV143: 0 | AW143: Yes
B144: 2144 | C144: 90757 | D144: P | E144: 95 Gallon Recycle Carts | F144: 486 | J144: 0 | K144: REHRIG PACIFIC COMPANY | N144: 2010-10-23 | O144: 2010-10-23 | P144: 2143-10-0005-1 | Q144: 700 | R144: 14050 | S144: 24285.12 | T144: 14056 | U144: 24285.12 | V144: =S144-U144 -> 0 | W144: 0 | X144: 54260 | Y144: 0 | Z144: P | AB144: LA159552 | AD144: Internal | AE144: A | AF144: SL | AG144: 2012-01-31 | AH144: WCNX | AI144: 0 | AJ144: 4336.63 | AM144: 10 | AN144: 2010 | AO144: =$AN144+($Q144/100) -> 2017 | AP144: 2017.833333 | AQ144: 289.1085714 | AR144: 3469.302857 | AS144: =IF($AP144<=$AK$8,0,IF($AO144>$AK$7,$AR144,($AQ144*$AM144))) -> 0 | AT144: =IF($AS144=0,$S144,IF($AK$6-AN144<1,0,(($AK$6-$AN144)*AR144))) -> 24285.12 | AU144: 24285.12 | AV144: =$S144-$AU144 -> 0 | AW144: Yes
B145: 2144 | C145: 90756 | D145: P | E145: 95 Gallon Recycle Carts | F145: 342 | J145: 0 | K145: REHRIG PACIFIC COMPANY | N145: 2010-10-28 | O145: 2010-10-28 | P145: 2143-10-0005-1 | Q145: 700 | R145: 14050 | S145: 17089.52 | T145: 14056 | U145: 17089.52 | V145: 0 | W145: 0 | X145: 54260 | Y145: 0 | Z145: P | AB145: LA159765 | AD145: Internal | AE145: A | AF145: SL | AG145: 2012-01-31 | AH145: WCNX | AI145: 0 | AJ145: 3051.7 | AM145: =MONTH($N145) -> 10 | AN145: =YEAR($N145) -> 2010 | AO145: 2017 | AP145: =$AO145+($AM145/12) -> 2017.833333 | AQ145: =IFERROR($S145/($Q145/100)/12,0) -> 203.4466667 | AR145: =$AQ145*12 -> 2441.36 | AS145: 0 | AT145: 17089.52 | AU145: =IF($AT145=0,$AS145,($AT145+$AS145)) -> 17089.52 | AV145: 0 | AW145: Yes
B146: 2144 | C146: 90755 | D146: P | E146: 20 Yard R/O Glass Recycle Boxes | F146: 4 | J146: 0 | K146: ENTERPRISE SALES, INC. | M146: 20 YD RO Box | N146: 2010-12-01 | O146: 2010-12-01 | P146: 2143-10-0006-1 | Q146: 1200 | R146: 14050 | S146: 28940.29 | T146: 14056 | U146: 26528.6 | V146: 2411.69 | W146: 2210.72 | X146: 54260 | Y146: 200.98 | Z146: P | AB146: 4715 | AD146: Internal | AE146: A | AF146: SL | AG146: 2012-01-31 | AH146: WCNX | AI146: 0 | AJ146: 2813.64 | AM146: 12 | AN146: 2010 | AO146: 2022 | AP146: 2023 | AQ146: 200.9742361 | AR146: 2411.690833 | AS146: 2411.690833 | AT146: 26528.59917 | AU146: 28940.29 | AV146: 0 | AW146: Yes
B147: 2144 | C147: 90754 | D147: P | E147: 95 Gallon Recycle Carts | F147: 486 | J147: 0 | K147: REHRIG PACIFIC COMPANY | N147: 2010-10-25 | O147: 2010-10-25 | P147: 2143-10-0005-1 | Q147: 700 | R147: 14050 | S147: 24285.12 | T147: 14056 | U147: 24285.12 | V147: 0 | W147: 0 | X147: 54260 | Y147: 0 | Z147: P | AB147: LA159598 | AD147: Internal | AE147: A | AF147: SL | AG147: 2012-01-31 | AH147: WCNX | AI147: 0 | AJ147: 4336.63 | AM147: 10 | AN147: 2010 | AO147: 2017 | AP147: 2017.833333 | AQ147: 289.1085714 | AR147: 3469.302857 | AS147: 0 | AT147: 24285.12 | AU147: 24285.12 | AV147: 0 | AW147: Yes
B148: 2144 | C148: 90753 | D148: P | E148: 95 Gallon Recycle Carts | F148: 486 | J148: 0 | K148: REHRIG PACIFIC COMPANY | N148: 2010-10-26 | O148: 2010-10-26 | P148: 2143-10-0005-1 | Q148: 700 | R148: 14050 | S148: 24285.12 | T148: 14056 | U148: 24285.12 | V148: 0 | W148: 0 | X148: 54260 | Y148: 0 | Z148: P | AB148: LA159597 | AD148: Internal | AE148: A | AF148: SL | AG148: 2012-01-31 | AH148: WCNX | AI148: 0 | AJ148: 4336.63 | AM148: 10 | AN148: 2010 | AO148: 2017 | AP148: 2017.833333 | AQ148: 289.1085714 | AR148: 3469.302857 | AS148: 0 | AT148: 24285.12 | AU148: 24285.12 | AV148: 0 | AW148: Yes
B149: 2144 | C149: 90752 | D149: P | E149: 30 Yard Roll Off Containers | F149: 1 | J149: 0 | M149: 30 YD RO Box | N149: 2001-11-01 | O149: 2001-11-01 | Q149: 600 | R149: 14050 | S149: 134 | T149: 14056 | U149: 134 | V149: 0 | W149: 0 | X149: 54260 | Y149: 0 | Z149: A | AA149: Island | AD149: Internal | AE149: A | AF149: SL | AG149: 2012-01-31 | AH149: WCNX | AI149: 4 | AJ149: 134 | AM149: 11 | AN149: 2001 | AO149: 2007 | AP149: 2007.916667 | AQ149: 1.861111111 | AR149: 22.33333333 | AS149: 0 | AT149: 134 | AU149: 134 | AV149: 0 | AW149: Yes
B150: 2144 | C150: 90751 | D150: P | E150: 2 Yd REL Containers | F150: 39 | J150: 0 | M150: 2 YD FEL/REL/SL Metal | N150: 2001-11-01 | O150: 2001-11-01 | Q150: 600 | R150: 14050 | S150: 64.86 | T150: 14056 | U150: 64.86 | V150: 0 | W150: 0 | X150: 54260 | Y150: 0 | Z150: A | AA150: Island | AD150: Internal | AE150: A | AF150: SL | AG150: 2012-01-31 | AH150: WCNX | AI150: 2 | AJ150: 64.86 | AM150: 11 | AN150: 2001 | AO150: 2007 | AP150: 2007.916667 | AQ150: 0.9008333333 | AR150: 10.81 | AS150: 0 | AT150: 64.86 | AU150: 64.86 | AV150: 0 | AW150: Yes
B151: 2144 | C151: 90750 | D151: P | E151: 1 Yd REL Containers | F151: 65 | J151: 0 | M151: 1 YD FEL/REL/SL Metal | N151: 2001-11-01 | O151: 2001-11-01 | Q151: 600 | R151: 14050 | S151: 83.81 | T151: 14056 | U151: 83.81 | V151: 0 | W151: 0 | X151: 54260 | Y151: 0 | Z151: A | AA151: Island | AD151: Internal | AE151: A | AF151: SL | AG151: 2012-01-31 | AH151: WCNX | AI151: 2 | AJ151: 83.81 | AM151: 11 | AN151: 2001 | AO151: 2007 | AP151: 2007.916667 | AQ151: 1.164027778 | AR151: 13.96833333 | AS151: 0 | AT151: 83.81 | AU151: 83.81 | AV151: 0 | AW151: Yes
B152: 2144 | C152: 90749 | D152: P | E152: Tipper Containers | F152: 17 | J152: 0 | N152: 2001-11-01 | O152: 2001-11-01 | Q152: 600 | R152: 14050 | S152: 680 | T152: 14056 | U152: 680 | V152: 0 | W152: 0 | X152: 54260 | Y152: 0 | Z152: A | AA152: Island | AD152: Internal | AE152: A | AF152: SL | AG152: 2012-01-31 | AH152: WCNX | AI152: 0 | AJ152: 680 | AM152: 11 | AN152: 2001 | AO152: 2007 | AP152: 2007.916667 | AQ152: 9.444444444 | AR152: 113.3333333 | AS152: 0 | AT152: 680 | AU152: 680 | AV152: 0 | AW152: Yes
B153: 2144 | C153: 90748 | D153: P | E153: 50 Yard Roll Off Containers | F153: 2 | J153: 0 | M153: 50 YD RO Box | N153: 2001-11-01 | O153: 2001-11-01 | Q153: 600 | R153: 14050 | S153: 800 | T153: 14056 | U153: 800 | V153: 0 | W153: 0 | X153: 54260 | Y153: 0 | Z153: A | AA153: Island | AD153: Internal | AE153: A | AF153: SL | AG153: 2012-01-31 | AH153: WCNX | AI153: 2 | AJ153: 800 | AM153: 11 | AN153: 2001 | AO153: 2007 | AP153: 2007.916667 | AQ153: 11.11111111 | AR153: 133.3333333 | AS153: 0 | AT153: 800 | AU153: 800 | AV153: 0 | AW153: Yes
B154: 2144 | C154: 90747 | D154: P | E154: 40 Yard Roll Off Containers | F154: 9 | J154: 0 | M154: 40 YD RO Box | N154: 2001-11-01 | O154: 2001-11-01 | Q154: 600 | R154: 14050 | S154: 2080 | T154: 14056 | U154: 2080 | V154: 0 | W154: 0 | X154: 54260 | Y154: 0 | Z154: A | AA154: Island | AD154: Internal | AE154: A | AF154: SL | AG154: 2012-01-31 | AH154: WCNX | AI154: 8 | AJ154: 2080 | AM154: 11 | AN154: 2001 | AO154: 2007 | AP154: 2007.916667 | AQ154: 28.88888889 | AR154: 346.6666667 | AS154: 0 | AT154: 2080 | AU154: 2080 | AV154: 0 | AW154: Yes
B155: 2144 | C155: 90746 | D155: P | E155: 1.5 Yd REL Containers | F155: 30 | J155: 0 | M155: 1.5 YD FEL/REL/SL Metal | N155: 2001-11-01 | O155: 2001-11-01 | Q155: 600 | R155: 14050 | S155: 25.41 | T155: 14056 | U155: 25.41 | V155: 0 | W155: 0 | X155: 54260 | Y155: 0 | Z155: A | AA155: Island | AD155: Internal | AE155: A | AF155: SL | AG155: 2012-01-31 | AH155: WCNX | AI155: 2 | AJ155: 25.41 | AM155: 11 | AN155: 2001 | AO155: 2007 | AP155: 2007.916667 | AQ155: 0.3529166667 | AR155: 4.235 | AS155: 0 | AT155: 25.41 | AU155: 25.41 | AV155: 0 | AW155: Yes
B156: 2144 | C156: 90745 | D156: P | E156: 65 Gallon Recycle Carts | F156: 648 | J156: 0 | K156: REHRIG PACIFIC COMPANY | N156: 2010-10-28 | O156: 2010-10-28 | P156: 2143-10-0004-1 | Q156: 700 | R156: 14050 | S156: 27386.14 | T156: 14056 | U156: 27386.14 | V156: 0 | W156: 0 | X156: 54260 | Y156: 0 | Z156: P | AB156: LA159675 | AD156: Internal | AE156: A | AF156: SL | AG156: 2012-01-31 | AH156: WCNX | AI156: 0 | AJ156: 4890.39 | AM156: 10 | AN156: 2010 | AO156: 2017 | AP156: 2017.833333 | AQ156: 326.0254762 | AR156: 3912.305714 | AS156: 0 | AT156: 27386.14 | AU156: 27386.14 | AV156: 0 | AW156: Yes
B157: 2144 | C157: 90735 | D157: P | E157: Wastequip/Roll Off Trailer | F157: 0 | H157: 1W9RS22417R454005 | I157: 0396TU | J157: 2007 | K157: Solid Waste Systems | L157: WasteQuip | M157: R/O Trailer | N157: 2007-05-25 | O157: 2007-05-25 | P157: 07-2144-004 | Q157: 700 | R157: 14040 | S157: 38418.32 | T157: 14046 | U157: 38418.32 | V157: 0 | W157: 0 | X157: 51260 | Y157: 0 | Z157: P | AB157: 2503482 | AC157: 50-38 | AD157: Internal | AE157: A | AF157: SL | AG157: 2012-01-31 | AH157: WCNX | AI157: 0 | AJ157: 25612.12 | AM157: 5 | AN157: 2007 | AO157: 2014 | AP157: 2014.416667 | AQ157: 457.3609524 | AR157: 5488.331429 | AS157: 0 | AT157: 38418.32 | AU157: 38418.32 | AV157: 0 | AW157: Yes
B158: 2144 | C158: 90732 | D158: P | E158: Loader Bobcat/S-130 | F158: 0 | H158: 527311315 | I158: N/A | J158: 2005 | K158: Bobcat | M158: Skid Steer | N158: 2007-01-10 | O158: 2007-01-10 | P158: 07-2144-003 | Q158: 1000 | R158: 14030 | S158: 18681.75 | T158: 14036 | U158: 18681.75 | V158: 0 | W158: 0 | X158: 51260 | Y158: 0 | Z158: P | AB158: 5273-11315 | AC158: 50-27 | AD158: Internal | AE158: A | AF158: SL | AG158: 2012-01-31 | AH158: WCNX | AI158: 0 | AJ158: 9496.58 | AM158: 1 | AN158: 2007 | AO158: 2017 | AP158: 2017.083333 | AQ158: 155.68125 | AR158: 1868.175 | AS158: 0 | AT158: 18681.75 | AU158: 18681.75 | AV158: 0 | AW158: Yes
B159: 2144 | C159: 90731 | D159: 90732 | E159: Fleet Upgrade - Skid Steer Tires | F159: 0 | H159: BOBCAT | J159: 2004 | K159: Skid Steer Loader | M159: Non-Rolling Stock | N159: 2007-01-30 | O159: 2007-01-30 | P159: 07-2144-003 | Q159: 1000 | R159: 14030 | S159: 2601.64 | T159: 14036 | U159: 2601.64 | V159: 0 | W159: 0 | X159: 51260 | Y159: 0 | Z159: C | AB159: 332149 | AD159: Internal | AE159: A | AF159: SL | AG159: 2012-01-31 | AH159: WCNX | AI159: 0 | AJ159: 1300.8 | AM159: 1 | AN159: 2007 | AO159: 2017 | AP159: 2017.083333 | AQ159: 21.68033333 | AR159: 260.164 | AS159: 0 | AT159: 2601.64 | AU159: 2601.64 | AV159: 0 | AW159: Yes
B160: 2144 | C160: 90730 | D160: P | E160: 2003 Nissan/UGJ02/Forklift | F160: 0 | H160: UCJ02A30PV | I160: N/A | J160: 2003 | K160: NISSAN | L160: Nissan | M160: Forklift | N160: 2007-04-15 | O160: 2007-04-15 | P160: 07-2143-001 | Q160: 600 | R160: 14030 | S160: 18404.1 | T160: 14036 | U160: 18404.1 | V160: 0 | W160: 0 | X160: 51260 | Y160: 0 | Z160: P | AA160: 0 | AC160: 50-28 | AD160: Internal | AE160: A | AF160: SL | AG160: 2012-01-31 | AH160: WCNX | AI160: 0 | AJ160: 14825.52 | AM160: 4 | AN160: 2007 | AO160: 2013 | AP160: 2013.333333 | AQ160: 255.6125 | AR160: 3067.35 | AS160: 0 | AT160: 18404.1 | AU160: 18404.1 | AV160: 0 | AW160: Yes
B161: 2144 | C161: 88830 | D161: P | E161: HP Pro 3130 (SN = SMXL1282FPN) | F161: 0 | J161: 0 | K161: CDW | N161: 2011-12-27 | O161: 2011-12-27 | P161: 2144-11-0014-1 | Q161: 300 | R161: 14110 | S161: 754.35 | T161: 14116 | U161: 754.35 | V161: 0 | W161: 0 | X161: 70260 | Y161: 0 | Z161: P | AB161: C671517 | AD161: Internal | AE161: A | AF161: SL | AH161: WCNX | AI161: 0 | AJ161: 0 | AM161: 12 | AN161: 2011 | AO161: 2014 | AP161: 2015 | AQ161: 20.95416667 | AR161: 251.45 | AS161: 0 | AT161: 754.35 | AU161: 754.35 | AV161: 0 | AW161: Yes
B162: 2144 | C162: 88605 | D162: P | E162: 2 Yard Containers - REL | F162: 15 | J162: 0 | K162: CAPITAL INDUSTRIES, INC. | M162: 2 YD FEL/REL/SL Metal | N162: 2011-12-28 | O162: 2011-12-28 | P162: 2144-11-0005-1 | Q162: 1200 | R162: 14050 | S162: 7391.25 | T162: 14056 | U162: 6108.07 | V162: 1283.18 | W162: 564.61 | X162: 54260 | Y162: 51.33 | Z162: P | AB162: 65176 | AD162: Internal | AE162: A | AF162: SL | AH162: WCNX | AI162: 0 | AJ162: 0 | AM162: 12 | AN162: 2011 | AO162: 2023 | AP162: 2024 | AQ162: 51.328125 | AR162: 615.9375 | AS162: 615.9375 | AT162: 6159.375 | AU162: 6775.3125 | AV162: 615.9375 | AW162: Yes
B163: 2144 | C163: 88244 | D163: P | E163: Shop lighting upgrade - wiring and fixtures | F163: 0 | J163: 0 | K163: BARTLETT ELECTRIC INC | N163: 2011-12-01 | O163: 2011-12-01 | P163: 2144-11-0013-1 | Q163: 1000 | R163: 14080 | S163: 5261.08 | T163: 14086 | U163: 5261.08 | V163: 0 | W163: 482.25 | X163: 57260 | Y163: 43.81 | Z163: P | AB163: P0622 | AD163: Internal | AE163: A | AF163: SL | AH163: WCNX | AI163: 0 | AJ163: 0 | AM163: 12 | AN163: 2011 | AO163: 2021 | AP163: 2022 | AQ163: 43.84233333 | AR163: 526.108 | AS163: 0 | AT163: 5261.08 | AU163: 5261.08 | AV163: 0 | AW163: Yes
B164: 2144 | C164: 88158 | D164: P | E164: New Bobcat 54" Sweeper Attachment | F164: 0 | J164: 0 | K164: PAPE MACHINERY | N164: 2011-11-02 | O164: 2011-11-02 | P164: 2143-11-0005-1 | Q164: 500 | R164: 14070 | S164: 2771.85 | T164: 14076 | U164: 2771.85 | V164: 0 | W164: 0 | X164: 51260 | Y164: 0 | Z164: P | AB164: 4M 184549 S | AD164: Internal | AE164: A | AF164: SL | AH164: WCNX | AI164: 0 | AJ164: 0 | AM164: 11 | AN164: 2011 | AO164: 2016 | AP164: 2016.916667 | AQ164: 46.1975 | AR164: 554.37 | AS164: 0 | AT164: 2771.85 | AU164: 2771.85 | AV164: 0 | AW164: Yes
B165: 2144 | C165: 87620 | D165: P | E165: 40YD Roll-Off Drop Box | F165: 1 | J165: 0 | K165: ENTERPRISE SALES, INC. | M165: 40 YD RO Box | N165: 2011-10-01 | O165: 2011-10-01 | P165: 2144-11-0003-1 | Q165: 1200 | R165: 14050 | S165: 6737.23 | T165: 14056 | U165: 5707.97 | V165: 1029.26 | W165: 514.65 | X165: 54260 | Y165: 46.78 | Z165: P | AB165: 5086 | AD165: Internal | AE165: A | AF165: SL | AH165: WCNX | AI165: 0 | AJ165: 0 | AM165: 10 | AN165: 2011 | AO165: 2023 | AP165: 2023.833333 | AQ165: 46.78631944 | AR165: 561.4358333 | AS165: 561.4358333 | AT165: 5614.358333 | AU165: 6175.794167 | AV165: 561.4358333 | AW165: Yes
B166: 2144 | C166: 86247 | D166: P | E166: 40 Yard Drop Boxes w/Lids | F166: 3 | J166: 0 | K166: ENTERPRISE SALES, INC. | M166: 40 YD RO Box | N166: 2011-09-12 | O166: 2011-09-12 | P166: 2144-11-0003-1 | Q166: 1200 | R166: 14050 | S166: 20211.68 | T166: 14056 | U166: 17264.18 | V166: 2947.5 | W166: 1543.95 | X166: 54260 | Y166: 140.36 | Z166: P | AB166: 5056 | AD166: Internal | AE166: A | AF166: SL | AH166: WCNX | AI166: 0 | AJ166: 0 | AM166: 9 | AN166: 2011 | AO166: 2023 | AP166: 2023.75 | AQ166: 140.3588889 | AR166: 1684.306667 | AS166: 1684.306667 | AT166: 16843.06667 | AU166: 18527.37333 | AV166: 1684.306667 | AW166: Yes
B167: 2144 | C167: 86246 | D167: P | E167: 40 Yard Drop Boxes w/Lids | F167: 1 | J167: 0 | K167: ENTERPRISE SALES, INC. | M167: 40 YD RO Box | N167: 2011-08-20 | O167: 2011-08-20 | P167: 2144-11-0003-1 | Q167: 1200 | R167: 14050 | S167: 7019.84 | T167: 14056 | U167: 5996.14 | V167: 1023.7 | W167: 536.24 | X167: 54260 | Y167: 48.75 | Z167: P | AB167: 5046 | AD167: Internal | AE167: A | AF167: SL | AH167: WCNX | AI167: 2 | AJ167: 0 | AM167: 8 | AN167: 2011 | AO167: 2023 | AP167: 2023.666667 | AQ167: 48.74888889 | AR167: 584.9866667 | AS167: 584.9866667 | AT167: 5849.866667 | AU167: 6434.853333 | AV167: 584.9866667 | AW167: Yes
B168: 2144 | C168: 86245 | D168: P | E168: 30 Yard Drop Box w/Lid | F168: 1 | J168: 0 | K168: ENTERPRISE SALES, INC. | M168: 30 YD RO Box | N168: 2011-08-20 | O168: 2011-08-20 | P168: 2144-11-0002-1 | Q168: 1200 | R168: 14050 | S168: 6173.07 | T168: 14056 | U168: 5272.81 | V168: 900.26 | W168: 471.55 | X168: 54260 | Y168: 42.87 | Z168: P | AB168: 5045 | AD168: Internal | AE168: A | AF168: SL | AH168: WCNX | AI168: 0 | AJ168: 0 | AM168: 8 | AN168: 2011 | AO168: 2023 | AP168: 2023.666667 | AQ168: 42.86854167 | AR168: 514.4225 | AS168: 514.4225 | AT168: 5144.225 | AU168: 5658.6475 | AV168: 514.4225 | AW168: Yes
B169: 2144 | C169: 86244 | D169: P | E169: 30 Yard Drop Boxes w/Lids | F169: 3 | J169: 0 | K169: ENTERPRISE SALES, INC. | M169: 30 YD RO Box | N169: 2011-08-20 | O169: 2011-08-20 | P169: 2144-11-0002-1 | Q169: 1200 | R169: 14050 | S169: 18896.41 | T169: 14056 | U169: 16140.68 | V169: 2755.73 | W169: 1443.48 | X169: 54260 | Y169: 131.23 | Z169: P | AB169: 5037 | AD169: Internal | AE169: A | AF169: SL | AH169: WCNX | AI169: 0 | AJ169: 0 | AM169: 8 | AN169: 2011 | AO169: 2023 | AP169: 2023.666667 | AQ169: 131.2250694 | AR169: 1574.700833 | AS169: 1574.700833 | AT169: 15747.00833 | AU169: 17321.70917 | AV169: 1574.700833 | AW169: Yes
B170: 2144 | C170: 86243 | D170: P | E170: 1 Yard REL Containers | F170: 16 | J170: 0 | K170: ENTERPRISE SALES, INC. | M170: 1 YD FEL/REL/SL Metal | N170: 2011-08-20 | O170: 2011-08-20 | P170: 2144-11-0004-1 | Q170: 1200 | R170: 14050 | S170: 7756.83 | T170: 14056 | U170: 6625.6 | V170: 1131.23 | W170: 592.53 | X170: 54260 | Y170: 53.86 | Z170: P | AB170: 5044 | AD170: Internal | AE170: A | AF170: SL | AH170: WCNX | AI170: 0 | AJ170: 0 | AM170: 8 | AN170: 2011 | AO170: 2023 | AP170: 2023.666667 | AQ170: 53.866875 | AR170: 646.4025 | AS170: 646.4025 | AT170: 6464.025 | AU170: 7110.4275 | AV170: 646.4025 | AW170: Yes
B171: 2144 | C171: 86242 | D171: P | E171: 1 Yard REL Containers | F171: 14 | J171: 0 | K171: ENTERPRISE SALES, INC. | M171: 1 YD FEL/REL/SL Metal | N171: 2011-08-20 | O171: 2011-08-20 | P171: 2144-11-0004-1 | Q171: 1200 | R171: 14050 | S171: 9610.17 | T171: 14056 | U171: 8208.71 | V171: 1401.46 | W171: 734.11 | X171: 54260 | Y171: 66.73 | Z171: P | AB171: 5036 | AD171: Internal | AE171: A | AF171: SL | AH171: WCNX | AI171: 0 | AJ171: 0 | AM171: 8 | AN171: 2011 | AO171: 2023 | AP171: 2023.666667 | AQ171: 66.73729167 | AR171: 800.8475 | AS171: 800.8475 | AT171: 8008.475 | AU171: 8809.3225 | AV171: 800.8475 | AW171: Yes
B172: 2144 | C172: 80815 | D172: P | E172: Shop Diagnostic Laptop Computer w/ software | F172: 0 | J172: 0 | K172: SNAP ON BUSINESS SOLUTION | N172: 2011-01-01 | O172: 2011-01-01 | P172: 2144-10-0009-1 | Q172: 300 | R172: 14110 | S172: 1583.32 | T172: 14116 | U172: 1583.32 | V172: 0 | W172: 0 | X172: 70260 | Y172: 0 | Z172: P | AB172: 1245413 | AD172: Internal | AE172: A | AF172: SL | AH172: WCNX | AI172: 0 | AJ172: 0 | AM172: 1 | AN172: 2011 | AO172: 2014 | AP172: 2014.083333 | AQ172: 43.98111111 | AR172: 527.7733333 | AS172: 0 | AT172: 1583.32 | AU172: 1583.32 | AV172: 0 | AW172: Yes
B173: 2144 | C173: 80814 | D173: P | E173: Shop Diagnostic Laptop Computer w/ software | F173: 0 | J173: 0 | K173: SNAP ON BUSINESS SOLUTION | N173: 2011-01-01 | O173: 2011-01-01 | P173: 2144-10-0009-2 | Q173: 300 | R173: 14110 | S173: 5660 | T173: 14116 | U173: 5660 | V173: 0 | W173: 0 | X173: 70260 | Y173: 0 | Z173: P | AB173: 1245413 | AD173: Internal | AE173: A | AF173: SL | AH173: WCNX | AI173: 0 | AJ173: 0 | AM173: 1 | AN173: 2011 | AO173: 2014 | AP173: 2014.083333 | AQ173: 157.2222222 | AR173: 1886.666667 | AS173: 0 | AT173: 5660 | AU173: 5660 | AV173: 0 | AW173: Yes
B174: 2144 | C174: 76732 | D174: P | E174: 2 Yard REL Containers | F174: 15 | J174: 0 | K174: ENTERPRISE SALES, INC. | M174: 2 YD FEL/REL/SL Metal | N174: 2010-08-25 | O174: 2010-08-25 | P174: 2144-10-0004-1 | Q174: 1200 | R174: 14050 | S174: 7314.42 | T174: 14056 | U174: 6857.33 | V174: 457.09 | W174: 558.75 | X174: 54260 | Y174: 50.8 | Z174: P | AB174: 4659 | AD174: Internal | AE174: A | AF174: SL | AH174: WCNX | AI174: 0 | AJ174: 0 | AM174: 8 | AN174: 2010 | AO174: 2022 | AP174: 2022.666667 | AQ174: 50.79458333 | AR174: 609.535 | AS174: 406.3566667 | AT174: 6704.885 | AU174: 7111.241667 | AV174: 203.1783333 | AW174: Yes
B175: 2144 | C175: 76731 | D175: P | E175: 1.5 Yard REL Containers | F175: 15 | J175: 0 | K175: ENTERPRISE SALES, INC. | M175: 1.5 YD FEL/REL/SL Metal | N175: 2010-08-25 | O175: 2010-08-25 | P175: 2144-10-0003-1 | Q175: 1200 | R175: 14050 | S175: 7102.46 | T175: 14056 | U175: 6658.54 | V175: 443.92 | W175: 542.55 | X175: 54260 | Y175: 49.32 | Z175: P | AB175: 4658 | AD175: Internal | AE175: A | AF175: SL | AH175: WCNX | AI175: 0 | AJ175: 0 | AM175: 8 | AN175: 2010 | AO175: 2022 | AP175: 2022.666667 | AQ175: 49.32263889 | AR175: 591.8716667 | AS175: 394.5811111 | AT175: 6510.588333 | AU175: 6905.169444 | AV175: 197.2905556 | AW175: Yes
B176: 2144 | C176: 74278 | D176: P | E176: (4) Drive Cameras installed 4/16/2010 | F176: 0 | J176: 0 | K176: DRIVECAM INC | N176: 2010-04-16 | O176: 2010-04-16 | P176: 2144-10-0008-1 | Q176: 500 | R176: 14070 | S176: 4348 | T176: 14076 | U176: 4348 | V176: 0 | W176: 0 | X176: 51260 | Y176: 0 | Z176: P | AB176: 485969 | AD176: Internal | AE176: A | AF176: SL | AH176: WCNX | AI176: 0 | AJ176: 0 | AM176: 4 | AN176: 2010 | AO176: 2015 | AP176: 2015.333333 | AQ176: 72.46666667 | AR176: 869.6 | AS176: 0 | AT176: 4348 | AU176: 4348 | AV176: 0 | AW176: Yes
B177: 2144 | C177: 73744 | D177: P | E177: (23) Drive Camera Units-Cabling | F177: 0 | J177: 0 | K177: DRIVECAM INC | N177: 2010-03-31 | O177: 2010-03-31 | P177: 2144-10-0008-1 | Q177: 500 | R177: 14070 | S177: 412.52 | T177: 14076 | U177: 412.52 | V177: 0 | W177: 0 | X177: 51260 | Y177: 0 | Z177: P | AB177: 484827 | AD177: Internal | AE177: A | AF177: SL | AH177: WCNX | AI177: 0 | AJ177: 0 | AM177: 3 | AN177: 2010 | AO177: 2015 | AP177: 2015.25 | AQ177: 6.875333333 | AR177: 82.504 | AS177: 0 | AT177: 412.52 | AU177: 412.52 | AV177: 0 | AW177: Yes
B178: 2144 | C178: 73743 | D178: P | E178: (23) Drive Camera Units for Fleet | F178: 0 | J178: 0 | K178: DRIVECAM INC | N178: 2010-03-31 | O178: 2010-03-31 | P178: 2144-10-0008-1 | Q178: 500 | R178: 14070 | S178: 13707.42 | T178: 14076 | U178: 13707.42 | V178: 0 | W178: 0 | X178: 51260 | Y178: 0 | Z178: P | AB178: 485433 | AD178: Internal | AE178: A | AF178: SL | AH178: WCNX | AI178: 0 | AJ178: 0 | AM178: 3 | AN178: 2010 | AO178: 2015 | AP178: 2015.25 | AQ178: 228.457 | AR178: 2741.484 | AS178: 0 | AT178: 13707.42 | AU178: 13707.42 | AV178: 0 | AW178: Yes
B179: 2144 | C179: 71919 | D179: 71169 | E179: Mcneilus 20yd | F179: 0 | J179: 2010 | M179: REL Truck | N179: 2010-01-01 | O179: 2010-01-01 | P179: 2144-9-0007-1 | Q179: 1000 | R179: 14040 | S179: 80805.36 | T179: 14046 | U179: 80805.36 | V179: 0 | W179: 0 | X179: 51260 | Y179: 0 | Z179: P | AB179: 1167377 | AD179: Internal | AE179: A | AF179: SL | AH179: WCNX | AI179: 0 | AJ179: 0 | AM179: 1 | AN179: 2010 | AO179: 2020 | AP179: 2020.083333 | AQ179: 673.378 | AR179: 8080.536 | AS179: 0 | AT179: 80805.36 | AU179: 80805.36 | AV179: 0 | AW179: Yes
B180: 2144 | C180: 71918 | D180: 71170 | E180: Mcneilus 20yd | F180: 0 | J180: 2010 | M180: REL Truck | N180: 2010-01-01 | O180: 2010-01-01 | P180: 2144-9-0008-1 | Q180: 1000 | R180: 14040 | S180: 79897.05 | T180: 14046 | U180: 79897.05 | V180: 0 | W180: 0 | X180: 51260 | Y180: 0 | Z180: P | AB180: 1162237 | AD180: Internal | AE180: A | AF180: SL | AH180: WCNX | AI180: 0 | AJ180: 0 | AM180: 1 | AN180: 2010 | AO180: 2020 | AP180: 2020.083333 | AQ180: 665.80875 | AR180: 7989.705 | AS180: 0 | AT180: 79897.05 | AU180: 79897.05 | AV180: 0 | AW180: Yes
B181: 2144 | C181: 71630 | D181: 71171 | E181: License for New Truck | F181: 0 | H181: 1HTWGAZR8AJ259928 | J181: 2009 | M181: REL Truck | N181: 2009-12-31 | O181: 2009-12-31 | P181: 2144-9-0009-1 | Q181: 1000 | R181: 14040 | S181: 9163.63 | T181: 14046 | U181: 9163.63 | V181: 0 | W181: 0 | X181: 51260 | Y181: 0 | Z181: P | AB181: 59928 | AD181: Internal | AE181: A | AF181: SL | AH181: WCNX | AI181: 0 | AJ181: 0 | AM181: 12 | AN181: 2009 | AO181: 2019 | AP181: 2020 | AQ181: 76.36358333 | AR181: 916.363 | AS181: 0 | AT181: 9163.63 | AU181: 9163.63 | AV181: 0 | AW181: Yes
B182: 2144 | C182: 71629 | D182: 71170 | E182: New Mc Neilus Truck # 50-39 Use Tax | F182: 0 | H182: 1HTWGAZR6AJ259927 | J182: 2010 | M182: REL Truck | N182: 2009-12-31 | O182: 2009-12-31 | P182: 2144-9-0008-1 | Q182: 1000 | R182: 14040 | S182: 9163.63 | T182: 14046 | U182: 9163.63 | V182: 0 | W182: 0 | X182: 51260 | Y182: 0 | Z182: P | AB182: 59927 | AD182: Internal | AE182: A | AF182: SL | AH182: WCNX | AI182: 0 | AJ182: 0 | AM182: 12 | AN182: 2009 | AO182: 2019 | AP182: 2020 | AQ182: 76.36358333 | AR182: 916.363 | AS182: 0 | AT182: 9163.63 | AU182: 9163.63 | AV182: 0 | AW182: Yes
B183: 2144 | C183: 71628 | D183: 71169 | E183: Mc Neilus Truck 50-40 Use Tax | F183: 0 | H183: 1HTWGAZR4AJ259926 | J183: 2010 | M183: REL Truck | N183: 2009-12-31 | O183: 2009-12-31 | P183: 2144-9-0007-1 | Q183: 1000 | R183: 14040 | S183: 9172.34 | T183: 14046 | U183: 9172.34 | V183: 0 | W183: 0 | X183: 51260 | Y183: 0 | Z183: P | AB183: 59927 | AD183: Internal | AE183: A | AF183: SL | AH183: WCNX | AI183: 0 | AJ183: 0 | AM183: 12 | AN183: 2009 | AO183: 2019 | AP183: 2020 | AQ183: 76.43616667 | AR183: 917.234 | AS183: 0 | AT183: 9172.34 | AU183: 9172.34 | AV183: 0 | AW183: Yes
B184: 2144 | C184: 71627 | D184: 71171 | E184: Mcneilus 20yd | F184: 0 | H184: 1HTWGAZR8AJ259928 | J184: 2010 | M184: REL Truck | N184: 2009-12-31 | O184: 2009-12-31 | P184: 2144-9-0009-1 | Q184: 1000 | R184: 14040 | S184: 79897.05 | T184: 14046 | U184: 79897.05 | V184: 0 | W184: 0 | X184: 51260 | Y184: 0 | Z184: P | AB184: 1170583 | AD184: Internal | AE184: A | AF184: SL | AH184: WCNX | AI184: 0 | AJ184: 0 | AM184: 12 | AN184: 2009 | AO184: 2019 | AP184: 2020 | AQ184: 665.80875 | AR184: 7989.705 | AS184: 0 | AT184: 79897.05 | AU184: 79897.05 | AV184: 0 | AW184: Yes
B185: 2144 | C185: 71541 | D185: P | E185: 10 HP 120 Gal Air Compressor | F185: 0 | J185: 0 | K185: Mac Tools Distributor | N185: 2009-12-31 | O185: 2009-12-31 | P185: 2144-9-0010-1 | Q185: 500 | R185: 14070 | S185: 3143.59 | T185: 14076 | U185: 3143.59 | V185: 0 | W185: 0 | X185: 51260 | Y185: 0 | Z185: P | AB185: 10719 | AD185: Internal | AE185: A | AF185: SL | AH185: WCNX | AI185: 0 | AJ185: 0 | AM185: 12 | AN185: 2009 | AO185: 2014 | AP185: 2015 | AQ185: 52.39316667 | AR185: 628.718 | AS185: 0 | AT185: 3143.59 | AU185: 3143.59 | AV185: 0 | AW185: Yes
B186: 2144 | C186: 71171 | D186: P | E186: 2010 International 7400 REL | F186: 0 | H186: 1HTWGAZR8AJ259928 | I186: B27392N | J186: 2010 | K186: International | L186: McNeilus | M186: REL Truck | N186: 2009-12-31 | O186: 2009-12-31 | P186: 2144-9-0009-1 | Q186: 1000 | R186: 14040 | S186: 95271.64 | T186: 14046 | U186: 95271.64 | V186: 0 | W186: 0 | X186: 51260 | Y186: 0 | Z186: P | AB186: 7879 | AC186: 50-41 | AD186: Internal | AE186: A | AF186: SL | AH186: WCNX | AI186: 0 | AJ186: 0 | AM186: 12 | AN186: 2009 | AO186: 2019 | AP186: 2020 | AQ186: 793.9303333 | AR186: 9527.164 | AS186: 0 | AT186: 95271.64 | AU186: 95271.64 | AV186: 0 | AW186: Yes
B187: 2144 | C187: 71170 | D187: P | E187: 2010 International 7400 REL | F187: 0 | H187: 1HTWGAZR6AJ259927 | I187: B27391N | J187: 2010 | K187: International | L187: McNeilus | M187: REL Truck | N187: 2009-12-31 | O187: 2009-12-31 | P187: 2144-9-0008-1 | Q187: 1000 | R187: 14040 | S187: 95271.64 | T187: 14046 | U187: 95271.64 | V187: 0 | W187: 0 | X187: 51260 | Y187: 0 | Z187: P | AB187: 7878 | AC187: 50-40 | AD187: Internal | AE187: A | AF187: SL | AH187: WCNX | AI187: 0 | AJ187: 0 | AM187: 12 | AN187: 2009 | AO187: 2019 | AP187: 2020 | AQ187: 793.9303333 | AR187: 9527.164 | AS187: 0 | AT187: 95271.64 | AU187: 95271.64 | AV187: 0 | AW187: Yes
B188: 2144 | C188: 71169 | D188: P | E188: 2010 International 7400 REL | F188: 0 | H188: 1HTWGAZR4AJ259926 | I188: B27390N | J188: 2010 | K188: International | L188: McNeilus | M188: REL Truck | N188: 2009-12-31 | O188: 2009-12-31 | P188: 2144-9-0007-1 | Q188: 1000 | R188: 14040 | S188: 95271.64 | T188: 14046 | U188: 95271.64 | V188: 0 | W188: 0 | X188: 51260 | Y188: 0 | Z188: P | AB188: 7877 | AC188: 50-39 | AD188: Internal | AE188: A | AF188: SL | AH188: WCNX | AI188: 0 | AJ188: 0 | AM188: 12 | AN188: 2009 | AO188: 2019 | AP188: 2020 | AQ188: 793.9303333 | AR188: 9527.164 | AS188: 0 | AT188: 95271.64 | AU188: 95271.64 | AV188: 0 | AW188: Yes
B189: 2144 | C189: 65355 | D189: 65351 | E189: Licensing for Truck# 663 | F189: 0 | H189: 1HTWGADT14J025816 | J189: 0 | M189: Non-Rolling Stock | N189: 2004-05-25 | O189: 2004-05-25 | P189: 42009021 | Q189: 1000 | R189: 14040 | S189: 8947.36 | T189: 14046 | U189: 8947.36 | V189: 0 | W189: 0 | X189: 51260 | Y189: 0 | Z189: P | AA189: 0 | AB189: JE# 175215c | AC189: 663 | AD189: Internal | AE189: A | AF189: SL | AG189: 2009-05-31 | AH189: WCNX | AI189: 0 | AJ189: 4473.79 | AM189: 5 | AN189: 2004 | AO189: 2014 | AP189: 2014.416667 | AQ189: 74.56133333 | AR189: 894.736 | AS189: 0 | AT189: 8947.36 | AU189: 8947.36 | AV189: 0 | AW189: Yes
B190: 2144 | C190: 65354 | D190: 65351 | E190: Upgrade to 2004 INTL 7400 | F190: 0 | H190: 1HTWGADT14J025816 | J190: 0 | M190: Non-Rolling Stock | N190: 2004-04-23 | O190: 2004-04-23 | P190: 42009021 | Q190: 1000 | R190: 14040 | S190: 41718.2 | T190: 14046 | U190: 41718.2 | V190: 0 | W190: 0 | X190: 51260 | Y190: 0 | Z190: P | AA190: 0 | AB190: 54321-1 | AC190: 663 | AD190: Internal | AE190: A | AF190: SL | AG190: 2009-05-31 | AH190: WCNX | AI190: 0 | AJ190: 21206.84 | AM190: 4 | AN190: 2004 | AO190: 2014 | AP190: 2014.333333 | AQ190: 347.6516667 | AR190: 4171.82 | AS190: 0 | AT190: 41718.2 | AU190: 41718.2 | AV190: 0 | AW190: Yes
B191: 2144 | C191: 65353 | D191: 65351 | E191: Lettering on Truck #663 - Extra Set of Door Logos | F191: 0 | J191: 0 | M191: Non-Rolling Stock | N191: 2004-05-21 | O191: 2004-05-21 | P191: 42009021 | Q191: 1000 | R191: 14040 | S191: 527.73 | T191: 14046 | U191: 527.73 | V191: 0 | W191: 0 | X191: 51260 | Y191: 0 | Z191: P | AA191: 0 | AB191: 052104-1 | AC191: 663 | AD191: Internal | AE191: A | AF191: SL | AG191: 2009-05-31 | AH191: WCNX | AI191: 0 | AJ191: 263.86 | AM191: 5 | AN191: 2004 | AO191: 2014 | AP191: 2014.416667 | AQ191: 4.39775 | AR191: 52.773 | AS191: 0 | AT191: 527.73 | AU191: 527.73 | AV191: 0 | AW191: Yes
B192: 2144 | C192: 65352 | D192: 65351 | E192: Upgrades to 2004 INTL 7400 | F192: 0 | H192: 1HTWGADT14J025816 | J192: 2004 | M192: Non-Rolling Stock | N192: 2004-05-19 | O192: 2004-05-19 | P192: 42009021 | Q192: 1000 | R192: 14040 | S192: 919.29 | T192: 14046 | U192: 919.29 | V192: 0 | W192: 0 | X192: 51260 | Y192: 0 | Z192: P | AA192: 0 | AB192: 11526864b | AC192: 663 | AD192: Internal | AE192: A | AF192: SL | AG192: 2009-05-31 | AH192: WCNX | AI192: 0 | AJ192: 459.68 | AM192: 5 | AN192: 2004 | AO192: 2014 | AP192: 2014.416667 | AQ192: 7.66075 | AR192: 91.929 | AS192: 0 | AT192: 919.29 | AU192: 919.29 | AV192: 0 | AW192: Yes
B193: 2144 | C193: 65351 | D193: P | E193: 2004 International 7400 REL | F193: 0 | H193: 1HTWGADT14J025816 | I193: C51086V | J193: 2004 | K193: International | L193: LEACH | M193: REL Truck | N193: 2004-02-12 | O193: 2004-02-12 | P193: 42009021 | Q193: 1000 | R193: 14040 | S193: 82716.06 | T193: 14046 | U193: 82716.06 | V193: 0 | W193: 0 | X193: 51260 | Y193: 0 | Z193: A | AA193: 0 | AB193: 5848 | AC193: 50-10 | AD193: Internal | AE193: A | AF193: SL | AG193: 2009-05-31 | AH193: WCNX | AI193: 0 | AJ193: 44115.25 | AM193: 2 | AN193: 2004 | AO193: 2014 | AP193: 2014.166667 | AQ193: 689.3005 | AR193: 8271.606 | AS193: 0 | AT193: 82716.06 | AU193: 82716.06 | AV193: 0 | AW193: Yes
B194: 2144 | C194: 59914 | D194: P | E194: HP 6710b Notebook SN SCNU8377S7S & Docking Station SN SCNU831XVNZ | F194: 0 | J194: 0 | K194: CDW | N194: 2008-10-07 | O194: 2008-10-07 | P194: 2144-8-0012-1 | Q194: 300 | R194: 14110 | S194: 1251.47 | T194: 14116 | U194: 1251.47 | V194: 0 | W194: 0 | X194: 70260 | Y194: 0 | Z194: P | AB194: LXQ6949 | AD194: Internal | AE194: A | AF194: SL | AH194: WCNX | AI194: 0 | AJ194: 0 | AM194: 10 | AN194: 2008 | AO194: 2011 | AP194: 2011.833333 | AQ194: 34.76305556 | AR194: 417.1566667 | AS194: 0 | AT194: 1251.47 | AU194: 1251.47 | AV194: 0 | AW194: Yes
B195: 2144 | C195: 54748 | D195: 54747 | E195: Land Improvements -Installed Storm Drainage | F195: 0 | H195: 0 | J195: 0 | K195: KRIEG CONSTRUCTION | N195: 2007-12-01 | O195: 2007-12-01 | P195: 07-2144-407 | Q195: 1000 | R195: 14010 | S195: 26533.5 | T195: 14016 | U195: 26533.5 | V195: 0 | W195: 0 | X195: 57260 | Y195: 0 | Z195: P | AB195: 13930-1 | AD195: Internal | AE195: A | AF195: SL | AH195: WCNX | AI195: 0 | AJ195: 0 | AM195: 12 | AN195: 2007 | AO195: 2017 | AP195: 2018 | AQ195: 221.1125 | AR195: 2653.35 | AS195: 0 | AT195: 26533.5 | AU195: 26533.5 | AV195: 0 | AW195: Yes
B196: 2144 | C196: 54747 | D196: P | E196: Land Improvements -Paving | F196: 0 | H196: 0 | J196: 0 | K196: KRIEG CONSTRUCTION | N196: 2007-12-01 | O196: 2007-12-01 | P196: 07-2144-009 | Q196: 1000 | R196: 14010 | S196: 75539.25 | T196: 14016 | U196: 75539.25 | V196: 0 | W196: 0 | X196: 57260 | Y196: 0 | Z196: P | AB196: 13930-2 | AD196: Internal | AE196: A | AF196: SL | AH196: WCNX | AI196: 0 | AJ196: 0 | AM196: 12 | AN196: 2007 | AO196: 2017 | AP196: 2018 | AQ196: 629.49375 | AR196: 7553.925 | AS196: 0 | AT196: 75539.25 | AU196: 75539.25 | AV196: 0 | AW196: Yes
B197: 2144 | C197: 53433 | D197: P | E197: 2007 International 7400 REL | F197: 0 | H197: 1HTWCAAN97J472691 | I197: C51083V | J197: 2007 | K197: International | L197: Heil | M197: REL Truck | N197: 2007-09-18 | O197: 2007-09-18 | P197: 07-2144-010 | Q197: 1000 | R197: 14040 | S197: 136700.87 | T197: 14046 | U197: 136700.87 | V197: 0 | W197: 0 | X197: 51260 | Y197: 0 | Z197: P | AA197: 0 | AC197: 50-16 | AD197: Internal | AE197: A | AF197: SL | AH197: WCNX | AI197: 0 | AJ197: 0 | AM197: 9 | AN197: 2007 | AO197: 2017 | AP197: 2017.75 | AQ197: 1139.173917 | AR197: 13670.087 | AS197: 0 | AT197: 136700.87 | AU197: 136700.87 | AV197: 0 | AW197: Yes
B198: 2144 | C198: 53150 | D198: P | E198: 20 yard containers with lids | F198: 1 | H198: 0 | J198: 0 | K198: CAPITAL INDUSTRIES, INC. | M198: 20 YD RO Box | N198: 2007-08-31 | O198: 2007-08-31 | P198: 07-2144-008 | Q198: 1200 | R198: 14050 | S198: 4998.51 | T198: 14056 | U198: 4998.51 | V198: 0 | W198: 0 | X198: 54260 | Y198: 0 | Z198: P | AB198: 26536 | AD198: Internal | AE198: A | AF198: SL | AH198: WCNX | AI198: 0 | AJ198: 0 | AM198: 8 | AN198: 2007 | AO198: 2019 | AP198: 2019.666667 | AQ198: 34.711875 | AR198: 416.5425 | AS198: 0 | AT198: 4998.51 | AU198: 4998.51 | AV198: 0 | AW198: Yes
B199: 2144 | C199: 53149 | D199: P | E199: 20 yard containers with lids | F199: 1 | H199: 0 | J199: 0 | K199: CAPITAL INDUSTRIES, INC. | M199: 20 YD RO Box | N199: 2007-08-31 | O199: 2007-08-31 | P199: 07-2144-008 | Q199: 1200 | R199: 14050 | S199: 4998.51 | T199: 14056 | U199: 4998.51 | V199: 0 | W199: 0 | X199: 54260 | Y199: 0 | Z199: P | AB199: 26535 | AD199: Internal | AE199: A | AF199: SL | AH199: WCNX | AI199: 0 | AJ199: 0 | AM199: 8 | AN199: 2007 | AO199: 2019 | AP199: 2019.666667 | AQ199: 34.711875 | AR199: 416.5425 | AS199: 0 | AT199: 4998.51 | AU199: 4998.51 | AV199: 0 | AW199: Yes
B200: 2144 | C200: 53148 | D200: P | E200: 20 yard containers with lids | F200: 2 | H200: 0 | J200: 0 | K200: CAPITAL INDUSTRIES, INC. | M200: 20 YD RO Box | N200: 2007-08-31 | O200: 2007-08-31 | P200: 07-2144-008 | Q200: 1200 | R200: 14050 | S200: 9997.02 | T200: 14056 | U200: 9997.02 | V200: 0 | W200: 0 | X200: 54260 | Y200: 0 | Z200: P | AB200: 26534 | AD200: Internal | AE200: A | AF200: SL | AH200: WCNX | AI200: 0 | AJ200: 0 | AM200: 8 | AN200: 2007 | AO200: 2019 | AP200: 2019.666667 | AQ200: 69.42375 | AR200: 833.085 | AS200: 0 | AT200: 9997.02 | AU200: 9997.02 | AV200: 0 | AW200: Yes
... 80 more rows

Sheet Container Counts
A1: Yards | B1: FAR | C1: UTC Schedule | D1: Disposals/Transfers per field | E1: Combined Total
A2: 1 | B2: 0 | C2: =SUM('2144 Cont, DB'!B16,'2144 Cont, DB'!B18,'2144 Cont, DB'!B21,'2144 Cont, DB'!B23,'2144 Cont, DB'!B30,'2144 Cont, DB'!B34,'2144 Cont, DB'!B39,'2144 Cont, DB'!B32,'2144 Cont, DB'!B44,'2144 Cont, DB'!B46) -> 178 | D2: =-SUM('[9]Asset Transfer'!$F$8) -> -57 | E2: =SUM(B2:D2) -> 121
A3: 1.5 | B3: 0 | C3: =SUM('2144 Cont, DB'!B17,'2144 Cont, DB'!B22,'2144 Cont, DB'!B24,'2144 Cont, DB'!B28,'2144 Cont, DB'!B31,'2144 Cont, DB'!B36:B37,'2144 Cont, DB'!B40) -> 156 | D3: =-SUM('[9]Asset Transfer'!$F$9:$F$11) -> -23 | E3: =SUM(B3:D3) -> 133
A4: 2 | B4: 0 | C4: =SUM('2144 Cont, DB'!B19:B20,'2144 Cont, DB'!B12,'2144 Cont, DB'!B25:B27,'2144 Cont, DB'!B29,'2144 Cont, DB'!B33,'2144 Cont, DB'!B35,'2144 Cont, DB'!B38,'2144 Cont, DB'!B41,'2144 Cont, DB'!B43,'2144 Cont, DB'!B45) -> 227 | D4: =-SUM('[9]Asset Transfer'!$F$12:$F$14) -> -19 | E4: 208
A5: 3 | B5: 0 | C5: 0 | D5: 0 | E5: 0
A6: 4 | B6: 0 | C6: 0 | D6: 0 | E6: 0
A7: 5 | B7: 0 | C7: 0 | D7: 0 | E7: 0
A8: 6 | B8: 0 | C8: 0 | D8: 0 | E8: 0
A9: 8 | B9: 0 | C9: =SUM('2144 Cont, DB'!B42) -> 1 | D9: =-SUM('[9]Asset Disposal'!$D$8) -> -1 | E9: 0
A10: 10 | B10: ='FAR 12.2021'!F26 -> 1 | C10: =SUM('2144 Cont, DB'!B59,'2144 Cont, DB'!B62) -> 7 | D10: 0 | E10: 8
A11: 20 | B11: =SUM('FAR 12.2021'!F27:F28) -> 17 | C11: =SUM('2144 Cont, DB'!B53:B54,'2144 Cont, DB'!B66,'2144 Cont, DB'!B69:B70,'2144 Cont, DB'!B100:B101) -> 67 | D11: 0 | E11: 84
A12: 30 | B12: =SUM('FAR 12.2021'!F29) -> 10 | C12: =SUM('2144 Cont, DB'!B56,'2144 Cont, DB'!B60,'2144 Cont, DB'!B63,'2144 Cont, DB'!B68) -> 11 | D12: 0 | E12: 21
A13: 40 | B13: ='FAR 12.2021'!F25 -> 12 | C13: =SUM('2144 Cont, DB'!B52,'2144 Cont, DB'!B55,'2144 Cont, DB'!B57,'2144 Cont, DB'!B58,'2144 Cont, DB'!B61,'2144 Cont, DB'!B64,'2144 Cont, DB'!B65,'2144 Cont, DB'!B67,'2144 Cont, DB'!B71) -> 18 | D13: 0 | E13: 30
A14: Gallons | E14: 0
A15: 35 | B15: =SUM('FAR 12.2021'!F22:F24,'FAR 12.2021'!F30) -> 3757 | C15: =SUM('2144 Cont, DB'!B78:B80,'2144 Cont, DB'!B87) -> 2835 | D15: 0 | E15: 6592
A16: 64 | B16: =SUM('FAR 12.2021'!F31,'FAR 12.2021'!F21,'FAR 12.2021'!F15) -> 1855 | C16: =SUM('2144 Cont, DB'!B77,'2144 Cont, DB'!B86,'2144 Cont, DB'!B88,'2144 Cont, DB'!B95) -> 3996 | D16: 0 | E16: 5851
A17: 96 | B17: 0 | C17: =SUM('2144 Cont, DB'!B76,'2144 Cont, DB'!B85,'2144 Cont, DB'!B94,'2144 Cont, DB'!B96) -> 3106 | D17: 0 | E17: 3106
A18: Total | B18: =SUM(B2:B17) -> 5652 | C18: =SUM(C2:C17) -> 10602 | D18: =SUM(D2:D17) -> -100 | E18: 16154
A19: Check | B19: =B18-'FAR 12.2021'!AG10 -> 0 | C19: =C18-'2144 Cont, DB'!J6 -> 0 | D19: =D18+'[9]Asset Transfer'!$F$2 -> 0

Sheet Invoice - Addt 2021 Adds
O13: 2021-11-01
C23: Assets were not yet recorded in the fixed asset ledger at the time of rate case preparation.
C24: Regulated carts for automation.
O25: 104854.19

Sheet Bud Capital Input
D1: Column Definitions
Q2: TruckRequest#
A3: PONum_Modified | B3: CurrentProjectNumber_FPS | C3: ProjectNumber_FPS | E3: DeleteFlag | F3: PoNumber | G3: PoItemNumber | H3: ProjectName_FPS | I3: ItemDescription | J3: Explanation | L3: AssetType | M3: AssetSubType | N3: Life | O3: AddReplace | P3: Condition | Q3: TruckCenterNum ValueList:RequestedTruckList | R3: Jan | S3: Feb | T3: Mar | U3: Apr | V3: May | W3: Jun | X3: Jul | Y3: Aug | Z3: Sep | AA3: Oct | AB3: Nov | AC3: Dec | AG3: FASNum | AI3: ReplacementNotes | AJ3: EquipmentNum | AK3: EquipmentModelYear | AN3: FileLink hlink:FileLink
C4: CurrentProjectNumber_FPS | G4: PoItemNumber | AP4: MessageToUser
D5: Formatting Range
A6: =IF(AND(C6<>"", B6<>C6),TRUE, FALSE) -> FALSE | B6: =IF(RIGHT("0000"&F6,4)&"-"&G6 <> "0000-", RIGHT("0000"&F6,4)&"-"&G6, "") ->  | D6: 1 | AE6: =SUM(R6:AC6) -> 0 | AR6: =IF(Q6="", "", Q6) ->  | AS6: =IFERROR(VLOOKUP($AR6,[6]TruckCenterReference!$C$22:$I25,3,FALSE), "") ->  | AT6: =IF(Q6<>"",IF(AS6<>H6,"Review","ok"), "") ->  | AV6: =IFERROR(VLOOKUP($AR6,[6]TruckCenterReference!$C$22:$I25,4,FALSE), "") ->  | AW6: =IF(Q6="","", IF($AV6<>$P6, "Fix!", "ok")) ->  | AY6: =IFERROR(VLOOKUP(M6,SubtypeToTruckType,2,FALSE),"") ->  | AZ6: =IFERROR(VLOOKUP($AR6,[6]TruckCenterReference!$C$22:$I25,6,FALSE), "") ->  | BA6: =IF(Q6<>"",IF(AY6<>AZ6,"Fix!","ok"), "") ->  | BC6: =IFERROR(VLOOKUP($AR6,[6]TruckCenterReference!$C$22:$I25,7,FALSE), 0) -> 0 | BD6: =IF(BC6<>0,BC6-AE6,"") ->  | BE6: =IF(Q6="","",IF(ABS(BD6)>100,IF(RIGHT(M6,4)="Body","Review","Fix!"),"ok")) -> 
D7: Report Formulas
F8: Pull | L8: =_xll.jFreezePanes(I29,D22) -> > jFreezePanes is ready.
E9: Clear Hash: | F9: =_xll.ReportDefaults("Pull","Clear",_xll.PairGroup(_xll.Pair("",H18))) -> OK!: ReportDefaults Formula OK [jAction{}] | K9: CC Query Drill: | L9: =_xll.ReportDrill(,"CCQueryDrill",_xll.PairGroup(_xll.Pair(K18,"SummaryLevel"),_xll.Pair(H24,"BudYear"),_xll.Pair(H23,"DistrictCell"),_xll.Pair(C30:C82,"PONumber"),_xll.Pair(F20:AP20)),"Drill to CC Query for Change History") -> OK!: ReportDrill 'Drill to CC Query for Change History' Formula OK [jAction{}]
E10: Pull AssetTypeList: | F10: =_xll.ReportRun([6]AssetTypeList!C7,FALSE,"Pull") -> OK!: ReportRun Formula OK [jAction{}]
E11: Pull - BudCap: | F11: =_xll.ReportRange("BudgetCapitalDetailPull",30:55,C3:BD3,C6:BD6,_xll.Param(H23,H24,H18,N18,K19)) -> OK!: ReportRange Formula OK [jAction{}] | AG11: FASNum | AH11: FASDescription
E12: Pull - FAS: | F12: =_xll.ReportFixed("BudCap1",AG30:AG55,AG11:AH11,_xll.Param(DetailBudYear, DetailDistrict)) -> OK!: ReportFixed Formula OK [jAction{}]
F13: =_xll.ReportRun([6]TruckCenterReference!F15,,"Pull") -> OK!: ReportRun Formula OK [jAction{}]
F14: Save
E15: Save: | F15: =_xll.ReportSave("BudgetCapitalDetailSave",B30:B55,A3:AN3,C4:AP4,_xll.Param(H23,H24,H18,N18)) -> OK!: ReportSave Formula OK [jAction{}]
D17: Hidden Parameters & Notes
A18: Repull?: | B18: =IFERROR(OR(A30:A55),FALSE) -> FALSE | G18: FilterHash: | H18: C946B8C92B9B9FB9D65886D7D637B0 | J18: CC Query Summary Level: | K18: By Change | M18: Exclude Items: | N18: 2
B19: =IF(B18=TRUE,"Save","SkipRePull") -> SkipRePull | J19: Pull Blank Rows: | K19: Yes
F20: For Drill | G20: For Drill | H20: For Drill | I20: For Drill | J20: For Drill | L20: For Drill | M20: For Drill | N20: For Drill | O20: For Drill | P20: For Drill | Q20: For Drill | R20: For Drill | S20: For Drill | T20: For Drill | U20: For Drill | V20: For Drill | W20: For Drill | X20: For Drill | Y20: For Drill | Z20: For Drill | AA20: For Drill | AB20: For Drill | AC20: For Drill | AE20: For Drill | AG20: For Drill | AJ20: For Drill | AK20: For Drill | AN20: For Drill | AP20: For Drill
D21: Report Area Below
G23: Individual District: | H23: 2144 | I23: (Only one district a time for this input page)
G24: Budget Year: | H24: 2022
L25: IMPORTANT: Pull for a single district BEFORE inputting. This will auto create new lines for you and prepare the page for input. | AR25: Recon Check Against Truck Center
E26: CAPITAL DETAIL
AF27: Replacement Info | AS27: Suggested | AV27: New / Used | AY27: Truck Type | AZ27: Truck Type | BC27: Truck Cost
E28: Delete on Save | F28: PO # | G28: Item | H28: PO Description (Required) | I28: PO Item Description | J28: PO Explanation | L28: Asset Type | M28: SubType | N28: Life | O28: A / R | P28: N / U | Q28: Truck Ctr. # | R28: 2010-01-31 | S28: 2010-02-28 | T28: 2010-03-31 | U28: 2010-04-30 | V28: 2010-05-31 | W28: 2010-06-30 | X28: 2010-07-31 | Y28: 2010-08-31 | Z28: 2010-09-30 | AA28: 2010-10-31 | AB28: 2010-11-30 | AC28: 2010-12-31 | AE28: Total | AG28: FAS # | AH28: FAS Description | AI28: Replacement Notes | AJ28: Site Eq # | AK28: Model Year | AM28: Equipment Type | AN28: Folder/File Link | AP28: Save Message | AR28: Truck # | AS28: PO Description | AT28: Note | AV28: Truck Center | AW28: Note* | AY28: PO Center | AZ28: Truck Center | BA28: Note | BC28: Truck Center | BD28: Variance | BE28: Note*
A30: =IF(AND(C30<>"", B30<>C30),TRUE, FALSE) -> FALSE | B30: =IF(RIGHT("0000"&F30,4)&"-"&G30 <> "0000-", RIGHT("0000"&F30,4)&"-"&G30, "") -> 0001-1 | C30: 0001-1 | D30: 1 | F30: 1 | G30: 1 | H30: Containers Various | I30: Containers Various | J30: Containers Various | L30: Containers | M30: REL – Plastic | N30: 7 | O30: R | P30: N | R30: 0 | S30: 20000 | T30: 0 | U30: 25000 | V30: 0 | W30: 0 | X30: 0 | Y30: 0 | Z30: 0 | AA30: 0 | AB30: 0 | AC30: 0 | AE30: =SUM(R30:AC30) -> 45000 | AI30: Containers Various - Average spend the last three years was $60k. 20k needed for 1, 1.5, & 2 yd plastic REL containers. Additional $25k needed for 65 gal. containers. Currently inventory levels nearly depleted and continuing 35 ? 65 upgrades unustainable. If automation is approved, we will need more container capital (see PO#0002). | AR30: =IF(Q30="", "", Q30) ->  | AS30: =IFERROR(VLOOKUP($AR30,[6]TruckCenterReference!$C$22:$I49,3,FALSE), "") ->  | AT30: =IF(Q30<>"",IF(AS30<>H30,"Review","ok"), "") ->  | AV30: =IFERROR(VLOOKUP($AR30,[6]TruckCenterReference!$C$22:$I49,4,FALSE), "") ->  | AW30: =IF(Q30="","", IF($AV30<>$P30, "Fix!", "ok")) ->  | AY30: =IFERROR(VLOOKUP(M30,SubtypeToTruckType,2,FALSE),"") ->  | AZ30: =IFERROR(VLOOKUP($AR30,[6]TruckCenterReference!$C$22:$I49,6,FALSE), "") ->  | BA30: =IF(Q30<>"",IF(AY30<>AZ30,"Fix!","ok"), "") ->  | BC30: =IFERROR(VLOOKUP($AR30,[6]TruckCenterReference!$C$22:$I49,7,FALSE), 0) -> 0 | BD30: =IF(BC30<>0,BC30-AE30,"") ->  | BE30: =IF(Q30="","",IF(ABS(BD30)>100,IF(RIGHT(M30,4)="Body","Review","Fix!"),"ok")) -> 
A31: FALSE | B31: 0003-1 | C31: 0003-1 | D31: 1 | F31: 3 | G31: 1 | H31: New ASL Peterbilt / Labrie 31Yd (Automation) | I31: New Trucks / Automated - Body | J31: New Trucks / Automated - Body | L31: New Trucks | M31: Automated | N31: 10 | O31: R | P31: N | Q31: 11874 | R31: 0 | S31: 401998 | T31: 0 | U31: 0 | V31: 0 | W31: 0 | X31: 0 | Y31: 0 | Z31: 0 | AA31: 0 | AB31: 0 | AC31: 0 | AE31: 401998 | AG31: 53433 | AH31: 2007 International 7400 REL | AI31: If automation process is approved we will need to purchase a new Peterbilt / Labrie 31 yd. ASL truck to replace the used ASL fleet transferred from other sites in 2021 | AM31: ASL Trucks | AR31: 11874 | AS31: =IFERROR(VLOOKUP($AR31,[6]TruckCenterReference!$C$22:$I50,3,FALSE), "") -> New Peterbilt/Labrie Automated Resi (28 yd) (Not Manual) | AT31: Review | AV31: =IFERROR(VLOOKUP($AR31,[6]TruckCenterReference!$C$22:$I50,4,FALSE), "") -> N | AW31: ok | AY31: Automated Sideloader | AZ31: =IFERROR(VLOOKUP($AR31,[6]TruckCenterReference!$C$22:$I50,6,FALSE), "") -> Automated Sideloader | BA31: ok | BC31: =IFERROR(VLOOKUP($AR31,[6]TruckCenterReference!$C$22:$I50,7,FALSE), 0) -> 401998 | BD31: 0 | BE31: ok
A32: FALSE | B32: 0004-1 | C32: 0004-1 | D32: 1 | F32: 4 | G32: 1 | H32: New ASL Peterbilt / Labrie 31Yd (Automation) | I32: New Trucks / Automated - Body | J32: New Trucks / Automated - Body | L32: New Trucks | M32: Automated | N32: 10 | O32: R | P32: N | Q32: 11875 | R32: 0 | S32: 0 | T32: 0 | U32: 0 | V32: 401998 | W32: 0 | X32: 0 | Y32: 0 | Z32: 0 | AA32: 0 | AB32: 0 | AC32: 0 | AE32: 401998 | AG32: 187422 | AH32: 2009 International 7400 REL | AI32: If automation process is approved we will need to purchase a new Peterbilt / Labrie 31 yd. ASL truck to replace the used ASL fleet transferred from other sites in 2021 | AM32: ASL Trucks | AR32: 11875 | AS32: =IFERROR(VLOOKUP($AR32,[6]TruckCenterReference!$C$22:$I51,3,FALSE), "") -> New Peterbilt/Labrie Automated Resi (28 yd) (Not Manual) | AT32: Review | AV32: =IFERROR(VLOOKUP($AR32,[6]TruckCenterReference!$C$22:$I51,4,FALSE), "") -> N | AW32: ok | AY32: Automated Sideloader | AZ32: =IFERROR(VLOOKUP($AR32,[6]TruckCenterReference!$C$22:$I51,6,FALSE), "") -> Automated Sideloader | BA32: ok | BC32: =IFERROR(VLOOKUP($AR32,[6]TruckCenterReference!$C$22:$I51,7,FALSE), 0) -> 401998 | BD32: 0 | BE32: ok
A33: FALSE | B33: 0005-1 | C33: 0005-1 | D33: 1 | F33: 5 | G33: 1 | H33: MRF Modular | I33: MRF Modular | J33: MRF Modular | L33: Buildings | M33: Building Improvements | N33: 10 | O33: R | P33: N | R33: 0 | S33: 0 | T33: 0 | U33: 0 | V33: 40000 | W33: 0 | X33: 0 | Y33: 0 | Z33: 0 | AA33: 0 | AB33: 0 | AC33: 0 | AE33: 40000 | AI33: The MRF building corrugated metal siding is in need of repair. | AM33: Building | AS33: =IFERROR(VLOOKUP($AR33,[6]TruckCenterReference!$C$22:$I52,3,FALSE), "") ->  | AV33: =IFERROR(VLOOKUP($AR33,[6]TruckCenterReference!$C$22:$I52,4,FALSE), "") ->  | AZ33: =IFERROR(VLOOKUP($AR33,[6]TruckCenterReference!$C$22:$I52,6,FALSE), "") ->  | BC33: =IFERROR(VLOOKUP($AR33,[6]TruckCenterReference!$C$22:$I52,7,FALSE), 0) -> 0
A34: FALSE | B34: 0006-1 | C34: 0006-1 | D34: 1 | F34: 6 | G34: 1 | H34: Parking lot improvements | I34: Parking lot - asphalt, etc. | J34: Parking lot - asphalt, etc. | L34: Land Improvements | M34: Land Improvements | N34: 10 | O34: A | P34: N | R34: 0 | S34: 0 | T34: 0 | U34: 37500 | V34: 0 | W34: 0 | X34: 0 | Y34: 0 | Z34: 0 | AA34: 0 | AB34: 0 | AC34: 0 | AE34: 37500 | AI34: March 2020 Budget Cut. This will facilitate the first step of adding lighting to the west side of the MRF building and providing visibility & power to the future truck line location. | AM34: Building | AS34: =IFERROR(VLOOKUP($AR34,[6]TruckCenterReference!$C$22:$I53,3,FALSE), "") ->  | AV34: =IFERROR(VLOOKUP($AR34,[6]TruckCenterReference!$C$22:$I53,4,FALSE), "") ->  | AZ34: =IFERROR(VLOOKUP($AR34,[6]TruckCenterReference!$C$22:$I53,6,FALSE), "") ->  | BC34: =IFERROR(VLOOKUP($AR34,[6]TruckCenterReference!$C$22:$I53,7,FALSE), 0) -> 0
A35: FALSE | D35: 1 | R35: 0 | S35: 0 | T35: 0 | U35: 0 | V35: 0 | W35: 0 | X35: 0 | Y35: 0 | Z35: 0 | AA35: 0 | AB35: 0 | AC35: 0 | AE35: 0 | AS35: =IFERROR(VLOOKUP($AR35,[6]TruckCenterReference!$C$22:$I54,3,FALSE), "") ->  | AV35: =IFERROR(VLOOKUP($AR35,[6]TruckCenterReference!$C$22:$I54,4,FALSE), "") ->  | AZ35: =IFERROR(VLOOKUP($AR35,[6]TruckCenterReference!$C$22:$I54,6,FALSE), "") ->  | BC35: =IFERROR(VLOOKUP($AR35,[6]TruckCenterReference!$C$22:$I54,7,FALSE), 0) -> 0
A36: FALSE | D36: 1 | R36: 0 | S36: 0 | T36: 0 | U36: 0 | V36: 0 | W36: 0 | X36: 0 | Y36: 0 | Z36: 0 | AA36: 0 | AB36: 0 | AC36: 0 | AE36: 0 | AS36: =IFERROR(VLOOKUP($AR36,[6]TruckCenterReference!$C$22:$I55,3,FALSE), "") ->  | AV36: =IFERROR(VLOOKUP($AR36,[6]TruckCenterReference!$C$22:$I55,4,FALSE), "") ->  | AZ36: =IFERROR(VLOOKUP($AR36,[6]TruckCenterReference!$C$22:$I55,6,FALSE), "") ->  | BC36: =IFERROR(VLOOKUP($AR36,[6]TruckCenterReference!$C$22:$I55,7,FALSE), 0) -> 0
A37: FALSE | D37: 1 | R37: 0 | S37: 0 | T37: 0 | U37: 0 | V37: 0 | W37: 0 | X37: 0 | Y37: 0 | Z37: 0 | AA37: 0 | AB37: 0 | AC37: 0 | AE37: 0 | AS37: =IFERROR(VLOOKUP($AR37,[6]TruckCenterReference!$C$22:$I56,3,FALSE), "") ->  | AV37: =IFERROR(VLOOKUP($AR37,[6]TruckCenterReference!$C$22:$I56,4,FALSE), "") ->  | AZ37: =IFERROR(VLOOKUP($AR37,[6]TruckCenterReference!$C$22:$I56,6,FALSE), "") ->  | BC37: =IFERROR(VLOOKUP($AR37,[6]TruckCenterReference!$C$22:$I56,7,FALSE), 0) -> 0
A38: FALSE | D38: 1 | R38: 0 | S38: 0 | T38: 0 | U38: 0 | V38: 0 | W38: 0 | X38: 0 | Y38: 0 | Z38: 0 | AA38: 0 | AB38: 0 | AC38: 0 | AE38: 0 | AS38: =IFERROR(VLOOKUP($AR38,[6]TruckCenterReference!$C$22:$I57,3,FALSE), "") ->  | AV38: =IFERROR(VLOOKUP($AR38,[6]TruckCenterReference!$C$22:$I57,4,FALSE), "") ->  | AZ38: =IFERROR(VLOOKUP($AR38,[6]TruckCenterReference!$C$22:$I57,6,FALSE), "") ->  | BC38: =IFERROR(VLOOKUP($AR38,[6]TruckCenterReference!$C$22:$I57,7,FALSE), 0) -> 0
A39: FALSE | D39: 1 | R39: 0 | S39: 0 | T39: 0 | U39: 0 | V39: 0 | W39: 0 | X39: 0 | Y39: 0 | Z39: 0 | AA39: 0 | AB39: 0 | AC39: 0 | AE39: 0 | AS39: =IFERROR(VLOOKUP($AR39,[6]TruckCenterReference!$C$22:$I58,3,FALSE), "") ->  | AV39: =IFERROR(VLOOKUP($AR39,[6]TruckCenterReference!$C$22:$I58,4,FALSE), "") ->  | AZ39: =IFERROR(VLOOKUP($AR39,[6]TruckCenterReference!$C$22:$I58,6,FALSE), "") ->  | BC39: =IFERROR(VLOOKUP($AR39,[6]TruckCenterReference!$C$22:$I58,7,FALSE), 0) -> 0
A40: FALSE | D40: 1 | R40: 0 | S40: 0 | T40: 0 | U40: 0 | V40: 0 | W40: 0 | X40: 0 | Y40: 0 | Z40: 0 | AA40: 0 | AB40: 0 | AC40: 0 | AE40: 0 | AS40: =IFERROR(VLOOKUP($AR40,[6]TruckCenterReference!$C$22:$I59,3,FALSE), "") ->  | AV40: =IFERROR(VLOOKUP($AR40,[6]TruckCenterReference!$C$22:$I59,4,FALSE), "") ->  | AZ40: =IFERROR(VLOOKUP($AR40,[6]TruckCenterReference!$C$22:$I59,6,FALSE), "") ->  | BC40: =IFERROR(VLOOKUP($AR40,[6]TruckCenterReference!$C$22:$I59,7,FALSE), 0) -> 0
A41: FALSE | D41: 1 | R41: 0 | S41: 0 | T41: 0 | U41: 0 | V41: 0 | W41: 0 | X41: 0 | Y41: 0 | Z41: 0 | AA41: 0 | AB41: 0 | AC41: 0 | AE41: 0 | AS41: =IFERROR(VLOOKUP($AR41,[6]TruckCenterReference!$C$22:$I60,3,FALSE), "") ->  | AV41: =IFERROR(VLOOKUP($AR41,[6]TruckCenterReference!$C$22:$I60,4,FALSE), "") ->  | AZ41: =IFERROR(VLOOKUP($AR41,[6]TruckCenterReference!$C$22:$I60,6,FALSE), "") ->  | BC41: =IFERROR(VLOOKUP($AR41,[6]TruckCenterReference!$C$22:$I60,7,FALSE), 0) -> 0
A42: FALSE | D42: 1 | R42: 0 | S42: 0 | T42: 0 | U42: 0 | V42: 0 | W42: 0 | X42: 0 | Y42: 0 | Z42: 0 | AA42: 0 | AB42: 0 | AC42: 0 | AE42: 0 | AS42: =IFERROR(VLOOKUP($AR42,[6]TruckCenterReference!$C$22:$I61,3,FALSE), "") ->  | AV42: =IFERROR(VLOOKUP($AR42,[6]TruckCenterReference!$C$22:$I61,4,FALSE), "") ->  | AZ42: =IFERROR(VLOOKUP($AR42,[6]TruckCenterReference!$C$22:$I61,6,FALSE), "") ->  | BC42: =IFERROR(VLOOKUP($AR42,[6]TruckCenterReference!$C$22:$I61,7,FALSE), 0) -> 0
A43: FALSE | D43: 1 | R43: 0 | S43: 0 | T43: 0 | U43: 0 | V43: 0 | W43: 0 | X43: 0 | Y43: 0 | Z43: 0 | AA43: 0 | AB43: 0 | AC43: 0 | AE43: 0 | AS43: =IFERROR(VLOOKUP($AR43,[6]TruckCenterReference!$C$22:$I62,3,FALSE), "") ->  | AV43: =IFERROR(VLOOKUP($AR43,[6]TruckCenterReference!$C$22:$I62,4,FALSE), "") ->  | AZ43: =IFERROR(VLOOKUP($AR43,[6]TruckCenterReference!$C$22:$I62,6,FALSE), "") ->  | BC43: =IFERROR(VLOOKUP($AR43,[6]TruckCenterReference!$C$22:$I62,7,FALSE), 0) -> 0
A44: FALSE | D44: 1 | R44: 0 | S44: 0 | T44: 0 | U44: 0 | V44: 0 | W44: 0 | X44: 0 | Y44: 0 | Z44: 0 | AA44: 0 | AB44: 0 | AC44: 0 | AE44: 0 | AS44: =IFERROR(VLOOKUP($AR44,[6]TruckCenterReference!$C$22:$I63,3,FALSE), "") ->  | AV44: =IFERROR(VLOOKUP($AR44,[6]TruckCenterReference!$C$22:$I63,4,FALSE), "") ->  | AZ44: =IFERROR(VLOOKUP($AR44,[6]TruckCenterReference!$C$22:$I63,6,FALSE), "") ->  | BC44: =IFERROR(VLOOKUP($AR44,[6]TruckCenterReference!$C$22:$I63,7,FALSE), 0) -> 0
A45: FALSE | D45: 1 | R45: 0 | S45: 0 | T45: 0 | U45: 0 | V45: 0 | W45: 0 | X45: 0 | Y45: 0 | Z45: 0 | AA45: 0 | AB45: 0 | AC45: 0 | AE45: 0 | AS45: =IFERROR(VLOOKUP($AR45,[6]TruckCenterReference!$C$22:$I64,3,FALSE), "") ->  | AV45: =IFERROR(VLOOKUP($AR45,[6]TruckCenterReference!$C$22:$I64,4,FALSE), "") ->  | AZ45: =IFERROR(VLOOKUP($AR45,[6]TruckCenterReference!$C$22:$I64,6,FALSE), "") ->  | BC45: =IFERROR(VLOOKUP($AR45,[6]TruckCenterReference!$C$22:$I64,7,FALSE), 0) -> 0
A46: FALSE | D46: 1 | R46: 0 | S46: 0 | T46: 0 | U46: 0 | V46: 0 | W46: 0 | X46: 0 | Y46: 0 | Z46: 0 | AA46: 0 | AB46: 0 | AC46: 0 | AE46: 0 | AS46: =IFERROR(VLOOKUP($AR46,[6]TruckCenterReference!$C$22:$I65,3,FALSE), "") ->  | AV46: =IFERROR(VLOOKUP($AR46,[6]TruckCenterReference!$C$22:$I65,4,FALSE), "") ->  | AZ46: =IFERROR(VLOOKUP($AR46,[6]TruckCenterReference!$C$22:$I65,6,FALSE), "") ->  | BC46: =IFERROR(VLOOKUP($AR46,[6]TruckCenterReference!$C$22:$I65,7,FALSE), 0) -> 0
A47: FALSE | D47: 1 | R47: 0 | S47: 0 | T47: 0 | U47: 0 | V47: 0 | W47: 0 | X47: 0 | Y47: 0 | Z47: 0 | AA47: 0 | AB47: 0 | AC47: 0 | AE47: 0 | AS47: =IFERROR(VLOOKUP($AR47,[6]TruckCenterReference!$C$22:$I66,3,FALSE), "") ->  | AV47: =IFERROR(VLOOKUP($AR47,[6]TruckCenterReference!$C$22:$I66,4,FALSE), "") ->  | AZ47: =IFERROR(VLOOKUP($AR47,[6]TruckCenterReference!$C$22:$I66,6,FALSE), "") ->  | BC47: =IFERROR(VLOOKUP($AR47,[6]TruckCenterReference!$C$22:$I66,7,FALSE), 0) -> 0
A48: FALSE | D48: 1 | R48: 0 | S48: 0 | T48: 0 | U48: 0 | V48: 0 | W48: 0 | X48: 0 | Y48: 0 | Z48: 0 | AA48: 0 | AB48: 0 | AC48: 0 | AE48: 0 | AS48: =IFERROR(VLOOKUP($AR48,[6]TruckCenterReference!$C$22:$I67,3,FALSE), "") ->  | AV48: =IFERROR(VLOOKUP($AR48,[6]TruckCenterReference!$C$22:$I67,4,FALSE), "") ->  | AZ48: =IFERROR(VLOOKUP($AR48,[6]TruckCenterReference!$C$22:$I67,6,FALSE), "") ->  | BC48: =IFERROR(VLOOKUP($AR48,[6]TruckCenterReference!$C$22:$I67,7,FALSE), 0) -> 0
A49: FALSE | D49: 1 | R49: 0 | S49: 0 | T49: 0 | U49: 0 | V49: 0 | W49: 0 | X49: 0 | Y49: 0 | Z49: 0 | AA49: 0 | AB49: 0 | AC49: 0 | AE49: 0 | AS49: =IFERROR(VLOOKUP($AR49,[6]TruckCenterReference!$C$22:$I68,3,FALSE), "") ->  | AV49: =IFERROR(VLOOKUP($AR49,[6]TruckCenterReference!$C$22:$I68,4,FALSE), "") ->  | AZ49: =IFERROR(VLOOKUP($AR49,[6]TruckCenterReference!$C$22:$I68,6,FALSE), "") ->  | BC49: =IFERROR(VLOOKUP($AR49,[6]TruckCenterReference!$C$22:$I68,7,FALSE), 0) -> 0
A50: FALSE | D50: 1 | R50: 0 | S50: 0 | T50: 0 | U50: 0 | V50: 0 | W50: 0 | X50: 0 | Y50: 0 | Z50: 0 | AA50: 0 | AB50: 0 | AC50: 0 | AE50: 0 | AS50: =IFERROR(VLOOKUP($AR50,[6]TruckCenterReference!$C$22:$I69,3,FALSE), "") ->  | AV50: =IFERROR(VLOOKUP($AR50,[6]TruckCenterReference!$C$22:$I69,4,FALSE), "") ->  | AZ50: =IFERROR(VLOOKUP($AR50,[6]TruckCenterReference!$C$22:$I69,6,FALSE), "") ->  | BC50: =IFERROR(VLOOKUP($AR50,[6]TruckCenterReference!$C$22:$I69,7,FALSE), 0) -> 0
A51: FALSE | D51: 1 | R51: 0 | S51: 0 | T51: 0 | U51: 0 | V51: 0 | W51: 0 | X51: 0 | Y51: 0 | Z51: 0 | AA51: 0 | AB51: 0 | AC51: 0 | AE51: 0 | AS51: =IFERROR(VLOOKUP($AR51,[6]TruckCenterReference!$C$22:$I70,3,FALSE), "") ->  | AV51: =IFERROR(VLOOKUP($AR51,[6]TruckCenterReference!$C$22:$I70,4,FALSE), "") ->  | AZ51: =IFERROR(VLOOKUP($AR51,[6]TruckCenterReference!$C$22:$I70,6,FALSE), "") ->  | BC51: =IFERROR(VLOOKUP($AR51,[6]TruckCenterReference!$C$22:$I70,7,FALSE), 0) -> 0
A52: FALSE | D52: 1 | R52: 0 | S52: 0 | T52: 0 | U52: 0 | V52: 0 | W52: 0 | X52: 0 | Y52: 0 | Z52: 0 | AA52: 0 | AB52: 0 | AC52: 0 | AE52: 0 | AS52: =IFERROR(VLOOKUP($AR52,[6]TruckCenterReference!$C$22:$I71,3,FALSE), "") ->  | AV52: =IFERROR(VLOOKUP($AR52,[6]TruckCenterReference!$C$22:$I71,4,FALSE), "") ->  | AZ52: =IFERROR(VLOOKUP($AR52,[6]TruckCenterReference!$C$22:$I71,6,FALSE), "") ->  | BC52: =IFERROR(VLOOKUP($AR52,[6]TruckCenterReference!$C$22:$I71,7,FALSE), 0) -> 0
A53: FALSE | D53: 1 | R53: 0 | S53: 0 | T53: 0 | U53: 0 | V53: 0 | W53: 0 | X53: 0 | Y53: 0 | Z53: 0 | AA53: 0 | AB53: 0 | AC53: 0 | AE53: 0 | AS53: =IFERROR(VLOOKUP($AR53,[6]TruckCenterReference!$C$22:$I72,3,FALSE), "") ->  | AV53: =IFERROR(VLOOKUP($AR53,[6]TruckCenterReference!$C$22:$I72,4,FALSE), "") ->  | AZ53: =IFERROR(VLOOKUP($AR53,[6]TruckCenterReference!$C$22:$I72,6,FALSE), "") ->  | BC53: =IFERROR(VLOOKUP($AR53,[6]TruckCenterReference!$C$22:$I72,7,FALSE), 0) -> 0
A54: FALSE | D54: 1 | R54: 0 | S54: 0 | T54: 0 | U54: 0 | V54: 0 | W54: 0 | X54: 0 | Y54: 0 | Z54: 0 | AA54: 0 | AB54: 0 | AC54: 0 | AE54: 0 | AS54: =IFERROR(VLOOKUP($AR54,[6]TruckCenterReference!$C$22:$I73,3,FALSE), "") ->  | AV54: =IFERROR(VLOOKUP($AR54,[6]TruckCenterReference!$C$22:$I73,4,FALSE), "") ->  | AZ54: =IFERROR(VLOOKUP($AR54,[6]TruckCenterReference!$C$22:$I73,6,FALSE), "") ->  | BC54: =IFERROR(VLOOKUP($AR54,[6]TruckCenterReference!$C$22:$I73,7,FALSE), 0) -> 0
E55: End of List (save and re-pull for at least 5 more rows)
Q56: TOTAL CAPITAL | R56: =SUM(R29:R55) -> 0 | S56: 421998 | T56: 0 | U56: 62500 | V56: 441998 | W56: 0 | X56: 0 | Y56: 0 | Z56: 0 | AA56: 0 | AB56: 0 | AC56: 0 | AE56: =SUM(AE29:AE55) -> 926496
AE57: =AE56-AE30 -> 881496
W59: Depreciation | Y59: Average Investment
Q60: Category for UTC | R60: Asset | S60: Budgeted Cost | T60: Useful Lives | U60: Annual Dep | V60: Average Inv | W60: Reg | X60: Non-Reg | Y60: Reg | Z60: Non-Reg
Q61: Resi/Comm Garbage | R61: ASL Trucks | S61: =S31 -> 401998 | T61: 10 | U61: =$S61/$T61 -> 40199.8 | V61: =S61-U61 -> 361798.2 | W61: =$U$61*'[10]Master IS (C)'!$J$11 -> 34239.70591 | X61: =U61*'[10]Master IS (C)'!$K$11 -> 5960.094091 | Y61: =V61*'[10]Master IS (C)'!$J$11 -> 308157.3532 | Z61: =V61-Y61 -> 53640.84682 | AA61: Route Hours
Q62: Resi/Comm Garbage | R62: ASL Trucks | S62: =V32 -> 401998 | T62: 10 | U62: 40199.8 | V62: 361798.2 | W62: =U62*'[10]Master IS (C)'!$J$11 -> 34239.70591 | X62: =U62*'[10]Master IS (C)'!$K$11 -> 5960.094091 | Y62: =V62*'[10]Master IS (C)'!$J$11 -> 308157.3532 | Z62: 53640.84682 | AA62: Route Hours
Q63: Building | R63: MRF Modular | S63: =AE33 -> 40000 | T63: 10 | U63: 4000 | V63: 36000 | W63: 0 | X63: =U63 -> 4000 | Y63: 0 | Z63: 36000 | AA63: For MRF - Not regulated
Q64: Building | R64: Parking Lot Improve | S64: =AE34 -> 37500 | T64: 15 | U64: 2500 | V64: 35000 | W64: =U64*'[10]Master IS (C)'!$J$10 -> 1960.017169 | X64: =U64*'[10]Master IS (C)'!$K$10 -> 539.9828305 | Y64: =V64*'[10]Master IS (C)'!$J$10 -> 27440.24037 | Z64: 7559.759628 | AA64: Labor hours
Q65: Shared Carts | R65: Carts | S65: =S30 -> 20000 | T65: 7 | U65: 2857.142857 | V65: 17142.85714 | W65: =U65*'[10]Master IS (C)'!$J$15 -> 2200.552664 | X65: =U65*'[10]Master IS (C)'!$K$15 -> 656.5901929 | Y65: =V65*'[10]Master IS (C)'!$J$15 -> 13203.31599 | Z65: 3939.541158 | AA65: Customer Counts
Q66: Shared Carts | R66: Carts | S66: =U30 -> 25000 | T66: 7 | U66: 3571.428571 | V66: 21428.57143 | W66: =U66*'[10]Master IS (C)'!$J$15 -> 2750.69083 | X66: =U66*'[10]Master IS (C)'!$K$15 -> 820.7377412 | Y66: =V66*'[10]Master IS (C)'!$J$15 -> 16504.14498 | Z66: 4924.426447 | AA66: Customer Counts
Q67: Shared Carts | R67: Addt carts - PO below | S67: =45000+16996 -> 61996 | T67: 7 | U67: 8856.571429 | V67: 53139.42857 | W67: =U67*'[10]Master IS (C)'!$J$15 -> 6821.273149 | X67: =U67*'[10]Master IS (C)'!$K$15 -> 2035.29828 | Y67: =V67*'[10]Master IS (C)'!$J$15 -> 40927.63889 | Z67: 12211.78968 | AA67: Customer Counts
Q68: Shared Carts | R68: Addt carts - PO below | S68: 28675 | T68: 7 | U68: 4096.428571 | V68: 24578.57143 | W68: =U68*'[10]Master IS (C)'!$J$15 -> 3155.042382 | X68: =U68*'[10]Master IS (C)'!$K$15 -> 941.3861891 | Y68: =V68*'[10]Master IS (C)'!$J$15 -> 18930.25429 | Z68: 5648.317135 | AA68: Customer Counts
S69: =SUM(S61:S68) -> 1017167 | U69: =SUM(U61:U68) -> 106281.1714 | V69: 910885.8286 | W69: 85366.98801 | X69: 20914.18342 | Y69: 733320.3009 | Z69: 177565.5277
R71: Carts - updated amount | S71: =SUM(S65:S68) -> 135671 | T71: =S71-T148 -> 0
R72: Other | S72: =SUM(S61:S64) -> 881496 | T72: =S72-AE57 -> 0
T148: 135671

Sheet FAR Dep Summary
A1: Live Pivot
A2: Pre 2021 Add? | B2: No
A4: Row Labels | B4: Sum of Cost | C4: Sum of Test Year Depreciation | D4: Sum of BOY Accum | E4: Sum of EOY Accum | F4: Sum of EOY Average Investment
A5: Drop Boxes | B5: 102790.61 | C5: 0 | D5: 102790.61 | E5: 102790.61 | F5: 0
A6: Regulated Garbage Carts | B6: 381165.57 | C6: 54452.22429 | D6: 0 | E6: 54452.22429 | F6: 326713.3457
A7: Service Equipment | B7: 539.05 | C7: 107.81 | D7: 0 | E7: 107.81 | F7: 431.24
A8: Long Haul | B8: 5902.2 | C8: 0 | D8: 5902.2 | E8: 5902.2 | F8: 0
A9: Resi/Comm Garbage | B9: 662261.58 | C9: 25586.924 | D9: 406392.34 | E9: 431979.264 | F9: 230282.316
A10: Grand Total | B10: 1152659.01 | C10: 80146.95829 | D10: 515085.15 | E10: 595232.1083 | F10: 557426.9017
A12: Pasted Values
A13: Row Labels | B13: Sum of Cost | C13: Sum of Test Year Depreciation | D13: Sum of BOY Accum | E13: Sum of EOY Accum | F13: Sum of EOY Average Investment
A14: Drop Boxes | B14: 102790.61 | C14: 0 | D14: 102790.61 | E14: 102790.61 | F14: 0
A15: Regulated Garbage Carts | B15: 381165.57 | C15: 54452.22429 | D15: 0 | E15: 54452.22429 | F15: 326713.3457
A16: Service Equipment | B16: 539.05 | C16: 107.81 | D16: 0 | E16: 107.81 | F16: 431.24
A17: Long Haul | B17: 5902.2 | C17: 0 | D17: 5902.2 | E17: 5902.2 | F17: 0
A18: Resi/Comm Garbage | B18: 662261.58 | C18: 25586.924 | D18: 406392.34 | E18: 431979.264 | F18: 230282.316
A19: Grand Total | B19: 1152659.01 | C19: 80146.95829 | D19: 515085.15 | E19: 595232.1083 | F19: 557426.9017
A21: Check | B21: =B19-'FAR 12.2021'!AG7 -> 0

Sheet Depr Summary
A1: Assets Through 12/31/2020 | J1: New Asset Adds from FAR (1/1/2021 and Beyond) | S1: Proforma Adds | AB1: Combined Summary - This Section to Proforma
A2: Depreciation & Average Investment Summary | J2: Depreciation & Average Investment Summary | S2: Depreciation & Average Investment Summary | AB2: Depreciation & Average Investment Summary
A3: Island Disposal, Inc. G-154 | J3: Island Disposal, Inc. G-154 | S3: Island Disposal, Inc. G-154 | AB3: Island Disposal, Inc. G-154
F4: Beginning | G4: Ending | O4: Beginning | P4: Ending | X4: Beginning | Y4: Ending | AG4: Beginning | AH4: Ending
A5: Equipment | B5: Cost | C5: Salvage | D5: Depr | E5: Test Year | F5: Accum Depr | G5: Accum Depr | H5: NBV | J5: Equipment | K5: Cost | L5: Salvage | M5: Depr | N5: Test Year | O5: Accum Depr | P5: Accum Depr | Q5: NBV | S5: Equipment | T5: Cost | U5: Salvage | V5: Depr | W5: Test Year | X5: Accum Depr | Y5: Accum Depr | Z5: NBV | AB5: Equipment | AC5: Cost | AD5: Salvage | AE5: Depr | AF5: Test Year | AG5: Accum Depr | AH5: Accum Depr | AI5: NBV
D6: Cost | E6: Depr | F6: 2020-12-01 | G6: 2021-11-30 | H6: =G6 -> 2021-11-30 | M6: Cost | N6: Depr | O6: =F6 -> 2020-12-01 | P6: =G6 -> 2021-11-30 | Q6: =H6 -> 2021-11-30 | V6: Cost | W6: Depr | AE6: Cost | AF6: Depr | AG6: =O6 -> 2020-12-01 | AH6: =P6 -> 2021-11-30 | AI6: =Q6 -> 2021-11-30
A7: Trucks | J7: Trucks | S7: Trucks | AB7: Trucks
A8: Resi/Comm Garbage | B8: ='2144 Trks'!M41 -> 2257998.78 | C8: =B8-D8 -> 0 | D8: ='2144 Trks'!N41 -> 2257998.78 | E8: =+'2144 Trks'!Q41 -> 154989.3886 | F8: =+'2144 Trks'!S41 -> 1364609.463 | G8: =+'2144 Trks'!T41 -> 1547257.493 | H8: =+'2144 Trks'!U41 -> 710741.2868 | J8: Resi/Comm Garbage | K8: =SUMIF('FAR Dep Summary'!$A$14:$A$18,'Depr Summary'!J8,'FAR Dep Summary'!$B$14:$B$18) -> 662261.58 | L8: =K8-M8 -> 0 | M8: =K8 -> 662261.58 | N8: =SUMIF('FAR Dep Summary'!$A$14:$A$18,'Depr Summary'!J8,'FAR Dep Summary'!$C$14:$C$18) -> 25586.924 | O8: =SUMIF('FAR Dep Summary'!$A$14:$A$18,'Depr Summary'!J8,'FAR Dep Summary'!$D$14:$D$18) -> 406392.34 | P8: =SUMIF('FAR Dep Summary'!$A$14:$A$18,'Depr Summary'!J8,'FAR Dep Summary'!$E$14:$E$18) -> 431979.264 | Q8: =SUMIF('FAR Dep Summary'!$A$14:$A$18,'Depr Summary'!J8,'FAR Dep Summary'!$F$14:$F$18) -> 230282.316 | S8: Resi/Comm Garbage | T8: =SUMIF('Bud Capital Input'!$Q$61:$Q$68,$S8,'Bud Capital Input'!$S$61:$S$68) -> 803996 | U8: =W8-V8 -> 0 | V8: =W8 -> 80399.6 | W8: =SUMIF('Bud Capital Input'!$Q$61:$Q$68,$S8,'Bud Capital Input'!$U$61:$U$69) -> 80399.6 | X8: 0 | Y8: =W8 -> 80399.6 | Z8: =T8-Y8 -> 723596.4 | AB8: Resi/Comm Garbage | AC8: =B8+K8+T8 -> 3724256.36 | AD8: =C8+L8+U8 -> 0 | AE8: 3000659.96 | AF8: =E8+N8+W8 -> 260975.9126 | AG8: 1771001.803 | AH8: 2059636.357 | AI8: 1664620.003
A10: Mixed- Recycle/Garbage | B10: =+'2144 Trks'!M48 -> 518152.12 | C10: =B10-D10 -> 0 | D10: =+'2144 Trks'!N48 -> 518152.12 | E10: =+'2144 Trks'!Q48 -> 34334.84733 | F10: =+'2144 Trks'!S48 -> 312944.94 | G10: =+'2144 Trks'!T48 -> 347279.7873 | H10: =+'2144 Trks'!U48 -> 170872.3327 | J10: Mixed- Recycle/Garbage | K10: =SUMIF('FAR Dep Summary'!$A$14:$A$18,'Depr Summary'!J10,'FAR Dep Summary'!$B$14:$B$18) -> 0 | L10: =K10-M10 -> 0 | M10: =K10 -> 0 | N10: =SUMIF('FAR Dep Summary'!$A$14:$A$18,'Depr Summary'!J10,'FAR Dep Summary'!$C$14:$C$18) -> 0 | O10: =SUMIF('FAR Dep Summary'!$A$14:$A$18,'Depr Summary'!J10,'FAR Dep Summary'!$D$14:$D$18) -> 0 | P10: =SUMIF('FAR Dep Summary'!$A$14:$A$18,'Depr Summary'!J10,'FAR Dep Summary'!$E$14:$E$18) -> 0 | Q10: =SUMIF('FAR Dep Summary'!$A$14:$A$18,'Depr Summary'!J10,'FAR Dep Summary'!$F$14:$F$18) -> 0 | S10: Mixed- Recycle/Garbage | T10: =SUMIF('Bud Capital Input'!$Q$61:$Q$68,$S10,'Bud Capital Input'!$S$61:$S$68) -> 0 | U10: =W10-V10 -> 0 | V10: =W10 -> 0 | W10: =SUMIF('Bud Capital Input'!$Q$61:$Q$68,$S10,'Bud Capital Input'!$U$61:$U$69) -> 0 | X10: 0 | Y10: =W10 -> 0 | Z10: =T10-Y10 -> 0 | AB10: Mixed- Recycle/Garbage | AC10: =B10+K10+T10 -> 518152.12 | AD10: =C10+L10+U10 -> 0 | AE10: 518152.12 | AF10: 34334.84733 | AG10: 312944.94 | AH10: 347279.7873 | AI10: 170872.3327
A12: Roll-off | B12: =+'2144 Trks'!M65 -> 548174.85 | C12: =B12-D12 -> 0 | D12: =+'2144 Trks'!N65 -> 548174.85 | E12: =+'2144 Trks'!Q65 -> 29572.05878 | F12: =+'2144 Trks'!S65 -> 348877.1003 | G12: =+'2144 Trks'!T65 -> 390840.7427 | H12: =+'2144 Trks'!U65 -> 157334.1073 | J12: Roll-off | K12: =SUMIF('FAR Dep Summary'!$A$14:$A$18,'Depr Summary'!J12,'FAR Dep Summary'!$B$14:$B$18) -> 0 | L12: =K12-M12 -> 0 | M12: =K12 -> 0 | N12: =SUMIF('FAR Dep Summary'!$A$14:$A$18,'Depr Summary'!J12,'FAR Dep Summary'!$C$14:$C$18) -> 0 | O12: =SUMIF('FAR Dep Summary'!$A$14:$A$18,'Depr Summary'!J12,'FAR Dep Summary'!$D$14:$D$18) -> 0 | P12: =SUMIF('FAR Dep Summary'!$A$14:$A$18,'Depr Summary'!J12,'FAR Dep Summary'!$E$14:$E$18) -> 0 | Q12: =SUMIF('FAR Dep Summary'!$A$14:$A$18,'Depr Summary'!J12,'FAR Dep Summary'!$F$14:$F$18) -> 0 | S12: Roll-off | T12: =SUMIF('Bud Capital Input'!$Q$61:$Q$68,$S12,'Bud Capital Input'!$S$61:$S$68) -> 0 | U12: =W12-V12 -> 0 | V12: =W12 -> 0 | W12: =SUMIF('Bud Capital Input'!$Q$61:$Q$68,$S12,'Bud Capital Input'!$U$61:$U$69) -> 0 | X12: 0 | Y12: =W12 -> 0 | Z12: =T12-Y12 -> 0 | AB12: Roll-off | AC12: =B12+K12+T12 -> 548174.85 | AD12: =C12+L12+U12 -> 0 | AE12: 548174.85 | AF12: 29572.05878 | AG12: 348877.1003 | AH12: 390840.7427 | AI12: 157334.1073
A14: Long Haul | B14: =+'2144 Trks'!M72 -> 125535.73 | C14: =B14-D14 -> 0 | D14: =+'2144 Trks'!N72 -> 125535.73 | E14: =+'2144 Trks'!Q72 -> 16007.02833 | F14: =+'2144 Trks'!S72 -> 93521.67333 | G14: =+'2144 Trks'!T72 -> 109528.7017 | H14: =+'2144 Trks'!U72 -> 16007.02833 | J14: Long Haul | K14: =SUMIF('FAR Dep Summary'!$A$14:$A$18,'Depr Summary'!J14,'FAR Dep Summary'!$B$14:$B$18) -> 5902.2 | L14: =K14-M14 -> 0 | M14: =K14 -> 5902.2 | N14: =SUMIF('FAR Dep Summary'!$A$14:$A$18,'Depr Summary'!J14,'FAR Dep Summary'!$C$14:$C$18) -> 0 | O14: =SUMIF('FAR Dep Summary'!$A$14:$A$18,'Depr Summary'!J14,'FAR Dep Summary'!$D$14:$D$18) -> 5902.2 | P14: =SUMIF('FAR Dep Summary'!$A$14:$A$18,'Depr Summary'!J14,'FAR Dep Summary'!$E$14:$E$18) -> 5902.2 | Q14: =SUMIF('FAR Dep Summary'!$A$14:$A$18,'Depr Summary'!J14,'FAR Dep Summary'!$F$14:$F$18) -> 0 | S14: Long Haul | T14: =SUMIF('Bud Capital Input'!$Q$61:$Q$68,$S14,'Bud Capital Input'!$S$61:$S$68) -> 0 | U14: =W14-V14 -> 0 | V14: =W14 -> 0 | W14: =SUMIF('Bud Capital Input'!$Q$61:$Q$68,$S14,'Bud Capital Input'!$U$61:$U$69) -> 0 | X14: 0 | Y14: =W14 -> 0 | Z14: =T14-Y14 -> 0 | AB14: Long Haul | AC14: =B14+K14+T14 -> 131437.93 | AD14: =C14+L14+U14 -> 0 | AE14: 131437.93 | AF14: 16007.02833 | AG14: 99423.87333 | AH14: 115430.9017 | AI14: 16007.02833
A16: Delivery | B16: ='2144 Trks'!M76 -> 0 | C16: =B16-D16 -> 0 | D16: ='2144 Trks'!M76 -> 0 | E16: ='2144 Trks'!Q76 -> 0 | F16: ='2144 Trks'!S76 -> 0 | G16: ='2144 Trks'!T76 -> 0 | H16: =+'2144 Trks'!U76 -> 0 | J16: Delivery | K16: =SUMIF('FAR Dep Summary'!$A$14:$A$18,'Depr Summary'!J16,'FAR Dep Summary'!$B$14:$B$18) -> 0 | L16: =K16-M16 -> 0 | M16: =K16 -> 0 | N16: =SUMIF('FAR Dep Summary'!$A$14:$A$18,'Depr Summary'!J16,'FAR Dep Summary'!$C$14:$C$18) -> 0 | O16: =SUMIF('FAR Dep Summary'!$A$14:$A$18,'Depr Summary'!J16,'FAR Dep Summary'!$D$14:$D$18) -> 0 | P16: =SUMIF('FAR Dep Summary'!$A$14:$A$18,'Depr Summary'!J16,'FAR Dep Summary'!$E$14:$E$18) -> 0 | Q16: =SUMIF('FAR Dep Summary'!$A$14:$A$18,'Depr Summary'!J16,'FAR Dep Summary'!$F$14:$F$18) -> 0 | S16: Delivery | T16: =SUMIF('Bud Capital Input'!$Q$61:$Q$68,$S16,'Bud Capital Input'!$S$61:$S$68) -> 0 | U16: =W16-V16 -> 0 | V16: =W16 -> 0 | W16: =SUMIF('Bud Capital Input'!$Q$61:$Q$68,$S16,'Bud Capital Input'!$U$61:$U$69) -> 0 | X16: 0 | Y16: =W16 -> 0 | Z16: =T16-Y16 -> 0 | AB16: Delivery | AC16: =B16+K16+T16 -> 0 | AD16: =C16+L16+U16 -> 0 | AE16: =D16+M16+V16 -> 0 | AF16: =E16+N16+W16 -> 0 | AG16: =F16+O16+X16 -> 0 | AH16: =G16+P16+Y16 -> 0 | AI16: =H16+Q16+Z16 -> 0
A18: Total Trucks | B18: =SUM(B8:B17) -> 3449861.48 | C18: 0 | D18: 3449861.48 | E18: 234903.323 | F18: 2119953.177 | G18: 2394906.725 | H18: 1054954.755 | J18: Total Trucks | K18: =SUM(K8:K17) -> 668163.78 | L18: 0 | M18: 668163.78 | N18: 25586.924 | O18: 412294.54 | P18: 437881.464 | Q18: 230282.316 | S18: Total Trucks | T18: =SUM(T8:T17) -> 803996 | U18: 0 | V18: 80399.6 | W18: =SUM(W8:W17) -> 80399.6 | X18: 0 | Y18: 80399.6 | Z18: 723596.4 | AB18: Total Trucks | AC18: =SUM(AC8:AC17) -> 4922021.26 | AD18: 0 | AE18: 4198424.86 | AF18: 340889.847 | AG18: 2532247.717 | AH18: 2913187.789 | AI18: 2008833.471
E19: =E18-'2144 Trks'!Q78 -> 0 | H19: =H18-'2144 Trks'!U78 -> 0
A20: Containers | J20: Containers | S20: Containers | AB20: Containers
A21: Commercial Garbage | B21: ='2144 Cont, DB'!L48 -> 305018 | C21: =B21-D21 -> 0 | D21: ='2144 Cont, DB'!M48 -> 305018 | E21: ='2144 Cont, DB'!P48 -> 14117.78017 | F21: =+'2144 Cont, DB'!Q48 -> 217262.7503 | G21: =+'2144 Cont, DB'!R48 -> 231380.5305 | H21: =+'2144 Cont, DB'!S48 -> 73637.4695 | J21: Commercial Garbage | K21: =SUMIF('FAR Dep Summary'!$A$14:$A$18,'Depr Summary'!J21,'FAR Dep Summary'!$B$14:$B$18) -> 0 | L21: =K21-M21 -> 0 | M21: =K21 -> 0 | N21: =SUMIF('FAR Dep Summary'!$A$14:$A$18,'Depr Summary'!J21,'FAR Dep Summary'!$C$14:$C$18) -> 0 | O21: =SUMIF('FAR Dep Summary'!$A$14:$A$18,'Depr Summary'!J21,'FAR Dep Summary'!$D$14:$D$18) -> 0 | P21: =SUMIF('FAR Dep Summary'!$A$14:$A$18,'Depr Summary'!J21,'FAR Dep Summary'!$E$14:$E$18) -> 0 | Q21: =SUMIF('FAR Dep Summary'!$A$14:$A$18,'Depr Summary'!J21,'FAR Dep Summary'!$F$14:$F$18) -> 0 | S21: Commercial Garbage | T21: =SUMIF('Bud Capital Input'!$Q$61:$Q$68,$S21,'Bud Capital Input'!$S$61:$S$68) -> 0 | U21: =W21-V21 -> 0 | V21: =W21 -> 0 | W21: =SUMIF('Bud Capital Input'!$Q$61:$Q$68,$S21,'Bud Capital Input'!$U$61:$U$69) -> 0 | X21: 0 | Y21: =W21 -> 0 | Z21: =T21-Y21 -> 0 | AB21: Commercial Garbage | AC21: =B21+K21+T21 -> 305018 | AD21: =C21+L21+U21 -> 0 | AE21: 305018 | AF21: 14117.78017 | AG21: 217262.7503 | AH21: 231380.5305 | AI21: 73637.4695
A23: Drop Boxes | B23: ='2144 Cont, DB'!L73 -> 482732.2 | C23: =B23-D23 -> 0 | D23: ='2144 Cont, DB'!M73 -> 482732.2 | E23: ='2144 Cont, DB'!P73 -> 17854.552 | F23: ='2144 Cont, DB'!Q73 -> 360146.2353 | G23: ='2144 Cont, DB'!R73 -> 378000.7873 | H23: ='2144 Cont, DB'!S73 -> 104731.4127 | J23: Drop Boxes | K23: =SUMIF('FAR Dep Summary'!$A$14:$A$18,'Depr Summary'!J23,'FAR Dep Summary'!$B$14:$B$18) -> 102790.61 | L23: =K23-M23 -> 0 | M23: =K23 -> 102790.61 | N23: =SUMIF('FAR Dep Summary'!$A$14:$A$18,'Depr Summary'!J23,'FAR Dep Summary'!$C$14:$C$18) -> 0 | O23: =SUMIF('FAR Dep Summary'!$A$14:$A$18,'Depr Summary'!J23,'FAR Dep Summary'!$D$14:$D$18) -> 102790.61 | P23: =SUMIF('FAR Dep Summary'!$A$14:$A$18,'Depr Summary'!J23,'FAR Dep Summary'!$E$14:$E$18) -> 102790.61 | Q23: =SUMIF('FAR Dep Summary'!$A$14:$A$18,'Depr Summary'!J23,'FAR Dep Summary'!$F$14:$F$18) -> 0 | S23: Drop Boxes | T23: =SUMIF('Bud Capital Input'!$Q$61:$Q$68,$S23,'Bud Capital Input'!$S$61:$S$68) -> 0 | U23: =W23-V23 -> 0 | V23: =W23 -> 0 | W23: =SUMIF('Bud Capital Input'!$Q$61:$Q$68,$S23,'Bud Capital Input'!$U$61:$U$69) -> 0 | X23: 0 | Y23: =W23 -> 0 | Z23: =T23-Y23 -> 0 | AB23: Drop Boxes | AC23: =B23+K23+T23 -> 585522.81 | AD23: =C23+L23+U23 -> 0 | AE23: 585522.81 | AF23: 17854.552 | AG23: 462936.8453 | AH23: 480791.3973 | AI23: 104731.4127
A25: Regulated Garbage Carts | B25: =+'2144 Cont, DB'!L82 -> 175957.7036 | C25: =B25-D25 -> 0 | D25: =+'2144 Cont, DB'!M82 -> 175957.7036 | E25: =+'2144 Cont, DB'!P82 -> 25136.81481 | F25: =+'2144 Cont, DB'!Q82 -> 50273.62961 | G25: =+'2144 Cont, DB'!R82 -> 75410.44442 | H25: =+'2144 Cont, DB'!S82 -> 100547.2592 | I25: + | J25: Regulated Garbage Carts | K25: =SUMIF('FAR Dep Summary'!$A$14:$A$18,'Depr Summary'!J25,'FAR Dep Summary'!$B$14:$B$18) -> 381165.57 | L25: =K25-M25 -> 0 | M25: =K25 -> 381165.57 | N25: =SUMIF('FAR Dep Summary'!$A$14:$A$18,'Depr Summary'!J25,'FAR Dep Summary'!$C$14:$C$18) -> 54452.22429 | O25: =SUMIF('FAR Dep Summary'!$A$14:$A$18,'Depr Summary'!J25,'FAR Dep Summary'!$D$14:$D$18) -> 0 | P25: =SUMIF('FAR Dep Summary'!$A$14:$A$18,'Depr Summary'!J25,'FAR Dep Summary'!$E$14:$E$18) -> 54452.22429 | Q25: =SUMIF('FAR Dep Summary'!$A$14:$A$18,'Depr Summary'!J25,'FAR Dep Summary'!$F$14:$F$18) -> 326713.3457 | R25: + | S25: Regulated Garbage Carts | T25: =SUMIF('Bud Capital Input'!$Q$61:$Q$68,$S25,'Bud Capital Input'!$S$61:$S$68) -> 0 | U25: =W25-V25 -> 0 | V25: =W25 -> 0 | W25: =SUMIF('Bud Capital Input'!$Q$61:$Q$68,$S25,'Bud Capital Input'!$U$61:$U$69) -> 0 | X25: 0 | Y25: =W25 -> 0 | Z25: =T25-Y25 -> 0 | AA25: = | AB25: Regulated Garbage Carts | AC25: =B25+K25+T25 -> 557123.2736 | AD25: =C25+L25+U25 -> 0 | AE25: 557123.2736 | AF25: 79589.03909 | AG25: 50273.62961 | AH25: 129862.6687 | AI25: 427260.6049
A27: Shared Carts | B27: =+'2144 Cont, DB'!L90 -> 65551.84636 | C27: =B27-D27 -> 0 | D27: =+'2144 Cont, DB'!M90 -> 65551.84636 | E27: =+'2144 Cont, DB'!P90 -> 9364.54948 | F27: =+'2144 Cont, DB'!Q90 -> 16404.99325 | G27: =+'2144 Cont, DB'!R90 -> 25769.54273 | H27: =+'2144 Cont, DB'!S90 -> 39782.30364 | J27: Shared Carts | K27: =SUMIF('FAR Dep Summary'!$A$14:$A$18,'Depr Summary'!J27,'FAR Dep Summary'!$B$14:$B$18) -> 0 | L27: =K27-M27 -> 0 | M27: =K27 -> 0 | N27: =SUMIF('FAR Dep Summary'!$A$14:$A$18,'Depr Summary'!J27,'FAR Dep Summary'!$C$14:$C$18) -> 0 | O27: =SUMIF('FAR Dep Summary'!$A$14:$A$18,'Depr Summary'!J27,'FAR Dep Summary'!$D$14:$D$18) -> 0 | P27: =SUMIF('FAR Dep Summary'!$A$14:$A$18,'Depr Summary'!J27,'FAR Dep Summary'!$E$14:$E$18) -> 0 | Q27: =SUMIF('FAR Dep Summary'!$A$14:$A$18,'Depr Summary'!J27,'FAR Dep Summary'!$F$14:$F$18) -> 0 | S27: Shared Carts | T27: =SUMIF('Bud Capital Input'!$Q$61:$Q$68,$S27,'Bud Capital Input'!$S$61:$S$68) -> 135671 | U27: =W27-V27 -> 0 | V27: =W27 -> 19381.57143 | W27: =SUMIF('Bud Capital Input'!$Q$61:$Q$68,$S27,'Bud Capital Input'!$U$61:$U$69) -> 19381.57143 | X27: 0 | Y27: =W27 -> 19381.57143 | Z27: =T27-Y27 -> 116289.4286 | AB27: Shared Carts | AC27: =B27+K27+T27 -> 201222.8464 | AD27: =C27+L27+U27 -> 0 | AE27: 84933.41779 | AF27: 28746.12091 | AG27: 16404.99325 | AH27: 45151.11416 | AI27: 156071.7322
C28: =B28-D28 -> 0
A29: Non-Reg | B29: =+'2144 Cont, DB'!L105 -> 280003.51 | D29: =+'2144 Cont, DB'!M105 -> 280003.51 | E29: =+'2144 Cont, DB'!P105 -> 3506.063 | F29: =+'2144 Cont, DB'!Q105 -> 276497.447 | G29: =+'2144 Cont, DB'!R105 -> 280003.51 | H29: =+'2144 Cont, DB'!S105 -> 0 | J29: Non-Reg | K29: =SUMIF('FAR Dep Summary'!$A$14:$A$18,'Depr Summary'!J29,'FAR Dep Summary'!$B$14:$B$18) -> 0 | L29: =K29-M29 -> 0 | M29: =K29 -> 0 | N29: =SUMIF('FAR Dep Summary'!$A$14:$A$18,'Depr Summary'!J29,'FAR Dep Summary'!$C$14:$C$18) -> 0 | O29: =SUMIF('FAR Dep Summary'!$A$14:$A$18,'Depr Summary'!J29,'FAR Dep Summary'!$D$14:$D$18) -> 0 | P29: =SUMIF('FAR Dep Summary'!$A$14:$A$18,'Depr Summary'!J29,'FAR Dep Summary'!$E$14:$E$18) -> 0 | Q29: =SUMIF('FAR Dep Summary'!$A$14:$A$18,'Depr Summary'!J29,'FAR Dep Summary'!$F$14:$F$18) -> 0 | S29: Non-Reg | T29: =SUMIF('Bud Capital Input'!$Q$61:$Q$68,$S29,'Bud Capital Input'!$S$61:$S$68) -> 0 | U29: =W29-V29 -> 0 | V29: =W29 -> 0 | W29: =SUMIF('Bud Capital Input'!$Q$61:$Q$68,$S29,'Bud Capital Input'!$U$61:$U$69) -> 0 | X29: 0 | Y29: =W29 -> 0 | Z29: =T29-Y29 -> 0 | AB29: Non-Reg | AC29: =B29+K29+T29 -> 280003.51 | AD29: =C29+L29+U29 -> 0 | AE29: 280003.51 | AF29: 3506.063 | AG29: 276497.447 | AH29: 280003.51 | AI29: 0
A31: Total Cont, Carts,Totes | B31: =SUM(B21:B29) -> 1309263.26 | C31: 0 | D31: 1309263.26 | E31: 69979.75945 | F31: 920585.0555 | G31: 990564.815 | H31: 318698.445 | J31: Total Cont, Carts,Totes | K31: =SUM(K21:K29) -> 483956.18 | L31: 0 | M31: 483956.18 | N31: 54452.22429 | O31: 102790.61 | P31: 157242.8343 | Q31: 326713.3457 | S31: Total Cont, Carts,Totes | T31: =SUM(T21:T29) -> 135671 | U31: 0 | V31: 19381.57143 | W31: 19381.57143 | X31: 0 | Y31: 19381.57143 | Z31: =SUM(Z21:Z29) -> 116289.4286 | AB31: Total Cont, Carts,Totes | AC31: =SUM(AC21:AC29) -> 1928890.44 | AD31: 0 | AE31: 1812601.011 | AF31: 143813.5552 | AG31: 1023375.666 | AH31: 1167189.221 | AI31: 761701.2193
E32: =E31-'2144 Cont, DB'!P107 -> 0 | H32: =H31-'2144 Cont, DB'!S107 -> 0
A33: Service Equipment | B33: ='2144 Shop,Serv'!L37 -> 146197.35 | C33: =B33-D33 -> 0 | D33: ='2144 Shop,Serv'!M37 -> 146197.35 | E33: ='2144 Shop,Serv'!P37 -> 26974.701 | F33: ='2144 Shop,Serv'!Q37 -> 63257.595 | G33: ='2144 Shop,Serv'!R37 -> 90232.296 | H33: ='2144 Shop,Serv'!S37 -> 49805.882 | J33: Service Equipment | K33: =SUMIF('FAR Dep Summary'!$A$14:$A$18,'Depr Summary'!J33,'FAR Dep Summary'!$B$14:$B$18) -> 539.05 | L33: =K33-M33 -> 0 | M33: =K33 -> 539.05 | N33: =SUMIF('FAR Dep Summary'!$A$14:$A$18,'Depr Summary'!J33,'FAR Dep Summary'!$C$14:$C$18) -> 107.81 | O33: =SUMIF('FAR Dep Summary'!$A$14:$A$18,'Depr Summary'!J33,'FAR Dep Summary'!$D$14:$D$18) -> 0 | P33: =SUMIF('FAR Dep Summary'!$A$14:$A$18,'Depr Summary'!J33,'FAR Dep Summary'!$E$14:$E$18) -> 107.81 | Q33: =SUMIF('FAR Dep Summary'!$A$14:$A$18,'Depr Summary'!J33,'FAR Dep Summary'!$F$14:$F$18) -> 431.24 | S33: Service Equipment | T33: =SUMIF('Bud Capital Input'!$Q$61:$Q$68,$S33,'Bud Capital Input'!$S$61:$S$68) -> 0 | U33: =W33-V33 -> 0 | V33: =W33 -> 0 | W33: =SUMIF('Bud Capital Input'!$Q$61:$Q$68,$S33,'Bud Capital Input'!$U$61:$U$69) -> 0 | X33: 0 | Y33: =W33 -> 0 | Z33: =T33-Y33 -> 0 | AB33: Service Equipment | AC33: =B33+K33+T33 -> 146736.4 | AD33: =C33+L33+U33 -> 0 | AE33: 146736.4 | AF33: 27082.511 | AG33: 63257.595 | AH33: 90340.106 | AI33: 50237.122
A35: Shop Equipment | B35: ='2144 Shop,Serv'!L24 -> 237010.68 | C35: =B35-D35 -> 0 | D35: ='2144 Shop,Serv'!M24 -> 237010.68 | E35: ='2144 Shop,Serv'!P24 -> 21059.487 | F35: ='2144 Shop,Serv'!Q24 -> 152826.711 | G35: ='2144 Shop,Serv'!R24 -> 173886.198 | H35: ='2144 Shop,Serv'!S24 -> 63124.482 | J35: Shop Equipment | K35: =SUMIF('FAR Dep Summary'!$A$14:$A$18,'Depr Summary'!J35,'FAR Dep Summary'!$B$14:$B$18) -> 0 | L35: =K35-M35 -> 0 | M35: =K35 -> 0 | N35: =SUMIF('FAR Dep Summary'!$A$14:$A$18,'Depr Summary'!J35,'FAR Dep Summary'!$C$14:$C$18) -> 0 | O35: =SUMIF('FAR Dep Summary'!$A$14:$A$18,'Depr Summary'!J35,'FAR Dep Summary'!$D$14:$D$18) -> 0 | P35: =SUMIF('FAR Dep Summary'!$A$14:$A$18,'Depr Summary'!J35,'FAR Dep Summary'!$E$14:$E$18) -> 0 | Q35: =SUMIF('FAR Dep Summary'!$A$14:$A$18,'Depr Summary'!J35,'FAR Dep Summary'!$F$14:$F$18) -> 0 | S35: Shop Equipment | T35: =SUMIF('Bud Capital Input'!$Q$61:$Q$68,$S35,'Bud Capital Input'!$S$61:$S$68) -> 0 | U35: =W35-V35 -> 0 | V35: =W35 -> 0 | W35: =SUMIF('Bud Capital Input'!$Q$61:$Q$68,$S35,'Bud Capital Input'!$U$61:$U$69) -> 0 | X35: 0 | Y35: =W35 -> 0 | Z35: =T35-Y35 -> 0 | AB35: Shop Equipment | AC35: =B35+K35+T35 -> 237010.68 | AD35: =C35+L35+U35 -> 0 | AE35: 237010.68 | AF35: 21059.487 | AG35: 152826.711 | AH35: 173886.198 | AI35: 63124.482
A37: Non-Regulated | B37: ='2144 Shop,Serv'!L43 -> 105958.302 | C37: =B37-D37 -> 0 | D37: ='2144 Shop,Serv'!M43 -> 105958.302 | E37: ='2144 Shop,Serv'!P43 -> 0 | F37: ='2144 Shop,Serv'!Q43 -> 105958.302 | G37: ='2144 Shop,Serv'!R43 -> 105958.302 | H37: ='2144 Shop,Serv'!S43 -> 0 | J37: Non-Regulated | K37: =SUMIF('FAR Dep Summary'!$A$14:$A$18,'Depr Summary'!J37,'FAR Dep Summary'!$B$14:$B$18) -> 0 | L37: =K37-M37 -> 0 | M37: =K37 -> 0 | N37: =SUMIF('FAR Dep Summary'!$A$14:$A$18,'Depr Summary'!J37,'FAR Dep Summary'!$C$14:$C$18) -> 0 | O37: =SUMIF('FAR Dep Summary'!$A$14:$A$18,'Depr Summary'!J37,'FAR Dep Summary'!$D$14:$D$18) -> 0 | P37: =SUMIF('FAR Dep Summary'!$A$14:$A$18,'Depr Summary'!J37,'FAR Dep Summary'!$E$14:$E$18) -> 0 | Q37: =SUMIF('FAR Dep Summary'!$A$14:$A$18,'Depr Summary'!J37,'FAR Dep Summary'!$F$14:$F$18) -> 0 | S37: Non-Regulated | T37: =SUMIF('Bud Capital Input'!$Q$61:$Q$68,$S37,'Bud Capital Input'!$S$61:$S$68) -> 0 | U37: =W37-V37 -> 0 | V37: =W37 -> 0 | W37: =SUMIF('Bud Capital Input'!$Q$61:$Q$68,$S37,'Bud Capital Input'!$U$61:$U$69) -> 0 | X37: 0 | Y37: =W37 -> 0 | Z37: =T37-Y37 -> 0 | AB37: Non-Regulated | AC37: =B37+K37+T37 -> 105958.302 | AD37: =C37+L37+U37 -> 0 | AE37: 105958.302 | AF37: 0 | AG37: 105958.302 | AH37: 105958.302 | AI37: 0
A39: Office Equipment | B39: ='2144 Other'!M20 -> 15910.72 | C39: =B39-D39 -> 0 | D39: ='2144 Other'!N20 -> 15910.72 | E39: ='2144 Other'!Q20 -> 0 | F39: ='2144 Other'!R20 -> 15910.72 | G39: ='2144 Other'!S20 -> 15910.72 | H39: ='2144 Other'!T20 -> 0 | J39: Office Equipment | K39: =SUMIF('FAR Dep Summary'!$A$14:$A$18,'Depr Summary'!J39,'FAR Dep Summary'!$B$14:$B$18) -> 0 | L39: =K39-M39 -> 0 | M39: =K39 -> 0 | N39: =SUMIF('FAR Dep Summary'!$A$14:$A$18,'Depr Summary'!J39,'FAR Dep Summary'!$C$14:$C$18) -> 0 | O39: =SUMIF('FAR Dep Summary'!$A$14:$A$18,'Depr Summary'!J39,'FAR Dep Summary'!$D$14:$D$18) -> 0 | P39: =SUMIF('FAR Dep Summary'!$A$14:$A$18,'Depr Summary'!J39,'FAR Dep Summary'!$E$14:$E$18) -> 0 | Q39: =SUMIF('FAR Dep Summary'!$A$14:$A$18,'Depr Summary'!J39,'FAR Dep Summary'!$F$14:$F$18) -> 0 | S39: Office Equipment | T39: =SUMIF('Bud Capital Input'!$Q$61:$Q$68,$S39,'Bud Capital Input'!$S$61:$S$68) -> 0 | U39: =W39-V39 -> 0 | V39: =W39 -> 0 | W39: =SUMIF('Bud Capital Input'!$Q$61:$Q$68,$S39,'Bud Capital Input'!$U$61:$U$69) -> 0 | X39: 0 | Y39: =W39 -> 0 | Z39: =T39-Y39 -> 0 | AB39: Office Equipment | AC39: =B39+K39+T39 -> 15910.72 | AD39: =C39+L39+U39 -> 0 | AE39: 15910.72 | AF39: 0 | AG39: 15910.72 | AH39: 15910.72 | AI39: 0
A41: Building | B41: ='2144 Other'!M34 -> 207799.72 | C41: =B41-D41 -> 0 | D41: ='2144 Other'!N34 -> 207799.72 | E41: ='2144 Other'!Q34 -> 9218.947 | F41: ='2144 Other'!R34 -> 196166.676 | G41: ='2144 Other'!S34 -> 205385.623 | H41: ='2144 Other'!T34 -> 2414.097 | J41: Building | K41: =SUMIF('FAR Dep Summary'!$A$14:$A$18,'Depr Summary'!J41,'FAR Dep Summary'!$B$14:$B$18) -> 0 | L41: =K41-M41 -> 0 | M41: =K41 -> 0 | N41: =SUMIF('FAR Dep Summary'!$A$14:$A$18,'Depr Summary'!J41,'FAR Dep Summary'!$C$14:$C$18) -> 0 | O41: =SUMIF('FAR Dep Summary'!$A$14:$A$18,'Depr Summary'!J41,'FAR Dep Summary'!$D$14:$D$18) -> 0 | P41: =SUMIF('FAR Dep Summary'!$A$14:$A$18,'Depr Summary'!J41,'FAR Dep Summary'!$E$14:$E$18) -> 0 | Q41: =SUMIF('FAR Dep Summary'!$A$14:$A$18,'Depr Summary'!J41,'FAR Dep Summary'!$F$14:$F$18) -> 0 | S41: Building | T41: =SUMIF('Bud Capital Input'!$Q$61:$Q$68,$S41,'Bud Capital Input'!$S$61:$S$68) -> 77500 | U41: =W41-V41 -> 0 | V41: =W41 -> 6500 | W41: =SUMIF('Bud Capital Input'!$Q$61:$Q$68,$S41,'Bud Capital Input'!$U$61:$U$69) -> 6500 | X41: 0 | Y41: =W41 -> 6500 | Z41: =T41-Y41 -> 71000 | AB41: Building | AC41: =B41+K41+T41 -> 285299.72 | AD41: =C41+L41+U41 -> 0 | AE41: 214299.72 | AF41: 15718.947 | AG41: 196166.676 | AH41: 211885.623 | AI41: 73414.097
A43: Total Equipment | B43: =B18+B31+B33+B35+B39+B41+B37 -> 5472001.512 | C43: =C18+C31+C33+C35+C39+C41+C37 -> 0 | D43: 5472001.512 | E43: 362136.2175 | F43: 3574658.236 | G43: 3976844.679 | H43: 1488997.661 | J43: Total Equipment | K43: =K18+K31+K33+K35+K39+K41+K37 -> 1152659.01 | L43: =L18+L31+L33+L35+L39+L41+L37 -> 0 | M43: 1152659.01 | N43: 80146.95829 | O43: 515085.15 | P43: 595232.1083 | Q43: 557426.9017 | S43: Total Equipment | T43: =T18+T31+T33+T35+T39+T41+T37 -> 1017167 | U43: =U18+U31+U33+U35+U39+U41+U37 -> 0 | V43: 106281.1714 | W43: 106281.1714 | X43: 0 | Y43: 106281.1714 | Z43: 910885.8286 | AB43: Total Equipment | AC43: =AC18+AC31+AC33+AC35+AC39+AC41+AC37 -> 7641827.522 | AD43: =AD18+AD31+AD33+AD35+AD39+AD41+AD37 -> 0 | AE43: 6730941.693 | AF43: 548564.3472 | AG43: 4089743.386 | AH43: 4678357.959 | AI43: 2957310.391
A45: Land | B45: =177500*2 -> 355000 | H45: =B45 -> 355000 | J45: Land | K45: =SUMIF('FAR Dep Summary'!$A$14:$A$18,'Depr Summary'!J45,'FAR Dep Summary'!$B$14:$B$18) -> 0 | L45: =K45-M45 -> 0 | M45: =K45 -> 0 | N45: =SUMIF('FAR Dep Summary'!$A$14:$A$18,'Depr Summary'!J45,'FAR Dep Summary'!$C$14:$C$18) -> 0 | O45: =SUMIF('FAR Dep Summary'!$A$14:$A$18,'Depr Summary'!J45,'FAR Dep Summary'!$D$14:$D$18) -> 0 | P45: =SUMIF('FAR Dep Summary'!$A$14:$A$18,'Depr Summary'!J45,'FAR Dep Summary'!$E$14:$E$18) -> 0 | Q45: =SUMIF('FAR Dep Summary'!$A$14:$A$18,'Depr Summary'!J45,'FAR Dep Summary'!$F$14:$F$18) -> 0 | S45: Land | AB45: Land | AC45: =B45+K45+T45 -> 355000 | AI45: =H45+Q45+Z45 -> 355000
A47: TOTAL | B47: =B43+B45 -> 5827001.512 | C47: 0 | D47: 5472001.512 | E47: 362136.2175 | F47: 3574658.236 | G47: 3976844.679 | H47: 1843997.661 | J47: TOTAL | K47: =K43+K45 -> 1152659.01 | L47: 0 | M47: 1152659.01 | N47: 80146.95829 | O47: 515085.15 | P47: 595232.1083 | Q47: 557426.9017 | S47: TOTAL | T47: =T43+T45 -> 1017167 | U47: 0 | V47: 106281.1714 | W47: 106281.1714 | X47: 0 | Y47: 106281.1714 | Z47: 910885.8286 | AB47: TOTAL | AC47: =AC43+AC45 -> 7996827.522 | AD47: 0 | AE47: 6730941.693 | AF47: 548564.3472 | AG47: 4089743.386 | AH47: 4678357.959 | AI47: 3312310.391
A48: Check | B48: =B43-'2144 Trks'!M78-'2144 Cont, DB'!L107-'2144 Shop,Serv'!L46-'2144 Other'!M36 -> -1.28056854e-09 | E48: =E43-'2144 Trks'!Q78-'2144 Cont, DB'!P107-'2144 Shop,Serv'!P46-'2144 Other'!Q36 -> -1.455191523e-11 | H48: =H43-'2144 Trks'!U78-'2144 Cont, DB'!S107-'2144 Shop,Serv'!S46-'2144 Other'!T36 -> 2.000888344e-10 | J48: Check | K48: =K47-'FAR Dep Summary'!B19 -> 0 | N48: =N47-'FAR Dep Summary'!C19 -> 0 | O48: =O47-'FAR Dep Summary'!D19 -> 0 | P48: =P47-'FAR Dep Summary'!E19 -> 0 | Q48: =Q47-'FAR Dep Summary'!F19 -> 0 | S48: Check | T48: =T47-'Bud Capital Input'!$S$69 -> 0 | W48: =W47-'Bud Capital Input'!$U$69 -> 0 | Z48: =Z47-'Bud Capital Input'!$V$69 -> 0 | AB48: Check | AC48: =AC47-K47-B47-T47 -> 9.313225746e-10 | AD48: =AD47-L47-C47-U47 -> 0 | AE48: 9.458744898e-10 | AF48: 0 | AG48: 4.656612873e-10 | AH48: -9.167706594e-10 | AI48: 0
A51: UTC Group Tracking - for Assets through 12/31/2020
A53: Updated Through | B53: Updated By | C53: FAR Adds | D53: UTC Sched Adds | E53: Difference
A55: 1/1/2013 - 12/31/2013 | B55: HG | C55: 132868.35 | D55: 132868.35 | E55: =C55-D55 -> 0
A57: 1-1-2014 - 6/30/2014 | B57: HG | C57: 229332.22 | D57: 229332.22 | E57: =C57-D57 -> 0
A59: 1/1/2015 - 10/31/15 | B59: JB | C59: =[11]Assets!$R$248 -> 271067.43 | D59: 271067.43 | E59: =C59-D59 -> 0
A61: 11/1/2015 - 12/31/2015 | B61: HG | C61: 185053.86 | D61: 185053.86 | E61: =C61-D61 -> 0
A63: 1/1/2016 - 12/31/2016 | B63: IRW | C63: 484718.5 | D63: 484718.5 | E63: =C63-D63 -> 0
A65: 1/1/2017-8/31/2017 | B65: JW | C65: =+[12]Assets!$E$261 -> 153338.68 | D65: 153338.68 | E65: =C65-D65 -> 0
A67: 9/1/17-12/31/17 | B67: LAW | C67: 649782.69 | D67: 649782.69 | E67: =C67-D67 -> 0
A69: 1/1/2018-12/31/2018 | B69: LAW | C69: 762944.03 | D69: 762944.03 | E69: =C69-D69 -> 0
A71: 1/1/2019-8/31/2019 | B71: LAW | C71: 547495.27 | D71: 547495.27 | E71: =C71-D71 -> 0
A73: 9/1/2019-12/31/2019 | B73: LAW | C73: 177637.72 | D73: 177637.72 | E73: =C73-D73 -> 0
A75: 1/1/2020 - 12/31/2020 | B75: JTH | C75: 41148.36 | D75: =+SUM('2144 Cont, DB'!L12,'2144 Cont, DB'!L88,'2144 Shop,Serv'!L33,'2144 Shop,Serv'!L34:L35) -> 41148.36 | E75: =D75-C75 -> 0

Sheet 2144 Trks
D1: Island Disposal Inc
D2: Depreciation Schedule | N2: 4 | O2: Effective Rate Month | AZ2: CONVENTIONS
D3: ='Depr Summary'!H6 -> 2021-11-30 | N3: 2021 | O3: First Year
N4: 2022 | O4: Second year | AY4: 1 | AZ4: Calendar year test period: | BC4: 12 | BD4: mos in first year
N5: =N4+(N2/12) -> 2022.333333 | O5: Rate Effective Year | AZ5: 1993 | BC5: 0 | BD5: mos in 2nd year
BC6: 93 | BD6: First year
BC7: 94 | BD7: Second Year
S8: Beginning | T8: Allocated | X8: Regulated
D9: RESI/COMM GARBAGE | E9: Date in | G9: Salvage | K9: Year | L9: Year/Mo | S9: Accumulated | T9: Accumulated | W9: Regulated | X9: Average
C10: Truck | E10: Service | G10: Value | I10: Method | J10: Life | K10: Fully | L10: Fully | M10: Asset | N10: Depr | O10: Monthly | P10: Annual | Q10: Test yr. | S10: Depreciation | T10: Depreciation | U10: NBV | W10: Test yr. | X10: Investment | AY10: 2 | AZ10: Dispositions must be in test period
A11: FAR # | B11: Codes | C11: No | D11: Asset Classification | E11: Year | F11: Mo | G11: % | H11: - | I11: M | J11: Years | K11: Depr | L11: Depr | M11: Cost | N11: Cost | O11: Depr | P11: Depr | Q11: Depn. | S11: ='Depr Summary'!F6 -> 2020-12-01 | T11: =+D3 -> 2021-11-30 | U11: =D3 -> 2021-11-30 | V11: Regulated % | W11: Depn. | X11: =U11 -> 2021-11-30
B12: RL | C12: 5016 | D12: 2007 International RL w/ Heil Pkr | E12: 2007 | F12: 9 | G12: 0 | I12: S/L | J12: 7 | K12: =E12+J12 -> 2014 | L12: =+K12+(F12/12) -> 2014.75 | M12: =+'2144 Trks Orig'!Q18 -> 109360.696 | N12: =M12-M12*G12 -> 109360.696 | O12: =N12/J12/12 -> 1301.913048 | P12: =+O12*12 -> 15622.95657 | Q12: =+IF(L12<=$N$5,0,IF(K12>$N$4,P12,(O12*F12))) -> 0 | S12: =+IF(Q12=0,M12,IF($N$3-E12<1,0,(($N$3-E12)*P12))) -> 109360.696 | T12: =+IF(Q12=0,S12,S12+Q12) -> 109360.696 | U12: =+M12-T12 -> 0 | W12: =Q12*V12 -> 0 | X12: =U12*V12 -> 0
C13: 5016 | D13: Truck #5016 Amort of Salvage | E13: 2020 | F13: 6 | G13: 0 | I13: S/L | J13: 3 | K13: 2023 | L13: 2023.5 | M13: =+'2144 Trks Orig'!O18-'2144 Trks'!M12 -> 27340.174 | N13: 27340.174 | O13: 759.4492778 | P13: 9113.391333 | Q13: 9113.391333 | S13: 9113.391333 | T13: 18226.78267 | U13: 9113.391333 | W13: 0 | X13: 0 | Z13: =M13/M12 -> 0.25
B14: RL | C14: 5010 | D14: 2004 Int'l W/P 7400 (U) | E14: 2008 | F14: =2+6 -> 8 | G14: 0 | I14: S/L | J14: 5 | K14: 2013 | L14: 2013.666667 | M14: =+'2144 Trks Orig'!Q19 -> 44791.3157 | N14: 44791.3157 | O14: 746.5219283 | P14: 8958.26314 | Q14: 0 | S14: 44791.3157 | T14: 44791.3157 | U14: 0 | W14: 0 | X14: 0
C15: 5010 | D15: Truck #5010 Amort of Salvage | E15: 2020 | F15: 6 | G15: 0 | I15: S/L | J15: 3 | K15: 2023 | L15: 2023.5 | M15: =+'2144 Trks Orig'!O19-'2144 Trks'!M14 -> 22061.3943 | N15: 22061.3943 | O15: 612.8165083 | P15: 7353.7981 | Q15: 7353.7981 | S15: 7353.7981 | T15: 14707.5962 | U15: 7353.7981 | W15: 0 | X15: 0
B16: RL | C16: 5039 | D16: 2010 Int'l W/McNls Pkr (N) | E16: 2009 | F16: 12 | G16: 0 | I16: S/L | J16: 7 | K16: 2016 | L16: 2017 | M16: =+'2144 Trks Orig'!Q20 -> 148199.472 | N16: 148199.472 | O16: 1764.279429 | P16: 21171.35314 | Q16: 0 | S16: 148199.472 | T16: 148199.472 | U16: 0 | W16: 0 | X16: 0
C17: 5039 | D17: Truck #5039 Amort of Salvage | E17: 2020 | F17: 6 | G17: 0 | I17: S/L | J17: 3 | K17: 2023 | L17: 2023.5 | M17: =+'2144 Trks Orig'!O20-'2144 Trks'!M16 -> 37049.868 | N17: 37049.868 | O17: 1029.163 | P17: 12349.956 | Q17: 12349.956 | S17: 12349.956 | T17: 24699.912 | U17: 12349.956 | W17: 0 | X17: 0 | Z17: =M17/M16 -> 0.25
B18: RL | C18: 5040 | D18: 2010 Int'l W/McNls Pkr (N) | E18: 2009 | F18: 12 | G18: 0 | I18: S/L | J18: 7 | K18: 2016 | L18: 2017 | M18: =+'2144 Trks Orig'!Q21 -> 147465.856 | N18: 147465.856 | O18: 1755.545905 | P18: 21066.55086 | Q18: 0 | S18: 147465.856 | T18: 147465.856 | U18: 0 | W18: 0 | X18: 0
C19: 5040 | D19: Truck #5040 Amort of Salvage | E19: 2020 | F19: 6 | G19: 0 | I19: S/L | J19: 3 | K19: 2023 | L19: 2023.5 | M19: =+'2144 Trks Orig'!O21-'2144 Trks'!M18 -> 36866.464 | N19: 36866.464 | O19: 1024.068444 | P19: 12288.82133 | Q19: 12288.82133 | S19: 12288.82133 | T19: 24577.64267 | U19: 12288.82133 | W19: 0 | X19: 0 | Z19: =M19/M18 -> 0.25
B20: RL | C20: 5041 | D20: 2010 Int'l W/McNls Pkr (N) | E20: 2009 | F20: 12 | G20: 0 | I20: S/L | J20: 7 | K20: 2016 | L20: 2017 | M20: =+'2144 Trks Orig'!Q22 -> 147465.856 | N20: 147465.856 | O20: 1755.545905 | P20: 21066.55086 | Q20: 0 | S20: 147465.856 | T20: 147465.856 | U20: 0 | W20: 0 | X20: 0
C21: 5041 | D21: Truck #5041 Amort of Salvage | E21: 2020 | F21: 6 | G21: 0 | I21: S/L | J21: 3 | K21: 2023 | L21: 2023.5 | M21: =+'2144 Trks Orig'!O22-'2144 Trks'!M20 -> 36866.464 | N21: 36866.464 | O21: 1024.068444 | P21: 12288.82133 | Q21: 12288.82133 | S21: 12288.82133 | T21: 24577.64267 | U21: 12288.82133 | W21: 0 | X21: 0 | Z21: =M21/M20 -> 0.25
B22: RL | D22: Drive Cam (23) | E22: 2010 | F22: 4 | G22: 0 | I22: S/L | J22: 7 | K22: 2017 | L22: 2017.333333 | M22: =+'2144 Trks Orig'!Q23 -> 11295.952 | N22: 11295.952 | O22: 134.475619 | P22: 1613.707429 | Q22: 0 | S22: 11295.952 | T22: 11295.952 | U22: 0 | W22: 0 | X22: 0
D23: Drive Cams (23) Amort of Salvage | E23: 2020 | F23: 6 | G23: 0 | I23: S/L | J23: 3 | K23: 2023 | L23: 2023.5 | M23: =+'2144 Trks Orig'!O23-'2144 Trks'!M22 -> 2823.988 | N23: 2823.988 | O23: 78.44411111 | P23: 941.3293333 | Q23: 941.3293333 | S23: 941.3293333 | T23: 1882.658667 | U23: =+M23-T23 -> 941.3293333 | W23: 0 | X23: 0 | Z23: =M23/M22 -> 0.25
A24: 109830 | D24: 12 Truck Radios | E24: 2013 | F24: 12 | G24: 0 | I24: S/L | J24: 5 | K24: 2018 | L24: 2019 | M24: =1101.59*12 -> 13219.08 | N24: 13219.08 | O24: 220.318 | P24: 2643.816 | Q24: 0 | S24: 13219.08 | T24: 13219.08 | U24: 0 | W24: 0 | X24: 0
A25: 118075 | B25: ASL | C25: 5011 | D25: 2006 Peterbilt ASL (U) | E25: 2014 | F25: 12 | G25: 0 | I25: S/L | J25: 5 | K25: 2019 | L25: 2020 | M25: 172742.39 | N25: 172742.39 | O25: 2879.039833 | P25: 34548.478 | Q25: 0 | S25: 172742.39 | T25: 172742.39 | U25: 0 | W25: 0 | X25: 0
A26: 126399 | B26: RL | C26: 5012 | D26: 2016 REL Truck | E26: 2015 | F26: 10 | G26: 0 | I26: S/L | J26: 10 | K26: 2025 | L26: 2025.833333 | M26: =218205.58+9591.24 -> 227796.82 | N26: 227796.82 | O26: 1898.306833 | P26: 22779.682 | Q26: 22779.682 | S26: 136678.092 | T26: 159457.774 | U26: 68339.046 | W26: 0 | X26: 0
A27: 126583 | C27: 5012 | D27: Drive Cam Replacement | E27: 2015 | F27: 10 | G27: 0 | I27: S/L | J27: 10 | K27: 2025 | L27: 2025.833333 | M27: 639.85 | N27: 639.85 | O27: 5.332083333 | P27: 63.985 | Q27: 63.985 | S27: 383.91 | T27: 447.895 | U27: 191.955 | W27: 0 | X27: 0
A28: 132131 132501 | B28: RL | C28: 5014 | D28: 2016 REL Truck (N) | E28: 2016 | F28: 3 | G28: 0 | I28: S/L | J28: 10 | K28: 2026 | L28: 2026.25 | M28: =276355.27+605.92 -> 276961.19 | N28: 276961.19 | O28: 2308.009917 | P28: 27696.119 | Q28: 27696.119 | S28: 138480.595 | T28: 166176.714 | U28: 110784.476 | W28: 0 | X28: 0
A29: 131542 133018 139929 | D29: (10) Samsung Tablets | E29: 2016 | F29: 3 | G29: 0 | I29: S/L | J29: 1 | K29: 2017 | L29: 2017.25 | M29: =2164.89+2769.44+671.24 -> 5605.57 | N29: 5605.57 | O29: 467.1308333 | P29: 5605.57 | Q29: 0 | S29: 5605.57 | T29: 5605.57 | U29: 0 | W29: 0 | X29: 0
A30: 170969 | C30: 5022 | D30: Container Delivery Truck (N) | E30: 2016 | F30: 12 | G30: 0 | I30: S/L | J30: 9 | K30: 2025 | L30: 2026 | M30: 59020.72 | N30: 59020.72 | O30: 546.4881481 | P30: 6557.857778 | Q30: 6557.857778 | S30: 32789.28889 | T30: 39347.14667 | U30: 19673.57333 | W30: 0 | X30: 0
A31: 172661 | C31: 5022 | D31: 2 Way radio for Container Del Truck | E31: 2017 | F31: 1 | G31: 0 | I31: S/L | J31: 5 | K31: 2022 | L31: 2022.083333 | M31: 1113.7 | N31: 1113.7 | O31: 18.56166667 | P31: 222.74 | Q31: 0 | S31: 1113.7 | T31: 1113.7 | U31: 0 | W31: 0 | X31: 0
A32: 212943 | C32: 5039 | D32: Capital Repair - Truck 5039 Engine | E32: 2019 | F32: 3 | G32: 0 | I32: S/L | J32: 3 | K32: 2022 | L32: 2022.25 | M32: 25477.01 | N32: 25477.01 | O32: 707.6947222 | P32: 8492.336667 | Q32: 0 | S32: 25477.01 | T32: 25477.01 | U32: 0 | W32: 0 | X32: 0
D33: Amortization of Salvage - Retired Assets | E33: 2020 | F33: 6 | Q33: =+Q96+Q98+Q92 -> 25696.31 | W33: 0 | X33: 0
A34: 203844 | C34: 5009 | D34: 2019 ASL Truck | E34: 2018 | F34: 10 | G34: 0 | I34: S/L | J34: 10 | K34: =E34+J34 -> 2028 | L34: =+K34+(F34/12) -> 2028.833333 | M34: 339628.44 | N34: =M34-M34*G34 -> 339628.44 | O34: =N34/J34/12 -> 2830.237 | P34: =+O34*12 -> 33962.844 | Q34: =+IF(L34<=$N$5,0,IF(K34>$N$4,P34,(O34*F34))) -> 33962.844 | S34: =+IF(Q34=0,M34,IF($N$3-E34<1,0,(($N$3-E34)*P34))) -> 101888.532 | T34: =+IF(Q34=0,S34,S34+Q34) -> 135851.376 | U34: =+M34-T34 -> 203777.064 | W34: =Q34*V34 -> 0 | X34: =U34*V34 -> 0
A35: 218618 | C35: 5015 | D35: 2019 ASL Peterbilt/Labrie (31 yd) | E35: 2019 | F35: 9 | G35: 0 | I35: S/L | J35: 10 | K35: =E35+J35 -> 2029 | L35: =+K35+(F35/12) -> 2029.75 | M35: 359143.82 | N35: =M35-M35*G35 -> 359143.82 | O35: =N35/J35/12 -> 2992.865167 | P35: =+O35*12 -> 35914.382 | Q35: =+IF(L35<=$N$5,0,IF(K35>$N$4,P35,(O35*F35))) -> 35914.382 | S35: =+IF(Q35=0,M35,IF($N$3-E35<1,0,(($N$3-E35)*P35))) -> 71828.764 | T35: =+IF(Q35=0,S35,S35+Q35) -> 107743.146 | U35: =+M35-T35 -> 251400.674 | W35: =Q35*V35 -> 0 | X35: =U35*V35 -> 0
A36: 223826/ 218618 | C36: 5015 | D36: Coropla Signs | E36: 2019 | F36: 11 | G36: 0 | I36: S/L | J36: 10 | K36: =E36+J36 -> 2029 | L36: =+K36+(F36/12) -> 2029.916667 | M36: 1502.23 | N36: =M36-M36*G36 -> 1502.23 | O36: =N36/J36/12 -> 12.51858333 | P36: =+O36*12 -> 150.223 | Q36: =+IF(L36<=$N$5,0,IF(K36>$N$4,P36,(O36*F36))) -> 150.223 | S36: =+IF(Q36=0,M36,IF($N$3-E36<1,0,(($N$3-E36)*P36))) -> 300.446 | T36: =+IF(Q36=0,S36,S36+Q36) -> 450.669 | U36: =+M36-T36 -> 1051.561 | W36: =Q36*V36 -> 0 | X36: =U36*V36 -> 0
D37: Arm | E37: 2020 | F37: 5 | G37: 0 | I37: S/L | J37: 3 | K37: =E37+J37 -> 2023 | L37: =+K37+(F37/12) -> 2023.416667 | M37: 3560.46 | N37: =M37-M37*G37 -> 3560.46 | O37: =N37/J37/12 -> 98.90166667 | P37: =+O37*12 -> 1186.82 | Q37: =+IF(L37<=$N$5,0,IF(K37>$N$4,P37,(O37*F37))) -> 1186.82 | S37: =+IF(Q37=0,M37,IF($N$3-E37<1,0,(($N$3-E37)*P37))) -> 1186.82 | T37: =+IF(Q37=0,S37,S37+Q37) -> 2373.64 | U37: =+M37-T37 -> 1186.82 | W37: =Q37*V37 -> 0 | X37: =U37*V37 -> 0
P39: Amortize Remaining NBV Over 3 Years | Q39: =-(SUM(Q13,Q15,Q17,Q19,Q21,Q23,Q33)/3)*2 -> -53354.95162
M41: =SUM(M12:M40) -> 2257998.78 | N41: =SUM(N12:N40) -> 2257998.78 | O41: =SUM(O12:O40) -> 26971.69607 | P41: =SUM(P12:P40) -> 323660.3529 | Q41: =SUM(Q12:Q40) -> 154989.3886 | S41: =SUM(S12:S40) -> 1364609.463 | T41: =SUM(T12:T40) -> 1547257.493 | U41: =SUM(U12:U40) -> 710741.2868 | W41: =SUM(W12:W40) -> 0 | X41: =SUM(X12:X40) -> 0
D43: MIXED - RECYCLING & MSW
A44: 187422, 187423 | C44: 5013 | D44: 2009 REL Truck | E44: 2009 | F44: 3 | G44: 0 | I44: S/L | J44: 10 | K44: =E44+J44 -> 2019 | L44: =+K44+(F44/12) -> 2019.25 | M44: 175471.9 | N44: =M44-M44*G44 -> 175471.9 | O44: =N44/J44/12 -> 1462.265833 | P44: =+O44*12 -> 17547.19 | Q44: =+IF(L44<=$N$5,0,IF(K44>$N$4,P44,(O44*F44))) -> 0 | S44: =+IF(Q44=0,M44,IF($N$3-E44<1,0,(($N$3-E44)*P44))) -> 175471.9 | T44: =+IF(Q44=0,S44,S44+Q44) -> 175471.9 | U44: =+M44-T44 -> 0 | W44: =Q44*V44 -> 0 | X44: =U44*V44 -> 0
A45: 186154 | C45: 5007 | D45: 2018 ASL Truck | E45: 2017 | F45: 9 | G45: 0 | I45: S/L | J45: 10 | K45: =E45+J45 -> 2027 | L45: =+K45+(F45/12) -> 2027.75 | M45: 341677.84 | N45: =M45-M45*G45 -> 341677.84 | O45: =N45/J45/12 -> 2847.315333 | P45: =+O45*12 -> 34167.784 | Q45: =+IF(L45<=$N$5,0,IF(K45>$N$4,P45,(O45*F45))) -> 34167.784 | S45: =+IF(Q45=0,M45,IF($N$3-E45<1,0,(($N$3-E45)*P45))) -> 136671.136 | T45: =+IF(Q45=0,S45,S45+Q45) -> 170838.92 | U45: =+M45-T45 -> 170838.92 | W45: =Q45*V45 -> 0 | X45: =U45*V45 -> 0
A46: 186154, 188087 | D46: Radio System for ASL | E46: 2017 | F46: 10 | G46: 0 | I46: S/L | J46: 5 | K46: 2022 | L46: 2022.833333 | M46: 1002.38 | N46: 1002.38 | O46: 16.70633333 | P46: 200.476 | Q46: 167.0633333 | S46: 801.904 | T46: 968.9673333 | U46: 33.41266667 | W46: 0 | X46: 0
M48: =SUM(M44:M47) -> 518152.12 | N48: =SUM(N44:N47) -> 518152.12 | O48: =SUM(O44:O47) -> 4326.2875 | P48: 51915.45 | Q48: 34334.84733 | R48: 0 | S48: 312944.94 | T48: 347279.7873 | U48: 170872.3327 | W48: =SUM(W45:W47) -> 0 | X48: =SUM(X45:X47) -> 0
D50: ROLL OFF TRUCKS
B51: RO | C51: 5036 | D51: 2007 Sterln LT9600 (N) | E51: 2007 | F51: 2 | G51: 0 | I51: S/L | J51: 7 | K51: =E51+J51 -> 2014 | L51: =+K51+(F51/12) -> 2014.166667 | M51: =+'2144 Trks Orig'!Q39 -> 110918.248 | N51: =M51-M51*G51 -> 110918.248 | O51: =N51/J51/12 -> 1320.455333 | P51: =+O51*12 -> 15845.464 | Q51: =+IF(L51<=$N$5,0,IF(K51>$N$4,P51,(O51*F51))) -> 0 | S51: =+IF(Q51=0,M51,IF($N$3-E51<1,0,(($N$3-E51)*P51))) -> 110918.248 | T51: =+IF(Q51=0,S51,S51+Q51) -> 110918.248 | U51: =+M51-T51 -> 0 | W51: =Q51*V51 -> 0 | X51: =U51*V51 -> 0
C52: 5036 | D52: Truck #5036 Amort of Salvage | E52: 2020 | F52: 6 | G52: 0 | I52: S/L | J52: 3 | K52: 2023 | L52: 2023.5 | M52: =+'2144 Trks Orig'!O39-'2144 Trks'!M51 -> 27729.562 | N52: 27729.562 | O52: 770.2656111 | P52: 9243.187333 | Q52: 9243.187333 | S52: 9243.187333 | T52: 18486.37467 | U52: 9243.187333 | W52: 0 | X52: 0
B53: RO | C53: 5037 | D53: 2007 Sterln LT9600 (N) | E53: 2007 | F53: 6 | G53: 0 | I53: S/L | J53: 7 | K53: 2014 | L53: 2014.5 | M53: =+'2144 Trks Orig'!Q40 -> 108651.856 | N53: 108651.856 | O53: 1293.474476 | P53: 15521.69371 | Q53: 0 | S53: 108651.856 | T53: 108651.856 | U53: 0 | W53: 0 | X53: 0
C54: 5037 | D54: Truck #5037 Amort of Salvage | E54: 2020 | F54: 6 | G54: 0 | I54: S/L | J54: 3 | K54: =E54+J54 -> 2023 | L54: =+K54+(F54/12) -> 2023.5 | M54: =+'2144 Trks Orig'!O40-'2144 Trks'!M53 -> 27162.964 | N54: 27162.964 | O54: 754.5267778 | P54: 9054.321333 | Q54: =+IF(L54<=$N$5,0,IF(K54>$N$4,P54,(O54*F54))) -> 9054.321333 | S54: =+IF(Q54=0,M54,IF($N$3-E54<1,0,(($N$3-E54)*P54))) -> 9054.321333 | T54: =+IF(Q54=0,S54,S54+Q54) -> 18108.64267 | U54: =+M54-T54 -> 9054.321333 | W54: 0 | X54: 0
B55: RO | D55: Drive Cam (4) | E55: 2010 | F55: 5 | G55: 0 | I55: S/L | J55: 7 | K55: 2017 | L55: 2017.416667 | M55: =+'2144 Trks Orig'!Q41 -> 3478.4 | N55: 3478.4 | O55: 41.40952381 | P55: 496.9142857 | Q55: 0 | S55: 3478.4 | T55: 3478.4 | U55: 0 | W55: 0 | X55: 0
D56: Drive Cam Amort of Salvage | E56: 2020 | F56: 6 | G56: 0 | I56: S/L | J56: 3 | K56: 2023 | L56: 2023.5 | M56: =+'2144 Trks Orig'!O41-'2144 Trks'!M55 -> 869.6 | N56: 869.6 | O56: 24.15555556 | P56: 289.8666667 | Q56: 289.8666667 | S56: 289.8666667 | T56: 579.7333333 | U56: 289.8666667 | W56: 0 | X56: 0
A57: 109830 | D57: 3 Truck Radios | E57: 2013 | F57: 12 | G57: 0 | I57: S/L | J57: 5 | K57: 2018 | L57: 2019 | M57: =1101.59*3 -> 3304.77 | N57: 3304.77 | O57: 55.0795 | P57: 660.954 | Q57: 0 | S57: 3304.77 | T57: 3304.77 | U57: 0 | W57: 0 | X57: 0
A58: 115085 | B58: RO | C58: 5036 | D58: RO Tarper #5036 | E58: 2014 | F58: 8 | G58: 0 | I58: S/L | J58: 3 | K58: 2017 | L58: 2017.666667 | M58: 6532.56 | N58: 6532.56 | O58: 181.46 | P58: 2177.52 | Q58: 0 | S58: 6532.56 | T58: 6532.56 | U58: 0 | W58: 0 | X58: 0
A59: 119113 | B59: RO | C59: 5037 | D59: Improvement- Auto Tarper | E59: 2015 | F59: 1 | G59: 0 | I59: S/L | J59: 3 | K59: 2018 | L59: 2018.083333 | M59: 5014.96 | N59: 5014.96 | O59: 139.3044444 | P59: 1671.653333 | Q59: 0 | S59: 5014.96 | T59: 5014.96 | U59: 0 | W59: 0 | X59: 0
A60: 124719 | B60: RO | C60: 5037 | D60: Transmission | E60: 2015 | F60: 8 | G60: 0 | I60: S/L | J60: 3 | K60: 2018 | L60: 2018.666667 | M60: 9352.18 | N60: 9352.18 | O60: 259.7827778 | P60: 3117.393333 | Q60: 0 | S60: 9352.18 | T60: 9352.18 | U60: 0 | W60: 0 | X60: 0
A61: 197551/ 199113 | B61: RO | C61: 5026 | D61: 2018 Peterbilt 567 Rolloff Truck | E61: 2018 | F61: 5 | G61: 0 | I61: S/L | J61: 10 | K61: 2028 | L61: 2028.416667 | M61: =164086.09+66654.84 -> 230740.93 | N61: 230740.93 | O61: 1922.841083 | P61: 23074.093 | Q61: 23074.093 | S61: 69222.279 | T61: 92296.372 | U61: 138444.558 | W61: 0 | X61: 0
A62: 202702/197551 | C62: 5026 | D62: Radio Installation | E62: 2018 | F62: 5 | G62: 0 | I62: S/L | J62: 5 | K62: 2023 | L62: 2023.416667 | M62: 1510.87 | N62: 1510.87 | O62: 25.18116667 | P62: 302.174 | Q62: 302.174 | S62: 906.522 | T62: 1208.696 | U62: 302.174 | W62: 0 | X62: 0
A63: 212191 | B63: RO | C63: 5036 | D63: Truck 5036 Head Gasket Repair | E63: 2019 | F63: 2 | G63: 0 | I63: S/L | J63: 3 | K63: 2022 | L63: 2022.166667 | M63: 12907.95 | N63: 12907.95 | O63: 358.5541667 | P63: 4302.65 | Q63: 0 | S63: 12907.95 | T63: 12907.95 | U63: 0 | W63: 0 | X63: 0
P64: Amortize Remaining NBV Over 3 Years | Q64: =-(SUM(Q51:Q56)/3)*2 -> -12391.58356 | R64: =-(SUM(S38,S40,S42,S44,S46,S48,S58)/3)*2 -> -330500.8693
M65: =SUM(M51:M64) -> 548174.85 | N65: =SUM(N51:N64) -> 548174.85 | O65: =SUM(O51:O64) -> 7146.490417 | P65: =SUM(P51:P64) -> 85757.885 | Q65: =SUM(Q51:Q64) -> 29572.05878 | S65: =SUM(S51:S64) -> 348877.1003 | T65: =SUM(T51:T64) -> 390840.7427 | U65: =SUM(U51:U64) -> 157334.1073 | W65: =SUM(W51:W64) -> 0 | X65: =SUM(X51:X64) -> 0
D67: LONG HAUL TRUCKS
A68: 109830 | D68: 4 Truck Radios | E68: 2013 | F68: 12 | G68: 0 | I68: S/L | J68: 7 | K68: =E68+J68 -> 2020 | L68: =+K68+(F68/12) -> 2021 | M68: =1101.59*4 -> 4406.36 | N68: =M68-M68*G68 -> 4406.36 | O68: =N68/J68/12 -> 52.45666667 | P68: =+O68*12 -> 629.48 | Q68: =+IF(L68<=$N$5,0,IF(K68>$N$4,P68,(O68*F68))) -> 0 | S68: =+IF(Q68=0,M68,IF($N$3-E68<1,0,(($N$3-E68)*P68))) -> 4406.36 | T68: =+IF(Q68=0,S68,S68+Q68) -> 4406.36 | U68: =+M68-T68 -> 0 | V68: 0 | W68: =Q68*V68 -> 0 | X68: =U68*V68 -> 0
C69: 130761 | D69: 2009 53' Trailer | E69: 2016 | F69: 3 | G69: 0 | I69: S/L | J69: 3 | K69: =E69+J69 -> 2019 | L69: =+K69+(F69/12) -> 2019.25 | M69: 25087.2 | N69: =M69-M69*G69 -> 25087.2 | O69: =N69/J69/12 -> 696.8666667 | P69: =+O69*12 -> 8362.4 | Q69: =+IF(L69<=$N$5,0,IF(K69>$N$4,P69,(O69*F69))) -> 0 | S69: =+IF(Q69=0,M69,IF($N$3-E69<1,0,(($N$3-E69)*P69))) -> 25087.2 | T69: =+IF(Q69=0,S69,S69+Q69) -> 25087.2 | U69: =+M69-T69 -> 0 | V69: 0 | W69: =Q69*V69 -> 0 | X69: =U69*V69 -> 0
A70: 187379, 190461 | D70: 2014 Road Tractor | E70: 2017 | F70: 10 | G70: 0 | I70: S/L | J70: 6 | K70: =E70+J70 -> 2023 | L70: =+K70+(F70/12) -> 2023.833333 | M70: =95178+864.17 -> 96042.17 | N70: =M70-M70*G70 -> 96042.17 | O70: =N70/J70/12 -> 1333.919028 | P70: =+O70*12 -> 16007.02833 | Q70: =+IF(L70<=$N$5,0,IF(K70>$N$4,P70,(O70*F70))) -> 16007.02833 | S70: =+IF(Q70=0,M70,IF($N$3-E70<1,0,(($N$3-E70)*P70))) -> 64028.11333 | T70: =+IF(Q70=0,S70,S70+Q70) -> 80035.14167 | U70: =+M70-T70 -> 16007.02833 | V70: 0 | W70: =Q70*V70 -> 0 | X70: =U70*V70 -> 0
M72: =SUM(M68:M71) -> 125535.73 | N72: =SUM(N68:N71) -> 125535.73 | O72: =SUM(O68:O71) -> 2083.242361 | P72: =SUM(P68:P71) -> 24998.90833 | Q72: =SUM(Q68:Q71) -> 16007.02833 | S72: =SUM(S68:S71) -> 93521.67333 | T72: =SUM(T68:T71) -> 109528.7017 | U72: =SUM(U68:U71) -> 16007.02833 | W72: =SUM(W68:W71) -> 0 | X72: =SUM(X68:X71) -> 0
D74: DELIVERY TRUCKS
M76: =SUM(M74:M75) -> 0 | N76: =SUM(N74:N75) -> 0 | O76: 0 | P76: 0 | Q76: 0 | S76: 0 | T76: 0 | U76: 0
D78: Total Trucks | M78: =M41+M65+M48+M72 -> 3449861.48 | N78: =N41+N65+N48+N72 -> 3449861.48 | O78: =O41+O65+O48+O72 -> 40527.71635 | P78: =P41+P65+P48+P72 -> 486332.5962 | Q78: =Q41+Q65+Q48+Q72 -> 234903.323 | S78: =S41+S65+S48+S72 -> 2119953.177 | T78: =T41+T65+T48+T72 -> 2394906.725 | U78: =U41+U65+U48+U72 -> 1054954.755 | W78: =W41+W65+W48+W72 -> 0 | X78: =X41+X65+X48+X72 -> 0
D85: Retired/Transferred 2018
B86: SL | C86: 3545 | D86: 1997 Volvo H (U) | E86: 2008 | F86: 11 | G86: 0.33 | I86: S/L | J86: 5 | K86: =E86+J86 -> 2013 | L86: =+K86+(F86/12) -> 2013.916667 | M86: 18500 | N86: =M86-M86*G86 -> 12395 | O86: =N86/J86/12 -> 206.5833333 | P86: =+O86*12 -> 2479 | Q86: =+IF(L86<=$N$5,0,IF(K86>$N$4,P86,(O86*F86))) -> 0 | S86: =+IF(Q86=0,M86,IF($N$3-E86<1,0,(($N$3-E86)*P86))) -> 18500 | T86: =+IF(Q86=0,S86,S86+Q86) -> 18500 | U86: =+M86-T86 -> 0 | W86: =+IF(R86<=$N$5,0,IF(Q86>$N$4,V86,(U86*L86))) -> 0 | X86: =+P86-W86 -> 2479
B87: SL | C87: 3547 | D87: 1998 Volvo H (U) | E87: 2008 | F87: 11 | G87: 0.33 | I87: S/L | J87: 5 | K87: =E87+J87 -> 2013 | L87: =+K87+(F87/12) -> 2013.916667 | M87: 18500 | N87: =M87-M87*G87 -> 12395 | O87: =N87/J87/12 -> 206.5833333 | P87: =+O87*12 -> 2479 | Q87: =+IF(L87<=$N$5,0,IF(K87>$N$4,P87,(O87*F87))) -> 0 | S87: =+IF(Q87=0,M87,IF($N$3-E87<1,0,(($N$3-E87)*P87))) -> 18500 | T87: =+IF(Q87=0,S87,S87+Q87) -> 18500 | U87: =+M87-T87 -> 0 | W87: =+IF(R87<=$N$5,0,IF(Q87>$N$4,V87,(U87*L87))) -> 0 | X87: =+P87-W87 -> 2479
D90: Retired/Transferred 2019
B91: RL | C91: 5008 | D91: 2004 Int'l 7400 RL W/P (N) | E91: 2004 | F91: 5 | G91: 0 | I91: S/L | J91: 7 | K91: =E91+J91 -> 2011 | L91: =+K91+(F91/12) -> 2011.416667 | M91: =+'2144 Trks Orig'!Q14 -> 96061.6 | N91: =M91-M91*G91 -> 96061.6 | O91: =N91/J91/12 -> 1143.590476 | P91: =+O91*12 -> 13723.08571 | Q91: =+IF(L91<=$N$5,0,IF(K91>$N$4,P91,(O91*F91))) -> 0 | S91: =+IF(Q91=0,M91,IF($N$3-E91<1,0,(($N$3-E91)*P91))) -> 96061.6 | T91: =+IF(Q91=0,S91,S91+Q91) -> 96061.6 | U91: =+M91-T91 -> 0 | W91: =+IF(R91<=$N$5,0,IF(Q91>$N$4,V91,(U91*L91))) -> 0 | X91: =+P91-W91 -> 13723.08571
C92: 5008 | D92: Truck #5008 Amort of Salvage | E92: 2020 | F92: 6 | G92: 0 | I92: S/L | J92: 3 | K92: 2023 | L92: 2023.5 | M92: =+'2144 Trks Orig'!O14-'2144 Trks'!M91 -> 24015.4 | N92: 24015.4 | O92: 667.0944444 | P92: 8005.133333 | Q92: 8005.133333 | S92: 8005.133333 | T92: 16010.26667 | U92: 8005.133333 | W92: 0 | X92: 8005.133333
D93: Fleet Upgrade | E93: 2002 | F93: 2 | G93: 0 | I93: S/L | J93: 3 | K93: 2005 | L93: 2005.166667 | M93: 4465 | N93: 4465 | O93: 124.0277778 | P93: 1488.333333 | Q93: 0 | S93: 4465 | T93: 4465 | U93: 0 | W93: 0 | X93: 1488.333333
D94: Fleet Upgrade | E94: 2002 | F94: 5 | G94: 0 | I94: S/L | J94: 3 | K94: 2005 | L94: 2005.416667 | M94: 4525 | N94: 4525 | O94: 125.6944444 | P94: 1508.333333 | Q94: 0 | S94: 4525 | T94: 4525 | U94: 0 | W94: 0 | X94: 1508.333333
B95: RL | C95: 5003 | D95: 2005 Int'l 7400 RL W/P (N) | E95: 2004 | F95: 12 | G95: 0 | I95: S/L | J95: 7 | K95: 2011 | L95: 2012 | M95: =+'2144 Trks Orig'!Q15 -> 101661.6 | N95: 101661.6 | O95: 1210.257143 | P95: 14523.08571 | Q95: 0 | S95: 101661.6 | T95: 101661.6 | U95: 0 | V95: Scrapped Jan 2020 | W95: 0 | X95: 14523.08571
C96: 5003 | D96: Truck #5003 Amort of Salvage | E96: 2020 | F96: 6 | G96: 0 | I96: S/L | J96: 3 | K96: 2023 | L96: 2023.5 | M96: =+'2144 Trks Orig'!O15-'2144 Trks'!M95 -> 25415.4 | N96: 25415.4 | O96: 705.9833333 | P96: 8471.8 | Q96: 8471.8 | S96: 8471.8 | T96: 16943.6 | U96: 8471.8 | W96: 0 | X96: 8471.8
B97: RL | C97: 5006 | D97: 2006 Int'l RL Pckr | E97: 2006 | F97: 11 | G97: 0 | I97: S/L | J97: 7 | K97: 2013 | L97: 2013.916667 | M97: =+'2144 Trks Orig'!Q16 -> 110632.52 | N97: 110632.52 | O97: 1317.05381 | P97: 15804.64571 | Q97: 0 | S97: 110632.52 | T97: 110632.52 | U97: 0 | V97: Scrapped Jan 2020 | W97: 0 | X97: 15804.64571
C98: 5006 | D98: Truck #5006 Amort of Salvage | E98: 2020 | F98: 6 | G98: 0 | I98: S/L | J98: 3 | K98: 2023 | L98: 2023.5 | M98: =+'2144 Trks Orig'!O16-'2144 Trks'!M97 -> 27658.13 | N98: 27658.13 | O98: 768.2813889 | P98: 9219.376667 | Q98: 9219.376667 | S98: 9219.376667 | T98: 18438.75333 | U98: 9219.376667 | W98: 0 | X98: 9219.376667
A99: 181716 | B99: Trct | D99: 2000 Kenworth T800 | E99: 2002 | F99: 8 | G99: 0 | I99: S/L | J99: 6 | K99: 2008 | L99: 2008.666667 | M99: 65000 | N99: 65000 | O99: 902.7777778 | P99: 10833.33333 | Q99: 0 | S99: 65000 | T99: 65000 | U99: 0 | W99: 0 | X99: 10833.33333

Sheet 2144 Cont, DB
C1: Island Disposal
C2: Depreciation Schedule | M2: =+'2144 Trks'!N2 -> 4 | N2: Months in first year
C3: ='Depr Summary'!H6 -> 2021-11-30 | M3: =+'2144 Trks'!N3 -> 2021 | N3: First Year
I4: 2020 Adds | J4: =SUM(L12,L88) -> 18768.74 | M4: ='2144 Trks'!N4 -> 2022 | N4: Second year
M5: ='2144 Trks'!N5 -> 2022.333333 | N5: Rate Effective Year
I6: Grand Total Containers | J6: =SUM(B12:B46,B52:B71,B76:B80,B85:B88,B94:B96,B100:B101) -> 10602
Q8: Beginning | R8: Ending
C9: GARBAGE CONTAINERS | D9: Date in Service | F9: Salvage | J9: Year | K9: Year/Mo | Q9: Accum | R9: Accum | S9: Average
B10: Quantity | F10: Value | H10: Method | I10: Life | J10: Fully | K10: Fully | L10: Asset | M10: Depr | N10: Monthly | O10: Annual | P10: Test yr. | Q10: Depr | R10: Depr | S10: Investment
A11: Codes | B11: No | C11: Asset Classification | D11: Year | E11: Mo | F11: % | G11: - | H11: M | I11: Years | J11: Depr | K11: Depr | L11: Cost | M11: Cost | N11: Depr | O11: Depr | P11: Depn. | Q11: ='Depr Summary'!F6 -> 2020-12-01 | R11: =+C3 -> 2021-11-30 | S11: =C3 -> 2021-11-30
A12: 237927 | B12: 20 | C12: 2 Yd Containers with Lids | D12: 1988 | E12: 1 | F12: 0 | H12: S/L | I12: 12 | J12: =D12+I12 -> 2000 | K12: =+J12+(E12/12) -> 2000.083333 | L12: 2500 | M12: =L12-L12*F12 -> 2500 | N12: =IFERROR(M12/I12/12,0) -> 17.36111111 | O12: =+N12*12 -> 208.3333333 | P12: =+IF(K12<=$M$5,0,IF(J12>$M$4,O12,(N12*E12))) -> 0 | Q12: =+IF(P12=0,M12,IF($M$3-D12<1,0,(($M$3-D12)*O12))) -> 2500 | R12: =+IF(P12=0,Q12,Q12+P12) -> 2500 | S12: =+L12-R12 -> 0
C13: Containers | D13: 1998 | E13: 5 | F13: 0 | H13: S/L | I13: 10 | J13: =D13+I13 -> 2008 | K13: =+J13+(E13/12) -> 2008.416667 | L13: 10093 | M13: =L13-L13*F13 -> 10093 | N13: =M13/I13/12 -> 84.10833333 | O13: =+N13*12 -> 1009.3 | P13: =+IF(K13<=$M$5,0,IF(J13>$M$4,O13,(N13*E13))) -> 0 | Q13: =+IF(P13=0,M13,IF($M$3-D13<1,0,(($M$3-D13)*O13))) -> 10093 | R13: =+IF(P13=0,Q13,Q13+P13) -> 10093 | S13: =+L13-R13 -> 0
C14: Containers | D14: 1998 | E14: 7 | F14: 0 | H14: S/L | I14: 10 | J14: 2008 | K14: =+J14+(E14/12) -> 2008.583333 | L14: 9888 | M14: 9888 | N14: 82.4 | O14: =+N14*12 -> 988.8 | P14: =+IF(K14<=$M$5,0,IF(J14>$M$4,O14,(N14*E14))) -> 0 | Q14: =+IF(P14=0,M14,IF($M$3-D14<1,0,(($M$3-D14)*O14))) -> 9888 | R14: =+IF(P14=0,Q14,Q14+P14) -> 9888 | S14: =+L14-R14 -> 0
C15: Containers | D15: 1998 | E15: 9 | F15: 0 | H15: S/L | I15: 10 | J15: 2008 | K15: 2008.75 | L15: 9908 | M15: 9908 | N15: 82.56666667 | O15: 990.8 | P15: 0 | Q15: 9908 | R15: 9908 | S15: 0
B16: 12 | C16: 12 1 yd containers | D16: 2000 | E16: 7 | F16: 0 | H16: S/L | I16: 10 | J16: 2010 | K16: 2010.583333 | L16: 6034 | M16: 6034 | N16: 50.28333333 | O16: 603.4 | P16: 0 | Q16: 6034 | R16: 6034 | S16: 0
B17: 12 | C17: 12 1.5 yd containers | D17: 2000 | E17: 7 | F17: 0 | H17: S/L | I17: 10 | J17: 2010 | K17: 2010.583333 | L17: 6425 | M17: 6425 | N17: 53.54166667 | O17: 642.5 | P17: 0 | Q17: 6425 | R17: 6425 | S17: 0
B18: 12 | C18: 12 1 yd containers | D18: 2003 | E18: 1 | F18: 0 | H18: S/L | I18: 10 | J18: 2013 | K18: 2013.083333 | L18: 4896 | M18: 4896 | N18: 40.8 | O18: 489.6 | P18: 0 | Q18: 4896 | R18: 4896 | S18: 0
B19: 12 | C19: 12 2 yd containers | D19: 2003 | E19: 1 | F19: 0 | H19: S/L | I19: 10 | J19: 2013 | K19: 2013.083333 | L19: 5962 | M19: 5962 | N19: 49.68333333 | O19: 596.2 | P19: 0 | Q19: 5962 | R19: 5962 | S19: 0
B20: 12 | C20: 12 2 yd containers | D20: 2005 | E20: 7 | F20: 0 | H20: S/L | I20: 10 | J20: 2015 | K20: 2015.583333 | L20: 7768.32 | M20: 7768.32 | N20: 64.736 | O20: 776.832 | P20: 0 | Q20: 7768.32 | R20: 7768.32 | S20: 0
B21: 12 | C21: 12 1 yd containers | D21: 2005 | E21: 9 | F21: 0 | H21: S/L | I21: 10 | J21: 2015 | K21: 2015.75 | L21: 6780 | M21: 6780 | N21: 56.5 | O21: 678 | P21: 0 | Q21: 6780 | R21: 6780 | S21: 0
B22: 12 | C22: 12 1.5 yd containers | D22: 2005 | E22: 9 | F22: 0 | H22: S/L | I22: 10 | J22: 2015 | K22: 2015.75 | L22: 7050.24 | M22: 7050.24 | N22: 58.752 | O22: 705.024 | P22: 0 | Q22: 7050.24 | R22: 7050.24 | S22: 0
B23: 12 | C23: 1 yd container | D23: 2006 | E23: 8 | F23: 0 | H23: S/L | I23: 10 | J23: 2016 | K23: 2016.666667 | L23: 5287.68 | M23: 5287.68 | N23: 44.064 | O23: 528.768 | P23: 0 | Q23: 5287.68 | R23: 5287.68 | S23: 0
B24: 12 | C24: 1.5 yd container | D24: 2006 | E24: 8 | F24: 0 | H24: S/L | I24: 10 | J24: 2016 | K24: 2016.666667 | L24: 5418.24 | M24: 5418.24 | N24: 45.152 | O24: 541.824 | P24: 0 | Q24: 5418.24 | R24: 5418.24 | S24: 0
B25: 12 | C25: 2 yd container | D25: 2006 | E25: 9 | F25: 0 | H25: S/L | I25: 10 | J25: 2016 | K25: 2016.75 | L25: 5679.36 | M25: 5679.36 | N25: 47.328 | O25: 567.936 | P25: 0 | Q25: 5679.36 | R25: 5679.36 | S25: 0
B26: 31 | C26: 2 yd container | D26: 2007 | E26: 8 | F26: 0 | H26: S/L | I26: 10 | J26: 2017 | K26: 2017.666667 | L26: =1894.36+1894.36+2368.58+2842.29+5684.58 -> 14684.17 | M26: 14684.17 | N26: 122.3680833 | O26: 1468.417 | P26: 0 | Q26: 14684.17 | R26: 14684.17 | S26: 0
B27: 15 | C27: 2 yd container | D27: 2010 | E27: 8 | F27: 0 | H27: S/L | I27: 10 | J27: 2020 | K27: 2020.666667 | L27: 7314.42 | M27: 7314.42 | N27: 60.9535 | O27: 731.442 | P27: 0 | Q27: 7314.42 | R27: 7314.42 | S27: 0
B28: 15 | C28: 1.5 yd container | D28: 2010 | E28: 8 | F28: 0 | H28: S/L | I28: 10 | J28: 2020 | K28: 2020.666667 | L28: 7102.46 | M28: 7102.46 | N28: 59.18716667 | O28: 710.246 | P28: 0 | Q28: 7102.46 | R28: 7102.46 | S28: 0
B29: 15 | C29: 2 yd container | D29: 2011 | E29: 12 | F29: 0 | H29: S/L | I29: 10 | J29: 2021 | K29: 2022 | L29: 7391.25 | M29: 7391.25 | N29: 61.59375 | O29: 739.125 | P29: 0 | Q29: 7391.25 | R29: 7391.25 | S29: 0
B30: 30 | C30: 1 yd w/lids | D30: 2011 | E30: 8 | F30: 0 | H30: S/L | I30: 10 | J30: 2021 | K30: 2021.666667 | L30: =9610.17+7756.83 -> 17367 | M30: 17367 | N30: 144.725 | O30: 1736.7 | P30: 0 | Q30: 17367 | R30: 17367 | S30: 0
A31: 113799 | B31: 18 | C31: 1.5 yd container | D31: 2014 | E31: 6 | F31: 0 | H31: S/L | I31: 10 | J31: 2024 | K31: 2024.5 | L31: 9276.46 | M31: 9276.46 | N31: 77.30383333 | O31: 927.646 | P31: 927.646 | Q31: 6493.522 | R31: 7421.168 | S31: 1855.292
A32: 113798 | B32: 18 | C32: 1 yd container | D32: 2014 | E32: 6 | F32: 0 | H32: S/L | I32: 10 | J32: 2024 | K32: 2024.5 | L32: 8669.91 | M32: 8669.91 | N32: 72.24925 | O32: 866.991 | P32: 866.991 | Q32: 6068.937 | R32: 6935.928 | S32: 1733.982
A33: 114392 | B33: 17 | C33: 2 yd container | D33: 2014 | E33: 7 | F33: 0 | H33: S/L | I33: 10 | J33: 2024 | K33: 2024.583333 | L33: 9582.99 | M33: 9582.99 | N33: 79.85825 | O33: 958.299 | P33: 958.299 | Q33: 6708.093 | R33: 7666.392 | S33: 1916.598
A34: 124519 | B34: 25 | C34: 1 yd container | D34: 2015 | E34: 12 | F34: 0 | H34: S/L | I34: 10 | J34: 2025 | K34: 2026 | L34: 11680.91 | M34: 11680.91 | N34: 97.34091667 | O34: 1168.091 | P34: 1168.091 | Q34: 7008.546 | R34: 8176.637 | S34: 3504.273
A35: 124520 | B35: 20 | C35: 2 yd container | D35: 2015 | E35: 12 | F35: 0 | H35: S/L | I35: 10 | J35: 2025 | K35: 2026 | L35: 10745 | M35: 10745 | N35: 89.54166667 | O35: 1074.5 | P35: 1074.5 | Q35: 6447 | R35: 7521.5 | S35: 3223.5
A36: 124521 | B36: 20 | C36: 1.5 yd container | D36: 2015 | E36: 12 | F36: 0 | H36: S/L | I36: 10 | J36: 2025 | K36: 2026 | L36: 9767.24 | M36: 9767.24 | N36: 81.39366667 | O36: 976.724 | P36: 976.724 | Q36: 5860.344 | R36: 6837.068 | S36: 2930.172
A37: 169975 | B37: 44 | C37: 1.5 yd container | D37: 2016 | E37: 11 | F37: 0 | H37: S/L | I37: 12 | J37: 2028 | K37: 2028.916667 | L37: 22819.4 | M37: 22819.4 | N37: 158.4680556 | O37: 1901.616667 | P37: 1901.616667 | Q37: 9508.083333 | R37: 11409.7 | S37: 11409.7
A38: 169976 | B38: 22 | C38: 2 yd container | D38: 2016 | E38: 11 | F38: 0 | H38: S/L | I38: 12 | J38: 2028 | K38: 2028.916667 | L38: 12799.44 | M38: 12799.44 | N38: 88.885 | O38: 1066.62 | P38: 1066.62 | Q38: 5333.1 | R38: 6399.72 | S38: 6399.72
A39: 187316 | B39: 20 | C39: 1 yd Commercial Containers | D39: 2017 | E39: 9 | F39: 0 | H39: S/L | I39: 12 | J39: 2029 | K39: 2029.75 | L39: 9984.1 | M39: 9984.1 | N39: 69.33402778 | O39: 832.0083333 | P39: 832.0083333 | Q39: 3328.033333 | R39: 4160.041667 | S39: 5824.058333
A40: 187317 | B40: 23 | C40: 1.5 yd Commercial Containers | D40: 2017 | E40: 9 | F40: 0 | H40: S/L | I40: 12 | J40: 2029 | K40: 2029.75 | L40: 11745.04 | M40: 11745.04 | N40: 81.56277778 | O40: 978.7533333 | P40: 978.7533333 | Q40: 3915.013333 | R40: 4893.766667 | S40: 6851.273333
A41: 187318 | B41: 25 | C41: 2 yd Commercial Containers | D41: 2017 | E41: 9 | F41: 0 | H41: S/L | I41: 12 | J41: 2029 | K41: 2029.75 | L41: 13859.26 | M41: 13859.26 | N41: 96.24486111 | O41: 1154.938333 | P41: 1154.938333 | Q41: 4619.753333 | R41: 5774.691667 | S41: 8084.568333
A42: 198002 | B42: 1 | C42: 8 Yd Container | D42: 2018 | E42: 6 | F42: 0 | H42: S/L | I42: 0 | J42: 2018 | K42: 2018.5 | L42: 0 | M42: 0 | N42: =IFERROR(M42/I42/12,0) -> 0 | O42: 0 | P42: 0 | Q42: 0 | R42: 0 | S42: 0
A43: 198001 | B43: 6 | C43: 2 Yd Container | D43: 2018 | E43: 6 | F43: 0 | H43: S/L | I43: 0 | J43: 2018 | K43: 2018.5 | L43: 0 | M43: 0 | N43: =IFERROR(M43/I43/12,0) -> 0 | O43: 0 | P43: 0 | Q43: 0 | R43: 0 | S43: 0
A44: 198000 | B44: 18 | C44: 1 Yd Container | D44: 2018 | E44: 6 | F44: 0 | H44: S/L | I44: 0 | J44: 2018 | K44: 2018.5 | L44: 0 | M44: 0 | N44: =IFERROR(M44/I44/12,0) -> 0 | O44: 0 | P44: 0 | Q44: 0 | R44: 0 | S44: 0
A45: 222637 | B45: 20 | C45: 2 Yd REL Metal Containers | D45: 2019 | E45: 7 | F45: 0 | H45: S/L | I45: 12 | J45: 2031 | K45: 2031.583333 | L45: 14663.63 | M45: 14663.63 | N45: =IFERROR(M45/I45/12,0) -> 101.8307639 | O45: =+N45*12 -> 1221.969167 | P45: =+IF(K45<=$M$5,0,IF(J45>$M$4,O45,(N45*E45))) -> 1221.969167 | Q45: =+IF(P45=0,M45,IF($M$3-D45<1,0,(($M$3-D45)*O45))) -> 2443.938333 | R45: =+IF(P45=0,Q45,Q45+P45) -> 3665.9075 | S45: =+L45-R45 -> 10997.7225
A46: 222014 | B46: 19 | C46: 1 Yard Rear Load Container | D46: 2019 | E46: 7 | F46: 0 | H46: S/L | I46: 12 | J46: 2031 | K46: 2031.583333 | L46: 11875.48 | M46: 11875.48 | N46: =IFERROR(M46/I46/12,0) -> 82.46861111 | O46: =+N46*12 -> 989.6233333 | P46: =+IF(K46<=$M$5,0,IF(J46>$M$4,O46,(N46*E46))) -> 989.6233333 | Q46: =+IF(P46=0,M46,IF($M$3-D46<1,0,(($M$3-D46)*O46))) -> 1979.246667 | R46: =+IF(P46=0,Q46,Q46+P46) -> 2968.87 | S46: 8906.61
C48: GARBAGE CONTAINERS | L48: =SUM(L12:L47) -> 305018 | M48: 305018 | N48: 2402.585625 | O48: 28831.0275 | P48: 14117.78017 | Q48: 217262.7503 | R48: 231380.5305 | S48: 73637.4695
C50: DROP BOXES
B51: 26026 | C51: sales tax | D51: 1994 | E51: 1 | F51: 0 | H51: S/L | I51: 10 | J51: =D51+I51 -> 2004 | K51: =+J51+(E51/12) -> 2004.083333 | L51: 656 | M51: =L51-L51*F51 -> 656 | N51: =M51/I51/12 -> 5.466666667 | O51: =+N51*12 -> 65.6 | P51: =+IF(K51<=$M$5,0,IF(J51>$M$4,O51,(N51*E51))) -> 0 | Q51: =+IF(P51=0,M51,IF($M$3-D51<1,0,(($M$3-D51)*O51))) -> 656 | R51: =+IF(P51=0,Q51,Q51+P51) -> 656 | S51: =+L51-R51 -> 0
B52: 2 | C52: 2 40 yd ok | D52: 2000 | E52: 6 | F52: 0 | H52: S/L | I52: 10 | J52: 2010 | K52: 2010.5 | L52: 8873 | M52: 8873 | N52: 73.94166667 | O52: 887.3 | P52: 0 | Q52: 8873 | R52: 8873 | S52: 0
B53: 20 | C53: 20 yd w/lids | D53: 2006 | E53: 11 | F53: 0 | H53: S/L | I53: 10 | J53: 2016 | K53: 2016.916667 | L53: 99878.4 | M53: 99878.4 | N53: 832.32 | O53: 9987.84 | P53: 0 | Q53: 99878.4 | R53: 99878.4 | S53: 0
B54: 20 | C54: 20 yd w/lids | D54: 2007 | E54: 8 | F54: 0 | H54: S/L | I54: 10 | J54: 2017 | K54: 2017.666667 | L54: =4998.51*20 -> 99970.2 | M54: 99970.2 | N54: 833.085 | O54: 9997.02 | P54: 0 | Q54: 99970.2 | R54: 99970.2 | S54: 0
B55: 2 | C55: 40 yd w/lids | D55: 2011 | E55: 8 | F55: 0 | H55: S/L | I55: 10 | J55: 2021 | K55: 2021.666667 | L55: 14039.69 | M55: 14039.69 | N55: 116.9974167 | O55: 1403.969 | P55: 0 | Q55: 14039.69 | R55: 14039.69 | S55: 0
B56: 4 | C56: 30 yd w/lids | D56: 2011 | E56: 8 | F56: 0 | H56: S/L | I56: 10 | J56: 2021 | K56: 2021.666667 | L56: =6173.07+18896.41 -> 25069.48 | M56: 25069.48 | N56: 208.9123333 | O56: 2506.948 | P56: 0 | Q56: 25069.48 | R56: 25069.48 | S56: 0
B57: 3 | C57: 40 yd w/lids | D57: 2011 | E57: 9 | F57: 0 | H57: S/L | I57: 10 | J57: 2021 | K57: 2021.75 | L57: 20211.68 | M57: 20211.68 | N57: 168.4306667 | O57: 2021.168 | P57: 0 | Q57: 20211.68 | R57: 20211.68 | S57: 0
B58: 1 | C58: 40 yd w/lids | D58: 2011 | E58: 10 | F58: 0 | H58: S/L | I58: 10 | J58: 2021 | K58: 2021.833333 | L58: 6737.23 | M58: 6737.23 | N58: 56.14358333 | O58: 673.723 | P58: 0 | Q58: 6737.23 | R58: 6737.23 | S58: 0
A59: 109810 | B59: 4 | C59: 10 Yd RO Boxes | D59: 2013 | E59: 12 | F59: 0 | H59: S/L | I59: 10 | J59: 2023 | K59: 2024 | L59: 21616.08 | M59: 21616.08 | N59: 180.134 | O59: 2161.608 | P59: 2161.608 | Q59: 17292.864 | R59: 19454.472 | S59: 2161.608
A60: 118362 | B60: 2 | C60: 30 yd w/lids | D60: 2014 | E60: 12 | F60: 0 | H60: S/L | I60: 10 | J60: 2024 | K60: 2025 | L60: 13174.44 | M60: 13174.44 | N60: 109.787 | O60: 1317.444 | P60: 1317.444 | Q60: 9222.108 | R60: 10539.552 | S60: 2634.888
A61: 124463 | B61: 2 | C61: 40 yd RO Boxes | D61: 2015 | E61: 8 | F61: 0 | H61: S/L | I61: 10 | J61: 2025 | K61: 2025.666667 | L61: 0 | M61: 0 | N61: 0 | O61: 0 | P61: 0 | Q61: 0 | R61: 0 | S61: 0
A62: 167136 | B62: 3 | C62: 10 yd RO Boxes | D62: 2016 | E62: 9 | F62: 0 | H62: S/L | I62: 12 | J62: 2028 | K62: 2028.75 | L62: 15700 | M62: 15700 | N62: 109.0277778 | O62: 1308.333333 | P62: 1308.333333 | Q62: 6541.666667 | R62: 7850 | S62: 7850
A63: 167137 | B63: 3 | C63: 30 yd RO Boxes | D63: 2016 | E63: 9 | F63: 0 | H63: S/L | I63: 12 | J63: 2028 | K63: 2028.75 | L63: 17845 | M63: 17845 | N63: 123.9236111 | O63: 1487.083333 | P63: 1487.083333 | Q63: 7435.416667 | R63: 8922.5 | S63: 8922.5
A64: 170769 | B64: 2 | C64: 40 yd RO Boxes | D64: 2016 | E64: 12 | F64: 0 | H64: S/L | I64: 12 | J64: 2028 | K64: 2029 | L64: 14636 | M64: 14636 | N64: 101.6388889 | O64: 1219.666667 | P64: 1219.666667 | Q64: 6098.333333 | R64: 7318 | S64: 7318
A65: 171065 | B65: 2 | C65: 40 yd RO Boxes | D65: 2016 | E65: 12 | F65: 0 | H65: S/L | I65: 12 | J65: 2028 | K65: 2029 | L65: 14636 | M65: 14636 | N65: 101.6388889 | O65: 1219.666667 | P65: 1219.666667 | Q65: 6098.333333 | R65: 7318 | S65: 7318
A66: 185139 | B66: 7 | C66: 20YD RO Boxes with Lids | D66: 2017 | E66: 8 | F66: 0 | H66: S/L | I66: 12 | J66: 2029 | K66: 2029.666667 | L66: 40160 | M66: 40160 | N66: 278.8888889 | O66: 3346.666667 | P66: 3346.666667 | Q66: 13386.66667 | R66: 16733.33333 | S66: 23426.66667
A67: 185140 | B67: 2 | C67: 40YD Rolloff Boxes with lids | D67: 2017 | E67: 8 | F67: 0 | H67: S/L | I67: 12 | J67: 2029 | K67: 2029.666667 | L67: 15035 | M67: 15035 | N67: 104.4097222 | O67: 1252.916667 | P67: 1252.916667 | Q67: 5011.666667 | R67: 6264.583333 | S67: 8770.416667
A68: 198003 | B68: 2 | C68: 30 Yd Roll off Boxes | D68: 2018 | E68: 6 | F68: 0 | H68: S/L | I68: 0 | J68: 2018 | K68: 2018.5 | L68: 0 | M68: 0 | N68: =IFERROR(M68/I68/12,0) -> 0 | O68: 0 | P68: 0 | Q68: 0 | R68: 0 | S68: 0
A69: 206217 | B69: 2 | C69: 20 Yard Roll Off Boxes | D69: 2018 | E69: 9 | F69: 0 | H69: S/L | I69: 12 | J69: 2030 | K69: 2030.75 | L69: 12967 | M69: 12967 | N69: =M69/I69/12 -> 90.04861111 | O69: 1080.583333 | P69: 1080.583333 | Q69: 3241.75 | R69: 4322.333333 | S69: 8644.666667
A70: 206216 | B70: 4 | C70: 20 Yard Roll Off Boxes | D70: 2018 | E70: 9 | F70: 0 | H70: S/L | I70: 12 | J70: 2030 | K70: 2030.75 | L70: 25934 | M70: 25934 | N70: =M70/I70/12 -> 180.0972222 | O70: 2161.166667 | P70: 2161.166667 | Q70: 6483.5 | R70: 8644.666667 | S70: 17289.33333
A71: 205008 | B71: 2 | C71: 40 Yd Rolloff Boxes | D71: 2018 | E71: 9 | F71: 0 | H71: S/L | I71: 12 | J71: 2030 | K71: 2030.75 | L71: 15593 | M71: 15593 | N71: =M71/I71/12 -> 108.2847222 | O71: 1299.416667 | P71: 1299.416667 | Q71: 3898.25 | R71: 5197.666667 | S71: 10395.33333
C73: DROP BOXES | L73: =SUM(L51:L72) -> 482732.2 | M73: 482732.2 | N73: 3783.176667 | O73: 45398.12 | P73: 17854.552 | Q73: 360146.2353 | R73: 378000.7873 | S73: 104731.4127
C75: Regulated Carts
A76: 212748 | B76: =656-406 -> 250 | C76: 96 Gal MSW Carts | D76: 2019 | E76: 4 | F76: 0 | H76: S/L | I76: 7 | J76: =D76+I76 -> 2026 | K76: =+J76+(E76/12) -> 2026.333333 | L76: =32752.49*(0.38109756097561) -> 12481.89405 | M76: =L76-L76*F76 -> 12481.89405 | N76: =M76/I76/12 -> 148.5939768 | O76: =+N76*12 -> 1783.127722 | P76: =+IF(K76<=$M$5,0,IF(J76>$M$4,O76,(N76*E76))) -> 1783.127722 | Q76: =+IF(P76=0,M76,IF($M$3-D76<1,0,(($M$3-D76)*O76))) -> 3566.255444 | R76: =+IF(P76=0,Q76,Q76+P76) -> 5349.383166 | S76: =+L76-R76 -> 7132.510889
A77: 212747 | B77: =1728-150 -> 1578 | C77: 65 Gal MSW Carts | D77: 2019 | E77: 4 | F77: 0 | H77: S/L | I77: 7 | J77: =D77+I77 -> 2026 | K77: =+J77+(E77/12) -> 2026.333333 | L77: =78763*(B77/1728) -> 71925.93403 | M77: =L77-L77*F77 -> 71925.93403 | N77: =M77/I77/12 -> 856.2611194 | O77: =+N77*12 -> 10275.13343 | P77: =+IF(K77<=$M$5,0,IF(J77>$M$4,O77,(N77*E77))) -> 10275.13343 | Q77: =+IF(P77=0,M77,IF($M$3-D77<1,0,(($M$3-D77)*O77))) -> 20550.26687 | R77: =+IF(P77=0,Q77,Q77+P77) -> 30825.4003 | S77: =+L77-R77 -> 41100.53373
A78: 212746 | B78: 400 | C78: 35 Gal MSW Carts | D78: 2019 | E78: 4 | F78: 0 | H78: S/L | I78: 7 | J78: =D78+I78 -> 2026 | K78: =+J78+(E78/12) -> 2026.333333 | L78: =38451*(B78/945) -> 16275.55556 | M78: =L78-L78*F78 -> 16275.55556 | N78: =M78/I78/12 -> 193.7566138 | O78: =+N78*12 -> 2325.079365 | P78: =+IF(K78<=$M$5,0,IF(J78>$M$4,O78,(N78*E78))) -> 2325.079365 | Q78: =+IF(P78=0,M78,IF($M$3-D78<1,0,(($M$3-D78)*O78))) -> 4650.15873 | R78: =+IF(P78=0,Q78,Q78+P78) -> 6975.238095 | S78: =+L78-R78 -> 9300.31746
A79: 225970 | B79: 945 | C79: 35 Gal MSW Carts | D79: 2019 | E79: 9 | F79: 0 | H79: S/L | I79: 7 | J79: =D79+I79 -> 2026 | K79: =+J79+(E79/12) -> 2026.75 | L79: 37637.16 | M79: =L79-L79*F79 -> 37637.16 | N79: =M79/I79/12 -> 448.0614286 | O79: =+N79*12 -> 5376.737143 | P79: =+IF(K79<=$M$5,0,IF(J79>$M$4,O79,(N79*E79))) -> 5376.737143 | Q79: =+IF(P79=0,M79,IF($M$3-D79<1,0,(($M$3-D79)*O79))) -> 10753.47429 | R79: =+IF(P79=0,Q79,Q79+P79) -> 16130.21143 | S79: =+L79-R79 -> 21506.94857
A80: 225969 | B80: 945 | C80: 35 Gal MSW Carts | D80: 2019 | E80: 9 | F80: 0 | H80: S/L | I80: 7 | J80: =D80+I80 -> 2026 | K80: =+J80+(E80/12) -> 2026.75 | L80: 37637.16 | M80: =L80-L80*F80 -> 37637.16 | N80: =M80/I80/12 -> 448.0614286 | O80: =+N80*12 -> 5376.737143 | P80: =+IF(K80<=$M$5,0,IF(J80>$M$4,O80,(N80*E80))) -> 5376.737143 | Q80: =+IF(P80=0,M80,IF($M$3-D80<1,0,(($M$3-D80)*O80))) -> 10753.47429 | R80: =+IF(P80=0,Q80,Q80+P80) -> 16130.21143 | S80: =+L80-R80 -> 21506.94857
B81: =SUM(B76:B80) -> 4118
L82: =SUM(L76:L81) -> 175957.7036 | M82: 175957.7036 | N82: 2094.734567 | O82: 25136.81481 | P82: 25136.81481 | Q82: 50273.62961 | R82: 75410.44442 | S82: 100547.2592
C84: Shared Carts
A85: 212748 | B85: =656-250 -> 406 | C85: 96 Gal MSW Carts | D85: 2019 | E85: 4 | F85: 0 | H85: S/L | I85: 7 | J85: =D85+I85 -> 2026 | K85: =+J85+(E85/12) -> 2026.333333 | L85: =32752.49*(0.61890243902439) -> 20270.59595 | M85: =L85-L85*F85 -> 20270.59595 | N85: =M85/I85/12 -> 241.3166184 | O85: =+N85*12 -> 2895.799421 | P85: =+IF(K85<=$M$5,0,IF(J85>$M$4,O85,(N85*E85))) -> 2895.799421 | Q85: =+IF(P85=0,M85,IF($M$3-D85<1,0,(($M$3-D85)*O85))) -> 5791.598841 | R85: =+IF(P85=0,Q85,Q85+P85) -> 8687.398262 | S85: =+L85-R85 -> 11583.19768
A86: 212747 | B86: 150 | C86: 65 Gal MSW Carts | D86: 2019 | E86: 4 | F86: 0 | H86: S/L | I86: 7 | J86: =D86+I86 -> 2026 | K86: =+J86+(E86/12) -> 2026.333333 | L86: =78763*(B86/1728) -> 6837.065972 | M86: =L86-L86*F86 -> 6837.065972 | N86: =M86/I86/12 -> 81.39364253 | O86: =+N86*12 -> 976.7237103 | P86: =+IF(K86<=$M$5,0,IF(J86>$M$4,O86,(N86*E86))) -> 976.7237103 | Q86: =+IF(P86=0,M86,IF($M$3-D86<1,0,(($M$3-D86)*O86))) -> 1953.447421 | R86: =+IF(P86=0,Q86,Q86+P86) -> 2930.171131 | S86: =+L86-R86 -> 3906.894841
A87: 212746 | B87: =945-(400) -> 545 | C87: 35 Gal MSW Carts | D87: 2019 | E87: 4 | F87: 0 | H87: S/L | I87: 7 | J87: =D87+I87 -> 2026 | K87: =+J87+(E87/12) -> 2026.333333 | L87: =38451*(B87/945) -> 22175.44444 | M87: =L87-L87*F87 -> 22175.44444 | N87: =M87/I87/12 -> 263.9933862 | O87: =+N87*12 -> 3167.920635 | P87: =+IF(K87<=$M$5,0,IF(J87>$M$4,O87,(N87*E87))) -> 3167.920635 | Q87: =+IF(P87=0,M87,IF($M$3-D87<1,0,(($M$3-D87)*O87))) -> 6335.84127 | R87: =+IF(P87=0,Q87,Q87+P87) -> 9503.761905 | S87: =+L87-R87 -> 12671.68254
A88: 236710 | B88: 468 | C88: 64 Gal MSW Carts | D88: 2020 | E88: 7 | F88: 0 | H88: S/L | I88: 7 | J88: =D88+I88 -> 2027 | K88: =+J88+(E88/12) -> 2027.583333 | L88: 16268.74 | M88: =L88-L88*F88 -> 16268.74 | N88: =M88/I88/12 -> 193.6754762 | O88: =+N88*12 -> 2324.105714 | P88: =+IF(K88<=$M$5,0,IF(J88>$M$4,O88,(N88*E88))) -> 2324.105714 | Q88: =+IF(P88=0,M88,IF($M$3-D88<1,0,(($M$3-D88)*O88))) -> 2324.105714 | R88: =+IF(P88=0,Q88,Q88+P88) -> 4648.211429 | S88: =+L88-R88 -> 11620.52857
B89: =SUM(B85:B88) -> 1569
L90: =SUM(L85:L89) -> 65551.84636 | M90: 65551.84636 | N90: 780.3791234 | O90: 9364.54948 | P90: 9364.54948 | Q90: 16404.99325 | R90: 25769.54273 | S90: 39782.30364
B91: =B81+B89 -> 5687
C93: Whidbey Island (Naval Base):
B94: 1800 | C94: 95 Gallon | D94: 2010 | E94: 11 | F94: 0 | H94: S/L | I94: 10 | J94: =D94+I94 -> 2020 | K94: =+J94+(E94/12) -> 2020.916667 | L94: 89944.88 | M94: =L94-L94*F94 -> 89944.88 | N94: =M94/I94/12 -> 749.5406667 | O94: =+N94*12 -> 8994.488 | P94: =+IF(K94<=$M$5,0,IF(J94>$M$4,O94,(N94*E94))) -> 0 | Q94: =+IF(P94=0,M94,IF($M$3-D94<1,0,(($M$3-D94)*O94))) -> 89944.88 | R94: =+IF(P94=0,Q94,Q94+P94) -> 89944.88 | S94: =+L94-R94 -> 0
B95: 1800 | C95: 65 Gallon | D95: 2010 | E95: 11 | F95: 0 | H95: S/L | I95: 10 | J95: =D95+I95 -> 2020 | K95: =+J95+(E95/12) -> 2020.916667 | L95: 76072.61 | M95: =L95-L95*F95 -> 76072.61 | N95: =M95/I95/12 -> 633.9384167 | O95: =+N95*12 -> 7607.261 | P95: =+IF(K95<=$M$5,0,IF(J95>$M$4,O95,(N95*E95))) -> 0 | Q95: =+IF(P95=0,M95,IF($M$3-D95<1,0,(($M$3-D95)*O95))) -> 76072.61 | R95: =+IF(P95=0,Q95,Q95+P95) -> 76072.61 | S95: =+L95-R95 -> 0
B96: =486+164 -> 650 | C96: 95 Gallon | D96: 2012 | E96: 12 | F96: 0 | H96: S/L | I96: 10 | J96: =D96+I96 -> 2022 | K96: =+J96+(E96/12) -> 2023 | L96: =26171.15+8889.48 -> 35060.63 | M96: =L96-L96*F96 -> 35060.63 | N96: =M96/I96/12 -> 292.1719167 | O96: =+N96*12 -> 3506.063 | P96: =+IF(K96<=$M$5,0,IF(J96>$M$4,O96,(N96*E96))) -> 3506.063 | Q96: =+IF(P96=0,M96,IF($M$3-D96<1,0,(($M$3-D96)*O96))) -> 31554.567 | R96: =+IF(P96=0,Q96,Q96+P96) -> 35060.63 | S96: =+L96-R96 -> 0
B97: =SUM(B94:B96) -> 4250
L98: =SUM(L94:L97) -> 201078.12 | M98: =SUM(M94:M97) -> 201078.12 | N98: 1675.651 | O98: 20107.812 | P98: 3506.063 | Q98: 197572.057 | R98: 201078.12 | S98: 0
A99: Total Carts | B99: =B91+B97 -> 9937
B100: 10 | C100: 20 yd w/lids | D100: 2007 | E100: 8 | F100: 0 | H100: S/L | I100: 10 | J100: =D100+I100 -> 2017 | K100: =+J100+(E100/12) -> 2017.666667 | L100: =4998.51*10 -> 49985.1 | M100: =L100-L100*F100 -> 49985.1 | N100: =M100/I100/12 -> 416.5425 | O100: =+N100*12 -> 4998.51 | P100: =+IF(K100<=$M$5,0,IF(J100>$M$4,O100,(N100*E100))) -> 0 | Q100: =+IF(P100=0,M100,IF($M$3-D100<1,0,(($M$3-D100)*O100))) -> 49985.1 | R100: =+IF(P100=0,Q100,Q100+P100) -> 49985.1 | S100: =+L100-R100 -> 0
B101: 4 | C101: 20 yard Recycle Box | D101: 2010 | E101: 11 | F101: 0 | H101: S/L | I101: 10 | J101: =D101+I101 -> 2020 | K101: =+J101+(E101/12) -> 2020.916667 | L101: 28940.29 | M101: =L101-L101*F101 -> 28940.29 | N101: =M101/I101/12 -> 241.1690833 | O101: =+N101*12 -> 2894.029 | P101: =+IF(K101<=$M$5,0,IF(J101>$M$4,O101,(N101*E101))) -> 0 | Q101: =+IF(P101=0,M101,IF($M$3-D101<1,0,(($M$3-D101)*O101))) -> 28940.29 | R101: =+IF(P101=0,Q101,Q101+P101) -> 28940.29 | S101: =+L101-R101 -> 0
L103: =SUM(L100:L102) -> 78925.39 | M103: =SUM(M100:M102) -> 78925.39 | N103: 657.7115833 | O103: 7892.539 | P103: 0 | Q103: 78925.39 | R103: 78925.39 | S103: 0
L105: =+L98+L103 -> 280003.51 | M105: 280003.51 | N105: 2333.362583 | O105: 28000.351 | P105: 3506.063 | Q105: 276497.447 | R105: 280003.51 | S105: 0
L107: =+L82+L73+L48+L90+L105 -> 1309263.26 | M107: 1309263.26 | N107: 11394.23857 | O107: 136730.8628 | P107: 69979.75945 | Q107: 920585.0555 | R107: 990564.815 | S107: 318698.445
C111: Proformas Removed by AML 1.3.22
A113: PROFORMA | B113: 48 | C113: REL Metal 1, 1.5, 2 yd | D113: 2020 | E113: 7 | F113: 0 | H113: S/L | I113: 12 | J113: =D113+I113 -> 2032 | K113: =+J113+(E113/12) -> 2032.583333 | L113: 30000 | M113: =L113-L113*F113 -> 30000 | N113: =IFERROR(M113/I113/12,0) -> 208.3333333 | O113: =+N113*12 -> 2500 | P113: =+IF(K113<=$M$5,0,IF(J113>$M$4,O113,(N113*E113))) -> 2500 | Q113: =+IF(P113=0,M113,IF($M$3-D113<1,0,(($M$3-D113)*O113))) -> 2500 | R113: =+IF(P113=0,Q113,Q113+P113) -> 5000 | S113: =+L113-R113 -> 25000
A114: PROFORMA | B114: 1560 | C114: MSW Carts - 35, 64, 95 gal | D114: 2020 | E114: 7 | F114: 0 | H114: S/L | I114: 7 | J114: =D114+I114 -> 2027 | K114: =+J114+(E114/12) -> 2027.583333 | L114: 55000 | M114: =L114-L114*F114 -> 55000 | N114: =M114/I114/12 -> 654.7619048 | O114: =+N114*12 -> 7857.142857 | P114: =+IF(K114<=$M$5,0,IF(J114>$M$4,O114,(N114*E114))) -> 7857.142857 | Q114: =+IF(P114=0,M114,IF($M$3-D114<1,0,(($M$3-D114)*O114))) -> 7857.142857 | R114: =+IF(P114=0,Q114,Q114+P114) -> 15714.28571 | S114: =+L114-R114 -> 39285.71429

Sheet 2144 Shop,Serv
D1: Island Disposal
D2: Depreciation Schedule | M2: =+'2144 Trks'!N2 -> 4 | N2: Months in first year
D3: ='Depr Summary'!H6 -> 2021-11-30 | M3: =+'2144 Trks'!N3 -> 2021 | N3: First Year
G4: 2020 Adds | H4: =SUM(L33:L35) -> 22379.62 | M4: =+'2144 Trks'!N4 -> 2022 | N4: Second year
M5: =+'2144 Trks'!N5 -> 2022.333333 | N5: Rate Effective Year
Q8: Beginning | R8: Ending
E9: Date in Service | G9: Salvage | J9: Year | K9: Year/Mo | Q9: Accum | R9: Accum | S9: Average
B10: Quantity | D10: Shop Equipment | G10: Value | H10: Method | I10: Life | J10: Fully | K10: Fully | L10: Asset | M10: Depr | N10: Monthly | O10: Annual | P10: Test yr. | Q10: Depr | R10: Depr | S10: Investment
A11: Codes | B11: No | C11: FAR | D11: Asset Classification | E11: Year | F11: Mo | G11: % | H11: M | I11: Years | J11: Depr | K11: Depr | L11: Cost | M11: Cost | N11: Depr | O11: Depr | P11: Depn. | Q11: ='Depr Summary'!F6 -> 2020-12-01 | R11: =+D3 -> 2021-11-30 | S11: =D3 -> 2021-11-30
C12: 88214 | D12: Shop Lighting | E12: 2011 | F12: 12 | G12: 0 | H12: S/L | I12: 7 | J12: =E12+I12 -> 2018 | K12: =+J12+(F12/12) -> 2019 | L12: 5261.08 | M12: =L12-L12*G12 -> 5261.08 | N12: =M12/I12/12 -> 62.63190476 | O12: =+N12*12 -> 751.5828571 | P12: =+IF(K12<=$M$5,0,IF(J12>$M$4,O12,(N12*F12))) -> 0 | Q12: =+IF(P12=0,M12,IF($M$3-E12<1,0,(($M$3-E12)*O12))) -> 5261.08 | R12: =+IF(P12=0,Q12,Q12+P12) -> 5261.08 | S12: =+L12-R12 -> 0
C13: 88156 | D13: Bobcat 54 Sweeper Attach | E13: 2011 | F13: 12 | G13: 0 | H13: S/L | I13: 7 | J13: 2018 | K13: 2019 | L13: 2771.85 | M13: 2771.85 | N13: 32.99821429 | O13: 395.9785714 | P13: 0 | Q13: 2771.85 | R13: 2771.85 | S13: 0
C14: 80814 | D14: Diagnostic Laptop (shop) | E14: 2011 | F14: 1 | G14: 0 | H14: S/L | I14: 5 | J14: 2016 | K14: 2016.083333 | L14: =1583.32+5660 -> 7243.32 | M14: 7243.32 | N14: 120.722 | O14: 1448.664 | P14: 0 | Q14: 7243.32 | R14: 7243.32 | S14: 0
C15: 127407 | D15: Truck Wash | E15: 2015 | F15: 11 | G15: 0 | H15: S/L | I15: 10 | J15: 2025 | K15: 2025.916667 | L15: 185053.86 | M15: 185053.86 | N15: 1542.1155 | O15: 18505.386 | P15: 18505.386 | Q15: 111032.316 | R15: 129537.702 | S15: 55516.158
C16: 132355 | D16: Diagnostic Laptop (shop) | E16: 2016 | F16: 4 | G16: 0 | H16: S/L | I16: 3 | J16: 2019 | K16: 2019.333333 | L16: 1671 | M16: 1671 | N16: 46.41666667 | O16: 557 | P16: 0 | Q16: 1671 | R16: 1671 | S16: 0
C17: 171237 | D17: Scissor Lift | E17: 2016 | F17: 12 | G17: 0 | H17: S/L | I17: 10 | J17: 2026 | K17: 2027 | L17: 16847.41 | M17: 16847.41 | N17: 140.3950833 | O17: 1684.741 | P17: 1684.741 | Q17: 8423.705 | R17: 10108.446 | S17: 6738.964
C18: 184735 | D18: Diagnostic Software for Shop | E18: 2017 | F18: 7 | G18: 0 | H18: S/L | I18: 3 | J18: 2020 | K18: 2020.583333 | L18: 4848 | M18: 4848 | N18: 134.6666667 | O18: 0 | P18: 0 | Q18: 4848 | R18: 4848 | S18: 0
C19: 202513 | D19: Shop Diagnostic Laptop - Panasonic Toughbook 14' | E19: 2018 | F19: 7 | G19: 0 | H19: S/L | I19: 3 | J19: 2021 | K19: 2021.583333 | L19: 1641.36 | M19: 1641.36 | N19: 45.59333333 | O19: 547.12 | P19: 0 | Q19: 1641.36 | R19: 1641.36 | S19: 0
C20: 206447 | D20: Diagnostic Software | E20: 2018 | F20: 7 | G20: 0 | H20: S/L | I20: 3 | J20: 2021 | K20: 2021.583333 | L20: 5897 | M20: 5897 | N20: 163.8055556 | O20: 1965.666667 | P20: 0 | Q20: 5897 | R20: 5897 | S20: 0
C21: 203974 | D21: Isuzu-IDDS License Software | E21: 2018 | F21: 7 | G21: 0 | H21: S/L | I21: 3 | J21: 2021 | K21: 2021.583333 | L21: 1429 | M21: 1429 | N21: 39.69444444 | O21: 476.3333333 | P21: 0 | Q21: 1429 | R21: 1429 | S21: 0
C22: 206229 | D22: AC Machine (Robinair B34988NI) | E22: 2018 | F22: 10 | G22: 0 | H22: S/L | I22: 5 | J22: 2023 | K22: 2023.833333 | L22: 4346.8 | M22: 4346.8 | N22: 72.44666667 | O22: 869.36 | P22: 869.36 | Q22: 2608.08 | R22: 3477.44 | S22: 869.36
D24: Total Shop | L24: =SUM(L12:L23) -> 237010.68 | M24: 237010.68 | N24: 2401.486036 | O24: 27201.83243 | P24: 21059.487 | Q24: 152826.711 | R24: 173886.198 | S24: 63124.482
D26: Service Equipment
D27: Trailer | E27: 1985 | F27: 10 | G27: 0 | H27: S/L | I27: 5 | J27: =E27+I27 -> 1990 | K27: =+J27+(F27/12) -> 1990.833333 | L27: 1200 | M27: =L27-L27*G27 -> 1200 | N27: =M27/I27/12 -> 20 | O27: =+N27*12 -> 240 | P27: =+IF(K27<=$M$5,0,IF(J27>$M$4,O27,(N27*F27))) -> 0 | Q27: =+IF(P27=0,M27,IF($M$3-E27<1,0,(($M$3-E27)*O27))) -> 1200 | R27: =+IF(P27=0,Q27,Q27+P27) -> 1200 | S27: =+L27-R27 -> 0
B28: DL | D28: 2004 GMC Service Truck | E28: 2006 | F28: 11 | G28: 0 | H28: S/L | I28: 5 | J28: =E28+I28 -> 2011 | K28: =+J28+(F28/12) -> 2011.916667 | L28: ='2144 Trks Orig'!$Q$17 -> 9875.8 | M28: =L28-L28*G28 -> 9875.8 | N28: =M28/I28/12 -> 164.5966667 | O28: =+N28*12 -> 1975.16 | P28: =+IF(K28<=$M$5,0,IF(J28>$M$4,O28,(N28*F28))) -> 0 | Q28: =+IF(P28=0,M28,IF($M$3-E28<1,0,(($M$3-E28)*O28))) -> 9875.8 | R28: =+IF(P28=0,Q28,Q28+P28) -> 9875.8 | S28: =+L28-R28 -> 0
D29: Truck 2004 GMC Amort of Salvage | E29: 2020 | F29: 6 | G29: 0 | H29: S/L | I29: 3 | J29: =E29+I29 -> 2023 | K29: =+J29+(F29/12) -> 2023.5 | L29: ='2144 Trks Orig'!$O$17-'2144 Shop,Serv'!$L$28 -> 4864.2 | M29: =L29-L29*G29 -> 4864.2 | N29: =M29/I29/12 -> 135.1166667 | O29: =+N29*12 -> 1621.4 | P29: =+IF(K29<=$M$5,0,IF(J29>$M$4,O29,(N29*F29))) -> 1621.4 | Q29: =+IF(P29=0,M29,IF($M$3-E29<1,0,(($M$3-E29)*O29))) -> 1621.4 | R29: =+IF(P29=0,Q29,Q29+P29) -> 3242.8 | S29: =+L29-R29 -> 1621.4
C30: 200969 | D30: 2018 Chevy Silverado | E30: 2018 | F30: 7 | G30: 0 | H30: S/L | I30: 5 | J30: =E30+I30 -> 2023 | K30: =+J30+(F30/12) -> 2023.583333 | L30: 33555.67 | M30: =L30-L30*G30 -> 33555.67 | N30: =M30/I30/12 -> 559.2611667 | O30: =+N30*12 -> 6711.134 | P30: =+IF(K30<=$M$5,0,IF(J30>$M$4,O30,(N30*F30))) -> 6711.134 | Q30: =+IF(P30=0,M30,IF($M$3-E30<1,0,(($M$3-E30)*O30))) -> 20133.402 | R30: =+IF(P30=0,Q30,Q30+P30) -> 26844.536 | S30: =+L30-R30 -> 6711.134
C31: 225692 | D31: 2019 Ford Service Truck | E31: 2019 | F31: 12 | G31: 0 | H31: S/L | I31: 5 | J31: =E31+I31 -> 2024 | K31: =+J31+(F31/12) -> 2025 | L31: 74322.06 | M31: =L31-L31*G31 -> 74322.06 | N31: =M31/I31/12 -> 1238.701 | O31: =+N31*12 -> 14864.412 | P31: =+IF(K31<=$M$5,0,IF(J31>$M$4,O31,(N31*F31))) -> 14864.412 | Q31: =+IF(P31=0,M31,IF($M$3-E31<1,0,(($M$3-E31)*O31))) -> 29728.824 | R31: =+IF(P31=0,Q31,Q31+P31) -> 44593.236 | S31: =+L31-R31 -> 29728.824
D32: Amortization of Salvage - Retired Assets | E32: 2020 | F32: 6 | P32: =+P56 -> 0 | W32: =Q32*V32 -> 0 | X32: =U32*V32 -> 0
C33: 225692/230382 | D33: Use Tax and Licensing - Service Truck | E33: 2020 | F33: 1 | G33: 0 | H33: S/L | I33: 10 | J33: =E33+I33 -> 2030 | K33: =+J33+(F33/12) -> 2030.083333 | L33: 6981.69 | M33: =L33-L33*G33 -> 6981.69 | N33: =M33/I33/12 -> 58.18075 | O33: =+N33*12 -> 698.169 | P33: =+IF(K33<=$M$5,0,IF(J33>$M$4,O33,(N33*F33))) -> 698.169 | Q33: =+IF(P33=0,M33,IF($M$3-E33<1,0,(($M$3-E33)*O33))) -> 698.169 | R33: =+IF(P33=0,Q33,Q33+P33) -> 1396.338 | S33: =+L33-R33 -> 5585.352
A34: 240609 | D34: (18) SF300 Drivecam Units | E34: 2020 | F34: 10 | G34: 0 | H34: S/L | I34: 5 | J34: =E34+I34 -> 2025 | K34: =+J34+(F34/12) -> 2025.833333 | L34: 15265.31 | M34: =L34-L34*G34 -> 15265.31 | N34: =M34/I34/12 -> 254.4218333 | O34: =+N34*12 -> 3053.062 | P34: =+IF(K34<='2144 Trks'!$N$5,0,IF(J34>'2144 Trks'!$N$4,O34,(N34*F34))) -> 3053.062 | R34: =+IF(P34=0,L34,IF('2144 Trks'!$N$3-E34<1,0,(('2144 Trks'!$N$3-E34)*O34))) -> 3053.062 | S34: =+IF(P34=0,R34,R34+P34) -> 6106.124 | T34: =+L34-S34 -> 9159.186 | U34: ='2144 Trks'!V18 -> 0 | V34: =P34*U34 -> 0 | W34: =T34*U34 -> 0
A35: 240609/240610 | D35: (18) Lytx Drivecams - Harness | E35: 2020 | F35: 10 | G35: 0 | H35: S/L | I35: 5 | J35: =E35+I35 -> 2025 | K35: =+J35+(F35/12) -> 2025.833333 | L35: 132.62 | M35: =L35-L35*G35 -> 132.62 | N35: =M35/I35/12 -> 2.210333333 | O35: =+N35*12 -> 26.524 | P35: =+IF(K35<='2144 Trks'!$N$5,0,IF(J35>'2144 Trks'!$N$4,O35,(N35*F35))) -> 26.524 | R35: =+IF(P35=0,L35,IF('2144 Trks'!$N$3-E35<1,0,(('2144 Trks'!$N$3-E35)*O35))) -> 26.524 | S35: =+IF(P35=0,R35,R35+P35) -> 53.048 | T35: =+L35-S35 -> 79.572 | U35: ='2144 Trks'!V19 -> 0 | V35: =P35*U35 -> 0 | W35: =T35*U35 -> 0
D37: Total Service Cars | L37: =SUM(L27:L36) -> 146197.35 | M37: 146197.35 | N37: 2432.488417 | O37: 29189.861 | P37: 26974.701 | Q37: 63257.595 | R37: 90232.296 | S37: 49805.882
D39: Non-Regulated
C40: 50710 | D40: Skid Steer Loader (N) | E40: 2007 | F40: 7 | G40: 0 | H40: S/L | I40: 7 | J40: =E40+I40 -> 2014 | K40: =+J40+(F40/12) -> 2014.583333 | L40: =+'2144 Shop,Serv Orig'!P53 -> 17026.712 | M40: =L40-L40*G40 -> 17026.712 | N40: =M40/I40/12 -> 202.6989524 | O40: =+N40*12 -> 2432.387429 | P40: =+IF(K40<=$M$5,0,IF(J40>$M$4,O40,(N40*F40))) -> 0 | Q40: =+IF(P40=0,M40,IF($M$3-E40<1,0,(($M$3-E40)*O40))) -> 17026.712 | R40: =+IF(P40=0,Q40,Q40+P40) -> 17026.712 | S40: =+L40-R40 -> 0
C41: 206362/ 206363/ 206364/ 206365/ 206366/ 206367/ 206368/ 206369/ 206370/ 206371/ 206185 | D41: Bucket Loader | E41: 2018 | F41: 10 | G41: 0 | H41: S/L | I41: 3 | J41: =E41+I41 -> 2021 | K41: =+J41+(F41/12) -> 2021.833333 | L41: =2594.13+2594.13+2594.13+2594.13+4323.54+4323.54+3458.83+6917.67+10376.5+46694.25+2460.74 -> 88931.59 | M41: =L41-L41*G41 -> 88931.59 | N41: =M41/I41/12 -> 2470.321944 | O41: =+N41*12 -> 29643.86333 | P41: =+IF(K41<=$M$5,0,IF(J41>$M$4,O41,(N41*F41))) -> 0 | Q41: =+IF(P41=0,M41,IF($M$3-E41<1,0,(($M$3-E41)*O41))) -> 88931.59 | R41: =+IF(P41=0,Q41,Q41+P41) -> 88931.59 | S41: =+L41-R41 -> 0
L43: =SUM(L40:L42) -> 105958.302 | M43: =SUM(M40:M42) -> 105958.302 | N43: 2673.020897 | O43: 32076.25076 | P43: 0 | Q43: 105958.302 | R43: 105958.302 | S43: 0
L46: =L37+L24+L43 -> 489166.332 | M46: 489166.332 | N46: 7506.995349 | O46: 88467.94419 | P46: 48034.188 | Q46: 322042.608 | R46: 370076.796 | S46: 112930.364
D54: Retired/Transferred 2019
D55: 2000 Dodge Dakota | E55: 2000 | F55: 6 | G55: 0 | H55: S/L | I55: 5 | J55: =E55+I55 -> 2005 | K55: =+J55+(F55/12) -> 2005.5 | L55: =+'2144 Shop,Serv Orig'!P42 -> 13962.8 | M55: =L55-L55*G55 -> 13962.8 | N55: =M55/I55/12 -> 232.7133333 | O55: =+N55*12 -> 2792.56 | P55: =+IF(K55<=$M$5,0,IF(J55>$M$4,O55,(N55*F55))) -> 0 | Q55: =+IF(P55=0,M55,IF($M$3-E55<1,0,(($M$3-E55)*O55))) -> 13962.8 | R55: =+IF(P55=0,Q55,Q55+P55) -> 13962.8 | S55: =+L55-R55 -> 0
D56: 2000 Dodge Dakota Amort of Salvage | E56: 2018 | F56: 1 | G56: 0 | H56: S/L | I56: =+IF(J55-$M$3>=3,J55-$M$3,3) -> 3 | J56: =E56+I56 -> 2021 | K56: =+J56+(F56/12) -> 2021.083333 | L56: =+'2144 Shop,Serv Orig'!N42-'2144 Shop,Serv'!L55 -> 6877.2 | M56: =L56-L56*G56 -> 6877.2 | N56: =M56/I56/12 -> 191.0333333 | O56: =+N56*12 -> 2292.4 | P56: =+IF(K56<=$M$5,0,IF(J56>$M$4,O56,(N56*F56))) -> 0 | Q56: =+IF(P56=0,M56,IF($M$3-E56<1,0,(($M$3-E56)*O56))) -> 6877.2 | R56: =+IF(P56=0,Q56,Q56+P56) -> 6877.2 | S56: =+L56-R56 -> 0

Sheet 2144 Other
D1: Island Disposal
D2: Depreciation Schedule | N2: =+'2144 Trks'!N2 -> 4 | O2: Months in first year
D3: ='Depr Summary'!H6 -> 2021-11-30 | N3: =+'2144 Trks'!N3 -> 2021 | O3: Months in second year
N4: ='2144 Trks'!N4 -> 2022 | O4: First year
N5: ='2144 Trks'!N5 -> 2022.333333 | O5: Second year
R8: Beginning | S8: Ending
E9: Date in | G9: Salvage | K9: Year | L9: Year/Mo | R9: Accum | S9: Accum | T9: Average
D10: Office | E10: Service | G10: Value | I10: Method | J10: Life | K10: Fully | L10: Fully | M10: Asset | N10: Depr | O10: Monthly | P10: Annual | Q10: Test yr. | R10: Depr | S10: Depr | T10: Investment
A11: Codes | B11: No | C11: FAR | D11: Asset Classification | E11: Year | F11: Mo | G11: % | H11: - | I11: M | J11: Years | K11: Depr | L11: Depr | M11: Cost | N11: Cost | O11: Depr | P11: Depr | Q11: Depn. | R11: ='Depr Summary'!F6 -> 2020-12-01 | S11: =+D3 -> 2021-11-30 | T11: =D3 -> 2021-11-30
C12: 99654 | D12: Phone System Upgrade | E12: 2012 | F12: 12 | G12: 0 | I12: S/L | J12: 7 | K12: =E12+J12 -> 2019 | L12: =+K12+(F12/12) -> 2020 | M12: =5923.01+1122.77+3401.02+295.89+317.11+198.19 -> 11257.99 | N12: =M12-M12*G12 -> 11257.99 | O12: =N12/J12/12 -> 134.0236905 | P12: =+O12*12 -> 1608.284286 | Q12: =+IF(L12<=$N$5,0,IF(K12>$N$4,P12,(O12*F12))) -> 0 | R12: =+IF(Q12=0,N12,IF($N$3-E12<1,0,(($N$3-E12)*P12))) -> 11257.99 | S12: =+IF(Q12=0,R12,R12+Q12) -> 11257.99 | T12: =+M12-S12 -> 0
C13: 99654 | D13: HP Computer | E13: 2012 | F13: 12 | G13: 0 | I13: S/L | J13: 5 | K13: 2017 | L13: 2018 | M13: 648.75 | N13: 648.75 | O13: 10.8125 | P13: 129.75 | Q13: 0 | R13: 648.75 | S13: 648.75 | T13: 0
C14: 109830 | D14: Radio Base Unit | E14: 2013 | F14: 12 | G14: 0 | I14: S/L | J14: 7 | K14: 2020 | L14: 2021 | M14: 829.87 | N14: 829.87 | O14: 9.879404762 | P14: 118.5528571 | Q14: 0 | R14: 829.87 | S14: 829.87 | T14: 0
C15: 116945 | D15: (2) Wyse Winterms | E15: 2014 | F15: 4 | G15: 0 | I15: S/L | J15: 5 | K15: 2019 | L15: 2019.333333 | M15: 666.17 | N15: 666.17 | O15: 11.10283333 | P15: 133.234 | Q15: 0 | R15: 666.17 | S15: 666.17 | T15: 0
C16: 122701 | D16: (2) Wyse Winterms | E16: 2015 | F16: 4 | G16: 0 | I16: S/L | J16: 5 | K16: 2020 | L16: 2020.333333 | M16: 650 | N16: 650 | O16: 10.83333333 | P16: 130 | Q16: 0 | R16: 650 | S16: 650 | T16: 0
C17: 165804 | D17: ProBook | E17: 2016 | F17: 7 | G17: 0 | I17: S/L | J17: 3 | K17: 2019 | L17: 2019.583333 | M17: 1089.57 | N17: 1089.57 | O17: 30.26583333 | P17: 363.19 | Q17: 0 | R17: 1089.57 | S17: 1089.57 | T17: 0
D18: Nexiq USB Link 2 | E18: 2018 | F18: 7 | G18: 0 | H18: S/L | I18: S/L | J18: 3 | K18: 2021 | L18: 2021.583333 | M18: 768.37 | N18: =M18-M18*G18 -> 768.37 | O18: =N18/J18/12 -> 21.34361111 | P18: =+O18*12 -> 256.1233333 | Q18: =+IF(L18<=$N$5,0,IF(K18>$N$4,P18,(O18*F18))) -> 0 | R18: =+IF(Q18=0,N18,IF($N$3-E18<1,0,(($N$3-E18)*P18))) -> 768.37 | S18: =+IF(Q18=0,R18,R18+Q18) -> 768.37 | T18: =+M18-S18 -> 0
D20: Total Office | M20: =SUM(M12:M19) -> 15910.72 | N20: 15910.72 | O20: 228.2612063 | P20: 2739.134476 | Q20: 0 | R20: 15910.72 | S20: 15910.72 | T20: 0
D23: Leasehold Improvs
C24: 13319 | D24: Clearing Yards | E24: 1987 | F24: 7 | G24: 0 | I24: S/L | J24: 10 | K24: =E24+J24 -> 1997 | L24: =+K24+(F24/12) -> 1997.583333 | M24: 3196 | N24: =M24-M24*G24 -> 3196 | O24: =N24/J24/12 -> 26.63333333 | P24: =+O24*12 -> 319.6 | Q24: =+IF(L24<=$N$5,0,IF(K24>$N$4,P24,(O24*F24))) -> 0 | R24: =+IF(Q24=0,N24,IF($N$3-E24<1,0,(($N$3-E24)*P24))) -> 3196 | S24: =+IF(Q24=0,R24,R24+Q24) -> 3196 | T24: =+M24-S24 -> 0
C25: 13320 | D25: Electrical for Computer | E25: 1990 | F25: 1 | G25: 0 | I25: S/L | J25: 5 | K25: 1995 | L25: 1995.083333 | M25: 1634 | N25: 1634 | O25: 27.23333333 | P25: 326.8 | Q25: 0 | R25: 1634 | S25: 1634 | T25: 0
C26: 13321 | D26: Gravel Yard | E26: 1990 | F26: 2 | G26: 0 | I26: S/L | J26: 5 | K26: 1995 | L26: 1995.166667 | M26: 3584 | N26: 3584 | O26: 59.73333333 | P26: 716.8 | Q26: 0 | R26: 3584 | S26: 3584 | T26: 0
C27: 13322 | D27: Clear Lot & Pave | E27: 1994 | F27: 6 | G27: 0 | I27: S/L | J27: 10 | K27: 2004 | L27: 2004.5 | M27: 17570 | N27: 17570 | O27: 146.4166667 | P27: 1757 | Q27: 0 | R27: 17570 | S27: 17570 | T27: 0
C28: 13323 | D28: Water Line | E28: 1997 | F28: 12 | G28: 0 | I28: S/L | J28: 5 | K28: 2002 | L28: 2003 | M28: 7102 | N28: 7102 | O28: 118.3666667 | P28: 1420.4 | Q28: 0 | R28: 7102 | S28: 7102 | T28: 0
C29: 30502,31427,32825,34587,35252,35253,33260 | D29: Expended Office Space | E29: 2005 | F29: 1 | G29: 0 | I29: S/L | J29: 15 | K29: 2020 | L29: 2020.083333 | M29: 48500 | N29: 48500 | O29: 269.4444444 | P29: 3233.333333 | Q29: 0 | R29: 48500 | S29: 48500 | T29: 0
C30: 54748 | D30: Installed Storm Drain | E30: 2007 | F30: 12 | G30: 0 | I30: S/L | J30: 15 | K30: 2022 | L30: 2023 | M30: 26533.5 | N30: 26533.5 | O30: 147.4083333 | P30: 1768.9 | Q30: 1768.9 | R30: 24764.6 | S30: 26533.5 | T30: 0
C31: 54747 | D31: Paving | E31: 2007 | F31: 12 | G31: 0 | I31: S/L | J31: 15 | K31: 2022 | L31: 2023 | M31: 75539.25 | N31: 75539.25 | O31: 419.6625 | P31: 5035.95 | Q31: 5035.95 | R31: 70503.3 | S31: 75539.25 | T31: 0
C32: 109492/112383 | D32: Security Fencing & Cameras | E32: 2013 | F32: 12 | G32: 0 | I32: S/L | J32: 10 | K32: 2023 | L32: 2024 | M32: 24140.97 | N32: 24140.97 | O32: 201.17475 | P32: 2414.097 | Q32: 2414.097 | R32: 19312.776 | S32: 21726.873 | T32: 2414.097
D34: Total Leasehold Improvs | M34: =SUM(M24:M33) -> 207799.72 | N34: 207799.72 | O34: 1416.073361 | P34: 16992.88033 | Q34: 9218.947 | R34: 196166.676 | S34: 205385.623 | T34: 2414.097
M36: =+M20+M34 -> 223710.44 | N36: 223710.44 | O36: 1644.334567 | P36: 19732.01481 | Q36: 9218.947 | R36: 212077.396 | S36: 221296.343 | T36: 2414.097

Sheet 2144 Trks Orig
D1: Island Disposal Inc | AF1: 2012-12-01
D2: Depreciation Schedule | Q2: 12 | R2: Months in first year | BY2: CONVENTIONS
D3: ='[13]Depr Summary'!H5 -> 2017-12-31 | Q3: 0 | R3: Months in second year | AF3: A. | AG3: Purchase date
Q4: 2017 | R4: First year | AF4: B. | AG4: End of Test Period | BX4: 1 | BY4: Calendar year test period: | CB4: 12 | CC4: mos in first year
Q5: 2018 | R5: Second year | AF5: C | AG5: Date fully Depr | AK5: Salvage Value Calculations | BY5: 1993 | CB5: 0 | CC5: mos in 2nd year
AF6: D. | AG6: Beg of Test Period | CB6: 93 | CC6: First year
AF7: E. | AG7: Disposition Date | CB7: 94 | CC7: Second Year
T8: Disposal | W8: Total | Y8: Beginning | Z8: Allocated | AB8: Allocated | AC8: Allocated | AO8: Adjustment to | AQ8: Adjustment to
D9: GARBAGE | E9: Date in | G9: Salvage | K9: Year | P9: Asset | S9: Test | T9: Year | U9: Total | V9: % | W9: Allocated | Y9: Accumulated | Z9: Accumulated | AA9: Branch | AB9: Accum. | AC9: Accum. | AD9: Average | AK9: Amort of | AM9: Total Depreciation | AO9: Avg. Investment | AQ9: Avg. Investment | AS9: Adjusted Avg.
C10: Truck | E10: Service | G10: Value | I10: Method | J10: Life | K10: Fully | L10: Asset | M10: Mo. | N10: Salvage Check | O10: Asset | P10: Disposal | Q10: Depr | R10: Monthly | S10: Year | T10: Depn | U10: Test yr. | V10: Allo. | W10: Test year | Y10: Depreciation | Z10: Depreciation | AA10: Allo. | AB10: Depr. | AC10: Depr. | AD10: Investment | AE10: A. | AF10: B | AG10: C. | AH10: D. | AI10: E. | AK10: Salvage Value | AM10: For Test Period | AO10: Fully Depr Assets | AQ10: Assets w/ Depr Life | AS10: Investment | BX10: 2 | BY10: Dispositions must be in test period
A11: FAR # | B11: Codes | C11: No | D11: Asset Classification | E11: Year | F11: Mo | G11: % | H11: - | I11: M | J11: Years | K11: Depr | L11: Cost | M11: - | O11: Cost | P11: - | Q11: Cost | R11: Depr | S11: Depr | T11: - | U11: Depn. | V11: - | W11: Depr. | Y11: ='[13]Depr Summary'!F5 -> 2017-01-01 | Z11: =+D3 -> 2017-12-31 | AA11: % | AB11: ='[13]Depr Summary'!F5 -> 2017-01-01 | AC11: =+D3 -> 2017-12-31 | AD11: =D3 -> 2017-12-31
D12: Fleet Upgrade | E12: 2002 | F12: 2 | G12: 0 | I12: S/L | J12: 3 | K12: =E12+J12 -> 2005 | O12: 4465 | Q12: =O12-O12*G12 -> 4465 | R12: =Q12/J12/12 -> 124.0277778 | S12: =IF(P12>0,0,IF(OR(AE12>AF12,AG12<AH12),0,IF(AND(AG12>=AH12,AG12<=AF12),R12*((AG12-AH12)*12),IF(AND(AH12<=AE12,AF12>=AE12),((AF12-AE12)*12)*R12,IF(AG12>AF12,12*R12,0))))) -> 0 | T12: =IF(P12=0,0,IF(AND(AI12>=AH12,AI12<=AG12),((AI12-AH12)*12)*R12,0)) -> 0 | U12: =IF(T12>0,T12,S12) -> 0 | V12: 1 | W12: =V12*SUM(S12:T12) -> 0 | Y12: =IF(AE12>AF12,0,IF(AG12<AH12,Q12,IF(AND(AG12>=AH12,AG12<=AF12),(Q12-U12),IF(AND(AH12<=AE12,AF12>=AE12),0,IF(AG12>AF12,((AH12-AE12)*12)*R12,0))))) -> 4465 | Z12: =Y12*V12 -> 4465 | AA12: 1 | AB12: =Z12*AA12 -> 4465 | AC12: =IF(P12>0,0,AB12+W12*AA12)*AA12 -> 4465 | AD12: =IF(P12>0,(O12-AB12)/2,IF(AE12>=AH12,(((O12*V12)*AA12)-AC12)/2,((((O12*V12)*AA12)-AB12)+(((O12*V12)*AA12)-AC12))/2)) -> 0 | AE12: =$E12+(($F12-1)/12) -> 2002.083333 | AF12: =($Q$5+1)-($Q$2/12) -> 2018 | AG12: =$K12+(($F12-1)/12) -> 2005.083333 | AH12: =$Q$4+($Q$3/12) -> 2017 | AI12: =$L12+(($M12-1)/12) -> -0.08333333333 | AK12: =+IF((AG12-AH12)>3,((O12-Q12)/(AG12-AH12)),(O12-Q12)/3) -> 0 | AM12: =+AK12+U12 -> 0 | AO12: =+IF(AG12<AH12,-AD12,0) -> 0 | AQ12: =IF(AG12>AH12,IF(AK12>0,IF(P12>0,(O12-AB12)/2,IF(AE12>=AH12,(((O12*V12)*AA12)-(AC12+AK12))/2,((((O12*V12)*AA12)-AB12)+(((O12*V12)*AA12)-(AC12+AK12)))/2)),0),0) -> 0 | AS12: =+AD12+AO12+(IF(AQ12>0,(AQ12-AD12),0)) -> 0
D13: Fleet Upgrade | E13: 2002 | F13: 5 | G13: 0 | I13: S/L | J13: 3 | K13: 2005 | O13: 4525 | Q13: 4525 | R13: 125.6944444 | S13: 0 | T13: 0 | U13: 0 | V13: 1 | W13: 0 | Y13: 4525 | Z13: 4525 | AA13: 1 | AB13: 4525 | AC13: 4525 | AD13: 0 | AE13: 2002.333333 | AF13: 2018 | AG13: 2005.333333 | AH13: 2017 | AI13: -0.08333333333 | AK13: =+IF((AG13-AH13)>3,((O13-Q13)/(AG13-AH13)),(O13-Q13)/3) -> 0 | AM13: =+AK13+U13 -> 0 | AO13: =+IF(AG13<AH13,-AD13,0) -> 0 | AQ13: =IF(AG13>AH13,IF(AK13>0,IF(P13>0,(O13-AB13)/2,IF(AE13>=AH13,(((O13*V13)*AA13)-(AC13+AK13))/2,((((O13*V13)*AA13)-AB13)+(((O13*V13)*AA13)-(AC13+AK13)))/2)),0),0) -> 0 | AS13: =+AD13+AO13+(IF(AQ13>0,(AQ13-AD13),0)) -> 0
B14: RL | C14: 5008 | D14: 2004 Int'l 7400 RL W/P (N) | E14: 2004 | F14: 5 | G14: 0.2 | I14: S/L | J14: 7 | K14: 2011 | O14: =75203+35470+547+365+38+8454 -> 120077 | Q14: 96061.6 | R14: 1143.590476 | S14: 0 | T14: 0 | U14: 0 | V14: 1 | W14: 0 | Y14: 96061.6 | Z14: 96061.6 | AA14: 1 | AB14: 96061.6 | AC14: 96061.6 | AD14: 24015.4 | AE14: 2004.333333 | AF14: 2018 | AG14: 2011.333333 | AH14: 2017 | AI14: -0.08333333333 | AK14: =+IF((AG14-AH14)>3,((O14-Q14)/(AG14-AH14)),(O14-Q14)/3) -> 8005.133333 | AM14: 8005.133333 | AO14: =+IF(AG14<AH14,-AD14,0) -> -24015.4 | AQ14: 0 | AS14: 0
B15: RL | C15: 5003 | D15: 2005 Int'l 7400 RL W/P (N) | E15: 2004 | F15: 12 | G15: 0.2 | I15: S/L | J15: 7 | K15: 2011 | O15: =77615+39372+10090 -> 127077 | Q15: 101661.6 | R15: 1210.257143 | S15: 0 | T15: 0 | U15: 0 | V15: 1 | W15: 0 | Y15: 101661.6 | Z15: 101661.6 | AA15: 1 | AB15: 101661.6 | AC15: 101661.6 | AD15: 25415.4 | AE15: 2004.916667 | AF15: 2018 | AG15: 2011.916667 | AH15: 2017 | AI15: -0.08333333333 | AK15: 8471.8 | AM15: 8471.8 | AO15: -25415.4 | AQ15: 0 | AS15: 0
B16: RL | C16: 5006 | D16: 2006 Int'l RL Pckr | E16: 2006 | F16: 11 | G16: 0.2 | I16: S/L | J16: 7 | K16: 2013 | O16: 138290.65 | Q16: 110632.52 | R16: 1317.05381 | S16: 0 | T16: 0 | U16: 0 | V16: 1 | W16: 0 | Y16: 110632.52 | Z16: 110632.52 | AA16: 1 | AB16: 110632.52 | AC16: 110632.52 | AD16: 27658.13 | AE16: 2006.833333 | AF16: 2018 | AG16: 2013.833333 | AH16: 2017 | AI16: -0.08333333333 | AK16: 9219.376667 | AM16: 9219.376667 | AO16: -27658.13 | AQ16: 0 | AS16: 0
B17: DL | D17: 2004 GMC (delivery pu) | E17: 2006 | F17: 11 | G17: 0.33 | I17: S/L | J17: 5 | K17: 2011 | N17: =O17-Q17 -> 4864.2 | O17: 14740 | Q17: 9875.8 | R17: 164.5966667 | S17: 0 | T17: 0 | U17: 0 | V17: 1 | W17: 0 | Y17: 9875.8 | Z17: 9875.8 | AA17: 1 | AB17: 9875.8 | AC17: 9875.8 | AD17: 4864.2 | AE17: 2006.833333 | AF17: 2018 | AG17: 2011.833333 | AH17: 2017 | AI17: -0.08333333333 | AK17: 1621.4 | AM17: 1621.4 | AO17: -4864.2 | AQ17: 0 | AS17: 0
B18: RL | C18: 5016 | D18: 2007 International RL w/ Heil Pkr | E18: 2007 | F18: 9 | G18: 0.2 | I18: S/L | J18: 7 | K18: 2014 | N18: 27340.174 | O18: 136700.87 | Q18: 109360.696 | R18: 1301.913048 | S18: 0 | T18: 0 | U18: 0 | V18: 1 | W18: 0 | Y18: 109360.696 | Z18: 109360.696 | AA18: 1 | AB18: 109360.696 | AC18: 109360.696 | AD18: 27340.174 | AE18: 2007.666667 | AF18: 2018 | AG18: 2014.666667 | AH18: 2017 | AI18: =$L18+(($M18-1)/12) -> -0.08333333333 | AK18: 9113.391333 | AM18: 9113.391333 | AO18: -27340.174 | AQ18: 0 | AS18: 0
B19: RL | C19: 5010 | D19: 2004 Int'l W/P 7400 (U) | E19: 2008 | F19: =2+6 -> 8 | G19: 0.33 | I19: S/L | J19: 5 | K19: 2013 | N19: 22061.3943 | O19: 66852.71 | Q19: 44791.3157 | R19: 746.5219283 | S19: 0 | T19: 0 | U19: 0 | V19: 1 | W19: 0 | Y19: 44791.3157 | Z19: 44791.3157 | AA19: 1 | AB19: 44791.3157 | AC19: 44791.3157 | AD19: 22061.3943 | AE19: 2008.583333 | AF19: 2018 | AG19: 2013.583333 | AH19: 2017 | AI19: =$L19+(($M19-1)/12) -> -0.08333333333 | AK19: 7353.7981 | AM19: 7353.7981 | AO19: -22061.3943 | AQ19: 0 | AS19: 0
B20: RL | C20: 5039 | D20: 2010 Int'l W/McNls Pkr (N) | E20: 2009 | F20: 12 | G20: 0.2 | I20: S/L | J20: 7 | K20: 2016 | N20: 37049.868 | O20: 185249.34 | Q20: 148199.472 | R20: 1764.279429 | S20: 0 | T20: 0 | U20: 0 | V20: 1 | W20: 0 | Y20: 148199.472 | Z20: 148199.472 | AA20: 1 | AB20: 148199.472 | AC20: 148199.472 | AD20: 37049.868 | AE20: 2009.916667 | AF20: 2018 | AG20: 2016.916667 | AH20: 2017 | AI20: -0.08333333333 | AK20: 12349.956 | AM20: 12349.956 | AO20: -37049.868 | AQ20: 0 | AS20: 0
B21: RL | C21: 5040 | D21: 2010 Int'l W/McNls Pkr (N) | E21: 2009 | F21: 12 | G21: 0.2 | I21: S/L | J21: 7 | K21: 2016 | N21: 36866.464 | O21: 184332.32 | Q21: 147465.856 | R21: 1755.545905 | S21: 0 | T21: 0 | U21: 0 | V21: 1 | W21: 0 | Y21: 147465.856 | Z21: 147465.856 | AA21: 1 | AB21: 147465.856 | AC21: 147465.856 | AD21: 36866.464 | AE21: 2009.916667 | AF21: 2018 | AG21: 2016.916667 | AH21: 2017 | AI21: -0.08333333333 | AK21: 12288.82133 | AM21: 12288.82133 | AO21: -36866.464 | AQ21: 0 | AS21: 0
B22: RL | C22: 5041 | D22: 2010 Int'l W/McNls Pkr (N) | E22: 2009 | F22: 12 | G22: 0.2 | I22: S/L | J22: 7 | K22: 2016 | N22: 36866.464 | O22: 184332.32 | Q22: 147465.856 | R22: 1755.545905 | S22: 0 | T22: 0 | U22: 0 | V22: 1 | W22: 0 | Y22: 147465.856 | Z22: 147465.856 | AA22: 1 | AB22: 147465.856 | AC22: 147465.856 | AD22: 36866.464 | AE22: 2009.916667 | AF22: 2018 | AG22: 2016.916667 | AH22: 2017 | AI22: -0.08333333333 | AK22: 12288.82133 | AM22: 12288.82133 | AO22: -36866.464 | AQ22: 0 | AS22: 0
B23: RL | D23: Drive Cam (23) | E23: 2010 | F23: 4 | G23: 0.2 | I23: S/L | J23: 7 | K23: 2017 | N23: 2823.988 | O23: =13707.42+412.52 -> 14119.94 | Q23: 11295.952 | R23: 134.475619 | S23: 403.4268571 | T23: 0 | U23: 403.4268571 | V23: 1 | W23: 403.4268571 | Y23: 10892.52514 | Z23: 10892.52514 | AA23: 1 | AB23: 10892.52514 | AC23: 11295.952 | AD23: 3025.701429 | AE23: 2010.25 | AF23: 2018 | AG23: 2017.25 | AH23: 2017 | AI23: -0.08333333333 | AK23: 941.3293333 | AM23: 1344.75619 | AO23: 0 | AQ23: 2555.036762 | AS23: 2555.036762
A24: 109830 | D24: 12 Truck Radios | E24: 2013 | F24: 12 | G24: 0 | I24: S/L | J24: 7 | K24: 2020 | O24: =1101.59*12 -> 13219.08 | Q24: 13219.08 | R24: 157.37 | S24: 1888.44 | T24: 0 | U24: 1888.44 | V24: 1 | W24: 1888.44 | Y24: 5822.69 | Z24: 5822.69 | AA24: 1 | AB24: 5822.69 | AC24: 7711.13 | AD24: 6452.17 | AE24: 2013.916667 | AF24: 2018 | AG24: 2020.916667 | AH24: 2017 | AI24: -0.08333333333 | AK24: 0 | AM24: 1888.44 | AO24: 0 | AQ24: 0 | AS24: 6452.17
A25: 126399 | B25: RL | C25: 5012 | D25: 2016 REL Truck | E25: 2015 | F25: 10 | G25: 0.2 | I25: S/L | J25: 7 | K25: 2022 | O25: =218205.58+9591.24 -> 227796.82 | Q25: 182237.456 | R25: 2169.493524 | S25: 26033.92229 | T25: 0 | U25: 26033.92229 | V25: 1 | W25: 26033.92229 | Y25: 32542.40286 | Z25: 32542.40286 | AA25: 1 | AB25: 32542.40286 | AC25: 58576.32514 | AD25: 182237.456 | AE25: 2015.75 | AF25: 2018 | AG25: 2022.75 | AH25: 2017 | AI25: -0.08333333333 | AK25: 7923.367652 | AM25: 33957.28994 | AO25: 0 | AQ25: 178275.7722 | AS25: 178275.7722
A26: 126583 | C26: 5012 | D26: Drive Cam Replacement | E26: 2015 | F26: 10 | G26: 0 | I26: S/L | J26: 7 | K26: 2022 | O26: 639.85 | Q26: 639.85 | R26: 7.617261905 | S26: 91.40714286 | T26: 0 | U26: 91.40714286 | V26: 1 | W26: 91.40714286 | Y26: 114.2589286 | Z26: 114.2589286 | AA26: 1 | AB26: 114.2589286 | AC26: 205.6660714 | AD26: 479.8875 | AE26: 2015.75 | AF26: 2018 | AG26: 2022.75 | AH26: 2017 | AI26: -0.08333333333 | AK26: 0 | AM26: 91.40714286 | AO26: 0 | AQ26: 0 | AS26: 479.8875
AK27: 0 | AM27: 0 | AO27: 0 | AQ27: 0 | AS27: 0
A28: 132131 132501 | B28: RL | D28: 2016 REL Truck (N) | E28: 2016 | F28: 3 | G28: 0 | I28: S/L | J28: 10 | K28: =E28+J28 -> 2026 | O28: =276355.27+605.92 -> 276961.19 | Q28: =O28-O28*G28 -> 276961.19 | R28: =Q28/J28/12 -> 2308.009917 | S28: =IF(P28>0,0,IF(OR(AE28>AF28,AG28<AH28),0,IF(AND(AG28>=AH28,AG28<=AF28),R28*((AG28-AH28)*12),IF(AND(AH28<=AE28,AF28>=AE28),((AF28-AE28)*12)*R28,IF(AG28>AF28,12*R28,0))))) -> 27696.119 | T28: =IF(P28=0,0,IF(AND(AI28>=AH28,AI28<=AG28),((AI28-AH28)*12)*R28,0)) -> 0 | U28: =IF(T28>0,T28,S28) -> 27696.119 | V28: 1 | W28: =V28*SUM(S28:T28) -> 27696.119 | Y28: =IF(AE28>AF28,0,IF(AG28<AH28,Q28,IF(AND(AG28>=AH28,AG28<=AF28),(Q28-U28),IF(AND(AH28<=AE28,AF28>=AE28),0,IF(AG28>AF28,((AH28-AE28)*12)*R28,0))))) -> 23080.09917 | Z28: =Y28*V28 -> 23080.09917 | AA28: 1 | AB28: =Z28*AA28 -> 23080.09917 | AC28: =IF(P28>0,0,AB28+W28*AA28)*AA28 -> 50776.21817 | AD28: =IF(P28>0,(O28-AB28)/2,IF(AE28>=AH28,(((O28*V28)*AA28)-AC28)/2,((((O28*V28)*AA28)-AB28)+(((O28*V28)*AA28)-AC28))/2)) -> 240033.0313 | AE28: =$E28+(($F28-1)/12) -> 2016.166667 | AF28: =($Q$5+1)-($Q$2/12) -> 2018 | AG28: =$K28+(($F28-1)/12) -> 2026.166667 | AH28: =$Q$4+($Q$3/12) -> 2017 | AI28: =$L28+(($M28-1)/12) -> -0.08333333333 | AK28: 0 | AM28: 27696.119 | AO28: 0 | AQ28: 0 | AS28: 240033.0313
A29: 131542 133018 139929 | D29: (10) Samsung Tablets | E29: 2016 | F29: 3 | G29: 0 | I29: S/L | J29: 1 | K29: =E29+J29 -> 2017 | O29: =2164.89+2769.44+671.24 -> 5605.57 | Q29: =O29-O29*G29 -> 5605.57 | R29: =Q29/J29/12 -> 467.1308333 | S29: =IF(P29>0,0,IF(OR(AE29>AF29,AG29<AH29),0,IF(AND(AG29>=AH29,AG29<=AF29),R29*((AG29-AH29)*12),IF(AND(AH29<=AE29,AF29>=AE29),((AF29-AE29)*12)*R29,IF(AG29>AF29,12*R29,0))))) -> 934.2616667 | T29: =IF(P29=0,0,IF(AND(AI29>=AH29,AI29<=AG29),((AI29-AH29)*12)*R29,0)) -> 0 | U29: =IF(T29>0,T29,S29) -> 934.2616667 | V29: 1 | W29: =V29*SUM(S29:T29) -> 934.2616667 | Y29: =IF(AE29>AF29,0,IF(AG29<AH29,Q29,IF(AND(AG29>=AH29,AG29<=AF29),(Q29-U29),IF(AND(AH29<=AE29,AF29>=AE29),0,IF(AG29>AF29,((AH29-AE29)*12)*R29,0))))) -> 4671.308333 | Z29: =Y29*V29 -> 4671.308333 | AA29: 1 | AB29: =Z29*AA29 -> 4671.308333 | AC29: =IF(P29>0,0,AB29+W29*AA29)*AA29 -> 5605.57 | AD29: =IF(P29>0,(O29-AB29)/2,IF(AE29>=AH29,(((O29*V29)*AA29)-AC29)/2,((((O29*V29)*AA29)-AB29)+(((O29*V29)*AA29)-AC29))/2)) -> 467.1308333 | AE29: =$E29+(($F29-1)/12) -> 2016.166667 | AF29: =($Q$5+1)-($Q$2/12) -> 2018 | AG29: =$K29+(($F29-1)/12) -> 2017.166667 | AH29: =$Q$4+($Q$3/12) -> 2017 | AI29: =$L29+(($M29-1)/12) -> -0.08333333333 | AK29: 0 | AM29: 934.2616667 | AO29: 0 | AQ29: 0 | AS29: 467.1308333
A30: 170969 | C30: 5022 | D30: Container Delivery Truck (N) | E30: 2016 | F30: 12 | G30: 0 | I30: S/L | J30: 10 | K30: =E30+J30 -> 2026 | O30: 59020.72 | Q30: =O30-O30*G30 -> 59020.72 | R30: =Q30/J30/12 -> 491.8393333 | S30: =IF(P30>0,0,IF(OR(AE30>AF30,AG30<AH30),0,IF(AND(AG30>=AH30,AG30<=AF30),R30*((AG30-AH30)*12),IF(AND(AH30<=AE30,AF30>=AE30),((AF30-AE30)*12)*R30,IF(AG30>AF30,12*R30,0))))) -> 5902.072 | T30: =IF(P30=0,0,IF(AND(AI30>=AH30,AI30<=AG30),((AI30-AH30)*12)*R30,0)) -> 0 | U30: =IF(T30>0,T30,S30) -> 5902.072 | V30: 1 | W30: =V30*SUM(S30:T30) -> 5902.072 | Y30: =IF(AE30>AF30,0,IF(AG30<AH30,Q30,IF(AND(AG30>=AH30,AG30<=AF30),(Q30-U30),IF(AND(AH30<=AE30,AF30>=AE30),0,IF(AG30>AF30,((AH30-AE30)*12)*R30,0))))) -> 491.8393333 | Z30: =Y30*V30 -> 491.8393333 | AA30: 1 | AB30: =Z30*AA30 -> 491.8393333 | AC30: =IF(P30>0,0,AB30+W30*AA30)*AA30 -> 6393.911333 | AD30: =IF(P30>0,(O30-AB30)/2,IF(AE30>=AH30,(((O30*V30)*AA30)-AC30)/2,((((O30*V30)*AA30)-AB30)+(((O30*V30)*AA30)-AC30))/2)) -> 55577.84467 | AE30: =$E30+(($F30-1)/12) -> 2016.916667 | AF30: =($Q$5+1)-($Q$2/12) -> 2018 | AG30: =$K30+(($F30-1)/12) -> 2026.916667 | AH30: =$Q$4+($Q$3/12) -> 2017 | AI30: =$L30+(($M30-1)/12) -> -0.08333333333 | AK30: 0 | AM30: 5902.072 | AO30: 0 | AQ30: 0 | AS30: 55577.84467
A31: 172661 | C31: 5022 | D31: 2 Way radio for Container Del Truck | E31: 2017 | F31: 1 | G31: 0 | I31: S/L | J31: 5 | K31: =E31+J31 -> 2022 | O31: 1113.7 | Q31: =O31-O31*G31 -> 1113.7 | R31: =Q31/J31/12 -> 18.56166667 | S31: =IF(P31>0,0,IF(OR(AE31>AF31,AG31<AH31),0,IF(AND(AG31>=AH31,AG31<=AF31),R31*((AG31-AH31)*12),IF(AND(AH31<=AE31,AF31>=AE31),((AF31-AE31)*12)*R31,IF(AG31>AF31,12*R31,0))))) -> 222.74 | T31: =IF(P31=0,0,IF(AND(AI31>=AH31,AI31<=AG31),((AI31-AH31)*12)*R31,0)) -> 0 | U31: =IF(T31>0,T31,S31) -> 222.74 | V31: 1 | W31: =V31*SUM(S31:T31) -> 222.74 | Y31: =IF(AE31>AF31,0,IF(AG31<AH31,Q31,IF(AND(AG31>=AH31,AG31<=AF31),(Q31-U31),IF(AND(AH31<=AE31,AF31>=AE31),0,IF(AG31>AF31,((AH31-AE31)*12)*R31,0))))) -> 0 | Z31: =Y31*V31 -> 0 | AA31: 1 | AB31: =Z31*AA31 -> 0 | AC31: =IF(P31>0,0,AB31+W31*AA31)*AA31 -> 222.74 | AD31: =IF(P31>0,(O31-AB31)/2,IF(AE31>=AH31,(((O31*V31)*AA31)-AC31)/2,((((O31*V31)*AA31)-AB31)+(((O31*V31)*AA31)-AC31))/2)) -> 445.48 | AE31: =$E31+(($F31-1)/12) -> 2017 | AF31: =($Q$5+1)-($Q$2/12) -> 2018 | AG31: =$K31+(($F31-1)/12) -> 2022 | AH31: =$Q$4+($Q$3/12) -> 2017 | AI31: =$L31+(($M31-1)/12) -> -0.08333333333 | AK31: 0 | AM31: 222.74 | AO31: 0 | AQ31: 0 | AS31: 445.48
A32: 187422, 187423 | D32: 2009 Murrey's Pre-Ordered REL Truck | E32: 2009 | F32: 3 | G32: 0 | I32: S/L | J32: 10 | K32: =E32+J32 -> 2019 | O32: 175471.9 | Q32: =O32-O32*G32 -> 175471.9 | R32: =Q32/J32/12 -> 1462.265833 | S32: =IF(P32>0,0,IF(OR(AE32>AF32,AG32<AH32),0,IF(AND(AG32>=AH32,AG32<=AF32),R32*((AG32-AH32)*12),IF(AND(AH32<=AE32,AF32>=AE32),((AF32-AE32)*12)*R32,IF(AG32>AF32,12*R32,0))))) -> 17547.19 | T32: =IF(P32=0,0,IF(AND(AI32>=AH32,AI32<=AG32),((AI32-AH32)*12)*R32,0)) -> 0 | U32: =IF(T32>0,T32,S32) -> 17547.19 | V32: 1 | W32: =V32*SUM(S32:T32) -> 17547.19 | Y32: =IF(AE32>AF32,0,IF(AG32<AH32,Q32,IF(AND(AG32>=AH32,AG32<=AF32),(Q32-U32),IF(AND(AH32<=AE32,AF32>=AE32),0,IF(AG32>AF32,((AH32-AE32)*12)*R32,0))))) -> 137452.9883 | Z32: =Y32*V32 -> 137452.9883 | AA32: 1 | AB32: =Z32*AA32 -> 137452.9883 | AC32: =IF(P32>0,0,AB32+W32*AA32)*AA32 -> 155000.1783 | AD32: =IF(P32>0,(O32-AB32)/2,IF(AE32>=AH32,(((O32*V32)*AA32)-AC32)/2,((((O32*V32)*AA32)-AB32)+(((O32*V32)*AA32)-AC32))/2)) -> 29245.31667 | AE32: =$E32+(($F32-1)/12) -> 2009.166667 | AF32: =($Q$5+1)-($Q$2/12) -> 2018 | AG32: =$K32+(($F32-1)/12) -> 2019.166667 | AH32: =$Q$4+($Q$3/12) -> 2017 | AI32: =$L32+(($M32-1)/12) -> -0.08333333333
D36: Total | O36: =SUM(O12:O35) -> 1940590.98 | Q36: =SUM(Q12:Q35) -> 1650070.134 | R36: =SUM(R12:R35) -> 18625.79052 | S36: =SUM(S12:S35) -> 80719.57895 | W36: =SUM(W12:W35) -> 80719.57895 | AB36: =SUM(AB12:AB35) -> 1139572.828 | AC36: =SUM(AC12:AC35) -> 1220292.407 | AD36: =SUM(AD12:AD35) -> 760101.5127 | AK36: =SUM(AK12:AK35) -> 89577.19509 | AM36: 152749.584 | AO36: -242137.4943 | AQ36: 180830.8089 | AS36: 484286.3533
D38: Roll-off
B39: RO | C39: 5036 | D39: 2007 Sterln LT9600 (N) | E39: 2007 | F39: 2 | G39: 0.2 | I39: S/L | J39: 7 | K39: =E39+J39 -> 2014 | N39: =O39-Q39 -> 27729.562 | O39: =101002.46+37645.35 -> 138647.81 | Q39: =O39-O39*G39 -> 110918.248 | R39: =Q39/J39/12 -> 1320.455333 | S39: =IF(P39>0,0,IF(OR(AE39>AF39,AG39<AH39),0,IF(AND(AG39>=AH39,AG39<=AF39),R39*((AG39-AH39)*12),IF(AND(AH39<=AE39,AF39>=AE39),((AF39-AE39)*12)*R39,IF(AG39>AF39,12*R39,0))))) -> 0 | T39: =IF(P39=0,0,IF(AND(AI39>=AH39,AI39<=AG39),((AI39-AH39)*12)*R39,0)) -> 0 | U39: =IF(T39>0,T39,S39) -> 0 | V39: 1 | W39: =V39*SUM(S39:T39) -> 0 | Y39: =IF(AE39>AF39,0,IF(AG39<AH39,Q39,IF(AND(AG39>=AH39,AG39<=AF39),(Q39-U39),IF(AND(AH39<=AE39,AF39>=AE39),0,IF(AG39>AF39,((AH39-AE39)*12)*R39,0))))) -> 110918.248 | Z39: =Y39*V39 -> 110918.248 | AA39: 1 | AB39: =Z39*AA39 -> 110918.248 | AC39: =IF(P39>0,0,AB39+W39*AA39)*AA39 -> 110918.248 | AD39: =IF(P39>0,(O39-AB39)/2,IF(AE39>=AH39,(((O39*V39)*AA39)-AC39)/2,((((O39*V39)*AA39)-AB39)+(((O39*V39)*AA39)-AC39))/2)) -> 27729.562 | AE39: =$E39+(($F39-1)/12) -> 2007.083333 | AF39: =($Q$5+1)-($Q$2/12) -> 2018 | AG39: =$K39+(($F39-1)/12) -> 2014.083333 | AH39: =$Q$4+($Q$3/12) -> 2017 | AI39: =$L39+(($M39-1)/12) -> -0.08333333333 | AK39: =+IF((AG39-AH39)>3,((O39-Q39)/(AG39-AH39)),(O39-Q39)/3) -> 9243.187333 | AM39: =+AK39+U39 -> 9243.187333 | AO39: =+IF(AG39<AH39,-AD39,0) -> -27729.562 | AQ39: =IF(AG39>AH39,IF(AK39>0,IF(P39>0,(O39-AB39)/2,IF(AE39>=AH39,(((O39*V39)*AA39)-AC39)/2,((((O39*V39)*AA39)-AB39)+(((O39*V39)*AA39)-AC39))/2)),0),0) -> 0 | AS39: =+AD39+AO39+(IF(AQ39>0,(AQ39-AD39),0)) -> 0
B40: RO | C40: 5037 | D40: 2007 Sterln LT9600 (N) | E40: 2007 | F40: 6 | G40: 0.2 | I40: S/L | J40: 7 | K40: 2014 | N40: =O40-Q40 -> 27162.964 | O40: =98438.63+37376.19 -> 135814.82 | Q40: 108651.856 | R40: 1293.474476 | S40: 0 | T40: 0 | U40: 0 | V40: 1 | W40: 0 | Y40: 108651.856 | Z40: 108651.856 | AA40: 1 | AB40: 108651.856 | AC40: 108651.856 | AD40: 27162.964 | AE40: 2007.416667 | AF40: 2018 | AG40: 2014.416667 | AH40: 2017 | AI40: -0.08333333333 | AK40: =+IF((AG40-AH40)>3,((O40-Q40)/(AG40-AH40)),(O40-Q40)/3) -> 9054.321333 | AM40: =+AK40+U40 -> 9054.321333 | AO40: =+IF(AG40<AH40,-AD40,0) -> -27162.964 | AQ40: 0 | AS40: =+AD40+AO40+(IF(AQ40>0,(AQ40-AD40),0)) -> 0
B41: RO | D41: Drive Cam (4) | E41: 2010 | F41: 5 | G41: 0.2 | I41: S/L | J41: 7 | K41: 2017 | N41: =O41-Q41 -> 869.6 | O41: 4348 | Q41: 3478.4 | R41: 41.40952381 | S41: 165.6380952 | T41: 0 | U41: 165.6380952 | V41: 1 | W41: 165.6380952 | Y41: 3312.761905 | Z41: 3312.761905 | AA41: 1 | AB41: 3312.761905 | AC41: 3478.4 | AD41: 952.4190476 | AE41: 2010.333333 | AF41: 2018 | AG41: 2017.333333 | AH41: 2017 | AI41: -0.08333333333 | AK41: 289.8666667 | AM41: 455.5047619 | AO41: 0 | AQ41: 952.4190476 | AS41: 952.4190476
A42: 109830 | D42: 3 Truck Radios | E42: 2013 | F42: 12 | G42: 0 | I42: S/L | J42: 7 | K42: 2020 | O42: =1101.59*3 -> 3304.77 | Q42: 3304.77 | R42: 39.3425 | S42: 472.11 | T42: 0 | U42: 472.11 | V42: 1 | W42: 472.11 | Y42: 1455.6725 | Z42: 1455.6725 | AA42: 1 | AB42: 1455.6725 | AC42: 1927.7825 | AD42: 1613.0425 | AE42: 2013.916667 | AF42: 2018 | AG42: 2020.916667 | AH42: 2017 | AI42: -0.08333333333 | AK42: 0 | AM42: 472.11 | AO42: 0 | AQ42: 0 | AS42: 1613.0425
A43: 115085 | B43: RO | C43: 5036 | D43: RO Tarper #5036 | E43: 2014 | F43: 8 | G43: 0 | I43: S/L | J43: 3 | K43: 2017 | O43: 6532.56 | Q43: 6532.56 | R43: 181.46 | S43: 1270.22 | T43: 0 | U43: 1270.22 | V43: 1 | W43: 1270.22 | Y43: 5262.34 | Z43: 5262.34 | AA43: 1 | AB43: 5262.34 | AC43: 6532.56 | AD43: 635.11 | AE43: 2014.583333 | AF43: 2018 | AG43: 2017.583333 | AH43: 2017 | AI43: -0.08333333333 | AK43: 0 | AM43: 1270.22 | AO43: 0 | AQ43: 0 | AS43: 635.11
A44: 119112 | B44: RO | C44: 5033 | D44: Improvement- Auto Tarper | E44: 2015 | F44: 1 | G44: 0 | I44: S/L | J44: 3 | K44: 2018 | O44: 5011.71 | Q44: 5011.71 | R44: 139.2141667 | S44: 1670.57 | T44: 0 | U44: 1670.57 | V44: 1 | W44: 1670.57 | Y44: 3341.14 | Z44: 3341.14 | AA44: 1 | AB44: 3341.14 | AC44: 5011.71 | AD44: 835.285 | AE44: 2015 | AF44: 2018 | AG44: 2018 | AH44: 2017 | AI44: -0.08333333333 | AK44: 0 | AM44: 1670.57 | AO44: 0 | AQ44: 0 | AS44: 835.285
A45: 119113 | B45: RO | C45: 5037 | D45: Improvement- Auto Tarper | E45: 2015 | F45: 1 | G45: 0 | I45: S/L | J45: 3 | K45: 2018 | O45: 5014.96 | Q45: 5014.96 | R45: 139.3044444 | S45: 1671.653333 | T45: 0 | U45: 1671.653333 | V45: 1 | W45: 1671.653333 | Y45: 3343.306667 | Z45: 3343.306667 | AA45: 1 | AB45: 3343.306667 | AC45: 5014.96 | AD45: 835.8266667 | AE45: 2015 | AF45: 2018 | AG45: 2018 | AH45: 2017 | AI45: -0.08333333333 | AK45: 0 | AM45: 1671.653333 | AO45: 0 | AQ45: 0 | AS45: 835.8266667
A46: 124719 | B46: RO | C46: 5037 | D46: Transmission | E46: 2015 | F46: 8 | G46: 0 | I46: S/L | J46: 3 | K46: 2018 | O46: 9352.18 | Q46: 9352.18 | R46: 259.7827778 | S46: 3117.393333 | T46: 0 | U46: 3117.393333 | V46: 1 | W46: 3117.393333 | Y46: 4416.307222 | Z46: 4416.307222 | AA46: 1 | AB46: 4416.307222 | AC46: 7533.700556 | AD46: 3377.176111 | AE46: 2015.583333 | AF46: 2018 | AG46: 2018.583333 | AH46: 2017 | AI46: -0.08333333333 | AK46: 0 | AM46: 3117.393333 | AO46: 0 | AQ46: 0 | AS46: 3377.176111
O48: =SUM(O39:O47) -> 308026.81 | Q48: =SUM(Q39:Q47) -> 252264.684 | R48: =SUM(R39:R47) -> 3414.443222 | S48: =SUM(S39:S47) -> 8367.584762 | U48: =SUM(U39:U47) -> 8367.584762 | W48: =SUM(W39:W47) -> 8367.584762 | Y48: =SUM(Y39:Y47) -> 240701.6323 | Z48: =SUM(Z39:Z47) -> 240701.6323 | AB48: =SUM(AB39:AB47) -> 240701.6323 | AC48: =SUM(AC39:AC47) -> 249069.2171 | AD48: =SUM(AD39:AD47) -> 63141.38533 | AK48: =SUM(AK39:AK47) -> 18587.37533 | AM48: 26954.9601 | AO48: -54892.526 | AQ48: 952.4190476 | AS48: 8248.859325
O50: =O36+O48 -> 2248617.79 | Q50: =Q36+Q48 -> 1902334.818 | R50: =R36+R48 -> 22040.23374 | S50: =S36+S48 -> 89087.16371 | U50: =U36+U48 -> 8367.584762 | W50: =W36+W48 -> 89087.16371 | Y50: =Y36+Y48 -> 240701.6323 | Z50: =Z36+Z48 -> 240701.6323 | AB50: =AB36+AB48 -> 1380274.46 | AC50: =AC36+AC48 -> 1469361.624 | AD50: =AD36+AD48 -> 823242.8981 | AK50: =AK36+AK48 -> 108164.5704 | AM50: 179704.5441 | AO50: -297030.0203 | AQ50: 181783.228 | AS50: 492535.2126
B56: Fully Non-Regulated Trucks
B57: SL | C57: 3545 | D57: 1997 Volvo H (U) | E57: 2008 | F57: 11 | G57: 0.33 | I57: S/L | J57: 5 | K57: =E57+J57 -> 2013 | O57: 18500 | Q57: =O57-O57*G57 -> 12395 | R57: =Q57/J57/12 -> 206.5833333 | S57: =IF(P57>0,0,IF(OR(AE57>AF57,AG57<AH57),0,IF(AND(AG57>=AH57,AG57<=AF57),R57*((AG57-AH57)*12),IF(AND(AH57<=AE57,AF57>=AE57),((AF57-AE57)*12)*R57,IF(AG57>AF57,12*R57,0))))) -> 0 | T57: =IF(P57=0,0,IF(AND(AI57>=AH57,AI57<=AG57),((AI57-AH57)*12)*R57,0)) -> 0 | U57: =IF(T57>0,T57,S57) -> 0 | V57: 1 | W57: =V57*SUM(S57:T57) -> 0 | Y57: =IF(AE57>AF57,0,IF(AG57<AH57,Q57,IF(AND(AG57>=AH57,AG57<=AF57),(Q57-U57),IF(AND(AH57<=AE57,AF57>=AE57),0,IF(AG57>AF57,((AH57-AE57)*12)*R57,0))))) -> 12395 | Z57: =Y57*V57 -> 12395 | AA57: 1 | AB57: =Z57*AA57 -> 12395 | AC57: =IF(P57>0,0,AB57+W57*AA57)*AA57 -> 12395 | AD57: =IF(P57>0,(O57-AB57)/2,IF(AE57>=AH57,(((O57*V57)*AA57)-AC57)/2,((((O57*V57)*AA57)-AB57)+(((O57*V57)*AA57)-AC57))/2)) -> 6105 | AE57: =$E57+(($F57-1)/12) -> 2008.833333 | AF57: =($Q$5+1)-($Q$2/12) -> 2018 | AG57: =$K57+(($F57-1)/12) -> 2013.833333 | AH57: =$Q$4+($Q$3/12) -> 2017 | AI57: =$L57+(($M57-1)/12) -> -0.08333333333 | AK57: =+IF((AG57-AH57)>3,((O57-Q57)/(AG57-AH57)),(O57-Q57)/3) -> 2035 | AM57: =+AK57+U57 -> 2035 | AO57: =+IF(AG57<AH57,-AD57,0) -> -6105 | AQ57: =IF(AG57>AH57,IF(AK57>0,IF(P57>0,(O57-AB57)/2,IF(AE57>=AH57,(((O57*V57)*AA57)-AC57)/2,((((O57*V57)*AA57)-AB57)+(((O57*V57)*AA57)-AC57))/2)),0),0) -> 0 | AS57: =+AD57+AO57+(IF(AQ57>0,(AQ57-AD57),0)) -> 0
B58: SL | C58: 3547 | D58: 1998 Volvo H (U) | E58: 2008 | F58: 11 | G58: 0.33 | I58: S/L | J58: 5 | K58: 2013 | O58: 18500 | Q58: 12395 | R58: 206.5833333 | S58: 0 | T58: 0 | U58: 0 | V58: 1 | W58: 0 | Y58: 12395 | Z58: 12395 | AA58: 1 | AB58: 12395 | AC58: 12395 | AD58: 6105 | AE58: 2008.833333 | AF58: =($Q$5+1)-($Q$2/12) -> 2018 | AG58: 2013.833333 | AH58: =$Q$4+($Q$3/12) -> 2017 | AI58: -0.08333333333 | AK58: =+IF((AG58-AH58)>3,((O58-Q58)/(AG58-AH58)),(O58-Q58)/3) -> 2035 | AM58: =+AK58+U58 -> 2035 | AO58: =+IF(AG58<AH58,-AD58,0) -> -6105 | AQ58: 0 | AS58: =+AD58+AO58+(IF(AQ58>0,(AQ58-AD58),0)) -> 0
A59: 109830 | D59: 4 Truck Radios | E59: 2013 | F59: 12 | G59: 0 | I59: S/L | J59: 7 | K59: 2020 | O59: =1101.59*4 -> 4406.36 | Q59: 4406.36 | R59: 52.45666667 | S59: 629.48 | T59: 0 | U59: 629.48 | V59: 1 | W59: 629.48 | Y59: 1940.896667 | Z59: 1940.896667 | AA59: 1 | AB59: 1940.896667 | AC59: 2570.376667 | AD59: 2150.723333 | AE59: 2013.916667 | AF59: =($Q$5+1)-($Q$2/12) -> 2018 | AG59: 2020.916667 | AH59: =$Q$4+($Q$3/12) -> 2017 | AI59: -0.08333333333 | AK59: 0 | AM59: 629.48 | AO59: 0 | AQ59: 0 | AS59: 2150.723333
A60: 118075 | B60: ASL | C60: 5011 | D60: 2006 Peterbilt ASL (U) | E60: 2014 | F60: 12 | G60: 0.33 | I60: S/L | J60: 5 | K60: 2019 | O60: 172742.39 | Q60: 115737.4013 | R60: 1928.956688 | S60: 23147.48026 | T60: 0 | U60: 23147.48026 | V60: 1 | W60: 23147.48026 | Y60: 48223.91721 | Z60: 48223.91721 | AA60: 1 | AB60: 48223.91721 | AC60: 71371.39747 | AD60: 112944.7327 | AE60: 2014.916667 | AF60: =($Q$5+1)-($Q$2/12) -> 2018 | AG60: 2019.916667 | AH60: =$Q$4+($Q$3/12) -> 2017 | AI60: -0.08333333333 | AK60: 19001.6629 | AM60: 42149.14316 | AO60: 0 | AQ60: 112944.7327 | AS60: 112944.7327
C61: 130761 | D61: 2009 53' Trailer | E61: 2016 | F61: 3 | G61: 0 | I61: S/L | J61: 3 | K61: 2019 | O61: 25087.2 | Q61: 25087.2 | R61: 696.8666667 | S61: 8362.4 | T61: 0 | U61: 8362.4 | V61: 1 | W61: 8362.4 | Y61: 6968.666667 | Z61: 6968.666667 | AA61: 1 | AB61: 6968.666667 | AC61: 15331.06667 | AD61: 13937.33333 | AE61: 2016.166667 | AF61: =('2144 Shop,Serv Orig'!$P$5+1)-('2144 Shop,Serv Orig'!$P$2/12) -> 2018 | AG61: 2019.166667 | AH61: ='2144 Shop,Serv Orig'!$P$4+('2144 Shop,Serv Orig'!$P$3/12) -> 2017 | AI61: -0.08333333333 | AK61: 0 | AM61: 8362.4 | AO61: 0 | AQ61: 0 | AS61: 13937.33333
A62: 181716 | B62: Trct | D62: 2000 Kenworth T800 | E62: 2002 | F62: 8 | G62: 0 | I62: S/L | J62: 6 | K62: 2008 | O62: 65000 | Q62: 65000 | R62: 902.7777778 | S62: 0 | T62: 0 | U62: 0 | V62: 1 | W62: 0 | Y62: 65000 | Z62: 65000 | AA62: 1 | AB62: 65000 | AC62: 65000 | AD62: 0 | AE62: 2002.583333 | AF62: =('2144 Shop,Serv Orig'!$P$5+1)-('2144 Shop,Serv Orig'!$P$2/12) -> 2018 | AG62: 2008.583333 | AH62: ='2144 Shop,Serv Orig'!$P$4+('2144 Shop,Serv Orig'!$P$3/12) -> 2017 | AI62: -0.08333333333 | AK62: 0 | AM62: 0 | AO62: 0 | AQ62: 0 | AS62: 0
A63: 181717/181718 | B63: Trct | C63: 5002 | D63: Engine Repair on 2000 Kenworth | E63: 2009 | F63: 10 | G63: 0 | I63: S/L | J63: 3 | K63: 2012 | O63: =13302.3+13879.68 -> 27181.98 | Q63: 27181.98 | R63: 755.055 | S63: 0 | T63: 0 | U63: 0 | V63: 1 | W63: 0 | Y63: 27181.98 | Z63: 27181.98 | AA63: 1 | AB63: 27181.98 | AC63: 27181.98 | AD63: 0 | AE63: 2009.75 | AF63: =('2144 Shop,Serv Orig'!$P$5+1)-('2144 Shop,Serv Orig'!$P$2/12) -> 2018 | AG63: 2012.75 | AH63: ='2144 Shop,Serv Orig'!$P$4+('2144 Shop,Serv Orig'!$P$3/12) -> 2017 | AI63: -0.08333333333 | AK63: 0 | AM63: 0 | AO63: 0 | AQ63: 0 | AS63: 0
A64: 187379, 190461 | D64: 2014 Road Tractor | E64: 2017 | F64: 10 | G64: 0 | I64: S/L | J64: 6 | K64: 2023 | O64: =95178+864.17 -> 96042.17 | Q64: =O64-O64*G64 -> 96042.17 | R64: =Q64/J64/12 -> 1333.919028 | S64: =IF(P64>0,0,IF(OR(AE64>AF64,AG64<AH64),0,IF(AND(AG64>=AH64,AG64<=AF64),R64*((AG64-AH64)*12),IF(AND(AH64<=AE64,AF64>=AE64),((AF64-AE64)*12)*R64,IF(AG64>AF64,12*R64,0))))) -> 4001.757083 | T64: =IF(P64=0,0,IF(AND(AI64>=AH64,AI64<=AG64),((AI64-AH64)*12)*R64,0)) -> 0 | U64: =IF(T64>0,T64,S64) -> 4001.757083 | V64: 1 | W64: =V64*SUM(S64:T64) -> 4001.757083 | Y64: =IF(AE64>AF64,0,IF(AG64<AH64,Q64,IF(AND(AG64>=AH64,AG64<=AF64),(Q64-U64),IF(AND(AH64<=AE64,AF64>=AE64),0,IF(AG64>AF64,((AH64-AE64)*12)*R64,0))))) -> 0 | Z64: =Y64*V64 -> 0 | AA64: 1 | AB64: =Z64*AA64 -> 0 | AC64: =IF(P64>0,0,AB64+W64*AA64)*AA64 -> 4001.757083 | AD64: =IF(P64>0,(O64-AB64)/2,IF(AE64>=AH64,(((O64*V64)*AA64)-AC64)/2,((((O64*V64)*AA64)-AB64)+(((O64*V64)*AA64)-AC64))/2)) -> 46020.20646 | AE64: 2017.75 | AF64: =('2144 Shop,Serv Orig'!$P$5+1)-('2144 Shop,Serv Orig'!$P$2/12) -> 2018 | AG64: 2023.75 | AH64: ='2144 Shop,Serv Orig'!$P$4+('2144 Shop,Serv Orig'!$P$3/12) -> 2017 | AI64: -0.08333333333
A65: 186154 | D65: 2018 ASL Truck | E65: 2017 | F65: 9 | G65: 0 | I65: S/L | J65: 10 | K65: 2027 | O65: 341677.84 | Q65: =O65-O65*G65 -> 341677.84 | R65: =Q65/J65/12 -> 2847.315333 | S65: =IF(P65>0,0,IF(OR(AE65>AF65,AG65<AH65),0,IF(AND(AG65>=AH65,AG65<=AF65),R65*((AG65-AH65)*12),IF(AND(AH65<=AE65,AF65>=AE65),((AF65-AE65)*12)*R65,IF(AG65>AF65,12*R65,0))))) -> 11389.26133 | T65: =IF(P65=0,0,IF(AND(AI65>=AH65,AI65<=AG65),((AI65-AH65)*12)*R65,0)) -> 0 | U65: =IF(T65>0,T65,S65) -> 11389.26133 | V65: 1 | W65: =V65*SUM(S65:T65) -> 11389.26133 | Y65: =IF(AE65>AF65,0,IF(AG65<AH65,Q65,IF(AND(AG65>=AH65,AG65<=AF65),(Q65-U65),IF(AND(AH65<=AE65,AF65>=AE65),0,IF(AG65>AF65,((AH65-AE65)*12)*R65,0))))) -> 0 | Z65: =Y65*V65 -> 0 | AA65: 1 | AB65: =Z65*AA65 -> 0 | AC65: =IF(P65>0,0,AB65+W65*AA65)*AA65 -> 11389.26133 | AD65: =IF(P65>0,(O65-AB65)/2,IF(AE65>=AH65,(((O65*V65)*AA65)-AC65)/2,((((O65*V65)*AA65)-AB65)+(((O65*V65)*AA65)-AC65))/2)) -> 165144.2893 | AE65: 2017.666667 | AF65: =('2144 Shop,Serv Orig'!$P$5+1)-('2144 Shop,Serv Orig'!$P$2/12) -> 2018 | AG65: 2027.666667 | AH65: ='2144 Shop,Serv Orig'!$P$4+('2144 Shop,Serv Orig'!$P$3/12) -> 2017 | AI65: -0.08333333333
A66: 186154, 188087 | D66: Radio System for ASL | E66: 2017 | F66: 10 | G66: 0 | I66: S/L | J66: 5 | K66: 2022 | O66: 1002.38 | Q66: =O66-O66*G66 -> 1002.38 | R66: =Q66/J66/12 -> 16.70633333 | S66: =IF(P66>0,0,IF(OR(AE66>AF66,AG66<AH66),0,IF(AND(AG66>=AH66,AG66<=AF66),R66*((AG66-AH66)*12),IF(AND(AH66<=AE66,AF66>=AE66),((AF66-AE66)*12)*R66,IF(AG66>AF66,12*R66,0))))) -> 50.119 | T66: =IF(P66=0,0,IF(AND(AI66>=AH66,AI66<=AG66),((AI66-AH66)*12)*R66,0)) -> 0 | U66: =IF(T66>0,T66,S66) -> 50.119 | V66: 1 | W66: =V66*SUM(S66:T66) -> 50.119 | Y66: =IF(AE66>AF66,0,IF(AG66<AH66,Q66,IF(AND(AG66>=AH66,AG66<=AF66),(Q66-U66),IF(AND(AH66<=AE66,AF66>=AE66),0,IF(AG66>AF66,((AH66-AE66)*12)*R66,0))))) -> 0 | Z66: =Y66*V66 -> 0 | AA66: 1 | AB66: =Z66*AA66 -> 0 | AC66: =IF(P66>0,0,AB66+W66*AA66)*AA66 -> 50.119 | AD66: =IF(P66>0,(O66-AB66)/2,IF(AE66>=AH66,(((O66*V66)*AA66)-AC66)/2,((((O66*V66)*AA66)-AB66)+(((O66*V66)*AA66)-AC66))/2)) -> 476.1305 | AE66: 2017.75 | AF66: =('2144 Shop,Serv Orig'!$P$5+1)-('2144 Shop,Serv Orig'!$P$2/12) -> 2018 | AG66: 2022.75 | AH66: ='2144 Shop,Serv Orig'!$P$4+('2144 Shop,Serv Orig'!$P$3/12) -> 2017 | AI66: -0.08333333333
D68: Total Trucks | O68: =SUM(O57:O67) -> 770140.32 | Q68: =SUM(Q57:Q67) -> 700925.3313 | R68: 8947.220161 | S68: 47580.49768 | T68: 0 | U68: 47580.49768 | V68: 10 | W68: 47580.49768 | X68: 0 | Y68: 174105.4605 | Z68: 174105.4605 | AA68: 10 | AB68: 174105.4605 | AC68: 221685.9582 | AD68: 352883.4156 | AK68: =SUM(AK57:AK63) -> 23071.6629 | AM68: =SUM(AM57:AM63) -> 55211.02316 | AO68: =SUM(AO57:AO63) -> -12210 | AQ68: =SUM(AQ57:AQ63) -> 112944.7327 | AS68: =SUM(AS57:AS63) -> 129032.7893
O70: =+O68+O50 -> 3018758.11 | Q70: =+Q68+Q50 -> 2603260.149 | R70: =+R68+R50 -> 30987.4539 | S70: =+S68+S50 -> 136667.6614 | U70: =+U68+U50 -> 55948.08244 | W70: =+W68+W50 -> 136667.6614 | Y70: =+Y68+Y50 -> 414807.0928 | Z70: =+Z68+Z50 -> 414807.0928 | AB70: =+AB68+AB50 -> 1554379.921 | AC70: =+AC68+AC50 -> 1691047.582 | AD70: =+AD68+AD50 -> 1176126.314 | AK70: =AK56+AK68 -> 23071.6629 | AM70: 55211.02316 | AO70: -12210 | AQ70: 112944.7327 | AS70: 129032.7893
D71: 5001 Rabenco Haul
K72: Fully Depreciated in 2016 | O72: =+SUMIF($K$12:$K$46,2016,$W$12:$W$50) -> 0
K73: Fully Depreciated in 2017 | O73: =+SUMIF($K$12:$K$46,2017,$W$12:$W$50) -> 2773.546619
O74: =+O72+O73 -> 2773.546619
D81: Retired/Transferred 2014
B82: RL | C82: 5004 | D82: 2000 Freightliner | E82: 1999 | F82: 11 | G82: 0.2 | I82: S/L | J82: 7 | K82: =E82+J82 -> 2006 | O82: 67418 | Q82: =O82-O82*G82 -> 53934.4 | R82: =Q82/J82/12 -> 642.0761905 | S82: =IF(P82>0,0,IF(OR(AE82>AF82,AG82<AH82),0,IF(AND(AG82>=AH82,AG82<=AF82),R82*((AG82-AH82)*12),IF(AND(AH82<=AE82,AF82>=AE82),((AF82-AE82)*12)*R82,IF(AG82>AF82,12*R82,0))))) -> 0 | T82: =IF(P82=0,0,IF(AND(AI82>=AH82,AI82<=AG82),((AI82-AH82)*12)*R82,0)) -> 0 | U82: =IF(T82>0,T82,S82) -> 0 | V82: 1 | W82: =V82*SUM(S82:T82) -> 0 | Y82: =IF(AE82>AF82,0,IF(AG82<AH82,Q82,IF(AND(AG82>=AH82,AG82<=AF82),(Q82-U82),IF(AND(AH82<=AE82,AF82>=AE82),0,IF(AG82>AF82,((AH82-AE82)*12)*R82,0))))) -> 53934.4 | Z82: =Y82*V82 -> 53934.4 | AA82: 1 | AB82: =Z82*AA82 -> 53934.4 | AC82: =IF(P82>0,0,AB82+W82*AA82)*AA82 -> 53934.4 | AD82: =IF(P82>0,(O82-AB82)/2,IF(AE82>=AH82,(((O82*V82)*AA82)-AC82)/2,((((O82*V82)*AA82)-AB82)+(((O82*V82)*AA82)-AC82))/2)) -> 13483.6 | AE82: =$E82+(($F82-1)/12) -> 1999.833333 | AF82: =($Q$5+1)-($Q$2/12) -> 2018 | AG82: =$K82+(($F82-1)/12) -> 2006.833333 | AH82: =$Q$4+($Q$3/12) -> 2017 | AI82: =$L82+(($M82-1)/12) -> -0.08333333333
B83: RL | C83: 5004 | D83: 20 yd Heil Pckr | E83: 1999 | F83: 5 | G83: 0.2 | I83: S/L | J83: 7 | K83: 2006 | O83: 30718 | Q83: 24574.4 | R83: 292.552381 | S83: 0 | T83: 0 | U83: 0 | V83: 1 | W83: 0 | Y83: 24574.4 | Z83: 24574.4 | AA83: 1 | AB83: 24574.4 | AC83: 24574.4 | AD83: 6143.6 | AE83: 1999.333333 | AF83: 2018 | AG83: 2006.333333 | AH83: 2017 | AI83: -0.08333333333
C84: 5018 | D84: 94 Volvo (less tires) | E84: 1994 | F84: 4 | G84: 0.2 | I84: S/L | J84: 7 | K84: 2001 | O84: =43063+25742 -> 68805 | Q84: 55044 | R84: 655.2857143 | S84: 0 | T84: 0 | U84: 0 | V84: 1 | W84: 0 | Y84: 55044 | Z84: 55044 | AA84: 1 | AB84: 55044 | AC84: 55044 | AD84: 13761 | AE84: 1994.25 | AF84: 2018 | AG84: 2001.25 | AH84: 2017 | AI84: -0.08333333333
B85: RO | C85: 5021 | D85: 90 Volvo Truck RO | E85: 1995 | F85: 4 | G85: 0.33 | I85: S/L | J85: 5 | K85: 2000 | O85: 32379 | Q85: 21693.93 | R85: 361.5655 | S85: 0 | T85: 0 | U85: 0 | V85: 1 | W85: 0 | Y85: 21693.93 | Z85: 21693.93 | AA85: 1 | AB85: 21693.93 | AC85: 21693.93 | AD85: 10685.07 | AE85: 1995.25 | AF85: 2018 | AG85: 2000.25 | AH85: 2017 | AI85: -0.08333333333
C86: 5020 | D86: 1989 Volvo | E86: 1997 | F86: 4 | G86: 0.33 | I86: S/L | J86: 5 | K86: 2002 | O86: 11545 | Q86: 7735.15 | R86: 128.9191667 | S86: 0 | T86: 0 | U86: 0 | V86: 1 | W86: 0 | Y86: 7735.15 | Z86: 7735.15 | AA86: 1 | AB86: 7735.15 | AC86: 7735.15 | AD86: 3809.85 | AE86: 1997.25 | AF86: 2018 | AG86: 2002.25 | AH86: 2017 | AI86: -0.08333333333
B87: RO | C87: 5021 | D87: Force Magnum RO system | E87: 1996 | F87: 7 | G87: 0.2 | I87: S/L | J87: 7 | K87: 2003 | O87: 25022 | Q87: 20017.6 | R87: 238.3047619 | S87: 0 | T87: 0 | U87: 0 | V87: 1 | W87: 0 | Y87: 20017.6 | Z87: 20017.6 | AA87: 1 | AB87: 20017.6 | AC87: 20017.6 | AD87: 5004.4 | AE87: 1996.5 | AF87: 2018 | AG87: 2003.5 | AH87: 2017 | AI87: -0.08333333333
B88: Trct | C88: 5001 | D88: 1987 Freightliner (U) | E88: 2001 | F88: 11 | G88: 0 | I88: S/L | J88: 5 | K88: 2006 | O88: 25000 | Q88: 25000 | R88: 416.6666667 | S88: 0 | T88: 0 | U88: 0 | V88: 1 | W88: 0 | Y88: 25000 | Z88: 25000 | AA88: 1 | AB88: 25000 | AC88: 25000 | AD88: 0 | AE88: 2001.833333 | AF88: 2018 | AG88: 2006.833333 | AH88: 2017 | AI88: -0.08333333333
B89: Trct | C89: 5001 | D89: Fleet Upgrade (Inframe) | E89: 2008 | F89: 7 | G89: 0 | I89: S/L | J89: 3 | K89: 2011 | O89: 17797.16 | Q89: 17797.16 | R89: 494.3655556 | S89: 0 | T89: 0 | U89: 0 | V89: 1 | W89: 0 | Y89: 17797.16 | Z89: 17797.16 | AA89: 1 | AB89: 17797.16 | AC89: 17797.16 | AD89: 0 | AE89: 2008.5 | AF89: 2018 | AG89: 2011.5 | AH89: 2017 | AI89: -0.08333333333
D92: Retired/Transferred 2016
B93: RL | C93: 5009 | D93: 1997 Freightliner | E93: 1997 | F93: 11 | G93: 0.2 | I93: S/L | J93: 7 | K93: =E93+J93 -> 2004 | O93: 58536 | Q93: =O93-O93*G93 -> 46828.8 | R93: =Q93/J93/12 -> 557.4857143 | S93: =IF(P93>0,0,IF(OR(AE93>AF93,AG93<AH93),0,IF(AND(AG93>=AH93,AG93<=AF93),R93*((AG93-AH93)*12),IF(AND(AH93<=AE93,AF93>=AE93),((AF93-AE93)*12)*R93,IF(AG93>AF93,12*R93,0))))) -> 0 | T93: =IF(P93=0,0,IF(AND(AI93>=AH93,AI93<=AG93),((AI93-AH93)*12)*R93,0)) -> 0 | U93: =IF(T93>0,T93,S93) -> 0 | V93: 1 | W93: =V93*SUM(S93:T93) -> 0 | Y93: =IF(AE93>AF93,0,IF(AG93<AH93,Q93,IF(AND(AG93>=AH93,AG93<=AF93),(Q93-U93),IF(AND(AH93<=AE93,AF93>=AE93),0,IF(AG93>AF93,((AH93-AE93)*12)*R93,0))))) -> 46828.8 | Z93: =Y93*V93 -> 46828.8 | AA93: 1 | AB93: =Z93*AA93 -> 46828.8 | AC93: =IF(P93>0,0,AB93+W93*AA93)*AA93 -> 46828.8 | AD93: =IF(P93>0,(O93-AB93)/2,IF(AE93>=AH93,(((O93*V93)*AA93)-AC93)/2,((((O93*V93)*AA93)-AB93)+(((O93*V93)*AA93)-AC93))/2)) -> 11707.2 | AE93: =$E93+(($F93-1)/12) -> 1997.833333 | AF93: =($Q$5+1)-($Q$2/12) -> 2018 | AG93: =$K93+(($F93-1)/12) -> 2004.833333 | AH93: =$Q$4+($Q$3/12) -> 2017 | AI93: =$L93+(($M93-1)/12) -> -0.08333333333
B94: RL | C94: 5009 | D94: 20 yd Heil Pckr | E94: 1998 | F94: 1 | G94: 0.2 | I94: S/L | J94: 7 | K94: =E94+J94 -> 2005 | O94: 28936 | Q94: =O94-O94*G94 -> 23148.8 | R94: =Q94/J94/12 -> 275.5809524 | S94: =IF(P94>0,0,IF(OR(AE94>AF94,AG94<AH94),0,IF(AND(AG94>=AH94,AG94<=AF94),R94*((AG94-AH94)*12),IF(AND(AH94<=AE94,AF94>=AE94),((AF94-AE94)*12)*R94,IF(AG94>AF94,12*R94,0))))) -> 0 | T94: =IF(P94=0,0,IF(AND(AI94>=AH94,AI94<=AG94),((AI94-AH94)*12)*R94,0)) -> 0 | U94: =IF(T94>0,T94,S94) -> 0 | V94: 1 | W94: =V94*SUM(S94:T94) -> 0 | Y94: =IF(AE94>AF94,0,IF(AG94<AH94,Q94,IF(AND(AG94>=AH94,AG94<=AF94),(Q94-U94),IF(AND(AH94<=AE94,AF94>=AE94),0,IF(AG94>AF94,((AH94-AE94)*12)*R94,0))))) -> 23148.8 | Z94: =Y94*V94 -> 23148.8 | AA94: 1 | AB94: =Z94*AA94 -> 23148.8 | AC94: =IF(P94>0,0,AB94+W94*AA94)*AA94 -> 23148.8 | AD94: =IF(P94>0,(O94-AB94)/2,IF(AE94>=AH94,(((O94*V94)*AA94)-AC94)/2,((((O94*V94)*AA94)-AB94)+(((O94*V94)*AA94)-AC94))/2)) -> 5787.2 | AE94: =$E94+(($F94-1)/12) -> 1998 | AF94: =($Q$5+1)-($Q$2/12) -> 2018 | AG94: =$K94+(($F94-1)/12) -> 2005 | AH94: =$Q$4+($Q$3/12) -> 2017 | AI94: =$L94+(($M94-1)/12) -> -0.08333333333
D97: Retired/Transferred 2017
B98: Trct | C98: 355 | D98: Engine Rebuild, Capital Repair | E98: 2012 | F98: 9 | G98: 0 | I98: S/L | J98: 3 | K98: =E98+J98 -> 2015 | O98: =10263.47+25500 -> 35763.47 | Q98: =O98-O98*G98 -> 35763.47 | R98: =Q98/J98/12 -> 993.4297222 | S98: =IF(P98>0,0,IF(OR(AE98>AF98,AG98<AH98),0,IF(AND(AG98>=AH98,AG98<=AF98),R98*((AG98-AH98)*12),IF(AND(AH98<=AE98,AF98>=AE98),((AF98-AE98)*12)*R98,IF(AG98>AF98,12*R98,0))))) -> 0 | T98: =IF(P98=0,0,IF(AND(AI98>=AH98,AI98<=AG98),((AI98-AH98)*12)*R98,0)) -> 0 | U98: =IF(T98>0,T98,S98) -> 0 | V98: 1 | W98: =V98*SUM(S98:T98) -> 0 | Y98: =IF(AE98>AF98,0,IF(AG98<AH98,Q98,IF(AND(AG98>=AH98,AG98<=AF98),(Q98-U98),IF(AND(AH98<=AE98,AF98>=AE98),0,IF(AG98>AF98,((AH98-AE98)*12)*R98,0))))) -> 35763.47 | Z98: =Y98*V98 -> 35763.47 | AA98: 1 | AB98: =Z98*AA98 -> 35763.47 | AC98: =IF(P98>0,0,AB98+W98*AA98)*AA98 -> 35763.47 | AD98: =IF(P98>0,(O98-AB98)/2,IF(AE98>=AH98,(((O98*V98)*AA98)-AC98)/2,((((O98*V98)*AA98)-AB98)+(((O98*V98)*AA98)-AC98))/2)) -> 0 | AE98: =$E98+(($F98-1)/12) -> 2012.666667 | AF98: =($Q$5+1)-($Q$2/12) -> 2018 | AG98: =$K98+(($F98-1)/12) -> 2015.666667 | AH98: =$Q$4+($Q$3/12) -> 2017 | AI98: =$L98+(($M98-1)/12) -> -0.08333333333 | AK98: =+IF((AG98-AH98)>3,((O98-Q98)/(AG98-AH98)),(O98-Q98)/3) -> 0 | AM98: =+AK98+U98 -> 0 | AO98: =+IF(AG98<AH98,-AD98,0) -> 0 | AQ98: =IF(AG98>AH98,IF(AK98>0,IF(P98>0,(O98-AB98)/2,IF(AE98>=AH98,(((O98*V98)*AA98)-AC98)/2,((((O98*V98)*AA98)-AB98)+(((O98*V98)*AA98)-AC98))/2)),0),0) -> 0 | AS98: =+AD98+AO98+(IF(AQ98>0,(AQ98-AD98),0)) -> 0
A99: 109711 | B99: Trct | C99: 5002 | D99: 2000 Kenworth Tractor (Commingle) (U) | E99: 2010 | F99: 6 | G99: 0.33 | I99: S/L | J99: 5 | K99: =E99+J99 -> 2015 | O99: 74038.58 | Q99: =O99-O99*G99 -> 49605.8486 | R99: =Q99/J99/12 -> 826.7641433 | S99: =IF(P99>0,0,IF(OR(AE99>AF99,AG99<AH99),0,IF(AND(AG99>=AH99,AG99<=AF99),R99*((AG99-AH99)*12),IF(AND(AH99<=AE99,AF99>=AE99),((AF99-AE99)*12)*R99,IF(AG99>AF99,12*R99,0))))) -> 0 | T99: =IF(P99=0,0,IF(AND(AI99>=AH99,AI99<=AG99),((AI99-AH99)*12)*R99,0)) -> 0 | U99: =IF(T99>0,T99,S99) -> 0 | V99: 1 | W99: =V99*SUM(S99:T99) -> 0 | Y99: =IF(AE99>AF99,0,IF(AG99<AH99,Q99,IF(AND(AG99>=AH99,AG99<=AF99),(Q99-U99),IF(AND(AH99<=AE99,AF99>=AE99),0,IF(AG99>AF99,((AH99-AE99)*12)*R99,0))))) -> 49605.8486 | Z99: =Y99*V99 -> 49605.8486 | AA99: 1 | AB99: =Z99*AA99 -> 49605.8486 | AC99: =IF(P99>0,0,AB99+W99*AA99)*AA99 -> 49605.8486 | AD99: =IF(P99>0,(O99-AB99)/2,IF(AE99>=AH99,(((O99*V99)*AA99)-AC99)/2,((((O99*V99)*AA99)-AB99)+(((O99*V99)*AA99)-AC99))/2)) -> 24432.7314 | AE99: =$E99+(($F99-1)/12) -> 2010.416667 | AF99: =($Q$5+1)-($Q$2/12) -> 2018 | AG99: =$K99+(($F99-1)/12) -> 2015.416667 | AH99: =$Q$4+($Q$3/12) -> 2017 | AI99: =$L99+(($M99-1)/12) -> -0.08333333333 | AK99: =+IF((AG99-AH99)>3,((O99-Q99)/(AG99-AH99)),(O99-Q99)/3) -> 8144.2438 | AM99: =+AK99+U99 -> 8144.2438 | AO99: =+IF(AG99<AH99,-AD99,0) -> -24432.7314 | AQ99: =IF(AG99>AH99,IF(AK99>0,IF(P99>0,(O99-AB99)/2,IF(AE99>=AH99,(((O99*V99)*AA99)-AC99)/2,((((O99*V99)*AA99)-AB99)+(((O99*V99)*AA99)-AC99))/2)),0),0) -> 0 | AS99: =+AD99+AO99+(IF(AQ99>0,(AQ99-AD99),0)) -> 0

Sheet 2144 Cont, DB Orig
C1: Island Disposal | AD1: 2012-01-01
C2: Depreciation Schedule | O2: =+'2144 Trks Orig'!Q2 -> 12 | P2: Months in first year
C3: ='[13]Depr Summary'!H5 -> 2017-12-31 | O3: =+'2144 Trks Orig'!Q3 -> 0 | P3: Months in second year | AD3: A. | AE3: Purchase date
O4: ='2144 Trks Orig'!Q4 -> 2017 | P4: First year | AD4: B. | AE4: End of Test Period
O5: ='2144 Trks Orig'!Q5 -> 2018 | P5: Second year | AD5: C | AE5: Date fully Depr
AD6: D. | AE6: Beg of Test Period
AD7: E. | AE7: Disposition Date
R8: Disposal | U8: Total | W8: Beginning | X8: Ending | Z8: Allocated | AA8: Allocated
C9: GARBAGE | D9: Date in | F9: Salvage | J9: Year | N9: Asset | Q9: Test | R9: Year | S9: Total | T9: % | U9: Allocated | W9: Accum | X9: Accum | Y9: Branch | Z9: Accum. | AA9: Accum. | AB9: Average
B10: Quantity | D10: Service | F10: Value | H10: Method | I10: Life | J10: Fully | K10: Asset | L10: Mo. | M10: Asset | N10: Disposal | O10: Depr | P10: Monthly | Q10: Year | R10: Depn | S10: Test yr. | T10: Allo. | U10: Test year | W10: Depr | X10: Depr | Y10: Allo. | Z10: Depr. | AA10: Depr. | AB10: Investment | AC10: A. | AD10: B | AE10: C. | AF10: D. | AG10: E.
A11: Codes | B11: No | C11: Asset Classification | D11: Year | E11: Mo | F11: % | G11: - | H11: M | I11: Years | J11: Depr | K11: Cost | L11: - | M11: Cost | N11: - | O11: Cost | P11: Depr | Q11: Depr | R11: - | S11: Depn. | T11: - | U11: Depr. | W11: ='[13]Depr Summary'!F5 -> 2017-01-01 | X11: =+C3 -> 2017-12-31 | Y11: % | Z11: ='[13]Depr Summary'!F5 -> 2017-01-01 | AA11: =+C3 -> 2017-12-31 | AB11: =C3 -> 2017-12-31
C12: Containers | D12: 1998 | E12: 5 | F12: 0 | H12: S/L | I12: 10 | J12: =D12+I12 -> 2008 | M12: 10093 | O12: =M12-M12*F12 -> 10093 | P12: =O12/I12/12 -> 84.10833333 | Q12: =IF(N12>0,0,IF(OR(AC12>AD12,AE12<AF12),0,IF(AND(AE12>=AF12,AE12<=AD12),P12*((AE12-AF12)*12),IF(AND(AF12<=AC12,AD12>=AC12),((AD12-AC12)*12)*P12,IF(AE12>AD12,12*P12,0))))) -> 0 | R12: =IF(N12=0,0,IF(AND(AG12>=AF12,AG12<=AE12),((AG12-AF12)*12)*P12,0)) -> 0 | S12: =IF(R12>0,R12,Q12) -> 0 | T12: 1 | U12: =T12*SUM(Q12:R12) -> 0 | W12: =IF(AC12>AD12,0,IF(AE12<AF12,O12,IF(AND(AE12>=AF12,AE12<=AD12),(O12-S12),IF(AND(AF12<=AC12,AD12>=AC12),0,IF(AE12>AD12,((AF12-AC12)*12)*P12,0))))) -> 10093 | X12: =W12*T12 -> 10093 | Y12: 1 | Z12: =X12*Y12 -> 10093 | AA12: =IF(N12>0,0,Z12+U12*Y12)*Y12 -> 10093 | AB12: =IF(N12>0,(M12-Z12)/2,IF(AC12>=AF12,(((M12*T12)*Y12)-AA12)/2,((((M12*T12)*Y12)-Z12)+(((M12*T12)*Y12)-AA12))/2)) -> 0 | AC12: =$D12+(($E12-1)/12) -> 1998.333333 | AD12: =($O$5+1)-($O$2/12) -> 2018 | AE12: =$J12+(($E12-1)/12) -> 2008.333333 | AF12: =$O$4+($O$3/12) -> 2017 | AG12: =$K12+(($L12-1)/12) -> -0.08333333333
C13: Containers | D13: 1998 | E13: 7 | F13: 0 | H13: S/L | I13: 10 | J13: 2008 | M13: 9888 | O13: 9888 | P13: 82.4 | Q13: 0 | R13: 0 | S13: 0 | T13: 1 | U13: 0 | W13: 9888 | X13: 9888 | Y13: 1 | Z13: 9888 | AA13: 9888 | AB13: 0 | AC13: 1998.5 | AD13: 2018 | AE13: 2008.5 | AF13: 2017 | AG13: -0.08333333333
C14: Containers | D14: 1998 | E14: 9 | F14: 0 | H14: S/L | I14: 10 | J14: 2008 | M14: 9908 | O14: 9908 | P14: 82.56666667 | Q14: 0 | R14: 0 | S14: 0 | T14: 1 | U14: 0 | W14: 9908 | X14: 9908 | Y14: 1 | Z14: 9908 | AA14: 9908 | AB14: 0 | AC14: 1998.666667 | AD14: 2018 | AE14: 2008.666667 | AF14: 2017 | AG14: -0.08333333333
B15: 12 | C15: 12 1 yd containers | D15: 2000 | E15: 7 | F15: 0 | H15: S/L | I15: 10 | J15: 2010 | M15: 6034 | N15: 0 | O15: 6034 | P15: 50.28333333 | Q15: 0 | R15: 0 | S15: 0 | T15: 1 | U15: 0 | W15: 6034 | X15: 6034 | Y15: 1 | Z15: 6034 | AA15: 6034 | AB15: 0 | AC15: 2000.5 | AD15: 2018 | AE15: 2010.5 | AF15: 2017 | AG15: -0.08333333333
B16: 12 | C16: 12 1.5 yd containers | D16: 2000 | E16: 7 | F16: 0 | H16: S/L | I16: 10 | J16: 2010 | M16: 6425 | N16: 0 | O16: 6425 | P16: 53.54166667 | Q16: 0 | R16: 0 | S16: 0 | T16: 1 | U16: 0 | W16: 6425 | X16: 6425 | Y16: 1 | Z16: 6425 | AA16: 6425 | AB16: 0 | AC16: 2000.5 | AD16: 2018 | AE16: 2010.5 | AF16: 2017 | AG16: -0.08333333333
B17: 12 | C17: 12 1 yd containers | D17: 2003 | E17: 1 | F17: 0 | H17: S/L | I17: 10 | J17: 2013 | M17: 4896 | N17: 0 | O17: 4896 | P17: 40.8 | Q17: 0 | R17: 0 | S17: 0 | T17: 1 | U17: 0 | W17: 4896 | X17: 4896 | Y17: 1 | Z17: 4896 | AA17: 4896 | AB17: 0 | AC17: 2003 | AD17: 2018 | AE17: 2013 | AF17: 2017 | AG17: -0.08333333333
B18: 12 | C18: 12 2 yd containers | D18: 2003 | E18: 1 | F18: 0 | H18: S/L | I18: 10 | J18: 2013 | M18: 5962 | N18: 0 | O18: 5962 | P18: 49.68333333 | Q18: 0 | R18: 0 | S18: 0 | T18: 1 | U18: 0 | W18: 5962 | X18: 5962 | Y18: 1 | Z18: 5962 | AA18: 5962 | AB18: 0 | AC18: 2003 | AD18: 2018 | AE18: 2013 | AF18: 2017 | AG18: -0.08333333333
B19: 12 | C19: 12 2 yd containers | D19: 2005 | E19: 7 | F19: 0 | H19: S/L | I19: 10 | J19: 2015 | M19: 7768.32 | N19: 0 | O19: 7768.32 | P19: 64.736 | Q19: 0 | R19: 0 | S19: 0 | T19: 1 | U19: 0 | W19: 7768.32 | X19: 7768.32 | Y19: 1 | Z19: 7768.32 | AA19: 7768.32 | AB19: 0 | AC19: 2005.5 | AD19: 2018 | AE19: 2015.5 | AF19: 2017 | AG19: -0.08333333333
B20: 12 | C20: 12 1 yd containers | D20: 2005 | E20: 9 | F20: 0 | H20: S/L | I20: 10 | J20: 2015 | M20: 6780 | N20: 0 | O20: 6780 | P20: 56.5 | Q20: 0 | R20: 0 | S20: 0 | T20: 1 | U20: 0 | W20: 6780 | X20: 6780 | Y20: 1 | Z20: 6780 | AA20: 6780 | AB20: 0 | AC20: 2005.666667 | AD20: 2018 | AE20: 2015.666667 | AF20: 2017 | AG20: -0.08333333333
B21: 12 | C21: 12 1.5 yd containers | D21: 2005 | E21: 9 | F21: 0 | H21: S/L | I21: 10 | J21: 2015 | M21: 7050.24 | N21: 0 | O21: 7050.24 | P21: 58.752 | Q21: 0 | R21: 0 | S21: 0 | T21: 1 | U21: 0 | W21: 7050.24 | X21: 7050.24 | Y21: 1 | Z21: 7050.24 | AA21: 7050.24 | AB21: 0 | AC21: 2005.666667 | AD21: 2018 | AE21: 2015.666667 | AF21: 2017 | AG21: -0.08333333333
B22: 12 | C22: 1 yd container | D22: 2006 | E22: 8 | F22: 0 | H22: S/L | I22: 10 | J22: 2016 | M22: 5287.68 | N22: 0 | O22: 5287.68 | P22: 44.064 | Q22: 0 | R22: 0 | S22: 0 | T22: 1 | U22: 0 | W22: 5287.68 | X22: 5287.68 | Y22: 1 | Z22: 5287.68 | AA22: 5287.68 | AB22: 0 | AC22: 2006.583333 | AD22: 2018 | AE22: 2016.583333 | AF22: 2017 | AG22: -0.08333333333
B23: 12 | C23: 1.5 yd container | D23: 2006 | E23: 8 | F23: 0 | H23: S/L | I23: 10 | J23: 2016 | M23: 5418.24 | N23: 0 | O23: 5418.24 | P23: 45.152 | Q23: 0 | R23: 0 | S23: 0 | T23: 1 | U23: 0 | W23: 5418.24 | X23: 5418.24 | Y23: 1 | Z23: 5418.24 | AA23: 5418.24 | AB23: 0 | AC23: 2006.583333 | AD23: 2018 | AE23: 2016.583333 | AF23: 2017 | AG23: -0.08333333333
B24: 12 | C24: 2 yd container | D24: 2006 | E24: 9 | F24: 0 | H24: S/L | I24: 10 | J24: 2016 | M24: 5679.36 | N24: 0 | O24: 5679.36 | P24: 47.328 | Q24: 0 | R24: 0 | S24: 0 | T24: 1 | U24: 0 | W24: 5679.36 | X24: 5679.36 | Y24: 1 | Z24: 5679.36 | AA24: 5679.36 | AB24: 0 | AC24: 2006.666667 | AD24: 2018 | AE24: 2016.666667 | AF24: 2017 | AG24: -0.08333333333
B25: 31 | C25: 2 yd container | D25: 2007 | E25: 8 | F25: 0 | H25: S/L | I25: 10 | J25: 2017 | M25: =1894.36+1894.36+2368.58+2842.29+5684.58 -> 14684.17 | N25: 0 | O25: 14684.17 | P25: 122.3680833 | Q25: 856.5765833 | R25: 0 | S25: 856.5765833 | T25: 1 | U25: 856.5765833 | W25: 13827.59342 | X25: 13827.59342 | Y25: 1 | Z25: 13827.59342 | AA25: 14684.17 | AB25: 428.2882917 | AC25: 2007.583333 | AD25: 2018 | AE25: 2017.583333 | AF25: 2017 | AG25: -0.08333333333
B26: 15 | C26: 2 yd container | D26: 2010 | E26: 8 | F26: 0 | H26: S/L | I26: 10 | J26: 2020 | M26: 7314.42 | N26: 0 | O26: 7314.42 | P26: 60.9535 | Q26: 731.442 | R26: 0 | S26: 731.442 | T26: 1 | U26: 731.442 | W26: 4693.4195 | X26: 4693.4195 | Y26: 1 | Z26: 4693.4195 | AA26: 5424.8615 | AB26: 2255.2795 | AC26: 2010.583333 | AD26: 2018 | AE26: 2020.583333 | AF26: 2017 | AG26: -0.08333333333
B27: 15 | C27: 1.5 yd container | D27: 2010 | E27: 8 | F27: 0 | H27: S/L | I27: 10 | J27: 2020 | M27: 7102.46 | N27: 0 | O27: 7102.46 | P27: 59.18716667 | Q27: 710.246 | R27: 0 | S27: 710.246 | T27: 1 | U27: 710.246 | W27: 4557.411833 | X27: 4557.411833 | Y27: 1 | Z27: 4557.411833 | AA27: 5267.657833 | AB27: 2189.925167 | AC27: 2010.583333 | AD27: 2018 | AE27: 2020.583333 | AF27: 2017 | AG27: -0.08333333333
B28: 15 | C28: 2 yd container | D28: 2011 | E28: 12 | F28: 0 | H28: S/L | I28: 10 | J28: 2021 | M28: 7391.25 | N28: 0 | O28: 7391.25 | P28: 61.59375 | Q28: 739.125 | R28: 0 | S28: 739.125 | T28: 1 | U28: 739.125 | W28: 3757.21875 | X28: 3757.21875 | Y28: 1 | Z28: 3757.21875 | AA28: 4496.34375 | AB28: 3264.46875 | AC28: 2011.916667 | AD28: 2018 | AE28: 2021.916667 | AF28: 2017 | AG28: -0.08333333333
B29: 30 | C29: 1 yd w/lids | D29: 2011 | E29: 8 | F29: 0 | H29: S/L | I29: 10 | J29: 2021 | M29: =9610.17+7756.83 -> 17367 | O29: 17367 | P29: 144.725 | Q29: 1736.7 | R29: 0 | S29: 1736.7 | T29: 1 | U29: 1736.7 | W29: 9407.125 | X29: 9407.125 | Y29: 1 | Z29: 9407.125 | AA29: 11143.825 | AB29: 7091.525 | AC29: 2011.583333 | AD29: 2018 | AE29: 2021.583333 | AF29: 2017 | AG29: -0.08333333333
A30: 113799 | B30: 18 | C30: 1.5 yd container | D30: 2014 | E30: 6 | F30: 0 | H30: S/L | I30: 10 | J30: 2024 | M30: 9276.46 | O30: 9276.46 | P30: 77.30383333 | Q30: 927.646 | R30: 0 | S30: 927.646 | T30: 1 | U30: 927.646 | W30: 2396.418833 | X30: 2396.418833 | Y30: 1 | Z30: 2396.418833 | AA30: 3324.064833 | AB30: 6416.218167 | AC30: 2014.416667 | AD30: 2018 | AE30: 2024.416667 | AF30: 2017 | AG30: -0.08333333333
A31: 113798 | B31: 18 | C31: 1 yd container | D31: 2014 | E31: 6 | F31: 0 | H31: S/L | I31: 10 | J31: 2024 | M31: 8669.91 | O31: 8669.91 | P31: 72.24925 | Q31: 866.991 | R31: 0 | S31: 866.991 | T31: 1 | U31: 866.991 | W31: 2239.72675 | X31: 2239.72675 | Y31: 1 | Z31: 2239.72675 | AA31: 3106.71775 | AB31: 5996.68775 | AC31: 2014.416667 | AD31: 2018 | AE31: 2024.416667 | AF31: 2017 | AG31: -0.08333333333
A32: 114392 | B32: 17 | C32: 2 yd container | D32: 2014 | E32: 7 | F32: 0 | H32: S/L | I32: 10 | J32: 2024 | M32: 9582.99 | O32: 9582.99 | P32: 79.85825 | Q32: 958.299 | R32: 0 | S32: 958.299 | T32: 1 | U32: 958.299 | W32: 2395.7475 | X32: 2395.7475 | Y32: 1 | Z32: 2395.7475 | AA32: 3354.0465 | AB32: 6708.093 | AC32: 2014.5 | AD32: 2018 | AE32: 2024.5 | AF32: 2017 | AG32: -0.08333333333
A33: 124519 | B33: 25 | C33: 1 yd container | D33: 2015 | E33: 12 | F33: 0 | H33: S/L | I33: 10 | J33: =D33+I33 -> 2025 | M33: 11680.91 | O33: 11680.91 | P33: 97.34091667 | Q33: 1168.091 | R33: 0 | S33: 1168.091 | T33: 1 | U33: 1168.091 | W33: 1265.431917 | X33: 1265.431917 | Y33: 1 | Z33: 1265.431917 | AA33: 2433.522917 | AB33: 9831.432583 | AC33: 2015.916667 | AD33: 2018 | AE33: 2025.916667 | AF33: 2017 | AG33: -0.08333333333
A34: 124520 | B34: 20 | C34: 2 yd container | D34: 2015 | E34: 12 | F34: 0 | H34: S/L | I34: 10 | J34: =D34+I34 -> 2025 | M34: 10745 | O34: 10745 | P34: 89.54166667 | Q34: 1074.5 | R34: 0 | S34: 1074.5 | T34: 1 | U34: 1074.5 | W34: 1164.041667 | X34: 1164.041667 | Y34: 1 | Z34: 1164.041667 | AA34: 2238.541667 | AB34: 9043.708333 | AC34: 2015.916667 | AD34: 2018 | AE34: 2025.916667 | AF34: 2017 | AG34: -0.08333333333
A35: 124521 | B35: 20 | C35: 1.5 yd container | D35: 2015 | E35: 12 | F35: 0 | H35: S/L | I35: 10 | J35: =D35+I35 -> 2025 | M35: 9767.24 | O35: 9767.24 | P35: 81.39366667 | Q35: 976.724 | R35: 0 | S35: 976.724 | T35: 1 | U35: 976.724 | W35: 1058.117667 | X35: 1058.117667 | Y35: 1 | Z35: 1058.117667 | AA35: 2034.841667 | AB35: 8220.760333 | AC35: 2015.916667 | AD35: 2018 | AE35: 2025.916667 | AF35: 2017 | AG35: -0.08333333333
A37: 169975 | B37: 44 | C37: 1.5 yd container | D37: 2016 | E37: 11 | F37: 0 | H37: S/L | I37: 12 | J37: =D37+I37 -> 2028 | M37: 22819.4 | O37: =M37-M37*F37 -> 22819.4 | P37: =O37/I37/12 -> 158.4680556 | Q37: =IF(N37>0,0,IF(OR(AC37>AD37,AE37<AF37),0,IF(AND(AE37>=AF37,AE37<=AD37),P37*((AE37-AF37)*12),IF(AND(AF37<=AC37,AD37>=AC37),((AD37-AC37)*12)*P37,IF(AE37>AD37,12*P37,0))))) -> 1901.616667 | R37: =IF(N37=0,0,IF(AND(AG37>=AF37,AG37<=AE37),((AG37-AF37)*12)*P37,0)) -> 0 | S37: =IF(R37>0,R37,Q37) -> 1901.616667 | T37: 1 | U37: =T37*SUM(Q37:R37) -> 1901.616667 | W37: =IF(AC37>AD37,0,IF(AE37<AF37,O37,IF(AND(AE37>=AF37,AE37<=AD37),(O37-S37),IF(AND(AF37<=AC37,AD37>=AC37),0,IF(AE37>AD37,((AF37-AC37)*12)*P37,0))))) -> 316.9361111 | X37: =W37*T37 -> 316.9361111 | Y37: 1 | Z37: =X37*Y37 -> 316.9361111 | AA37: =IF(N37>0,0,Z37+U37*Y37)*Y37 -> 2218.552778 | AB37: =IF(N37>0,(M37-Z37)/2,IF(AC37>=AF37,(((M37*T37)*Y37)-AA37)/2,((((M37*T37)*Y37)-Z37)+(((M37*T37)*Y37)-AA37))/2)) -> 21551.65556 | AC37: 2016.833333 | AD37: 2018 | AE37: 2028.833333 | AF37: 2017 | AG37: -0.08333333333
A38: 169976 | B38: 22 | C38: 2 yd container | D38: 2016 | E38: 11 | F38: 0 | H38: S/L | I38: 12 | J38: =D38+I38 -> 2028 | M38: 12799.44 | O38: =M38-M38*F38 -> 12799.44 | P38: =O38/I38/12 -> 88.885 | Q38: =IF(N38>0,0,IF(OR(AC38>AD38,AE38<AF38),0,IF(AND(AE38>=AF38,AE38<=AD38),P38*((AE38-AF38)*12),IF(AND(AF38<=AC38,AD38>=AC38),((AD38-AC38)*12)*P38,IF(AE38>AD38,12*P38,0))))) -> 1066.62 | R38: =IF(N38=0,0,IF(AND(AG38>=AF38,AG38<=AE38),((AG38-AF38)*12)*P38,0)) -> 0 | S38: =IF(R38>0,R38,Q38) -> 1066.62 | T38: 1 | U38: =T38*SUM(Q38:R38) -> 1066.62 | W38: =IF(AC38>AD38,0,IF(AE38<AF38,O38,IF(AND(AE38>=AF38,AE38<=AD38),(O38-S38),IF(AND(AF38<=AC38,AD38>=AC38),0,IF(AE38>AD38,((AF38-AC38)*12)*P38,0))))) -> 177.77 | X38: =W38*T38 -> 177.77 | Y38: 1 | Z38: =X38*Y38 -> 177.77 | AA38: =IF(N38>0,0,Z38+U38*Y38)*Y38 -> 1244.39 | AB38: =IF(N38>0,(M38-Z38)/2,IF(AC38>=AF38,(((M38*T38)*Y38)-AA38)/2,((((M38*T38)*Y38)-Z38)+(((M38*T38)*Y38)-AA38))/2)) -> 12088.36 | AC38: 2016.833333 | AD38: 2018 | AE38: 2028.833333 | AF38: 2017 | AG38: -0.08333333333
A39: 187316 | B39: 20 | C39: 1 yd Commercial Containers | D39: 2017 | E39: 9 | F39: 0 | H39: S/L | I39: 12 | J39: =D39+I39 -> 2029 | M39: 9984.1 | O39: =M39-M39*F39 -> 9984.1 | P39: =O39/I39/12 -> 69.33402778 | Q39: =IF(N39>0,0,IF(OR(AC39>AD39,AE39<AF39),0,IF(AND(AE39>=AF39,AE39<=AD39),P39*((AE39-AF39)*12),IF(AND(AF39<=AC39,AD39>=AC39),((AD39-AC39)*12)*P39,IF(AE39>AD39,12*P39,0))))) -> 277.3361111 | R39: =IF(N39=0,0,IF(AND(AG39>=AF39,AG39<=AE39),((AG39-AF39)*12)*P39,0)) -> 0 | S39: =IF(R39>0,R39,Q39) -> 277.3361111 | T39: 1 | U39: =T39*SUM(Q39:R39) -> 277.3361111 | W39: =IF(AC39>AD39,0,IF(AE39<AF39,O39,IF(AND(AE39>=AF39,AE39<=AD39),(O39-S39),IF(AND(AF39<=AC39,AD39>=AC39),0,IF(AE39>AD39,((AF39-AC39)*12)*P39,0))))) -> 0 | X39: =W39*T39 -> 0 | Y39: 1 | Z39: =X39*Y39 -> 0 | AA39: =IF(N39>0,0,Z39+U39*Y39)*Y39 -> 277.3361111 | AB39: =IF(N39>0,(M39-Z39)/2,IF(AC39>=AF39,(((M39*T39)*Y39)-AA39)/2,((((M39*T39)*Y39)-Z39)+(((M39*T39)*Y39)-AA39))/2)) -> 4853.381944 | AC39: 2017.666667 | AD39: 2018 | AE39: 2029.666667 | AF39: 2017 | AG39: -0.08333333333
A40: 187317 | B40: 23 | C40: 1.5 yd Commercial Containers | D40: 2017 | E40: 9 | F40: 0 | H40: S/L | I40: 12 | J40: =D40+I40 -> 2029 | M40: 11745.04 | O40: =M40-M40*F40 -> 11745.04 | P40: =O40/I40/12 -> 81.56277778 | Q40: =IF(N40>0,0,IF(OR(AC40>AD40,AE40<AF40),0,IF(AND(AE40>=AF40,AE40<=AD40),P40*((AE40-AF40)*12),IF(AND(AF40<=AC40,AD40>=AC40),((AD40-AC40)*12)*P40,IF(AE40>AD40,12*P40,0))))) -> 326.2511111 | R40: =IF(N40=0,0,IF(AND(AG40>=AF40,AG40<=AE40),((AG40-AF40)*12)*P40,0)) -> 0 | S40: =IF(R40>0,R40,Q40) -> 326.2511111 | T40: 1 | U40: =T40*SUM(Q40:R40) -> 326.2511111 | W40: =IF(AC40>AD40,0,IF(AE40<AF40,O40,IF(AND(AE40>=AF40,AE40<=AD40),(O40-S40),IF(AND(AF40<=AC40,AD40>=AC40),0,IF(AE40>AD40,((AF40-AC40)*12)*P40,0))))) -> 0 | X40: =W40*T40 -> 0 | Y40: 1 | Z40: =X40*Y40 -> 0 | AA40: =IF(N40>0,0,Z40+U40*Y40)*Y40 -> 326.2511111 | AB40: =IF(N40>0,(M40-Z40)/2,IF(AC40>=AF40,(((M40*T40)*Y40)-AA40)/2,((((M40*T40)*Y40)-Z40)+(((M40*T40)*Y40)-AA40))/2)) -> 5709.394444 | AC40: 2017.666667 | AD40: 2018 | AE40: 2029.666667 | AF40: 2017 | AG40: -0.08333333333
A41: 187318 | B41: 25 | C41: 2 yd Commercial Containers | D41: 2017 | E41: 9 | F41: 0 | H41: S/L | I41: 12 | J41: =D41+I41 -> 2029 | M41: 13859.26 | O41: =M41-M41*F41 -> 13859.26 | P41: =O41/I41/12 -> 96.24486111 | Q41: =IF(N41>0,0,IF(OR(AC41>AD41,AE41<AF41),0,IF(AND(AE41>=AF41,AE41<=AD41),P41*((AE41-AF41)*12),IF(AND(AF41<=AC41,AD41>=AC41),((AD41-AC41)*12)*P41,IF(AE41>AD41,12*P41,0))))) -> 384.9794444 | R41: =IF(N41=0,0,IF(AND(AG41>=AF41,AG41<=AE41),((AG41-AF41)*12)*P41,0)) -> 0 | S41: =IF(R41>0,R41,Q41) -> 384.9794444 | T41: 1 | U41: =T41*SUM(Q41:R41) -> 384.9794444 | W41: =IF(AC41>AD41,0,IF(AE41<AF41,O41,IF(AND(AE41>=AF41,AE41<=AD41),(O41-S41),IF(AND(AF41<=AC41,AD41>=AC41),0,IF(AE41>AD41,((AF41-AC41)*12)*P41,0))))) -> 0 | X41: =W41*T41 -> 0 | Y41: 1 | Z41: =X41*Y41 -> 0 | AA41: =IF(N41>0,0,Z41+U41*Y41)*Y41 -> 384.9794444 | AB41: =IF(N41>0,(M41-Z41)/2,IF(AC41>=AF41,(((M41*T41)*Y41)-AA41)/2,((((M41*T41)*Y41)-Z41)+(((M41*T41)*Y41)-AA41))/2)) -> 6737.140278 | AC41: 2017.666667 | AD41: 2018 | AE41: 2029.666667 | AF41: 2017 | AG41: -0.08333333333
C43: TOTAL GARB COLL EQUIP | M43: =SUM(M12:M42) -> 275978.89 | O43: =SUM(O12:O42) -> 275978.89 | P43: =SUM(P12:P42) -> 2200.925139 | Q43: =SUM(Q12:Q42) -> 14703.14392 | R43: =SUM(R12:R42) -> 0 | S43: =SUM(S12:S42) -> 14703.14392 | U43: =SUM(U12:U42) -> 14703.14392 | W43: =SUM(W12:W42) -> 138446.7989 | X43: 138446.7989 | Y43: 29 | Z43: 138446.7989 | AA43: 153149.9429 | AB43: 112386.3191
C45: Drop Box(s)
B46: 26019 | C46: 6 20 yd | D46: 1992 | E46: 5 | F46: 0 | H46: S/L | I46: 10 | J46: =D46+I46 -> 2002 | M46: 19045 | O46: =M46-M46*F46 -> 19045 | P46: =O46/I46/12 -> 158.7083333 | Q46: =IF(N46>0,0,IF(OR(AC46>AD46,AE46<AF46),0,IF(AND(AE46>=AF46,AE46<=AD46),P46*((AE46-AF46)*12),IF(AND(AF46<=AC46,AD46>=AC46),((AD46-AC46)*12)*P46,IF(AE46>AD46,12*P46,0))))) -> 0 | R46: =IF(N46=0,0,IF(AND(AG46>=AF46,AG46<=AE46),((AG46-AF46)*12)*P46,0)) -> 0 | S46: =IF(R46>0,R46,Q46) -> 0 | T46: 1 | U46: =T46*SUM(Q46:R46) -> 0 | W46: =IF(AC46>AD46,0,IF(AE46<AF46,O46,IF(AND(AE46>=AF46,AE46<=AD46),(O46-S46),IF(AND(AF46<=AC46,AD46>=AC46),0,IF(AE46>AD46,((AF46-AC46)*12)*P46,0))))) -> 19045 | X46: =W46*T46 -> 19045 | Y46: 1 | Z46: =X46*Y46 -> 19045 | AA46: =IF(N46>0,0,Z46+U46*Y46)*Y46 -> 19045 | AB46: =IF(N46>0,(M46-Z46)/2,IF(AC46>=AF46,(((M46*T46)*Y46)-AA46)/2,((((M46*T46)*Y46)-Z46)+(((M46*T46)*Y46)-AA46))/2)) -> 0 | AC46: =$D46+(($E46-1)/12) -> 1992.333333 | AD46: =($O$5+1)-($O$2/12) -> 2018 | AE46: =$J46+(($E46-1)/12) -> 2002.333333 | AF46: =$O$4+($O$3/12) -> 2017 | AG46: =$K46+(($L46-1)/12) -> -0.08333333333
B47: 26021 | C47: 4 20 yd | D47: 1993 | E47: 3 | F47: 0 | H47: S/L | I47: 10 | J47: 2003 | M47: 13123 | O47: 13123 | P47: 109.3583333 | Q47: 0 | R47: 0 | S47: 0 | T47: 1 | U47: 0 | W47: 13123 | X47: 13123 | Y47: 1 | Z47: 13123 | AA47: 13123 | AB47: 0 | AC47: 1993.166667 | AD47: 2018 | AE47: 2003.166667 | AF47: 2017 | AG47: -0.08333333333
B48: 26023 | C48: 2 40 yd | D48: 1993 | E48: 11 | F48: 0 | H48: S/L | I48: 10 | J48: 2003 | M48: 8300 | O48: 8300 | P48: 69.16666667 | Q48: 0 | R48: 0 | S48: 0 | T48: 1 | U48: 0 | W48: 8300 | X48: 8300 | Y48: 1 | Z48: 8300 | AA48: 8300 | AB48: 0 | AC48: 1993.833333 | AD48: 2018 | AE48: 2003.833333 | AF48: 2017 | AG48: -0.08333333333
B49: 26024 | C49: 2 40 yd | D49: 1994 | E49: 2 | F49: 0 | H49: S/L | I49: 10 | J49: 2004 | M49: 8115 | O49: 8115 | P49: 67.625 | Q49: 0 | R49: 0 | S49: 0 | T49: 1 | U49: 0 | W49: 8115 | X49: 8115 | Y49: 1 | Z49: 8115 | AA49: 8115 | AB49: 0 | AC49: 1994.083333 | AD49: 2018 | AE49: 2004.083333 | AF49: 2017 | AG49: -0.08333333333
B50: 26025 | C50: 3 20 yd | D50: 1994 | E50: 3 | F50: 0 | H50: S/L | I50: 10 | J50: 2004 | M50: 10046 | O50: 10046 | P50: 83.71666667 | Q50: 0 | R50: 0 | S50: 0 | T50: 1 | U50: 0 | W50: 10046 | X50: 10046 | Y50: 1 | Z50: 10046 | AA50: 10046 | AB50: 0 | AC50: 1994.166667 | AD50: 2018 | AE50: 2004.166667 | AF50: 2017 | AG50: -0.08333333333
B51: 26026 | C51: sales tax | D51: 1994 | E51: 1 | F51: 0 | H51: S/L | I51: 10 | J51: 2004 | M51: 656 | O51: 656 | P51: 5.466666667 | Q51: 0 | R51: 0 | S51: 0 | T51: 1 | U51: 0 | W51: 656 | X51: 656 | Y51: 1 | Z51: 656 | AA51: 656 | AB51: 0 | AC51: 1994 | AD51: 2018 | AE51: 2004 | AF51: 2017 | AG51: -0.08333333333
B52: 26030 | C52: 6 dropboxes | D52: 1995 | E52: 9 | F52: 0 | H52: S/L | I52: 10 | J52: 2005 | M52: 21575 | O52: 21575 | P52: 179.7916667 | Q52: 0 | R52: 0 | S52: 0 | T52: 1 | U52: 0 | W52: 21575 | X52: 21575 | Y52: 1 | Z52: 21575 | AA52: 21575 | AB52: 0 | AC52: 1995.666667 | AD52: 2018 | AE52: 2005.666667 | AF52: 2017 | AG52: -0.08333333333
B53: 26034 | C53: 2 dropboxes | D53: 1998 | E53: 4 | F53: 0 | H53: S/L | I53: 10 | J53: 2008 | M53: 8873 | O53: 8873 | P53: 73.94166667 | Q53: 0 | R53: 0 | S53: 0 | T53: 1 | U53: 0 | W53: 8873 | X53: 8873 | Y53: 1 | Z53: 8873 | AA53: 8873 | AB53: 0 | AC53: 1998.25 | AD53: 2018 | AE53: 2008.25 | AF53: 2017 | AG53: -0.08333333333
B54: 26036 | C54: 3 20 yd | D54: 1998 | E54: 7 | F54: 0 | H54: S/L | I54: 10 | J54: 2008 | M54: 10670 | O54: 10670 | P54: 88.91666667 | Q54: 0 | R54: 0 | S54: 0 | T54: 1 | U54: 0 | W54: 10670 | X54: 10670 | Y54: 1 | Z54: 10670 | AA54: 10670 | AB54: 0 | AC54: 1998.5 | AD54: 2018 | AE54: 2008.5 | AF54: 2017 | AG54: -0.08333333333
B55: 26038 | C55: 3 20 yd | D55: 1998 | E55: 8 | F55: 0 | H55: S/L | I55: 10 | J55: 2008 | M55: 10670 | O55: 10670 | P55: 88.91666667 | Q55: 0 | R55: 0 | S55: 0 | T55: 1 | U55: 0 | W55: 10670 | X55: 10670 | Y55: 1 | Z55: 10670 | AA55: 10670 | AB55: 0 | AC55: 1998.583333 | AD55: 2018 | AE55: 2008.583333 | AF55: 2017 | AG55: -0.08333333333
B56: 26040 | C56: 3 20 yd | D56: 1998 | E56: 10 | F56: 0 | H56: S/L | I56: 10 | J56: 2008 | M56: 10804 | O56: 10804 | P56: 90.03333333 | Q56: 0 | R56: 0 | S56: 0 | T56: 1 | U56: 0 | W56: 10804 | X56: 10804 | Y56: 1 | Z56: 10804 | AA56: 10804 | AB56: 0 | AC56: 1998.75 | AD56: 2018 | AE56: 2008.75 | AF56: 2017 | AG56: -0.08333333333
B57: 26041 | C57: 4 20 yd | D57: 1998 | E57: 10 | F57: 0 | H57: S/L | I57: 10 | J57: 2008 | M57: 14313 | O57: 14313 | P57: 119.275 | Q57: 0 | R57: 0 | S57: 0 | T57: 1 | U57: 0 | W57: 14313 | X57: 14313 | Y57: 1 | Z57: 14313 | AA57: 14313 | AB57: 0 | AC57: 1998.75 | AD57: 2018 | AE57: 2008.75 | AF57: 2017 | AG57: -0.08333333333
B58: 26044 | C58: 20yd | D58: 1999 | E58: 1 | F58: 0 | H58: S/L | I58: 10 | J58: 2009 | M58: 9635 | O58: 9635 | P58: 80.29166667 | Q58: 0 | R58: 0 | S58: 0 | T58: 1 | U58: 0 | W58: 9635 | X58: 9635 | Y58: 1 | Z58: 9635 | AA58: 9635 | AB58: 0 | AC58: 1999 | AD58: 2018 | AE58: 2009 | AF58: 2017 | AG58: -0.08333333333
B59: 26045 | C59: 6 dropboxes | D59: 1999 | E59: 6 | F59: 0 | H59: S/L | I59: 10 | J59: 2009 | M59: 34729 | O59: 34729 | P59: 289.4083333 | Q59: 0 | R59: 0 | S59: 0 | T59: 1 | U59: 0 | W59: 34729 | X59: 34729 | Y59: 1 | Z59: 34729 | AA59: 34729 | AB59: 0 | AC59: 1999.416667 | AD59: 2018 | AE59: 2009.416667 | AF59: 2017 | AG59: -0.08333333333
B60: 26046 | C60: 3 dropbox | D60: 1999 | E60: 9 | F60: 0 | H60: S/L | I60: 10 | J60: 2009 | M60: 10735 | O60: 10735 | P60: 89.45833333 | Q60: 0 | R60: 0 | S60: 0 | T60: 1 | U60: 0 | W60: 10735 | X60: 10735 | Y60: 1 | Z60: 10735 | AA60: 10735 | AB60: 0 | AC60: 1999.666667 | AD60: 2018 | AE60: 2009.666667 | AF60: 2017 | AG60: -0.08333333333
